Workbook

Sheet LDC Info
AA3: Algoma Power Inc.
AA4: Atikokan Hydro Inc.
AA5: Attawapiskat Power Corporation
AA6: Bluewater Power Distribution Corp.
AA7: Brant County Power
AA8: Brantford Power Inc.
AA9: Burlington Hydro Inc.
AA10: Cambridge and North Dumfries Hydro
AA11: Canadian Niagara Power Inc. – Eastern Ontario Power/Fort Erie/Port Colborne
AA12: Centre Wellington Hydro Ltd.
N13: Version 1.1 | AA13: Chapleau Public Utilities Corporation
D14: Utility Name | E14: Westario Power Inc. | AA14: COLLUS Power Corp.
AA15: Cooperative Hydro Embrun Inc.
D16: Service Territory | AA16: E.L.K. Energy Inc.
AA17: Enersource Hydro Mississauga Inc.
D18: Assigned EB Number | E18: EB2012-0176 | AA18: Entegrus Powerlines Inc.
AA19: ENWIN Utilities Ltd.
D20: Name of Contact and Title | E20: Lisa Milne, President/CEO | AA20: Erie Thames Powerlines Corp.
AA21: Espanola Regional Hydro Distribution Corporation
D22: Phone Number | E22: 519-507-6666 Ext. 216 | AA22: Essex Powerlines Corporation
AA23: Festival Hydro Inc.
D24: Email Address | E24: lisa.milne@westario.com | AA24: Fort Albany Power Corporation
AA25: Fort Frances Power Corporation
D26: Bridge Year | E26: 2012 | AA26: Greater Sudbury Hydro Inc.
AA27: Grimsby Power Inc.
D28: Test Year | E28: 2013 | AA28: Guelph Hydro Electric Systems Inc.
AA29: Haldimand County Hydro Inc.
D30: Last Rebasing Year | E30: 2009 | AA30: Guelph Hydro Electric Systems Inc.
AA31: Halton Hills Hydro Inc.
B32: Notes | AA32: Hearst Power Distribution Co. Ltd.
AA33: Horizon Utilities Corporation
C34: Pale green cells represent input cells. | AA34: Hydro 2000 Inc.
AA35: Hydro Hawkesbury Inc.
C36: Pale blue cells represent drop-down lists. The applicant should select the appropriate item from the drop-down list. | AA36: Hydro One Brampton Networks Inc.
AA37: Hydro One Networks Inc.
C38: White cells contain fixed values, automatically generated values or formulae. | AA38: Hydro One Remote Communities Inc.
AA39: Hydro Ottawa Limited
AA40: Innisfil Hydro Dist. Systems Limited
AA41: Kashechewan Power Corporation
AA42: Kenora Hydro Electric Corporation Ltd.
AA43: Kingston Hydro Corporation
AA44: Kitchener-Wilmot Hydro Inc.
AA45: Lakefront Utilities Inc.
AA46: Lakeland Power Distribution Ltd.
AA47: London Hydro Inc.
AA48: Midland Power Utility Corporation
AA49: Milton Hydro Distribution Inc.
AA50: Newmarket – Tay Power Distribution Ltd.
AA51: Niagara Peninsula Energy Inc.
AA52: Niagara-on-the-Lake Hydro Inc.
AA53: Norfolk Power Distribution Ltd.
AA54: North Bay Hydro Distribution Limited
AA55: Northern Ontario Wires Inc.
AA56: Oakville Hydro Distribution Inc.
AA57: Orangeville Hydro Limited
AA58: Orillia Power Distribution Corp.
AA59: Oshawa PUC Networks Inc.
AA60: Ottawa River Power Corporation
AA61: Parry Sound Power Corporation
AA62: Peterborough Distribution Inc.
AA63: PowerStream Inc.
AA64: PUC Distribution Inc.
AA65: Renfrew Hydro Inc.
AA66: Rideau St. Lawrence Distribution Inc.
AA67: St. Thomas Energy Inc.
AA68: Sioux Lookout Hydro Inc.
AA69: Thunder Bay Hydro Electricity Distribution
AA70: Tillsonburg Hydro Inc.
AA71: Toronto Hydro-Electric System Limited
AA72: Veridian Connections Inc.
AA73: Wasaga Distribution Inc.
AA74: Waterloo North Hydro Inc.
AA75: Welland Hydro Electric System Corp.
AA76: Wellington North Power Inc.
AA77: West Coast Huron Energy Inc.
AA78: Westario Power Inc.
AA79: Whitby Hydro Electric Corporation
AA80: Woodstock Hydro Services Inc.

Sheet Index
A15: 1 | B15: LDC Information Sheet | E15: 19 | F15: Appendix 2-H OM&A Detailed Analysis
A16: 2 | B16: Index | E16: 20 | F16: Appendix 2-I OM&A Summary Analysis
A17: 3 | B17: Appendix 2-A Capital Projects | E17: 21 | F17: Appendix 2-J OM&A Cost Drivers
A18: 4 | B18: Appendix 2-B Fixed Asset Continuity | E18: 22 | F18: Appendix 2-K Employee Costs
A19: 5 | B19: Appendix 2-CA CGAAP Depreciation Expense 2011 | E19: 23 | F19: Appendix 2-L OM&A per Cust FTEE
A20: 6 | B20: Appendix 2-CB MIFRS Depreciation Expense 2011 | E20: 24 | F20: Appendix 2-M Regulatory Costs
A21: 7 | B21: Appendix 2-CC MIFRS Depreciation Expense 2012 | E21: 25 | F21: Appendix 2-N Corp Cost Allocation
A22: 8 | B22: Appendix 2-CD MIFRS Depreciation Expense 2013 | E22: 26 | F22: Appendix 2-OA Capital Structure and Cost of Capital
A23: 9 | B23: Appendix 2-CE CGAAP Depreciation Expense 2011 | E23: 27 | F23: Appendix 2-OB Debt Instruments
A24: 10 | B24: Appendix 2-CF CGAAP Depreciation Expense 2012 | E24: 28 | F24: Appendix 2-P Cost Allocation
A25: 11 | B25: Appendix 2-CG MIFRS Depreciation Expense 2012 | E25: 29 | F25: Appendix 2-Q Cost of Service Embedded Distributor
A26: 12 | B26: Appendix 2-CH MIFRS Depreciation Expense 2013 | E26: 30 | F26: Appendix 2-R Loss Factors
A27: 13 | B27: Appendix 2-CI Alternative Accounting Standards Depreciation Expense | E27: 31 | F27: Appendix 2-S Stranded Meters
A28: 14 | B28: Appendix 2-D Overhead | E28: 32 | F28: Appendix 2-T 1592 Tax Variance
A29: 15 | B29: Appendix 2-EA PP&E Deferral Account - 2012 IFRS Adopters | E29: 33 | F29: Appendix 2-U IFRS Transition Costs
A30: 16 | B30: Appendix 2-EB PP&E Deferral Account - 2013 IFRS Adopters | E30: 34 | F30: Appendix 2-V Rev Reconciliation
A31: 17 | B31: Appendix 2-F Other Operating Revenue | E31: 35 | F31: Appendix 2-W Bill Impacts
A32: 18 | B32: Appendix 2-G Detailed OM&A Expenses | E32: 36 | F32: Appendix 2-X CoS Flowchart

Sheet App.2-A_Capital Projects
G1: File Number: | H1: ='LDC Info'!$E$18 -> EB2012-0176
G2: Exhibit:
G3: Tab:
G4: Schedule:
G5: Page:
G7: Date:
A9: Appendix 2-A
A10: Capital Projects Table
A13: Projects | B13: =IF(ISBLANK('LDC Info'!E26), "Year 1", 'LDC Info'!E26-5) -> 2007 | C13: =IF(ISBLANK('LDC Info'!E26), "Year 2", 'LDC Info'!E26-4) -> 2008 | D13: =IF(ISBLANK('LDC Info'!E26), "Year 3", 'LDC Info'!E26-3) -> 2009 | E13: =IF(ISBLANK('LDC Info'!E26), "Year 4", 'LDC Info'!E26-2) -> 2010 | F13: =IF(ISBLANK('LDC Info'!E26), "Year 5", 'LDC Info'!E26-1) -> 2011 | G13: ='LDC Info'!E26 & " Bridge Year" -> 2012 Bridge Year | H13: ='LDC Info'!E28 & " Test Year" -> 2013 Test Year
A14: Reporting Basis | B14: CGAAP | C14: CGAAP | D14: CGAAP | E14: CGAAP | F14: CGAAP | G14: CGAAP | H14: CGAAP
A15: Capital #6 Primary Replacement
A16: Poles, Towers & Fixtures | D16: 143729 | E16: 182424 | F16: 224903 | G16: 322551 | H16: 351114
A17: Overhead Conductors & Devices | D17: 201622 | E17: 201865 | F17: 295784 | G17: 387061 | H17: 421338
A18: Underground Conduit | D18: 10799 | E18: 7802 | F18: 4070
A19: Underground Conductors & Devices | D19: 82044 | E19: 36147 | F19: 58496 | G19: 64510 | H19: 70223
A20: Line Transformers | D20: 137421 | E20: 23617 | F20: 136620 | G20: 258040 | H20: 280892
A21: Services | D21: 75775 | E21: 60143 | F21: 163793 | G21: 258040 | H21: 280892
A22: Meters | D22: 782 | E22: 947
A23: Sub-Total | B23: =SUM(B16:B22) -> 0 | C23: =SUM(C16:C22) -> 0 | D23: 652172 | E23: 512945 | F23: 883666 | G23: 1290202 | H23: 1404459
A25: Capital Poles - Priority Level 5
A26: Poles, Towers & Fixtures | D26: 204510 | E26: 151385 | F26: 182403 | G26: 200696 | H26: 198504
A27: Overhead Conductors & Devices | D27: 259122 | E27: 120732 | F27: 243633 | G27: 229367 | H27: 226862
A28: Underground Conduit | D28: 9848 | E28: 4364 | F28: 6823 | G28: 14336 | H28: 14179
A29: Underground Conductors & Devices | D29: 124252 | E29: 5468 | F29: 21975 | G29: 43006 | H29: 42537
A30: Line Transformers | D30: 133695 | E30: 10252 | F30: 140419 | G30: 28671 | H30: 28358
A31: Services | D31: 78986 | E31: 15413 | F31: 72855 | G31: 57342 | H31: 56715
A32: Meters | D32: 58 | E32: 5071 | F32: 1057
A33: Sub-Total | B33: =SUM(B26:B32) -> 0 | C33: 0 | D33: 810471 | E33: 312685 | F33: 669165 | G33: 573418 | H33: 567155
A35: Capital Poles
A36: Capital Cost | B36: 295760 | C36: 155438
A37: Poles, Towers & Fixtures | D37: 84835 | E37: 71400 | F37: 105344 | G37: 283535 | H37: 286173
A38: Overhead Conductors & Devices | D38: 41557 | E38: 45296 | F38: 42486 | G38: 118139 | H38: 119238
A39: Underground Conduit | D39: 1964 | E39: 3166 | F39: 530
A40: Underground Conductors & Devices | D40: 10320 | E40: 11525 | F40: 2835 | G40: 11814 | H40: 11924
A41: Line Transformers | D41: 21938 | E41: 14319 | F41: 12098 | G41: 35442 | H41: 35771
A42: Services | D42: 9837 | E42: 5685 | F42: 9514 | G42: 23628 | H42: 23848
A43: Meters | E43: 499 | F43: 1302
A44: Sub-Total | B44: =SUM(B36:B43) -> 295760 | C44: =SUM(C36:C43) -> 155438 | D44: =SUM(D37:D43) -> 170451 | E44: 151890 | F44: 174109 | G44: 472558 | H44: 476954
A46: Southampton Saugeen Street
A47: Capital Cost | C47: 39600
A48: Poles, Towers & Fixtures | D48: 5600
A49: Overhead Conductors & Devices | D49: 8538
A50: Underground Conduit | D50: 241
A51: Underground Conductors & Devices | D51: 19396
A52: Line Transformers | D52: 51044
A53: Services | D53: 12620
A54: Meters | D54: 1503
A55: Sub-Total | B55: =SUM(B48:B54) -> 0 | C55: =SUM(C47:C54) -> 39600 | D55: 98942 | E55: 0 | F55: 0 | G55: 0 | H55: 0
A57: Kincardine Saugeen Street Rebuild
A58: Capital Cost | B58: 115402
A59: Sub-Total | B59: =SUM(B58:B58) -> 115402 | C59: 0 | D59: 0 | E59: 0 | F59: 0 | G59: 0 | H59: 0
A61: Harriston Substation Contingency 2 MVA
A62: Distribution Station Equipment | D62: 4094 | E62: 81230
A63: Poles, Towers & Fixtures | D63: 11655
A64: Overhead Conductors & Devices | D64: 8341 | E64: 4015
A65: Underground Conduit | D65: 924 | E65: 469
A66: Underground Conductors & Devices | D66: 55553 | E66: 6351
A67: Line Transformers | D67: 1007 | E67: 1807
A68: Services
A69: Meters | E69: 32243
A70: Sub-Total | B70: =SUM(B62:B69) -> 0 | C70: =SUM(C62:C69) -> 0 | D70: 81574 | E70: 126115 | F70: 0 | G70: 0 | H70: 0
A72: Wingham MS1 Reclosure Replacement
A73: Distribution Station Equipment | D73: 113046
A74: Poles, Towers & Fixtures
A75: Overhead Conductors & Devices | D75: 224
A76: Underground Conduit
A77: Underground Conductors & Devices | D77: 13726
A78: Line Transformers
A79: Services
A80: Meters
A81: Sub-Total | B81: =SUM(B73:B80) -> 0 | C81: =SUM(C73:C80) -> 0 | D81: 126996 | E81: 0 | F81: 0 | G81: 0 | H81: 0
A83: Southampton MS1 Structure Rebuild
A84: Poles, Towers & Fixtures | E84: 17082 | F84: 84318
A85: Overhead Conductors & Devices | E85: 35587
A86: Underground Conduit | E86: 1495
A87: Underground Conductors & Devices | E87: 1924
A88: Line Transformers
A89: Services
A90: Meters
A91: Sub-Total | B91: =SUM(B84:B90) -> 0 | C91: 0 | D91: 0 | E91: 56088 | F91: 84318 | G91: 0 | H91: 0
A93: Emergency Transformer Refurb & Ready Stations
A94: Capital Cost
A95: Distribution Station Equipment | H95: 256064
A96: Poles, Towers & Fixtures | H96: 30125
A97: Overhead Conductors & Devices | H97: 15063
A98: Sub-Total | B98: =SUM(B94:B94) -> 0 | C98: 0 | D98: 0 | E98: 0 | F98: 0 | G98: 0 | H98: =SUM(H94:H97) -> 301252
A100: Hanover MS2 Cable Replacement
A101: Capital Cost | C101: 41250
A102: Sub-Total | B102: =SUM(B101:B101) -> 0 | C102: 41250 | D102: 0 | E102: 0 | F102: 0 | G102: 0 | H102: 0
A104: Hanover MS2 Ground Grid Reactor
A105: Distribution Station Equipment | F105: 169049
A106: Sub-Total | B106: =SUM(B105:B105) -> 0 | C106: 0 | D106: 0 | E106: 0 | F106: 169049 | G106: 0 | H106: 0
A108: Upgrade Station Metering
A109: Distribution Station Equipment | H109: 129422
A110: Sub-Total | B110: =SUM(B109:B109) -> 0 | C110: 0 | D110: 0 | E110: 0 | F110: 0 | G110: 0 | H110: 129422
A112: Hanover MS1 Reactor Installation
A113: Distribution Station Equipment | G113: 242020
A114: Sub-Total | B114: =SUM(B113:B113) -> 0 | C114: 0 | D114: 0 | E114: 0 | F114: 0 | G114: 242020 | H114: 0
A116: Palmerston MS Recloser Replacement
A117: Capital Cost | C117: 143325
A118: Sub-Total | B118: =SUM(B117:B117) -> 0 | C118: 143325 | D118: 0 | E118: 0 | F118: 0 | G118: 0 | H118: 0
A120: Substation Fencing
A121: Building | E121: 3263
A122: Distribution Station Equipment | E122: 13760
A123: Poles, Towers & Fixtures
A124: Overhead Conductors & Devices
A125: Underground Conduit
A126: Underground Conductors & Devices
A127: Line Transformers
A128: Services
A129: Meters
A130: Sub-Total | B130: =SUM(B123:B129) -> 0 | C130: 0 | D130: 0 | E130: =SUM(E121:E129) -> 17023 | F130: 0 | G130: 0 | H130: 0
A132: Station Grid Upgrade - 25 Stations
A133: Distribution Station Equipment | E133: 102543 | F133: 147139 | G133: 120928 | H133: 209369
A134: Sub-Total | B134: =SUM(B133:B133) -> 0 | C134: 0 | D134: 0 | E134: 102543 | F134: 147139 | G134: 120928 | H134: 209369
A136: Substation Transformer Refurbishment
A137: Capital Cost | B137: 47196
A138: Sub-Total | B138: =SUM(B137:B137) -> 47196 | C138: 0 | D138: 0 | E138: 0 | F138: 0 | G138: 0 | H138: 0
A140: Harriston MS Spare Substation Transformer
A141: Capital Cost | C141: 64433
A142: Sub-Total | B142: =SUM(B141:B141) -> 0 | C142: 64433 | D142: 0 | E142: 0 | F142: 0 | G142: 0 | H142: 0
A144: Harriston T2 Upgrade
A145: Distribution Substation Equipment | G145: 143891
A146: Sub-Total | B146: =SUM(B145:B145) -> 0 | C146: 0 | D146: 0 | E146: 0 | F146: 0 | G146: 143891 | H146: 0
A148: Walkerton MS1 New Substation Transformer
A149: Capital Cost | C149: 175176
A150: Sub-Total | B150: =SUM(B149:B149) -> 0 | C150: 175176 | D150: 0 | E150: 0 | F150: 0 | G150: 0 | H150: 0
A152: Live Line Openers
A153: Capital Cost | C153: 21299
A154: Sub-Total | B154: =SUM(B153:B153) -> 0 | C154: 21299 | D154: 0 | E154: 0 | F154: 0 | G154: 0 | H154: 0
A156: Lucknow 6-Plex
A157: Capital Cost | C157: 3897
A158: Sub-Total | B158: =SUM(B157:B157) -> 0 | C158: 3897 | D158: 0 | E158: 0 | F158: 0 | G158: 0 | H158: 0
A160: Port Elgin 5KV Cable & Poletran Replacement
A161: Poles, Towers & Fixtures | E161: 5708 | F161: 12234 | G161: 24503 | H161: 37068
A162: Overhead Conductors & Devices | E162: 14637 | F162: 18862 | G162: 24503 | H162: 37068
A163: Underground Conduit | E163: 1454 | F163: 259280 | G163: 220529 | H163: 333610
A164: Underground Conductors & Devices | E164: 194247 | F164: 113176 | G164: 122516 | H164: 185339
A165: Line Transformers | E165: 37217 | F165: 34568 | G165: 49007 | H165: 74135
A166: Services | E166: 6086 | F166: 12463 | G166: 49007 | H166: 74135
A167: Meters
A168: Sub-Total | B168: =SUM(B161:B167) -> 0 | C168: 0 | D168: 0 | E168: 259349 | F168: 450583 | G168: 490065 | H168: 741355
A170: Kincardine Poletran & BRI Cable Replacement
A171: Capital Cost | B171: 344866 | C171: 411744
A172: Sub-Total | B172: =SUM(B171:B171) -> 344866 | C172: 411744 | D172: 0 | E172: 0 | F172: 0 | G172: 0 | H172: 0
A174: Harriston Poletran Rebuild
A175: Capital Cost | B175: 49798
A176: Sub-Total | B176: =SUM(B175:B175) -> 49798 | C176: 0 | D176: 0 | E176: 0 | F176: 0 | G176: 0 | H176: 0
A178: Kincardine Hunter Street Defective Transformer Foundations
A179: Capital Cost | C179: 54334
A180: Sub-Total | B180: =SUM(B179:B179) -> 0 | C180: 54334 | D180: 0 | E180: 0 | F180: 0 | G180: 0 | H180: 0
A182: Padmount Transformers with no Ground Gradient
A183: Distribution Station Equipment | F183: 2176
A184: Poles, Towers & Fixtures | E184: 467 | F184: 1798
A185: Overhead Conductors & Devices | D185: 2398 | F185: 3555
A186: Underground Conduit | D186: 525 | F186: 468
A187: Underground Conductors & Devices | D187: 17427 | E187: 678 | F187: 7593
A188: Line Transformers | D188: 16434 | E188: 1427 | F188: 38492
A189: Services | E189: 2205 | F189: 5658
A190: Meters | F190: 2523
A191: Sub-Total | B191: =SUM(B184:B190) -> 0 | C191: 0 | D191: 36784 | E191: 4777 | F191: =SUM(F183:F190) -> 62263 | G191: 0 | H191: 0
A193: New 3 Phase Customers
A194: Capital Cost | B194: 214345 | C194: 119891
A195: Poles, Towers & Fixtures | D195: 3265 | E195: 14108 | F195: 18287 | G195: 32009 | H195: 30389
A196: Overhead Conductors & Devices | D196: 9506 | E196: 19505 | F196: 18824 | G196: 32009 | H196: 30389
A197: Underground Conduit | D197: 707 | E197: 2142 | F197: 216 | G197: 8002 | H197: 7597
A198: Underground Conductors & Devices | D198: 7595 | E198: 20760 | F198: 30342 | G198: 48014 | H198: 45584
A199: Line Transformers | D199: 114813 | E199: 79551 | F199: 94318 | G199: 160046 | H199: 151946
A200: Services | D200: 2302 | E200: 7825 | F200: 9620 | G200: 16005 | H200: 15195
A201: Meters | D201: 7426 | E201: 11236 | F201: =5567+1945 -> 7512 | G201: 24006 | H201: 22793
A202: Sub-Total | B202: =SUM(B194:B201) -> 214345 | C202: =SUM(C194:C201) -> 119891 | D202: =SUM(D195:D201) -> 145614 | E202: 155127 | F202: 179119 | G202: 320091 | H202: 303893
A204: New low voltage services
A205: Capital Cost | B205: =43180+200000 -> 243180 | C205: 200000
A206: Poles, Towers & Fixtures | D206: 7074 | E206: 396 | F206: 2723 | G206: 7323 | H206: 6496
A207: Overhead Conductors & Devices | D207: 2261 | E207: 9278 | F207: 3358 | G207: 7323 | H207: 6496
A208: Underground Conduit | D208: 442 | E208: 3763 | F208: 566 | G208: 7323 | H208: 6496
A209: Underground Conductors & Devices | D209: 27053 | E209: 19508 | F209: 29192 | G209: 29293 | H209: 25983
A210: Line Transformers | D210: 77586 | E210: 9793 | F210: 831 | G210: 7323 | H210: 6496
A211: Services | D211: 264 | E211: 101079 | F211: 122044 | G211: 219703 | H211: 194874
A212: Meters | E212: 2858 | F212: =5191+1542 -> 6733 | G212: 14646 | H212: 12991
A213: Sub-Total | B213: =SUM(B205:B212) -> 243180 | C213: =SUM(C205:C212) -> 200000 | D213: =SUM(D206:D212) -> 114680 | E213: 146675 | F213: 165447 | G213: 292934 | H213: 259832
A215: Non-demarcation Customers
A216: Capital Cost | B216: 22744
A217: Poles, Towers & Fixtures | E217: 33863 | F217: 2922 | G217: 4757 | H217: 6300
A218: Overhead Conductors & Devices
A219: Underground Conduit | D219: 10849 | E219: 2310 | F219: 18556 | G219: 26959 | H219: 35700
A220: Underground Conductors & Devices
A221: Line Transformers
A222: Services
A223: Meters
A224: Sub-Total | B224: =SUM(B216:B223) -> 22744 | C224: =SUM(C217:C223) -> 0 | D224: 10849 | E224: 36173 | F224: 21478 | G224: 31716 | H224: 42000
A226: New Lots Developed
A227: Capital Cost | B227: 30832 | C227: 262618
A228: Poles, Towers & Fixtures | D228: 226 | E228: 973 | F228: 29337 | G228: 13532 | H228: 12407
A229: Overhead Conductors & Devices | D229: 15955 | E229: 5586 | F229: 42783 | G229: 40595 | H229: 37221
A230: Underground Conduit | D230: 4575 | E230: 973 | F230: 2559 | G230: 13532 | H230: 12407
A231: Underground Conductors & Devices | D231: 106235 | E231: 42688 | F231: 154318 | G231: 135315 | H231: 124071
A232: Line Transformers | D232: 194308 | E232: 9887 | F232: 63511 | G232: 54127 | H232: 49629
A233: Services | D233: 3239 | E233: 486 | F233: 10219 | G233: 13532 | H233: 12407
A234: Meters
... 368 more rows

Sheet App.2-B_Fixed Asset Cont 2007
M1: File Number: | N1: ='LDC Info'!$E$18 -> EB2012-0176
M2: Exhibit:
M3: Tab:
M4: Schedule:
M5: Page:
M7: Date:
A9: Appendix 2-B
A10: Fixed Asset Continuity Schedule
F12: Year | G12: 2007
E14: Cost | K14: Accumulated Depreciation
A15: CCA Class | B15: OEB | C15: Description | D15: Depreciation Rate | E15: Opening Balance | F15: Additions | G15: Disposals | H15: Closing Balance | J15: Opening Balance | K15: Additions | L15: Disposals | M15: Closing Balance | N15: Net Book Value
A16: 12 | B16: 1611 | C16: Computer Software (Formally known as Account 1925) | H16: =E16+F16+G16 -> 0 | M16: =J16+K16+L16 -> 0 | N16: =H16+M16 -> 0
A17: CEC | B17: 1612 | C17: Land Rights (Formally known as Account 1906) | H17: =E17+F17+G17 -> 0 | M17: =J17+K17+L17 -> 0 | N17: =H17+M17 -> 0
A18: N/A | B18: 1805 | C18: Land | E18: 242769 | G18: -15000 | H18: =E18+F18+G18 -> 227769 | M18: =J18+K18+L18 -> 0 | N18: =H18+M18 -> 227769
A19: 47 | B19: 1808 | C19: Buildings | D19: 0.02 | E19: 6517 | F19: 2443787 | H19: =E19+F19+G19 -> 2450304 | J19: -2023 | K19: -24758 | M19: =J19+K19+L19 -> -26781 | N19: =H19+M19 -> 2423523
A20: 13 | B20: 1810 | C20: Leasehold Improvements | H20: 0 | M20: 0 | N20: 0
A21: 47 | B21: 1815 | C21: Transformer Station Equipment >50 kV | H21: 0 | M21: 0 | N21: 0
A22: 47 | B22: 1820 | C22: Distribution Station Equipment <50 kV | D22: 0.0333 | E22: 3073798 | F22: 83593 | H22: 3157391 | J22: -862166 | K22: -143364 | M22: -1005530 | N22: 2151861
A23: 47 | B23: 1825 | C23: Storage Battery Equipment | H23: 0 | M23: 0 | N23: 0
A24: 47 | B24: 1830 | C24: Poles, Towers & Fixtures | D24: 0.04 | E24: 4811058 | F24: 194258 | H24: 5005316 | J24: -1094849 | K24: -217108 | M24: -1311957 | N24: 3693359
A25: 47 | B25: 1835 | C25: Overhead Conductors & Devices | D25: 0.04 | E25: 6734937 | F25: 622265 | H25: 7357202 | J25: -1442428 | K25: -316175 | M25: -1758603 | N25: 5598599
A26: 47 | B26: 1840 | C26: Underground Conduit | D26: 0.04 | E26: 2094546 | F26: 389798 | H26: 2484344 | J26: -393133 | K26: -100545 | M26: -493678 | N26: 1990666
A27: 47 | B27: 1845 | C27: Underground Conductors & Devices | D27: 0.04 | E27: 5563155 | F27: 695407 | H27: 6258562 | J27: -1130311 | K27: -265053 | M27: -1395364 | N27: 4863198
A28: 47 | B28: 1850 | C28: Line Transformers | D28: 0.04 | E28: 5896988 | F28: 624935 | H28: 6521923 | J28: -1143249 | K28: -276309 | M28: -1419558 | N28: 5102365
A29: 47 | B29: 1855 | C29: Services (Overhead & Underground) | D29: 0.04 | E29: 2727052 | F29: 277646 | H29: 3004698 | J29: -555934 | K29: -125438 | M29: -681372 | N29: 2323326
A30: 47 | B30: 1860 | C30: Meters | D30: 0.04 | E30: 2302027 | F30: 136217 | G30: -61140 | H30: 2377104 | J30: -490587 | K30: -105800 | M30: -596387 | N30: 1780717
A31: 8 | B31: 1860 | C31: Meters (Smart Meters) | D31: 0.04 | F31: 61140 | H31: 61140 | M31: 0 | N31: 61140
A32: N/A | B32: 1905 | C32: Land | H32: 0 | M32: 0 | N32: 0
A33: 47 | B33: 1908 | C33: Buildings & Fixtures | H33: 0 | M33: 0 | N33: 0
A34: 13 | B34: 1910 | C34: Leasehold Improvements | H34: 0 | M34: 0 | N34: 0
A35: 8 | B35: 1915 | C35: Office Furniture & Equipment (10 years) | H35: 0 | M35: 0 | N35: 0
A36: 8 | B36: 1915 | C36: Office Furniture & Equipment (5 years) | H36: 0 | M36: 0 | N36: 0
A37: 10 | B37: 1920 | C37: Computer Equipment - Hardware | H37: 0 | M37: 0 | N37: 0
A38: 45 | B38: 1920 | C38: Computer Equip.-Hardware(Post Mar. 22/04) | H38: 0 | M38: 0 | N38: 0
A39: 45.1 | B39: 1920 | C39: Computer Equip.-Hardware(Post Mar. 19/07) | H39: 0 | M39: 0 | N39: 0
A40: 12 | B40: 1925 | C40: Computer Software (Formally known as Account 1925) | D40: 0.2 | E40: 267519 | H40: 267519 | J40: -209098 | K40: -53503 | M40: -262601 | N40: 4918
A41: 10 | B41: 1930 | C41: Transportation Equipment | H41: 0 | M41: 0 | N41: 0
A42: 8 | B42: 1935 | C42: Stores Equipment | H42: 0 | M42: 0 | N42: 0
A43: 8 | B43: 1940 | C43: Tools, Shop & Garage Equipment | H43: 0 | M43: 0 | N43: 0
A44: 8 | B44: 1945 | C44: Measurement & Testing Equipment | H44: 0 | M44: 0 | N44: 0
A45: 8 | B45: 1950 | C45: Power Operated Equipment | H45: 0 | M45: 0 | N45: 0
A46: 8 | B46: 1955 | C46: Communications Equipment | H46: 0 | M46: 0 | N46: 0
A47: 8 | B47: 1955 | C47: Communication Equipment (Smart Meters) | H47: 0 | M47: 0 | N47: 0
A48: 8 | B48: 1960 | C48: Miscellaneous Equipment | H48: 0 | M48: 0 | N48: 0
A49: 47 | B49: 1975 | C49: Load Management Controls Utility Premises | D49: 0.1 | E49: 258631 | H49: 258631 | J49: -258631 | M49: -258631 | N49: 0
A50: 47 | B50: 1980 | C50: System Supervisor Equipment | H50: 0 | M50: 0 | N50: 0
A51: 47 | B51: 1985 | C51: Miscellaneous Fixed Assets | H51: 0 | M51: 0 | N51: 0
A52: 47 | B52: 1995 | C52: Contributions & Grants | D52: 0.04 | E52: -4437179 | F52: -677549 | H52: -5114728 | J52: 424159 | K52: 194413 | M52: 618572 | N52: -4496156
B53: etc. | H53: 0 | M53: 0 | N53: 0
C55: Total | E55: =SUM(E16:E54) -> 29541818 | F55: =SUM(F16:F54) -> 4851497 | G55: -76140 | H55: 34317175 | J55: =SUM(J16:J54) -> -7158250 | K55: =SUM(K16:K54) -> -1433640 | L55: 0 | M55: -8591890 | N55: 25725285
J57: Less: Fully Allocated Depreciation
A58: 10 | C58: Transportation | J58: Transportation
A59: 8 | C59: Stores Equipment | J59: Stores Equipment
J60: Net Depreciation | L60: =L55-L58-L59 -> 0
A62: Notes:
A64: 1 | B64: Tables in the format outlined above covering all fixed asset accounts should be submitted for the Test Year, Bridge Year and all relevant historical years. At a minimum , the applicant must provide data for the earlier of: 1) all historical years back to its last rebasing; or 2) at least three years of historical actuals, in addition to Bridge Year and Test Year forecasts.
A67: 2 | B67: The "CCA Class" for fixed assets should agree with the CCA Class used for tax purposes in Tax Returns. Fixed Assets sub-components may be used where the underlying asset components are classified under multiple CCA Classes for tax purposes. If an applicant uses any different classes from those shown in the table, an explanation should be provided. (also see note 3 below).
A70: 3 | B70: The table may need to be customized for a utility's asset categories or for any new asset accounts announced or authorized by the Board.
A72: 4 | B72: The depreciation column (D) is not required as the relevant information will be provided in the following 2-C series of appendices.

Sheet App.2-B_Fixed Asset Cont 2008
M1: File Number: | N1: ='LDC Info'!$E$18 -> EB2012-0176
M2: Exhibit:
M3: Tab:
M4: Schedule:
M5: Page:
M7: Date:
A9: Appendix 2-B
A10: Fixed Asset Continuity Schedule
F12: Year | G12: 2008
E14: Cost | K14: Accumulated Depreciation
A15: CCA Class | B15: OEB | C15: Description | D15: Depreciation Rate | E15: Opening Balance | F15: Additions | G15: Disposals | H15: Closing Balance | J15: Opening Balance | K15: Additions | L15: Disposals | M15: Closing Balance | N15: Net Book Value
A16: 12 | B16: 1611 | C16: Computer Software (Formally known as Account 1925) | H16: =E16+F16+G16 -> 0 | M16: =J16+K16+L16 -> 0 | N16: =H16+M16 -> 0
A17: CEC | B17: 1612 | C17: Land Rights (Formally known as Account 1906) | H17: =E17+F17+G17 -> 0 | M17: =J17+K17+L17 -> 0 | N17: =H17+M17 -> 0
A18: N/A | B18: 1805 | C18: Land | E18: =+'App.2-B_Fixed Asset Cont 2007'!H18 -> 227769 | H18: =E18+F18+G18 -> 227769 | M18: =J18+K18+L18 -> 0 | N18: =H18+M18 -> 227769
A19: 47 | B19: 1808 | C19: Buildings | D19: 0.02 | E19: =+'App.2-B_Fixed Asset Cont 2007'!H19 -> 2450304 | H19: =E19+F19+G19 -> 2450304 | J19: =+'App.2-B_Fixed Asset Cont 2007'!M19 -> -26781 | K19: =-24130-25066 -> -49196 | M19: =J19+K19+L19 -> -75977 | N19: =H19+M19 -> 2374327
A20: 13 | B20: 1810 | C20: Leasehold Improvements | H20: 0 | M20: 0 | N20: 0
A21: 47 | B21: 1815 | C21: Transformer Station Equipment >50 kV | H21: 0 | M21: 0 | N21: 0
A22: 47 | B22: 1820 | C22: Distribution Station Equipment <50 kV | D22: 0.0333 | E22: =+'App.2-B_Fixed Asset Cont 2007'!H22 -> 3157391 | F22: 387320 | H22: 3544711 | J22: =+'App.2-B_Fixed Asset Cont 2007'!M22 -> -1005530 | K22: =-148825-1394 -> -150219 | M22: -1155749 | N22: 2388962
A23: 47 | B23: 1825 | C23: Storage Battery Equipment | H23: 0 | M23: 0 | N23: 0
A24: 47 | B24: 1830 | C24: Poles, Towers & Fixtures | D24: 0.04 | E24: =+'App.2-B_Fixed Asset Cont 2007'!H24 -> 5005316 | F24: 284012 | H24: 5289328 | J24: =+'App.2-B_Fixed Asset Cont 2007'!M24 -> -1311957 | K24: =-207410-19268 -> -226678 | M24: -1538635 | N24: 3750693
A25: 47 | B25: 1835 | C25: Overhead Conductors & Devices | D25: 0.04 | E25: =+'App.2-B_Fixed Asset Cont 2007'!H25 -> 7357202 | F25: 325395 | H25: 7682597 | J25: =+'App.2-B_Fixed Asset Cont 2007'!M25 -> -1758603 | K25: =-322873-170479 -> -493352 | M25: -2251955 | N25: 5430642
A26: 47 | B26: 1840 | C26: Underground Conduit | D26: 0.04 | E26: =+'App.2-B_Fixed Asset Cont 2007'!H26 -> 2484344 | F26: 113840 | H26: 2598184 | J26: =+'App.2-B_Fixed Asset Cont 2007'!M26 -> -493678 | K26: =-90910-19700 -> -110610 | M26: -604288 | N26: 1993896
A27: 47 | B27: 1845 | C27: Underground Conductors & Devices | D27: 0.04 | E27: =+'App.2-B_Fixed Asset Cont 2007'!H27 -> 6258562 | F27: 523410 | H27: 6781972 | J27: =+'App.2-B_Fixed Asset Cont 2007'!M27 -> -1395364 | K27: =-211970+80718 -> -131252 | M27: -1526616 | N27: 5255356
A28: 47 | B28: 1850 | C28: Line Transformers | D28: 0.04 | E28: =+'App.2-B_Fixed Asset Cont 2007'!H28 -> 6521923 | F28: 699162 | H28: 7221085 | J28: =+'App.2-B_Fixed Asset Cont 2007'!M28 -> -1419558 | K28: =-253079-49709 -> -302788 | M28: -1722346 | N28: 5498739
A29: 47 | B29: 1855 | C29: Services (Overhead & Underground) | D29: 0.04 | E29: =+'App.2-B_Fixed Asset Cont 2007'!H29 -> 3004698 | F29: 356816 | H29: 3361514 | J29: =+'App.2-B_Fixed Asset Cont 2007'!M29 -> -681372 | K29: =-122218-15906 -> -138124 | M29: -819496 | N29: 2542018
A30: 47 | B30: 1860 | C30: Meters | D30: 0.04 | E30: =+'App.2-B_Fixed Asset Cont 2007'!H30 -> 2377104 | F30: 151290 | H30: 2528394 | J30: =+'App.2-B_Fixed Asset Cont 2007'!M30 -> -596387 | K30: =-98806-3011 -> -101817 | M30: -698204 | N30: 1830190
A31: 8 | B31: 1860 | C31: Meters (Smart Meters) | D31: 0.04 | E31: =+'App.2-B_Fixed Asset Cont 2007'!H31 -> 61140 | H31: 61140 | K31: -9774 | M31: -9774 | N31: 51366
A32: N/A | B32: 1905 | C32: Land | H32: 0 | M32: 0 | N32: 0
A33: 47 | B33: 1908 | C33: Buildings & Fixtures | H33: 0 | M33: 0 | N33: 0
A34: 13 | B34: 1910 | C34: Leasehold Improvements | H34: 0 | M34: 0 | N34: 0
A35: 8 | B35: 1915 | C35: Office Furniture & Equipment (10 years) | D35: 0.1 | F35: 244053 | H35: 244053 | K35: -133197 | M35: -133197 | N35: 110856
A36: 8 | B36: 1915 | C36: Office Furniture & Equipment (5 years) | H36: 0 | M36: 0 | N36: 0
A37: 10 | B37: 1920 | C37: Computer Equipment - Hardware | D37: 0.2 | F37: 69332 | H37: 69332 | K37: -152871 | M37: -152871 | N37: -83539
A38: 45 | B38: 1920 | C38: Computer Equip.-Hardware(Post Mar. 22/04) | D38: 0.2 | F38: 275946 | H38: 275946 | K38: -132138 | M38: -132138 | N38: 143808
A39: 45.1 | B39: 1920 | C39: Computer Equip.-Hardware(Post Mar. 19/07) | D39: 0.2 | F39: 52212 | H39: 52212 | K39: -44775 | M39: -44775 | N39: 7437
A40: 12 | B40: 1925 | C40: Computer Software (Formally known as Account 1925) | D40: 0.3333 | E40: =+'App.2-B_Fixed Asset Cont 2007'!H40 -> 267519 | F40: 459353 | H40: 726872 | J40: =+'App.2-B_Fixed Asset Cont 2007'!M40 -> -262601 | K40: -408731 | M40: -671332 | N40: 55540
A41: 10 | B41: 1930 | C41: Transportation Equipment | D41: 0.125 | F41: 1648262 | G41: -30000 | H41: 1618262 | K41: -978880 | L41: 30000 | M41: -948880 | N41: 669382
A42: 8 | B42: 1935 | C42: Stores Equipment | D42: 0.1 | F42: 23501 | H42: 23501 | K42: -7006 | M42: -7006 | N42: 16495
A43: 8 | B43: 1940 | C43: Tools, Shop & Garage Equipment | D43: 0.1 | F43: 214184 | H43: 214184 | K43: -136811 | M43: -136811 | N43: 77373
A44: 8 | B44: 1945 | C44: Measurement & Testing Equipment | D44: 0.1 | F44: 59760 | H44: 59760 | K44: -16339 | M44: -16339 | N44: 43421
A45: 8 | B45: 1950 | C45: Power Operated Equipment | D45: 0.125 | F45: 66947 | H45: 66947 | K45: -26037 | M45: -26037 | N45: 40910
A46: 8 | B46: 1955 | C46: Communications Equipment | D46: 0.1 | F46: 102070 | H46: 102070 | K46: -86622 | M46: -86622 | N46: 15448
A47: 8 | B47: 1955 | C47: Communication Equipment (Smart Meters) | H47: 0 | M47: 0 | N47: 0
A48: 8 | B48: 1960 | C48: Miscellaneous Equipment | D48: 0.1 | F48: 32903 | H48: 32903 | K48: -18442 | M48: -18442 | N48: 14461
A49: 47 | B49: 1975 | C49: Load Management Controls Utility Premises | D49: 0.1 | E49: =+'App.2-B_Fixed Asset Cont 2007'!H49 -> 258631 | H49: 258631 | J49: =+'App.2-B_Fixed Asset Cont 2007'!M49 -> -258631 | M49: -258631 | N49: 0
A50: 47 | B50: 1980 | C50: System Supervisor Equipment | H50: 0 | M50: 0 | N50: 0
A51: 47 | B51: 1985 | C51: Miscellaneous Fixed Assets | D51: 0.1 | F51: 1427 | H51: 1427 | K51: -1427 | M51: -1427 | N51: 0
A52: 47 | B52: 1995 | C52: Contributions & Grants | D52: 0.04 | E52: =+'App.2-B_Fixed Asset Cont 2007'!H52 -> -5114728 | F52: -892416 | H52: -6007144 | J52: =+'App.2-B_Fixed Asset Cont 2007'!M52 -> 618572 | K52: =160815+62401 -> 223216 | M52: 841788 | N52: -5165356
B53: etc. | H53: 0 | M53: 0 | N53: 0
C55: Total | E55: =SUM(E16:E54) -> 34317175 | F55: =SUM(F16:F54) -> 5198779 | G55: -30000 | H55: 39485954 | J55: =SUM(J16:J54) -> -8591890 | K55: =SUM(K16:K54) -> -3633870 | L55: 30000 | M55: -12195760 | N55: 27290194
J57: Less: Fully Allocated Depreciation
A58: 10 | C58: Transportation | J58: Transportation
A59: 8 | C59: Stores Equipment | J59: Stores Equipment
J60: Net Depreciation | L60: =L55-L58-L59 -> 30000
A62: Notes:
A64: 1 | B64: Tables in the format outlined above covering all fixed asset accounts should be submitted for the Test Year, Bridge Year and all relevant historical years. At a minimum , the applicant must provide data for the earlier of: 1) all historical years back to its last rebasing; or 2) at least three years of historical actuals, in addition to Bridge Year and Test Year forecasts.
A67: 2 | B67: The "CCA Class" for fixed assets should agree with the CCA Class used for tax purposes in Tax Returns. Fixed Assets sub-components may be used where the underlying asset components are classified under multiple CCA Classes for tax purposes. If an applicant uses any different classes from those shown in the table, an explanation should be provided. (also see note 3 below).
A70: 3 | B70: The table may need to be customized for a utility's asset categories or for any new asset accounts announced or authorized by the Board.
A72: 4 | B72: The depreciation column (D) is not required as the relevant information will be provided in the following 2-C series of appendices.

Sheet App.2-B_Fixed Asset Cont 2009
M1: File Number: | N1: ='LDC Info'!$E$18 -> EB2012-0176
M2: Exhibit:
M3: Tab:
M4: Schedule:
M5: Page:
M7: Date:
A9: Appendix 2-B
A10: Fixed Asset Continuity Schedule
F12: Year | G12: 2009
E14: Cost | K14: Accumulated Depreciation
A15: CCA Class | B15: OEB | C15: Description | D15: Depreciation Rate | E15: Opening Balance | F15: Additions | G15: Disposals | H15: Closing Balance | J15: Opening Balance | K15: Additions | L15: Disposals | M15: Closing Balance | N15: Net Book Value
A16: 12 | B16: 1611 | C16: Computer Software (Formally known as Account 1925) | H16: =E16+F16+G16 -> 0 | M16: =J16+K16+L16 -> 0 | N16: =H16+M16 -> 0
A17: CEC | B17: 1612 | C17: Land Rights (Formally known as Account 1906) | H17: =E17+F17+G17 -> 0 | M17: =J17+K17+L17 -> 0 | N17: =H17+M17 -> 0
A18: N/A | B18: 1805 | C18: Land | E18: 227768.86 | H18: =E18+F18+G18 -> 227768.86 | M18: =J18+K18+L18 -> 0 | N18: =H18+M18 -> 227768.86
A19: 47 | B19: 1808 | C19: Buildings | D19: 0.02 | E19: 2450303.9 | F19: 30908 | H19: =E19+F19+G19 -> 2481211.9 | J19: -75977.2 | K19: -49513 | M19: =J19+K19+L19 -> -125490.2 | N19: =H19+M19 -> 2355721.7
A20: 13 | B20: 1810 | C20: Leasehold Improvements | H20: 0 | M20: 0 | N20: 0
A21: 47 | B21: 1815 | C21: Transformer Station Equipment >50 kV | H21: 0 | M21: 0 | N21: 0
A22: 47 | B22: 1820 | C22: Distribution Station Equipment <50 kV | D22: 0.0333 | E22: 3544711.27 | F22: 123140.78 | H22: 3667852.05 | J22: -1155748.69 | K22: -158695.02 | M22: -1314443.71 | N22: 2353408.34
A23: 47 | B23: 1825 | C23: Storage Battery Equipment | H23: 0 | M23: 0 | N23: 0
A24: 47 | B24: 1830 | C24: Poles, Towers & Fixtures | D24: 0.04 | E24: 5289327.3 | F24: 591965.42 | H24: 5881292.72 | J24: -1538635.3 | K24: -244175.92 | M24: -1782811.22 | N24: 4098481.5
A25: 47 | B25: 1835 | C25: Overhead Conductors & Devices | D25: 0.04 | E25: 8884640.14 | F25: 664080.74 | G25: -1202043 | H25: 8346677.88 | J25: -2251955.14 | K25: -403032.24 | M25: -2654987.38 | N25: 5691690.5
A26: 47 | B26: 1840 | C26: Underground Conduit | D26: 0.04 | E26: 2598184.09 | F26: 72698.66 | H26: 2670882.75 | J26: -604287.79 | K26: -114349.66 | M26: -718637.45 | N26: 1952245.3
A27: 47 | B27: 1845 | C27: Underground Conductors & Devices | D27: 0.04 | E27: 5229426 | F27: 2435317.39 | H27: 7664743.39 | J27: -1526615.59 | K27: -262472.8 | M27: -1789088.39 | N27: 5875655
A28: 47 | B28: 1850 | C28: Line Transformers | D28: 0.04 | E28: 7571587 | F28: 29689.07 | H28: 7601276.07 | J28: =-1066643.91-655701.6 -> -1722345.51 | K28: =-171567.6-159849.46 -> -331417.06 | M28: -2053762.57 | N28: 5547513.5
A29: 47 | B29: 1855 | C29: Services (Overhead & Underground) | D29: 0.04 | E29: =1227525.5+2133987.74 -> 3361513.24 | F29: =131842.68+212805.08 -> 344647.76 | H29: 3706161 | J29: =-342638.5-476857.24 -> -819495.74 | K29: =-57062.68-95097.08 -> -152159.76 | M29: -971655.5 | N29: 2734505.5
A30: 47 | B30: 1860 | C30: Meters | D30: 0.04 | E30: =1766764.43+761629.61 -> 2528394.04 | F30: =26507.75-125726.72+181591.75 -> 82372.78 | G30: -602915.32 | H30: 2007851.5 | J30: =-707978.02+0+9773.98 -> -698204.04 | K30: -87460 | L30: =246719-9774 -> 236945 | M30: -548719.04 | N30: 1459132.46
A31: 8 | B31: 1860 | C31: Meters (Smart Meters) | D31: 0.04 | E31: 61139.98 | G31: -61140 | H31: -0.02 | J31: -9773.98 | L31: 9773.98 | M31: 0 | N31: -0.02
A32: N/A | B32: 1905 | C32: Land | H32: 0 | M32: 0 | N32: 0
A33: 47 | B33: 1908 | C33: Buildings & Fixtures | H33: 0 | M33: 0 | N33: 0
A34: 13 | B34: 1910 | C34: Leasehold Improvements | H34: 0 | M34: 0 | N34: 0
A35: 8 | B35: 1915 | C35: Office Furniture & Equipment (10 years) | D35: 0.1 | E35: 244053.3 | H35: 244053.3 | J35: -133196.8 | K35: -18953 | M35: -152149.8 | N35: 91903.5
A36: 8 | B36: 1915 | C36: Office Furniture & Equipment (5 years) | H36: 0 | M36: 0 | N36: 0
A37: 10 | B37: 1920 | C37: Computer Equipment - Hardware | D37: 0.2 | E37: =156649.36+70507.42+18173.17-6425.08-3780+40821.16 -> 275946.03 | H37: 275946.03 | J37: -152871.07 | M37: -152871.07 | N37: 123074.96
A38: 45 | B38: 1920 | C38: Computer Equip.-Hardware(Post Mar. 22/04) | D38: 0.2 | E38: =6328.34+21247.41+24635.88 -> 52211.63 | H38: 52211.63 | J38: =-56456.32-55482.39-20198.88 -> -132137.59 | K38: =-4249-4927 -> -9176 | M38: -141313.59 | N38: -89101.96
A39: 45.1 | B39: 1920 | C39: Computer Equip.-Hardware(Post Mar. 19/07) | D39: 0.2 | E39: =29316.41+40015.48 -> 69331.89 | F39: 24238.11 | H39: 93570 | J39: =-24469.41-20306 -> -44775.41 | K39: =-5863-8003-2422.11 -> -16288.11 | M39: -61063.52 | N39: 32506.48
A40: 12 | B40: 1925 | C40: Computer Software (Formally known as Account 1925) | D40: 0.3333 | E40: 726871.27 | F40: 23487.95 | H40: 750359.22 | J40: -671331.77 | K40: -34565.45 | M40: -705897.22 | N40: 44462
A41: 10 | B41: 1930 | C41: Transportation Equipment | D41: 0.125 | E41: 1618262.33 | F41: 28861.91 | H41: 1647124.24 | J41: -948879.83 | K41: -130149.41 | M41: -1079029.24 | N41: 568095
A42: 8 | B42: 1935 | C42: Stores Equipment | D42: 0.1 | E42: 23501.39 | F42: 67435.82 | H42: 90937.21 | J42: -7005.89 | K42: -5518.32 | M42: -12524.21 | N42: 78413
A43: 8 | B43: 1940 | C43: Tools, Shop & Garage Equipment | D43: 0.1 | E43: 214184.3 | F43: 27924.48 | H43: 242108.78 | J43: -136811.3 | K43: -12919.48 | M43: -149730.78 | N43: 92378
A44: 8 | B44: 1945 | C44: Measurement & Testing Equipment | D44: 0.1 | E44: 59760 | H44: 59760 | J44: -16338.5 | K44: -5973 | M44: -22311.5 | N44: 37448.5
A45: 8 | B45: 1950 | C45: Power Operated Equipment | D45: 0.125 | E45: 66946.94 | F45: 33325.02 | H45: 100271.96 | J45: -26037.44 | K45: -6335.02 | M45: -32372.46 | N45: 67899.5
A46: 8 | B46: 1955 | C46: Communications Equipment | D46: 0.1 | E46: 102070.39 | H46: 102070.39 | J46: -86622.39 | K46: -10862 | M46: -97484.39 | N46: 4586
A47: 8 | B47: 1955 | C47: Communication Equipment (Smart Meters) | H47: 0 | M47: 0 | N47: 0
A48: 8 | B48: 1960 | C48: Miscellaneous Equipment | D48: 0.1 | E48: 32903.48 | F48: 4889.78 | H48: 37793.26 | J48: -18441.98 | K48: -3542.78 | M48: -21984.76 | N48: 15808.5
A49: 47 | B49: 1975 | C49: Load Management Controls Utility Premises | D49: 0.1 | E49: 258630.5 | H49: 258630.5 | J49: -258630.5 | M49: -258630.5 | N49: 0
A50: 47 | B50: 1980 | C50: System Supervisor Equipment | H50: 0 | M50: 0 | N50: 0
A51: 47 | B51: 1985 | C51: Miscellaneous Fixed Assets | D51: 0.1 | F51: 1427 | H51: 1427 | J51: -1426.68 | M51: -1426.68 | N51: 0.32
A52: 47 | B52: 1995 | C52: Contributions & Grants | D52: 0.04 | E52: =-(299558.47+2352820.34+558004.61+960617.92+1765272.85+70869.96) -> -6007144.15 | F52: =-(225705.82+245178.6+205755.75+423828.02+114813.85+45697.49)-3377.87 -> -1264357.4 | G52: 3377.87 | H52: -7268123.68 | J52: =(346134.31+134650.61+97959.92+252045.85+10996.96) -> 841787.65 | K52: =(116061.92+26486.75+47036.52+72916.85+3091.88)+720.98 -> 266314.9 | L52: -720.98 | M52: 1107381.57 | N52: -6160742.11
B53: etc. | H53: 0 | M53: 0 | N53: 0
C55: Total | E55: =SUM(E16:E54) -> 39484525.12 | F55: =SUM(F16:F54) -> 3322053.27 | G55: -1862720.45 | H55: 40943857.94 | J55: =SUM(J16:J54) -> -12195758.48 | K55: =SUM(K16:K54) -> -1791243.13 | L55: 245998 | M55: -13741003.61 | N55: 27202854.33
J57: Less: Fully Allocated Depreciation
A58: 10 | C58: Transportation | J58: Transportation
A59: 8 | C59: Stores Equipment | J59: Stores Equipment
J60: Net Depreciation | L60: =L55-L58-L59 -> 245998
A62: Notes:
A64: 1 | B64: Tables in the format outlined above covering all fixed asset accounts should be submitted for the Test Year, Bridge Year and all relevant historical years. At a minimum , the applicant must provide data for the earlier of: 1) all historical years back to its last rebasing; or 2) at least three years of historical actuals, in addition to Bridge Year and Test Year forecasts.
A67: 2 | B67: The "CCA Class" for fixed assets should agree with the CCA Class used for tax purposes in Tax Returns. Fixed Assets sub-components may be used where the underlying asset components are classified under multiple CCA Classes for tax purposes. If an applicant uses any different classes from those shown in the table, an explanation should be provided. (also see note 3 below).
A70: 3 | B70: The table may need to be customized for a utility's asset categories or for any new asset accounts announced or authorized by the Board.
A72: 4 | B72: The depreciation column (D) is not required as the relevant information will be provided in the following 2-C series of appendices.

Sheet App.2-B_Fixed Asset Cont 2010
M1: File Number: | N1: ='LDC Info'!$E$18 -> EB2012-0176
M2: Exhibit:
M3: Tab:
M4: Schedule:
M5: Page:
M7: Date:
A9: Appendix 2-B
A10: Fixed Asset Continuity Schedule
F12: Year | G12: 2010
E14: Cost | K14: Accumulated Depreciation
A15: CCA Class | B15: OEB | C15: Description | D15: Depreciation Rate | E15: Opening Balance | F15: Additions | G15: Disposals | H15: Closing Balance | J15: Opening Balance | K15: Additions | L15: Disposals | M15: Closing Balance | N15: Net Book Value
A16: 12 | B16: 1611 | C16: Computer Software (Formally known as Account 1925) | H16: =E16+F16+G16 -> 0 | M16: =J16+K16+L16 -> 0 | N16: =H16+M16 -> 0
A17: CEC | B17: 1612 | C17: Land Rights (Formally known as Account 1906) | H17: =E17+F17+G17 -> 0 | M17: =J17+K17+L17 -> 0 | N17: =H17+M17 -> 0
A18: N/A | B18: 1805 | C18: Land | E18: =+'App.2-B_Fixed Asset Cont 2009'!H18 -> 227768.86 | H18: =E18+F18+G18 -> 227768.86 | M18: =J18+K18+L18 -> 0 | N18: =H18+M18 -> 227768.86
A19: 47 | B19: 1808 | C19: Buildings | D19: 0.02 | E19: =+'App.2-B_Fixed Asset Cont 2009'!H19 -> 2481211.9 | F19: 5106.1 | H19: =E19+F19+G19 -> 2486318 | J19: =+'App.2-B_Fixed Asset Cont 2009'!M19 -> -125490.2 | K19: -49820.62 | M19: =J19+K19+L19 -> -175310.82 | N19: =H19+M19 -> 2311007.18
A20: 13 | B20: 1810 | C20: Leasehold Improvements | H20: 0 | M20: 0 | N20: 0
A21: 47 | B21: 1815 | C21: Transformer Station Equipment >50 kV | H21: 0 | M21: 0 | N21: 0
A22: 47 | B22: 1820 | C22: Distribution Station Equipment <50 kV | D22: 0.0333 | E22: =+'App.2-B_Fixed Asset Cont 2009'!H22 -> 3667852.05 | F22: 150637.49 | H22: 3818489.54 | J22: =+'App.2-B_Fixed Asset Cont 2009'!M22 -> -1314443.71 | K22: -124772.33 | M22: -1439216.04 | N22: 2379273.5
A23: 47 | B23: 1825 | C23: Storage Battery Equipment | H23: 0 | M23: 0 | N23: 0
A24: 47 | B24: 1830 | C24: Poles, Towers & Fixtures | D24: 0.04 | E24: =+'App.2-B_Fixed Asset Cont 2009'!H24 -> 5881292.72 | F24: 682474.67 | H24: 6563767.39 | J24: =+'App.2-B_Fixed Asset Cont 2009'!M24 -> -1782811.22 | K24: -270377.23 | M24: -2053188.45 | N24: 4510578.94
A25: 47 | B25: 1835 | C25: Overhead Conductors & Devices | D25: 0.04 | E25: =+'App.2-B_Fixed Asset Cont 2009'!H25 -> 8346677.88 | F25: 726856.4 | H25: 9073534.28 | J25: =+'App.2-B_Fixed Asset Cont 2009'!M25 -> -2654987.38 | K25: -273416.42 | M25: -2928403.8 | N25: 6145130.48
A26: 47 | B26: 1840 | C26: Underground Conduit | D26: 0.04 | E26: =+'App.2-B_Fixed Asset Cont 2009'!H26 -> 2670882.75 | F26: 35402.84 | H26: 2706285.59 | J26: =+'App.2-B_Fixed Asset Cont 2009'!M26 -> -718637.45 | K26: -116732.16 | M26: -835369.61 | N26: 1870915.98
A27: 47 | B27: 1845 | C27: Underground Conductors & Devices | D27: 0.04 | E27: =+'App.2-B_Fixed Asset Cont 2009'!H27 -> 7664743.39 | F27: 632802.96 | H27: 8297546.35 | J27: =+'App.2-B_Fixed Asset Cont 2009'!M27 -> -1789088.39 | K27: -490426 | M27: -2279514.39 | N27: 6018031.96
A28: 47 | B28: 1850 | C28: Line Transformers | D28: 0.04 | E28: =+'App.2-B_Fixed Asset Cont 2009'!H28 -> 7601276.07 | F28: =-100985.31 -> -100985.31 | H28: 7500290.76 | J28: =+'App.2-B_Fixed Asset Cont 2009'!M28 -> -2053762.57 | K28: =-1114546.34+815551.06 -> -298995.28 | M28: -2352757.85 | N28: 5147532.91
A29: 47 | B29: 1855 | C29: Services (Overhead & Underground) | D29: 0.04 | E29: =+'App.2-B_Fixed Asset Cont 2009'!H29 -> 3706161 | F29: =2597670.14-2346792.82 -> 250877.32 | H29: 3957038.32 | J29: =+'App.2-B_Fixed Asset Cont 2009'!M29 -> -971655.5 | K29: =-736293.57+571954.32 -> -164339.25 | M29: -1135994.75 | N29: 2821043.57
A30: 47 | B30: 1860 | C30: Meters | D30: 0.04 | E30: =+'App.2-B_Fixed Asset Cont 2009'!H30 -> 2007851.5 | F30: =755419.4-943221.36+286176.86 -> 98374.9 | G30: -286176.86 | H30: 1820049.54 | J30: =+'App.2-B_Fixed Asset Cont 2009'!M30 -> -548719.04 | K30: -74019 | L30: 154488 | M30: -468250.04 | N30: 1351799.5
A31: 8 | B31: 1860 | C31: Meters (Smart Meters) | D31: 0.04 | H31: 0 | M31: 0 | N31: 0
A32: N/A | B32: 1905 | C32: Land | H32: 0 | M32: 0 | N32: 0
A33: 47 | B33: 1908 | C33: Buildings & Fixtures | H33: 0 | M33: 0 | N33: 0
A34: 13 | B34: 1910 | C34: Leasehold Improvements | H34: 0 | M34: 0 | N34: 0
A35: 8 | B35: 1915 | C35: Office Furniture & Equipment (10 years) | D35: 0.1 | E35: =+'App.2-B_Fixed Asset Cont 2009'!H35 -> 244053.3 | F35: 7834.05 | H35: 251887.35 | J35: =+'App.2-B_Fixed Asset Cont 2009'!M35 -> -152149.8 | K35: -19348.2 | M35: -171498 | N35: 80389.35
A36: 8 | B36: 1915 | C36: Office Furniture & Equipment (5 years) | H36: 0 | M36: 0 | N36: 0
A37: 10 | B37: 1920 | C37: Computer Equipment - Hardware | D37: 0.2 | E37: =+'App.2-B_Fixed Asset Cont 2009'!H37 -> 275946.03 | H37: 275946.03 | J37: =+'App.2-B_Fixed Asset Cont 2009'!M37 -> -152871.07 | M37: -152871.07 | N37: 123074.96
A38: 45 | B38: 1920 | C38: Computer Equip.-Hardware(Post Mar. 22/04) | D38: 0.2 | E38: =+'App.2-B_Fixed Asset Cont 2009'!H38 -> 52211.63 | H38: 52211.63 | J38: =+'App.2-B_Fixed Asset Cont 2009'!M38 -> -141313.59 | K38: =-4927 -> -4927 | M38: -146240.59 | N38: -94028.96
A39: 45.1 | B39: 1920 | C39: Computer Equip.-Hardware(Post Mar. 19/07) | D39: 0.2 | E39: =+'App.2-B_Fixed Asset Cont 2009'!H39 -> 93570 | F39: 14881.22 | H39: 108451.22 | J39: =+'App.2-B_Fixed Asset Cont 2009'!M39 -> -61063.52 | K39: =-25129.12+4927 -> -20202.12 | M39: -81265.64 | N39: 27185.58
A40: 12 | B40: 1925 | C40: Computer Software (Formally known as Account 1925) | D40: 0.3333 | E40: =+'App.2-B_Fixed Asset Cont 2009'!H40 -> 750359.22 | F40: 104332.02 | H40: 854691.24 | J40: =+'App.2-B_Fixed Asset Cont 2009'!M40 -> -705897.22 | K40: -41811.68 | M40: -747708.9 | N40: 106982.34
A41: 10 | B41: 1930 | C41: Transportation Equipment | D41: 0.125 | E41: =+'App.2-B_Fixed Asset Cont 2009'!H41 -> 1647124.24 | F41: =191546.79+85000 -> 276546.79 | G41: -85000 | H41: 1838671.03 | J41: =+'App.2-B_Fixed Asset Cont 2009'!M41 -> -1079029.24 | K41: =-64235.83-85000 -> -149235.83 | L41: 85000 | M41: -1143265.07 | N41: 695405.96
A42: 8 | B42: 1935 | C42: Stores Equipment | D42: 0.1 | E42: =+'App.2-B_Fixed Asset Cont 2009'!H42 -> 90937.21 | H42: 90937.21 | J42: =+'App.2-B_Fixed Asset Cont 2009'!M42 -> -12524.21 | K42: -8885.89 | M42: -21410.1 | N42: 69527.11
A43: 8 | B43: 1940 | C43: Tools, Shop & Garage Equipment | D43: 0.1 | E43: =+'App.2-B_Fixed Asset Cont 2009'!H43 -> 242108.78 | F43: 36167.24 | H43: 278276.02 | J43: =+'App.2-B_Fixed Asset Cont 2009'!M43 -> -149730.78 | K43: -16123.03 | M43: -165853.81 | N43: 112422.21
A44: 8 | B44: 1945 | C44: Measurement & Testing Equipment | D44: 0.1 | E44: =+'App.2-B_Fixed Asset Cont 2009'!H44 -> 59760 | F44: 3378.5 | H44: 63138.5 | J44: =+'App.2-B_Fixed Asset Cont 2009'!M44 -> -22311.5 | K44: -6144.93 | M44: -28456.43 | N44: 34682.07
A45: 8 | B45: 1950 | C45: Power Operated Equipment | D45: 0.125 | E45: =+'App.2-B_Fixed Asset Cont 2009'!H45 -> 100271.96 | H45: 100271.96 | J45: =+'App.2-B_Fixed Asset Cont 2009'!M45 -> -32372.46 | K45: -7997.33 | M45: -40369.79 | N45: 59902.17
A46: 8 | B46: 1955 | C46: Communications Equipment | D46: 0.1 | E46: =+'App.2-B_Fixed Asset Cont 2009'!H46 -> 102070.39 | F46: =74102.85+24925.26 -> 99028.11 | G46: -24925.26 | H46: 176173.24 | J46: =+'App.2-B_Fixed Asset Cont 2009'!M46 -> -97484.39 | K46: =11875.97-22355.26 -> -10479.29 | L46: 22355.26 | M46: -85608.42 | N46: 90564.82
A47: 8 | B47: 1955 | C47: Communication Equipment (Smart Meters) | H47: 0 | M47: 0 | N47: 0
A48: 8 | B48: 1960 | C48: Miscellaneous Equipment | D48: 0.1 | E48: =+'App.2-B_Fixed Asset Cont 2009'!H48 -> 37793.26 | F48: 5700.21 | H48: 43493.47 | J48: =+'App.2-B_Fixed Asset Cont 2009'!M48 -> -21984.76 | K48: -4064.17 | M48: -26048.93 | N48: 17444.54
A49: 47 | B49: 1975 | C49: Load Management Controls Utility Premises | D49: 0.1 | E49: =+'App.2-B_Fixed Asset Cont 2009'!H49 -> 258630.5 | H49: 258630.5 | J49: =+'App.2-B_Fixed Asset Cont 2009'!M49 -> -258630.5 | M49: -258630.5 | N49: 0
A50: 47 | B50: 1980 | C50: System Supervisor Equipment | H50: 0 | M50: 0 | N50: 0
A51: 47 | B51: 1985 | C51: Miscellaneous Fixed Assets | D51: 0.1 | E51: =+'App.2-B_Fixed Asset Cont 2009'!H51 -> 1427 | H51: 1427 | J51: =+'App.2-B_Fixed Asset Cont 2009'!M51 -> -1426.68 | M51: -1426.68 | N51: 0.32
A52: 47 | B52: 1995 | C52: Contributions & Grants | D52: 0.04 | E52: =+'App.2-B_Fixed Asset Cont 2009'!H52 -> -7268123.68 | F52: =-7030472.68+2597998.94+763760.36+1384445.94+1880086.7+116567.45 -> -287613.29 | H52: -7555736.97 | J52: =+'App.2-B_Fixed Asset Cont 2009'!M52 -> 1107381.57 | K52: =941979.13-161137.36-144996.44-324962.7-14088.84 -> 296793.79 | M52: 1404175.36 | N52: -6151561.61
B53: etc. | H53: 0 | M53: 0 | N53: 0
C55: Total | E55: =SUM(E16:E54) -> 40943857.96 | F55: =SUM(F16:F54) -> 2741802.22 | G55: -396102.12 | H55: 43289558.06 | J55: =SUM(J16:J54) -> -13741003.61 | K55: =SUM(K16:K54) -> -1855323.97 | L55: 261843.26 | M55: -15334484.32 | N55: 27955073.74
J57: Less: Fully Allocated Depreciation
A58: 10 | C58: Transportation | J58: Transportation
A59: 8 | C59: Stores Equipment | J59: Stores Equipment
J60: Net Depreciation | L60: =L55-L58-L59 -> 261843.26
A62: Notes:
A64: 1 | B64: Tables in the format outlined above covering all fixed asset accounts should be submitted for the Test Year, Bridge Year and all relevant historical years. At a minimum , the applicant must provide data for the earlier of: 1) all historical years back to its last rebasing; or 2) at least three years of historical actuals, in addition to Bridge Year and Test Year forecasts.
A67: 2 | B67: The "CCA Class" for fixed assets should agree with the CCA Class used for tax purposes in Tax Returns. Fixed Assets sub-components may be used where the underlying asset components are classified under multiple CCA Classes for tax purposes. If an applicant uses any different classes from those shown in the table, an explanation should be provided. (also see note 3 below).
A70: 3 | B70: The table may need to be customized for a utility's asset categories or for any new asset accounts announced or authorized by the Board.
A72: 4 | B72: The depreciation column (D) is not required as the relevant information will be provided in the following 2-C series of appendices.

Sheet App.2-B_Fixed Asset Cont 2011
M1: File Number: | N1: ='LDC Info'!$E$18 -> EB2012-0176
M2: Exhibit:
M3: Tab:
M4: Schedule:
M5: Page:
M7: Date:
A9: Appendix 2-B
A10: Fixed Asset Continuity Schedule
F12: Year | G12: 2011
E14: Cost | K14: Accumulated Depreciation
A15: CCA Class | B15: OEB | C15: Description | D15: Depreciation Rate | E15: Opening Balance | F15: Additions | G15: Disposals | H15: Closing Balance | J15: Opening Balance | K15: Additions | L15: Disposals | M15: Closing Balance | N15: Net Book Value
A16: 12 | B16: 1611 | C16: Computer Software (Formally known as Account 1925) | H16: =E16+F16+G16 -> 0 | M16: =J16+K16+L16 -> 0 | N16: =H16+M16 -> 0
A17: CEC | B17: 1612 | C17: Land Rights (Formally known as Account 1906) | H17: =E17+F17+G17 -> 0 | M17: =J17+K17+L17 -> 0 | N17: =H17+M17 -> 0
A18: N/A | B18: 1805 | C18: Land | E18: =+'App.2-B_Fixed Asset Cont 2010'!H18 -> 227768.86 | H18: =E18+F18+G18 -> 227768.86 | M18: =J18+K18+L18 -> 0 | N18: =H18+M18 -> 227768.86
A19: 47 | B19: 1808 | C19: Buildings | D19: 0.02 | E19: =+'App.2-B_Fixed Asset Cont 2010'!H19 -> 2486318 | H19: =E19+F19+G19 -> 2486318 | J19: =+'App.2-B_Fixed Asset Cont 2010'!M19 -> -175310.82 | K19: -49886.67 | M19: =J19+K19+L19 -> -225197.49 | N19: =H19+M19 -> 2261120.51
A20: 13 | B20: 1810 | C20: Leasehold Improvements | H20: 0 | M20: 0 | N20: 0
A21: 47 | B21: 1815 | C21: Transformer Station Equipment >50 kV | H21: 0 | M21: 0 | N21: 0
A22: 47 | B22: 1820 | C22: Distribution Station Equipment <50 kV | D22: 0.0333 | E22: =+'App.2-B_Fixed Asset Cont 2010'!H22 -> 3818489.54 | F22: 450639.48 | H22: 4269129.02 | J22: =+'App.2-B_Fixed Asset Cont 2010'!M22 -> -1439216.04 | K22: -136439.37 | M22: -1575655.41 | N22: 2693473.61
A23: 47 | B23: 1825 | C23: Storage Battery Equipment | H23: 0 | M23: 0 | N23: 0
A24: 47 | B24: 1830 | C24: Poles, Towers & Fixtures | D24: 0.04 | E24: =+'App.2-B_Fixed Asset Cont 2010'!H24 -> 6563767.39 | F24: 542315.17 | H24: 7106082.56 | J24: =+'App.2-B_Fixed Asset Cont 2010'!M24 -> -2053188.45 | K24: -294873 | M24: -2348061.45 | N24: 4758021.11
A25: 47 | B25: 1835 | C25: Overhead Conductors & Devices | D25: 0.04 | E25: =+'App.2-B_Fixed Asset Cont 2010'!H25 -> 9073534.28 | F25: 673323.17 | H25: 9746857.45 | J25: =+'App.2-B_Fixed Asset Cont 2010'!M25 -> -2928403.8 | K25: -411444.53 | M25: -3339848.33 | N25: 6407009.12
A26: 47 | B26: 1840 | C26: Underground Conduit | D26: 0.04 | E26: =+'App.2-B_Fixed Asset Cont 2010'!H26 -> 2706285.59 | F26: 338350.33 | H26: 3044635.92 | J26: =+'App.2-B_Fixed Asset Cont 2010'!M26 -> -835369.61 | K26: -124188.43 | M26: -959558.04 | N26: 2085077.88
A27: 47 | B27: 1845 | C27: Underground Conductors & Devices | D27: 0.04 | E27: =+'App.2-B_Fixed Asset Cont 2010'!H27 -> 8297546.35 | F27: 551064.44 | H27: 8848610.79 | J27: =+'App.2-B_Fixed Asset Cont 2010'!M27 -> -2279514.39 | K27: -372006.35 | M27: -2651520.74 | N27: 6197090.05
A28: 47 | B28: 1850 | C28: Line Transformers | D28: 0.04 | E28: =+'App.2-B_Fixed Asset Cont 2010'!H28 -> 7500290.76 | F28: 507269.99 | H28: 8007560.75 | J28: =+'App.2-B_Fixed Asset Cont 2010'!M28 -> -2352757.85 | K28: -338711.37 | M28: -2691469.22 | N28: 5316091.53
A29: 47 | B29: 1855 | C29: Services (Overhead & Underground) | D29: 0.04 | E29: =+'App.2-B_Fixed Asset Cont 2010'!H29 -> 3957038.32 | F29: 473443.88 | H29: 4430482.2 | J29: =+'App.2-B_Fixed Asset Cont 2010'!M29 -> -1135994.75 | K29: -178825.3 | M29: -1314820.05 | N29: 3115662.15
A30: 47 | B30: 1860 | C30: Meters | D30: 0.04 | E30: =+'App.2-B_Fixed Asset Cont 2010'!H30 -> 1820049.54 | F30: 64884 | G30: -305369.88 | H30: 1579563.66 | J30: =+'App.2-B_Fixed Asset Cont 2010'!M30 -> -468250.04 | K30: =-61785 -> -61785 | L30: =110230+2522 -> 112752 | M30: -417283.04 | N30: 1162280.62
A31: 8 | B31: 1860 | C31: Meters (Smart Meters) | D31: 0.04 | F31: 105634 | H31: 105634 | K31: -2150.23 | M31: -2150.23 | N31: 103483.77
A32: N/A | B32: 1905 | C32: Land | H32: 0 | M32: 0 | N32: 0
A33: 47 | B33: 1908 | C33: Buildings & Fixtures | H33: 0 | M33: 0 | N33: 0
A34: 13 | B34: 1910 | C34: Leasehold Improvements | H34: 0 | M34: 0 | N34: 0
A35: 8 | B35: 1915 | C35: Office Furniture & Equipment (10 years) | D35: 0.1 | E35: =+'App.2-B_Fixed Asset Cont 2010'!H35 -> 251887.35 | F35: 10588.8 | H35: 262476.15 | J35: =+'App.2-B_Fixed Asset Cont 2010'!M35 -> -171498 | K35: -14530.6 | M35: -186028.6 | N35: 76447.55
A36: 8 | B36: 1915 | C36: Office Furniture & Equipment (5 years) | H36: 0 | M36: 0 | N36: 0
A37: 10 | B37: 1920 | C37: Computer Equipment - Hardware | D37: 0.2 | E37: =+'App.2-B_Fixed Asset Cont 2010'!H37 -> 275946.03 | H37: 275946.03 | J37: =+'App.2-B_Fixed Asset Cont 2010'!M37 -> -152871.07 | M37: -152871.07 | N37: 123074.96
A38: 45 | B38: 1920 | C38: Computer Equip.-Hardware(Post Mar. 22/04) | D38: 0.2 | E38: =+'App.2-B_Fixed Asset Cont 2010'!H38 -> 52211.63 | H38: 52211.63 | J38: =+'App.2-B_Fixed Asset Cont 2010'!M38 -> -146240.59 | M38: -146240.59 | N38: -94028.96
A39: 45.1 | B39: 1920 | C39: Computer Equip.-Hardware(Post Mar. 19/07) | D39: 0.2 | E39: =+'App.2-B_Fixed Asset Cont 2010'!H39 -> 108451.22 | F39: 45385.48 | H39: 153836.7 | J39: =+'App.2-B_Fixed Asset Cont 2010'!M39 -> -81265.64 | K39: -26228.24 | M39: -107493.88 | N39: 46342.82
A40: 12 | B40: 1925 | C40: Computer Software (Formally known as Account 1925) | D40: 0.3333333333 | E40: =+'App.2-B_Fixed Asset Cont 2010'!H40 -> 854691.24 | F40: 89764.83 | H40: 944456.07 | J40: =+'App.2-B_Fixed Asset Cont 2010'!M40 -> -747708.9 | K40: -65863.26 | M40: -813572.16 | N40: 130883.91
A41: 10 | B41: 1930 | C41: Transportation Equipment | D41: 0.125 | E41: =+'App.2-B_Fixed Asset Cont 2010'!H41 -> 1838671.03 | F41: 284250 | G41: -138750 | H41: 1984171.03 | J41: =+'App.2-B_Fixed Asset Cont 2010'!M41 -> -1143265.07 | K41: =-45358.13-138750 -> -184108.13 | L41: 138750 | M41: -1188623.2 | N41: 795547.83
A42: 8 | B42: 1935 | C42: Stores Equipment | D42: 0.1 | E42: =+'App.2-B_Fixed Asset Cont 2010'!H42 -> 90937.21 | G42: -5900 | H42: 85037.21 | J42: =+'App.2-B_Fixed Asset Cont 2010'!M42 -> -21410.1 | K42: =-4755.89-3540 -> -8295.89 | L42: 3540 | M42: -26165.99 | N42: 58871.22
A43: 8 | B43: 1940 | C43: Tools, Shop & Garage Equipment | D43: 0.1 | E43: =+'App.2-B_Fixed Asset Cont 2010'!H43 -> 278276.02 | F43: 18504.95 | H43: 296780.97 | J43: =+'App.2-B_Fixed Asset Cont 2010'!M43 -> -165853.81 | K43: -18526.1 | M43: -184379.91 | N43: 112401.06
A44: 8 | B44: 1945 | C44: Measurement & Testing Equipment | D44: 0.1 | E44: =+'App.2-B_Fixed Asset Cont 2010'!H44 -> 63138.5 | F44: 4405.08 | H44: 67543.58 | J44: =+'App.2-B_Fixed Asset Cont 2010'!M44 -> -28456.43 | K44: -6533.03 | M44: -34989.46 | N44: 32554.12
A45: 8 | B45: 1950 | C45: Power Operated Equipment | D45: 0.125 | E45: =+'App.2-B_Fixed Asset Cont 2010'!H45 -> 100271.96 | G45: -11000 | H45: 89271.96 | J45: =+'App.2-B_Fixed Asset Cont 2010'!M45 -> -40369.79 | K45: -7997.33 | L45: 11000 | M45: -37367.12 | N45: 51904.84
A46: 8 | B46: 1955 | C46: Communications Equipment | D46: 0.1 | E46: =+'App.2-B_Fixed Asset Cont 2010'!H46 -> 176173.24 | H46: 176173.24 | J46: =+'App.2-B_Fixed Asset Cont 2010'!M46 -> -85608.42 | K46: -20382.11 | M46: -105990.53 | N46: 70182.71
A47: 8 | B47: 1955 | C47: Communication Equipment (Smart Meters) | H47: 0 | M47: 0 | N47: 0
A48: 8 | B48: 1960 | C48: Miscellaneous Equipment | D48: 0.1 | E48: =+'App.2-B_Fixed Asset Cont 2010'!H48 -> 43493.47 | H48: 43493.47 | J48: =+'App.2-B_Fixed Asset Cont 2010'!M48 -> -26048.93 | K48: -3693.18 | M48: -29742.11 | N48: 13751.36
A49: 47 | B49: 1975 | C49: Load Management Controls Utility Premises | D49: 0.1 | E49: =+'App.2-B_Fixed Asset Cont 2010'!H49 -> 258630.5 | H49: 258630.5 | J49: =+'App.2-B_Fixed Asset Cont 2010'!M49 -> -258630.5 | M49: -258630.5 | N49: 0
A50: 47 | B50: 1980 | C50: System Supervisor Equipment | H50: 0 | M50: 0 | N50: 0
A51: 47 | B51: 1985 | C51: Miscellaneous Fixed Assets | D51: 0.1 | E51: =+'App.2-B_Fixed Asset Cont 2010'!H51 -> 1427 | H51: 1427 | J51: =+'App.2-B_Fixed Asset Cont 2010'!M51 -> -1426.68 | M51: -1426.68 | N51: 0.32
A52: 47 | B52: 1995 | C52: Contributions & Grants | D52: 0.04 | E52: =+'App.2-B_Fixed Asset Cont 2010'!H52 -> -7555736.97 | F52: -632720.38 | H52: -8188457.35 | J52: =+'App.2-B_Fixed Asset Cont 2010'!M52 -> 1404175.36 | K52: 315631.19 | M52: 1719806.55 | N52: -6468650.8
B53: etc. | H53: 0 | M53: 0 | N53: 0
C55: Total | E55: =SUM(E16:E54) -> 43289558.06 | F55: =SUM(F16:F54) -> 3527103.22 | G55: -461019.88 | H55: 46355641.4 | J55: =SUM(J16:J54) -> -15334484.32 | K55: =SUM(K16:K54) -> -2010836.93 | L55: 266042 | M55: -17079279.25 | N55: 29276362.15
J57: Less: Fully Allocated Depreciation
A58: 10 | C58: Transportation | J58: Transportation
A59: 8 | C59: Stores Equipment | J59: Stores Equipment
J60: Net Depreciation | L60: =L55-L58-L59 -> 266042
A62: Notes:
A64: 1 | B64: Tables in the format outlined above covering all fixed asset accounts should be submitted for the Test Year, Bridge Year and all relevant historical years. At a minimum , the applicant must provide data for the earlier of: 1) all historical years back to its last rebasing; or 2) at least three years of historical actuals, in addition to Bridge Year and Test Year forecasts.
A67: 2 | B67: The "CCA Class" for fixed assets should agree with the CCA Class used for tax purposes in Tax Returns. Fixed Assets sub-components may be used where the underlying asset components are classified under multiple CCA Classes for tax purposes. If an applicant uses any different classes from those shown in the table, an explanation should be provided. (also see note 3 below).
A70: 3 | B70: The table may need to be customized for a utility's asset categories or for any new asset accounts announced or authorized by the Board.
A72: 4 | B72: The depreciation column (D) is not required as the relevant information will be provided in the following 2-C series of appendices.

Sheet App.2-B_Fixed Asset Cont 2012
M1: File Number: | N1: ='LDC Info'!$E$18 -> EB2012-0176
M2: Exhibit:
M3: Tab:
M4: Schedule:
M5: Page:
M7: Date:
A9: Appendix 2-B
A10: Fixed Asset Continuity Schedule - CGAAP
F12: Year | G12: 2012
E14: Cost | K14: Accumulated Depreciation
A15: CCA Class | B15: OEB | C15: Description | D15: Depreciation Rate | E15: Opening Balance | F15: Additions | G15: Disposals | H15: Closing Balance | J15: Opening Balance | K15: Additions | L15: Disposals | M15: Closing Balance | N15: Net Book Value
A16: 12 | B16: 1611 | C16: Computer Software (Formally known as Account 1925) | H16: =E16+F16+G16 -> 0 | M16: =J16+K16+L16 -> 0 | N16: =H16+M16 -> 0
A17: CEC | B17: 1612 | C17: Land Rights (Formally known as Account 1906) | H17: =E17+F17+G17 -> 0 | M17: =J17+K17+L17 -> 0 | N17: =H17+M17 -> 0
A18: N/A | B18: 1805 | C18: Land | E18: =+'App.2-B_Fixed Asset Cont 2011'!H18 -> 227768.86 | H18: =E18+F18+G18 -> 227768.86 | M18: =J18+K18+L18 -> 0 | N18: =H18+M18 -> 227768.86
A19: 47 | B19: 1808 | C19: Buildings | D19: 0.02 | E19: =+'App.2-B_Fixed Asset Cont 2011'!H19 -> 2486318 | F19: 5000 | H19: =E19+F19+G19 -> 2491318 | J19: =+'App.2-B_Fixed Asset Cont 2011'!M19 -> -225197.49 | K19: -49937 | M19: =J19+K19+L19 -> -275134.49 | N19: =H19+M19 -> 2216183.51
A20: 13 | B20: 1810 | C20: Leasehold Improvements | H20: 0 | J20: =+'App.2-B_Fixed Asset Cont 2011'!M20 -> 0 | M20: 0 | N20: 0
A21: 47 | B21: 1815 | C21: Transformer Station Equipment >50 kV | H21: 0 | J21: =+'App.2-B_Fixed Asset Cont 2011'!M21 -> 0 | M21: 0 | N21: 0
A22: 47 | B22: 1820 | C22: Distribution Station Equipment <50 kV | D22: 0.0333 | E22: =+'App.2-B_Fixed Asset Cont 2011'!H22 -> 4269129.02 | F22: 506839 | H22: 4775968.02 | J22: =+'App.2-B_Fixed Asset Cont 2011'!M22 -> -1575655.41 | K22: -147775 | M22: -1723430.41 | N22: 3052537.61
A23: 47 | B23: 1825 | C23: Storage Battery Equipment | H23: 0 | J23: =+'App.2-B_Fixed Asset Cont 2011'!M23 -> 0 | M23: 0 | N23: 0
A24: 47 | B24: 1830 | C24: Poles, Towers & Fixtures | D24: 0.04 | E24: =+'App.2-B_Fixed Asset Cont 2011'!H24 -> 7106082.56 | F24: 888906 | H24: 7994988.56 | J24: =+'App.2-B_Fixed Asset Cont 2011'!M24 -> -2348061.45 | K24: -327658 | M24: -2675719.45 | N24: 5319269.11
A25: 47 | B25: 1835 | C25: Overhead Conductors & Devices | D25: 0.04 | E25: =+'App.2-B_Fixed Asset Cont 2011'!H25 -> 9746857.45 | F25: 838997 | H25: 10585854.45 | J25: =+'App.2-B_Fixed Asset Cont 2011'!M25 -> -3339848.33 | K25: -441852 | M25: -3781700.33 | N25: 6804154.12
A26: 47 | B26: 1840 | C26: Underground Conduit | D26: 0.04 | E26: =+'App.2-B_Fixed Asset Cont 2011'!H26 -> 3044635.92 | F26: 290681 | H26: 3335316.92 | J26: =+'App.2-B_Fixed Asset Cont 2011'!M26 -> -959558.04 | K26: -136788 | M26: -1096346.04 | N26: 2238970.88
A27: 47 | B27: 1845 | C27: Underground Conductors & Devices | D27: 0.04 | E27: =+'App.2-B_Fixed Asset Cont 2011'!H27 -> 8848610.79 | F27: 454468 | H27: 9303078.79 | J27: =+'App.2-B_Fixed Asset Cont 2011'!M27 -> -2651520.74 | K27: -392366 | M27: -3043886.74 | N27: 6259192.05
A28: 47 | B28: 1850 | C28: Line Transformers | D28: 0.04 | E28: =+'App.2-B_Fixed Asset Cont 2011'!H28 -> 8007560.75 | F28: 592656 | H28: 8600216.75 | J28: =+'App.2-B_Fixed Asset Cont 2011'!M28 -> -2691469.22 | K28: -360782 | M28: -3052251.22 | N28: 5547965.53
A29: 47 | B29: 1855 | C29: Services (Overhead & Underground) | D29: 0.04 | E29: =+'App.2-B_Fixed Asset Cont 2011'!H29 -> 4430482.2 | F29: 637257 | H29: 5067739.2 | J29: =+'App.2-B_Fixed Asset Cont 2011'!M29 -> -1314820.05 | K29: -201040 | M29: -1515860.05 | N29: 3551879.15
A30: 47 | B30: 1860 | C30: Meters | D30: 0.04 | E30: =+'App.2-B_Fixed Asset Cont 2011'!H30 -> 1579563.66 | H30: 1579563.66 | J30: =+'App.2-B_Fixed Asset Cont 2011'!M30 -> -417283.04 | K30: -67812 | M30: -485095.04 | N30: 1094468.62
A31: 8 | B31: 1860 | C31: Meters (Smart Meters) | D31: 0.0667 | E31: =+'App.2-B_Fixed Asset Cont 2011'!H31 -> 105634 | F31: 38652 | H31: 144286 | J31: =+'App.2-B_Fixed Asset Cont 2011'!M31 -> -2150.23 | K31: -8418 | M31: -10568.23 | N31: 133717.77
A32: N/A | B32: 1905 | C32: Land | H32: 0 | J32: =+'App.2-B_Fixed Asset Cont 2011'!M32 -> 0 | M32: 0 | N32: 0
A33: 47 | B33: 1908 | C33: Buildings & Fixtures | H33: 0 | J33: =+'App.2-B_Fixed Asset Cont 2011'!M33 -> 0 | M33: 0 | N33: 0
A34: 13 | B34: 1910 | C34: Leasehold Improvements | H34: 0 | J34: =+'App.2-B_Fixed Asset Cont 2011'!M34 -> 0 | M34: 0 | N34: 0
A35: 8 | B35: 1915 | C35: Office Furniture & Equipment (10 years) | D35: 0.1 | E35: =+'App.2-B_Fixed Asset Cont 2011'!H35 -> 262476.15 | F35: 5000 | H35: 267476.15 | J35: =+'App.2-B_Fixed Asset Cont 2011'!M35 -> -186028.6 | K35: -15084 | M35: -201112.6 | N35: 66363.55
A36: 8 | B36: 1915 | C36: Office Furniture & Equipment (5 years) | H36: 0 | J36: =+'App.2-B_Fixed Asset Cont 2011'!M36 -> 0 | M36: 0 | N36: 0
A37: 10 | B37: 1920 | C37: Computer Equipment - Hardware | D37: 0.2 | E37: =+'App.2-B_Fixed Asset Cont 2011'!H37 -> 275946.03 | H37: 275946.03 | J37: =+'App.2-B_Fixed Asset Cont 2011'!M37 -> -152871.07 | M37: -152871.07 | N37: 123074.96
A38: 45 | B38: 1920 | C38: Computer Equip.-Hardware(Post Mar. 22/04) | D38: 0.2 | E38: =+'App.2-B_Fixed Asset Cont 2011'!H38 -> 52211.63 | H38: 52211.63 | J38: =+'App.2-B_Fixed Asset Cont 2011'!M38 -> -146240.59 | M38: -146240.59 | N38: -94028.96
A39: 45.1 | B39: 1920 | C39: Computer Equip.-Hardware(Post Mar. 19/07) | D39: 0.2 | E39: =+'App.2-B_Fixed Asset Cont 2011'!H39 -> 153836.7 | F39: 22000 | H39: 175836.7 | J39: =+'App.2-B_Fixed Asset Cont 2011'!M39 -> -107493.88 | K39: -27104 | M39: -134597.88 | N39: 41238.82
A40: 12 | B40: 1925 | C40: Computer Software (Formally known as Account 1925) | D40: 0.3333 | E40: =+'App.2-B_Fixed Asset Cont 2011'!H40 -> 944456.07 | F40: 50000 | H40: 994456.07 | J40: =+'App.2-B_Fixed Asset Cont 2011'!M40 -> -813572.16 | K40: -70279 | M40: -883851.16 | N40: 110604.91
A41: 10 | B41: 1930 | C41: Transportation Equipment | D41: 0.125 | E41: =+'App.2-B_Fixed Asset Cont 2011'!H41 -> 1984171.03 | F41: 450000 | G41: -150000 | H41: 2284171.03 | J41: =+'App.2-B_Fixed Asset Cont 2011'!M41 -> -1188623.2 | K41: -229861 | L41: 150000 | M41: -1268484.2 | N41: 1015686.83
A42: 8 | B42: 1935 | C42: Stores Equipment | D42: 0.1 | E42: =+'App.2-B_Fixed Asset Cont 2011'!H42 -> 85037.21 | H42: 85037.21 | J42: =+'App.2-B_Fixed Asset Cont 2011'!M42 -> -26165.99 | K42: -8296 | M42: -34461.99 | N42: 50575.22
A43: 8 | B43: 1940 | C43: Tools, Shop & Garage Equipment | D43: 0.1 | E43: =+'App.2-B_Fixed Asset Cont 2011'!H43 -> 296780.97 | F43: 72000 | H43: 368780.97 | J43: =+'App.2-B_Fixed Asset Cont 2011'!M43 -> -184379.91 | K43: -22364 | M43: -206743.91 | N43: 162037.06
A44: 8 | B44: 1945 | C44: Measurement & Testing Equipment | D44: 0.1 | E44: =+'App.2-B_Fixed Asset Cont 2011'!H44 -> 67543.58 | H44: 67543.58 | J44: =+'App.2-B_Fixed Asset Cont 2011'!M44 -> -34989.46 | K44: -6645 | M44: -41634.46 | N44: 25909.12
A45: 8 | B45: 1950 | C45: Power Operated Equipment | D45: 0.125 | E45: =+'App.2-B_Fixed Asset Cont 2011'!H45 -> 89271.96 | H45: 89271.96 | J45: =+'App.2-B_Fixed Asset Cont 2011'!M45 -> -37367.12 | K45: -7997 | M45: -45364.12 | N45: 43907.84
A46: 8 | B46: 1955 | C46: Communications Equipment | D46: 0.1 | E46: =+'App.2-B_Fixed Asset Cont 2011'!H46 -> 176173.24 | H46: 176173.24 | J46: =+'App.2-B_Fixed Asset Cont 2011'!M46 -> -105990.53 | K46: -20382 | M46: -126372.53 | N46: 49800.71
A47: 8 | B47: 1955 | C47: Communication Equipment (Smart Meters) | H47: 0 | J47: =+'App.2-B_Fixed Asset Cont 2011'!M47 -> 0 | M47: 0 | N47: 0
A48: 8 | B48: 1960 | C48: Miscellaneous Equipment | D48: 0.1 | E48: =+'App.2-B_Fixed Asset Cont 2011'!H48 -> 43493.47 | F48: 40000 | H48: 83493.47 | J48: =+'App.2-B_Fixed Asset Cont 2011'!M48 -> -29742.11 | K48: -4342 | M48: -34084.11 | N48: 49409.36
A49: 47 | B49: 1975 | C49: Load Management Controls Utility Premises | D49: 0.1 | E49: =+'App.2-B_Fixed Asset Cont 2011'!H49 -> 258630.5 | H49: 258630.5 | J49: =+'App.2-B_Fixed Asset Cont 2011'!M49 -> -258630.5 | M49: -258630.5 | N49: 0
A50: 47 | B50: 1980 | C50: System Supervisor Equipment | H50: 0 | J50: =+'App.2-B_Fixed Asset Cont 2011'!M50 -> 0 | M50: 0 | N50: 0
A51: 47 | B51: 1985 | C51: Miscellaneous Fixed Assets | D51: 0.1 | E51: =+'App.2-B_Fixed Asset Cont 2011'!H51 -> 1427 | H51: 1427 | J51: =+'App.2-B_Fixed Asset Cont 2011'!M51 -> -1426.68 | M51: -1426.68 | N51: 0.32
A52: 47 | B52: 1995 | C52: Contributions & Grants | D52: 0.04 | E52: =+'App.2-B_Fixed Asset Cont 2011'!H52 -> -8188457.35 | F52: -433861 | H52: -8622318.35 | J52: =+'App.2-B_Fixed Asset Cont 2011'!M52 -> 1719806.55 | K52: 336986 | M52: 2056792.55 | N52: -6565525.8
B53: etc. | H53: 0 | M53: 0 | N53: 0
C55: Total | E55: =SUM(E16:E54) -> 46355641.4 | F55: =SUM(F16:F54) -> 4458595 | G55: -150000 | H55: 50664236.4 | J55: =SUM(J16:J54) -> -17079279.25 | K55: =SUM(K16:K54) -> -2209796 | L55: 150000 | M55: -19139075.25 | N55: 31525161.15
J57: Less: Fully Allocated Depreciation
A58: 10 | C58: Transportation | J58: Transportation
A59: 8 | C59: Stores Equipment | J59: Stores Equipment
J60: Net Depreciation | L60: =L55-L58-L59 -> 150000
A62: Notes:
A64: 1 | B64: Tables in the format outlined above covering all fixed asset accounts should be submitted for the Test Year, Bridge Year and all relevant historical years. At a minimum , the applicant must provide data for the earlier of: 1) all historical years back to its last rebasing; or 2) at least three years of historical actuals, in addition to Bridge Year and Test Year forecasts.
A67: 2 | B67: The "CCA Class" for fixed assets should agree with the CCA Class used for tax purposes in Tax Returns. Fixed Assets sub-components may be used where the underlying asset components are classified under multiple CCA Classes for tax purposes. If an applicant uses any different classes from those shown in the table, an explanation should be provided. (also see note 3 below).
A70: 3 | B70: The table may need to be customized for a utility's asset categories or for any new asset accounts announced or authorized by the Board.
A72: 4 | B72: The depreciation column (D) is not required as the relevant information will be provided in the following 2-C series of appendices.

Sheet App.2-B_Fixed Asset Cont 2013
M1: File Number: | N1: ='LDC Info'!$E$18 -> EB2012-0176
M2: Exhibit:
M3: Tab:
M4: Schedule:
M5: Page:
M7: Date:
A9: Appendix 2-B
A10: Fixed Asset Continuity Schedule - CGAAP
F12: Year | G12: 2013
E14: Cost | K14: Accumulated Depreciation
A15: CCA Class | B15: OEB | C15: Description | D15: Depreciation Rate | E15: Opening Balance | F15: Additions | G15: Disposals | H15: Closing Balance | J15: Opening Balance | K15: Additions | L15: Disposals | M15: Closing Balance | N15: Net Book Value
A16: 12 | B16: 1611 | C16: Computer Software (Formally known as Account 1925) | H16: =E16+F16+G16 -> 0 | M16: =J16+K16+L16 -> 0 | N16: =H16+M16 -> 0
A17: CEC | B17: 1612 | C17: Land Rights (Formally known as Account 1906) | H17: =E17+F17+G17 -> 0 | M17: =J17+K17+L17 -> 0 | N17: =H17+M17 -> 0
A18: N/A | B18: 1805 | C18: Land | E18: =+'App.2-B_Fixed Asset Cont 2012'!H18 -> 227768.86 | H18: =E18+F18+G18 -> 227768.86 | M18: =J18+K18+L18 -> 0 | N18: =H18+M18 -> 227768.86
A19: 47 | B19: 1808 | C19: Buildings | D19: 0.02 | E19: =+'App.2-B_Fixed Asset Cont 2012'!H19 -> 2491318 | F19: 9000 | H19: =E19+F19+G19 -> 2500318 | J19: =+'App.2-B_Fixed Asset Cont 2012'!M19 -> -275134.49 | K19: -50077 | M19: =J19+K19+L19 -> -325211.49 | N19: =H19+M19 -> 2175106.51
A20: 13 | B20: 1810 | C20: Leasehold Improvements | H20: 0 | M20: 0 | N20: 0
A21: 47 | B21: 1815 | C21: Transformer Station Equipment >50 kV | H21: 0 | M21: 0 | N21: 0
A22: 47 | B22: 1820 | C22: Distribution Station Equipment <50 kV | D22: 0.0333 | E22: =+'App.2-B_Fixed Asset Cont 2012'!H22 -> 4775968.02 | F22: 594855 | H22: 5370823.02 | J22: =+'App.2-B_Fixed Asset Cont 2012'!M22 -> -1723430.41 | K22: -166136 | M22: -1889566.41 | N22: 3481256.61
A23: 47 | B23: 1825 | C23: Storage Battery Equipment | H23: 0 | M23: 0 | N23: 0
A24: 47 | B24: 1830 | C24: Poles, Towers & Fixtures | D24: 0.04 | E24: =+'App.2-B_Fixed Asset Cont 2012'!H24 -> 7994988.56 | F24: 958576 | H24: 8953564.56 | J24: =+'App.2-B_Fixed Asset Cont 2012'!M24 -> -2675719.45 | K24: -364607 | M24: -3040326.45 | N24: 5913238.11
A25: 47 | B25: 1835 | C25: Overhead Conductors & Devices | D25: 0.04 | E25: =+'App.2-B_Fixed Asset Cont 2012'!H25 -> 10585854.45 | F25: 893675 | H25: 11479529.45 | J25: =+'App.2-B_Fixed Asset Cont 2012'!M25 -> -3781700.33 | K25: -476505 | M25: -4258205.33 | N25: 7221324.12
A26: 47 | B26: 1840 | C26: Underground Conduit | D26: 0.04 | E26: =+'App.2-B_Fixed Asset Cont 2012'!H26 -> 3335316.92 | F26: 409989 | H26: 3745305.92 | J26: =+'App.2-B_Fixed Asset Cont 2012'!M26 -> -1096346.04 | K26: -150801 | M26: -1247147.04 | N26: 2498158.88
A27: 47 | B27: 1845 | C27: Underground Conductors & Devices | D27: 0.04 | E27: =+'App.2-B_Fixed Asset Cont 2012'!H27 -> 9303078.79 | F27: 505661 | H27: 9808739.79 | J27: =+'App.2-B_Fixed Asset Cont 2012'!M27 -> -3043886.74 | K27: -411569 | M27: -3455455.74 | N27: 6353284.05
A28: 47 | B28: 1850 | C28: Line Transformers | D28: 0.04 | E28: =+'App.2-B_Fixed Asset Cont 2012'!H28 -> 8600216.75 | F28: 627227 | H28: 9227443.75 | J28: =+'App.2-B_Fixed Asset Cont 2012'!M28 -> -3052251.22 | K28: -385180 | M28: -3437431.22 | N28: 5790012.53
A29: 47 | B29: 1855 | C29: Services (Overhead & Underground) | D29: 0.04 | E29: =+'App.2-B_Fixed Asset Cont 2012'!H29 -> 5067739.2 | F29: 658066 | H29: 5725805.2 | J29: =+'App.2-B_Fixed Asset Cont 2012'!M29 -> -1515860.05 | K29: -226946 | M29: -1742806.05 | N29: 3982999.15
A30: 47 | B30: 1860 | C30: Meters | D30: 0.04 | E30: =+'App.2-B_Fixed Asset Cont 2012'!H30 -> 1579563.66 | H30: 1579563.66 | J30: =+'App.2-B_Fixed Asset Cont 2012'!M30 -> -485095.04 | K30: -67812 | M30: -552907.04 | N30: 1026656.62
A31: 8 | B31: 1860 | C31: Meters (Smart Meters) | D31: 0.0667 | E31: =+'App.2-B_Fixed Asset Cont 2012'!H31 -> 144286 | F31: 316432 | H31: 460718 | J31: =+'App.2-B_Fixed Asset Cont 2012'!M31 -> -10568.23 | K31: -20245 | M31: -30813.23 | N31: 429904.77
A32: N/A | B32: 1905 | C32: Land | H32: 0 | M32: 0 | N32: 0
A33: 47 | B33: 1908 | C33: Buildings & Fixtures | H33: 0 | M33: 0 | N33: 0
A34: 13 | B34: 1910 | C34: Leasehold Improvements | H34: 0 | M34: 0 | N34: 0
A35: 8 | B35: 1915 | C35: Office Furniture & Equipment (10 years) | D35: 0.1 | E35: =+'App.2-B_Fixed Asset Cont 2012'!H35 -> 267476.15 | F35: 2000 | H35: 269476.15 | J35: =+'App.2-B_Fixed Asset Cont 2012'!M35 -> -201112.6 | K35: -14437 | M35: -215549.6 | N35: 53926.55
A36: 8 | B36: 1915 | C36: Office Furniture & Equipment (5 years) | H36: 0 | M36: 0 | N36: 0
A37: 10 | B37: 1920 | C37: Computer Equipment - Hardware | D37: 0.2 | E37: =+'App.2-B_Fixed Asset Cont 2012'!H37 -> 275946.03 | H37: 275946.03 | J37: =+'App.2-B_Fixed Asset Cont 2012'!M37 -> -152871.07 | M37: -152871.07 | N37: 123074.96
A38: 45 | B38: 1920 | C38: Computer Equip.-Hardware(Post Mar. 22/04) | D38: 0.2 | E38: =+'App.2-B_Fixed Asset Cont 2012'!H38 -> 52211.63 | H38: 52211.63 | J38: =+'App.2-B_Fixed Asset Cont 2012'!M38 -> -146240.59 | M38: -146240.59 | N38: -94028.96
A39: 45.1 | B39: 1920 | C39: Computer Equip.-Hardware(Post Mar. 19/07) | D39: 0.2 | E39: =+'App.2-B_Fixed Asset Cont 2012'!H39 -> 175836.7 | F39: 28600 | H39: 204436.7 | J39: =+'App.2-B_Fixed Asset Cont 2012'!M39 -> -134597.88 | K39: -28162 | M39: -162759.88 | N39: 41676.82
A40: 12 | B40: 1925 | C40: Computer Software (Formally known as Account 1925) | D40: 0.3333 | E40: =+'App.2-B_Fixed Asset Cont 2012'!H40 -> 994456.07 | F40: 45000 | H40: 1039456.07 | J40: =+'App.2-B_Fixed Asset Cont 2012'!M40 -> -883851.16 | K40: -68144 | M40: -951995.16 | N40: 87460.91
A41: 10 | B41: 1930 | C41: Transportation Equipment | D41: 0.125 | E41: =+'App.2-B_Fixed Asset Cont 2012'!H41 -> 2284171.03 | F41: 400000 | G41: -50000 | H41: 2634171.03 | J41: =+'App.2-B_Fixed Asset Cont 2012'!M41 -> -1268484.2 | K41: -254125 | L41: 50000 | M41: -1472609.2 | N41: 1161561.83
A42: 8 | B42: 1935 | C42: Stores Equipment | D42: 0.1 | E42: =+'App.2-B_Fixed Asset Cont 2012'!H42 -> 85037.21 | H42: 85037.21 | J42: =+'App.2-B_Fixed Asset Cont 2012'!M42 -> -34461.99 | K42: -8296 | M42: -42757.99 | N42: 42279.22
A43: 8 | B43: 1940 | C43: Tools, Shop & Garage Equipment | D43: 0.1 | E43: =+'App.2-B_Fixed Asset Cont 2012'!H43 -> 368780.97 | F43: 72000 | H43: 440780.97 | J43: =+'App.2-B_Fixed Asset Cont 2012'!M43 -> -206743.91 | K43: -27972 | M43: -234715.91 | N43: 206065.06
A44: 8 | B44: 1945 | C44: Measurement & Testing Equipment | D44: 0.1 | E44: =+'App.2-B_Fixed Asset Cont 2012'!H44 -> 67543.58 | H44: 67543.58 | J44: =+'App.2-B_Fixed Asset Cont 2012'!M44 -> -41634.46 | K44: -6645 | M44: -48279.46 | N44: 19264.12
A45: 8 | B45: 1950 | C45: Power Operated Equipment | D45: 0.125 | E45: =+'App.2-B_Fixed Asset Cont 2012'!H45 -> 89271.96 | H45: 89271.96 | J45: =+'App.2-B_Fixed Asset Cont 2012'!M45 -> -45364.12 | K45: -7997 | M45: -53361.12 | N45: 35910.84
A46: 8 | B46: 1955 | C46: Communications Equipment | D46: 0.1 | E46: =+'App.2-B_Fixed Asset Cont 2012'!H46 -> 176173.24 | H46: 176173.24 | J46: =+'App.2-B_Fixed Asset Cont 2012'!M46 -> -126372.53 | K46: -20092 | M46: -146464.53 | N46: 29708.71
A47: 8 | B47: 1955 | C47: Communication Equipment (Smart Meters) | H47: 0 | M47: 0 | N47: 0
A48: 8 | B48: 1960 | C48: Miscellaneous Equipment | D48: 0.1 | E48: =+'App.2-B_Fixed Asset Cont 2012'!H48 -> 83493.47 | F48: 45000 | H48: 128493.47 | J48: =+'App.2-B_Fixed Asset Cont 2012'!M48 -> -34084.11 | K48: -4592 | M48: -38676.11 | N48: 89817.36
A49: 47 | B49: 1975 | C49: Load Management Controls Utility Premises | D49: 0.1 | E49: =+'App.2-B_Fixed Asset Cont 2012'!H49 -> 258630.5 | H49: 258630.5 | J49: =+'App.2-B_Fixed Asset Cont 2012'!M49 -> -258630.5 | M49: -258630.5 | N49: 0
A50: 47 | B50: 1980 | C50: System Supervisor Equipment | H50: 0 | M50: 0 | N50: 0
A51: 47 | B51: 1985 | C51: Miscellaneous Fixed Assets | D51: 0.1 | E51: =+'App.2-B_Fixed Asset Cont 2012'!H51 -> 1427 | H51: 1427 | J51: =+'App.2-B_Fixed Asset Cont 2012'!M51 -> -1426.68 | M51: -1426.68 | N51: 0.32
A52: 47 | B52: 1995 | C52: Contributions & Grants | D52: 0.04 | E52: =+'App.2-B_Fixed Asset Cont 2012'!H52 -> -8622318.35 | F52: -417663 | H52: -9039981.35 | J52: =+'App.2-B_Fixed Asset Cont 2012'!M52 -> 2056792.55 | K52: 354039 | M52: 2410831.55 | N52: -6629149.8
B53: etc. | H53: 0 | M53: 0 | N53: 0
C55: Total | E55: =SUM(E16:E54) -> 50664236.4 | F55: =SUM(F16:F54) -> 5148418 | G55: -50000 | H55: 55762654.4 | J55: =SUM(J16:J54) -> -19139075.25 | K55: =SUM(K16:K54) -> -2406301 | L55: 50000 | M55: -21495376.25 | N55: 34267278.15
C56: Smart Meter Additions (from 1555)
A57: 8 | B57: 1860 | C57: Meters (Smart Meters) | D57: 0.0667 | E57: 3626141 | H57: =E57+F57+G57 -> 3626141 | J57: -662079 | K57: -241743 | M57: =J57+K57+L57 -> -903822 | N57: =H57+M57 -> 2722319
A58: 45.1 | B58: 1920 | C58: Computer Hardware (Smart Meters) | D58: 0.2 | E58: 62873 | H58: 62873 | J58: -35193 | K58: -12575 | M58: -47768 | N58: 15105
A59: 12 | B59: 1925 | C59: Computer Software (Smart Meters) | D59: 0.3333 | E59: 274217 | H59: =E59+F59+G59 -> 274217 | J59: -99859 | K59: -54843 | M59: =J59+K59+L59 -> -154702 | N59: =H59+M59 -> 119515
C60: Revised Total | E60: =SUM(E55:E59) -> 54627467.4 | F60: =SUM(F55:F59) -> 5148418 | G60: -50000 | H60: 59725885.4 | J60: =SUM(J55:J59) -> -19936206.25 | K60: =SUM(K55:K59) -> -2715462 | L60: 50000 | M60: -22601668.25 | N60: 37124217.15
J62: Less: Fully Allocated Depreciation
A63: 10 | C63: Transportation | J63: Transportation
A64: 8 | C64: Stores Equipment | J64: Stores Equipment
J65: Net Depreciation | L65: =L55-L63-L64 -> 50000
A67: Notes:
A69: 1 | B69: Tables in the format outlined above covering all fixed asset accounts should be submitted for the Test Year, Bridge Year and all relevant historical years. At a minimum , the applicant must provide data for the earlier of: 1) all historical years back to its last rebasing; or 2) at least three years of historical actuals, in addition to Bridge Year and Test Year forecasts.
A72: 2 | B72: The "CCA Class" for fixed assets should agree with the CCA Class used for tax purposes in Tax Returns. Fixed Assets sub-components may be used where the underlying asset components are classified under multiple CCA Classes for tax purposes. If an applicant uses any different classes from those shown in the table, an explanation should be provided. (also see note 3 below).
A75: 3 | B75: The table may need to be customized for a utility's asset categories or for any new asset accounts announced or authorized by the Board.
A77: 4 | B77: The depreciation column (D) is not required as the relevant information will be provided in the following 2-C series of appendices.

Sheet App.2-B_FA Cont MIFRS 2012
M1: File Number: | N1: ='LDC Info'!$E$18 -> EB2012-0176
M2: Exhibit:
M3: Tab:
M4: Schedule:
M5: Page:
M7: Date:
A9: Appendix 2-B
A10: Fixed Asset Continuity Schedule - MIFRS
F12: Year | G12: 2012
E14: Cost | K14: Accumulated Depreciation
A15: CCA Class | B15: OEB | C15: Description | D15: Depreciation Rate | E15: Opening Balance | F15: Additions | G15: Disposals | H15: Closing Balance | J15: Opening Balance | K15: Additions | L15: Disposals | M15: Closing Balance | N15: Net Book Value
A16: 12 | B16: 1611 | C16: Computer Software (Formally known as Account 1925) | H16: =E16+F16+G16 -> 0 | M16: =J16+K16+L16 -> 0 | N16: =H16+M16 -> 0
A17: CEC | B17: 1612 | C17: Land Rights (Formally known as Account 1906) | H17: =E17+F17+G17 -> 0 | M17: =J17+K17+L17 -> 0 | N17: =H17+M17 -> 0
A18: N/A | B18: 1805 | C18: Land | E18: =+'App.2-B_Fixed Asset Cont 2011'!H18 -> 227768.86 | H18: =E18+F18+G18 -> 227768.86 | M18: =J18+K18+L18 -> 0 | N18: =H18+M18 -> 227768.86
A19: 47 | B19: 1808 | C19: Buildings | D19: 0.02 | E19: =+'App.2-B_Fixed Asset Cont 2011'!H19 -> 2486318 | F19: 5000 | H19: =E19+F19+G19 -> 2491318 | J19: =+'App.2-B_Fixed Asset Cont 2011'!M19 -> -225197.49 | K19: -49979 | M19: =J19+K19+L19 -> -275176.49 | N19: =H19+M19 -> 2216141.51
A20: 13 | B20: 1810 | C20: Leasehold Improvements | H20: 0 | J20: =+'App.2-B_Fixed Asset Cont 2011'!M20 -> 0 | M20: 0 | N20: 0
A21: 47 | B21: 1815 | C21: Transformer Station Equipment >50 kV | H21: 0 | J21: =+'App.2-B_Fixed Asset Cont 2011'!M21 -> 0 | M21: 0 | N21: 0
A22: 47 | B22: 1820 | C22: Distribution Station Equipment <50 kV | D22: 0.0333 | E22: =+'App.2-B_Fixed Asset Cont 2011'!H22 -> 4269129.02 | F22: 463809 | H22: 4732938.02 | J22: =+'App.2-B_Fixed Asset Cont 2011'!M22 -> -1575655.41 | K22: -293076 | M22: -1868731.41 | N22: 2864206.61
A23: 47 | B23: 1825 | C23: Storage Battery Equipment | H23: 0 | J23: =+'App.2-B_Fixed Asset Cont 2011'!M23 -> 0 | M23: 0 | N23: 0
A24: 47 | B24: 1830 | C24: Poles, Towers & Fixtures | D24: 0.04 | E24: =+'App.2-B_Fixed Asset Cont 2011'!H24 -> 7106082.56 | F24: 734446 | H24: 7840528.56 | J24: =+'App.2-B_Fixed Asset Cont 2011'!M24 -> -2348061.45 | K24: -101800 | M24: -2449861.45 | N24: 5390667.11
A25: 47 | B25: 1835 | C25: Overhead Conductors & Devices | D25: 0.04 | E25: =+'App.2-B_Fixed Asset Cont 2011'!H25 -> 9746857.45 | F25: 707985 | H25: 10454842.45 | J25: =+'App.2-B_Fixed Asset Cont 2011'!M25 -> -3339848.33 | K25: -124763 | M25: -3464611.33 | N25: 6990231.12
A26: 47 | B26: 1840 | C26: Underground Conduit | D26: 0.04 | E26: =+'App.2-B_Fixed Asset Cont 2011'!H26 -> 3044635.92 | F26: 239152 | H26: 3283787.92 | J26: =+'App.2-B_Fixed Asset Cont 2011'!M26 -> -959558.04 | K26: -29018 | M26: -988576.04 | N26: 2295211.88
A27: 47 | B27: 1845 | C27: Underground Conductors & Devices | D27: 0.04 | E27: =+'App.2-B_Fixed Asset Cont 2011'!H27 -> 8848610.79 | F27: 368494 | H27: 9217104.79 | J27: =+'App.2-B_Fixed Asset Cont 2011'!M27 -> -2651520.74 | K27: -127289 | M27: -2778809.74 | N27: 6438295.05
A28: 47 | B28: 1850 | C28: Line Transformers | D28: 0.04 | E28: =+'App.2-B_Fixed Asset Cont 2011'!H28 -> 8007560.75 | F28: 504230 | H28: 8511790.75 | J28: =+'App.2-B_Fixed Asset Cont 2011'!M28 -> -2691469.22 | K28: -216368 | M28: -2907837.22 | N28: 5603953.53
A29: 47 | B29: 1855 | C29: Services (Overhead & Underground) | D29: 0.04 | E29: =+'App.2-B_Fixed Asset Cont 2011'!H29 -> 4430482.2 | F29: 527103 | H29: 4957585.2 | J29: =+'App.2-B_Fixed Asset Cont 2011'!M29 -> -1314820.05 | K29: -76296 | M29: -1391116.05 | N29: 3566469.15
A30: 47 | B30: 1860 | C30: Meters | D30: 0.04 | E30: =+'App.2-B_Fixed Asset Cont 2011'!H30 -> 1579563.66 | H30: 1579563.66 | J30: =+'App.2-B_Fixed Asset Cont 2011'!M30 -> -417283.04 | K30: -50089 | M30: -467372.04 | N30: 1112191.62
A31: 8 | B31: 1860 | C31: Meters (Smart Meters) | D31: 0.0667 | E31: =+'App.2-B_Fixed Asset Cont 2011'!H31 -> 105634 | F31: 29737 | H31: 135371 | J31: =+'App.2-B_Fixed Asset Cont 2011'!M31 -> -2150.23 | K31: -8038 | M31: -10188.23 | N31: 125182.77
A32: N/A | B32: 1905 | C32: Land | H32: 0 | J32: =+'App.2-B_Fixed Asset Cont 2011'!M32 -> 0 | M32: 0 | N32: 0
A33: 47 | B33: 1908 | C33: Buildings & Fixtures | H33: 0 | J33: =+'App.2-B_Fixed Asset Cont 2011'!M33 -> 0 | M33: 0 | N33: 0
A34: 13 | B34: 1910 | C34: Leasehold Improvements | H34: 0 | J34: =+'App.2-B_Fixed Asset Cont 2011'!M34 -> 0 | M34: 0 | N34: 0
A35: 8 | B35: 1915 | C35: Office Furniture & Equipment (10 years) | D35: 0.1 | E35: =+'App.2-B_Fixed Asset Cont 2011'!H35 -> 262476.15 | F35: 5000 | H35: 267476.15 | J35: =+'App.2-B_Fixed Asset Cont 2011'!M35 -> -186028.6 | K35: -7895 | M35: -193923.6 | N35: 73552.55
A36: 8 | B36: 1915 | C36: Office Furniture & Equipment (5 years) | H36: 0 | J36: =+'App.2-B_Fixed Asset Cont 2011'!M36 -> 0 | M36: 0 | N36: 0
A37: 10 | B37: 1920 | C37: Computer Equipment - Hardware | D37: 0.2 | E37: =+'App.2-B_Fixed Asset Cont 2011'!H37 -> 275946.03 | H37: 275946.03 | J37: =+'App.2-B_Fixed Asset Cont 2011'!M37 -> -152871.07 | M37: -152871.07 | N37: 123074.96
A38: 45 | B38: 1920 | C38: Computer Equip.-Hardware(Post Mar. 22/04) | D38: 0.2 | E38: =+'App.2-B_Fixed Asset Cont 2011'!H38 -> 52211.63 | H38: 52211.63 | J38: =+'App.2-B_Fixed Asset Cont 2011'!M38 -> -146240.59 | M38: -146240.59 | N38: -94028.96
A39: 45.1 | B39: 1920 | C39: Computer Equip.-Hardware(Post Mar. 19/07) | D39: 0.2 | E39: =+'App.2-B_Fixed Asset Cont 2011'!H39 -> 153836.7 | F39: 22000 | H39: 175836.7 | J39: =+'App.2-B_Fixed Asset Cont 2011'!M39 -> -107493.88 | K39: =-1274-16004 -> -17278 | M39: -124771.88 | N39: 51064.82
A40: 12 | B40: 1925 | C40: Computer Software (Formally known as Account 1925) | D40: 0.3333 | E40: =+'App.2-B_Fixed Asset Cont 2011'!H40 -> 944456.07 | F40: 50000 | H40: 994456.07 | J40: =+'App.2-B_Fixed Asset Cont 2011'!M40 -> -813572.16 | K40: -36848 | M40: -850420.16 | N40: 144035.91
A41: 10 | B41: 1930 | C41: Transportation Equipment | D41: 0.125 | E41: =+'App.2-B_Fixed Asset Cont 2011'!H41 -> 1984171.03 | F41: 450000 | G41: -150000 | H41: 2284171.03 | J41: =+'App.2-B_Fixed Asset Cont 2011'!M41 -> -1188623.2 | K41: -97893 | L41: 150000 | M41: -1136516.2 | N41: 1147654.83
A42: 8 | B42: 1935 | C42: Stores Equipment | D42: 0.1 | E42: =+'App.2-B_Fixed Asset Cont 2011'!H42 -> 85037.21 | H42: 85037.21 | J42: =+'App.2-B_Fixed Asset Cont 2011'!M42 -> -26165.99 | K42: -5887 | M42: -32052.99 | N42: 52984.22
A43: 8 | B43: 1940 | C43: Tools, Shop & Garage Equipment | D43: 0.1 | E43: =+'App.2-B_Fixed Asset Cont 2011'!H43 -> 296780.97 | F43: 72000 | H43: 368780.97 | J43: =+'App.2-B_Fixed Asset Cont 2011'!M43 -> -184379.91 | K43: -14840 | M43: -199219.91 | N43: 169561.06
A44: 8 | B44: 1945 | C44: Measurement & Testing Equipment | D44: 0.1 | E44: =+'App.2-B_Fixed Asset Cont 2011'!H44 -> 67543.58 | H44: 67543.58 | J44: =+'App.2-B_Fixed Asset Cont 2011'!M44 -> -34989.46 | K44: -3255 | M44: -38244.46 | N44: 29299.12
A45: 8 | B45: 1950 | C45: Power Operated Equipment | D45: 0.125 | E45: =+'App.2-B_Fixed Asset Cont 2011'!H45 -> 89271.96 | H45: 89271.96 | J45: =+'App.2-B_Fixed Asset Cont 2011'!M45 -> -37367.12 | K45: -5190 | M45: -42557.12 | N45: 46714.84
A46: 8 | B46: 1955 | C46: Communications Equipment | D46: 0.1 | E46: =+'App.2-B_Fixed Asset Cont 2011'!H46 -> 176173.24 | H46: 176173.24 | J46: =+'App.2-B_Fixed Asset Cont 2011'!M46 -> -105990.53 | K46: -8288 | M46: -114278.53 | N46: 61894.71
A47: 8 | B47: 1955 | C47: Communication Equipment (Smart Meters) | H47: 0 | J47: =+'App.2-B_Fixed Asset Cont 2011'!M47 -> 0 | M47: 0 | N47: 0
A48: 8 | B48: 1960 | C48: Miscellaneous Equipment | D48: 0.1 | E48: =+'App.2-B_Fixed Asset Cont 2011'!H48 -> 43493.47 | F48: 40000 | H48: 83493.47 | J48: =+'App.2-B_Fixed Asset Cont 2011'!M48 -> -29742.11 | K48: -3462 | M48: -33204.11 | N48: 50289.36
A49: 47 | B49: 1975 | C49: Load Management Controls Utility Premises | D49: 0.1 | E49: =+'App.2-B_Fixed Asset Cont 2011'!H49 -> 258630.5 | H49: 258630.5 | J49: =+'App.2-B_Fixed Asset Cont 2011'!M49 -> -258630.5 | M49: -258630.5 | N49: 0
A50: 47 | B50: 1980 | C50: System Supervisor Equipment | H50: 0 | J50: =+'App.2-B_Fixed Asset Cont 2011'!M50 -> 0 | M50: 0 | N50: 0
A51: 47 | B51: 1985 | C51: Miscellaneous Fixed Assets | D51: 0.1 | E51: =+'App.2-B_Fixed Asset Cont 2011'!H51 -> 1427 | H51: 1427 | J51: =+'App.2-B_Fixed Asset Cont 2011'!M51 -> -1426.68 | M51: -1426.68 | N51: 0.32
A52: 47 | B52: 1995 | C52: Contributions & Grants | D52: 0.04 | E52: =+'App.2-B_Fixed Asset Cont 2011'!H52 -> -8188457.35 | F52: -366832 | H52: -8555289.35 | J52: =+'App.2-B_Fixed Asset Cont 2011'!M52 -> 1719806.55 | K52: 140936 | M52: 1860742.55 | N52: -6694546.8
B53: etc. | H53: 0 | M53: 0 | N53: 0
C55: Total | E55: =SUM(E16:E54) -> 46355641.4 | F55: =SUM(F16:F54) -> 3852124 | G55: -150000 | H55: 50057765.4 | J55: =SUM(J16:J54) -> -17079279.25 | K55: =SUM(K16:K54) -> -1136616 | L55: 150000 | M55: -18065895.25 | N55: 31991870.15
J57: Less: Fully Allocated Depreciation
A58: 10 | C58: Transportation | J58: Transportation
A59: 8 | C59: Stores Equipment | J59: Stores Equipment
J60: Net Depreciation | L60: =L55-L58-L59 -> 150000
A62: Notes:
A64: 1 | B64: Tables in the format outlined above covering all fixed asset accounts should be submitted for the Test Year, Bridge Year and all relevant historical years. At a minimum , the applicant must provide data for the earlier of: 1) all historical years back to its last rebasing; or 2) at least three years of historical actuals, in addition to Bridge Year and Test Year forecasts.
A67: 2 | B67: The "CCA Class" for fixed assets should agree with the CCA Class used for tax purposes in Tax Returns. Fixed Assets sub-components may be used where the underlying asset components are classified under multiple CCA Classes for tax purposes. If an applicant uses any different classes from those shown in the table, an explanation should be provided. (also see note 3 below).
A70: 3 | B70: The table may need to be customized for a utility's asset categories or for any new asset accounts announced or authorized by the Board.
A72: 4 | B72: The depreciation column (D) is not required as the relevant information will be provided in the following 2-C series of appendices.

Sheet App.2-B_FA Cont MIFRS 2013
M1: File Number: | N1: ='LDC Info'!$E$18 -> EB2012-0176
M2: Exhibit:
M3: Tab:
M4: Schedule:
M5: Page:
M7: Date:
A9: Appendix 2-B
A10: Fixed Asset Continuity Schedule - MIFRS
F12: Year | G12: 2013
E14: Cost | K14: Accumulated Depreciation
A15: CCA Class | B15: OEB | C15: Description | D15: Depreciation Rate | E15: Opening Balance | F15: Additions | G15: Disposals | H15: Closing Balance | J15: Opening Balance | K15: Additions | L15: Disposals | M15: Closing Balance | N15: Net Book Value
A16: 12 | B16: 1611 | C16: Computer Software (Formally known as Account 1925) | H16: =E16+F16+G16 -> 0 | M16: =J16+K16+L16 -> 0 | N16: =H16+M16 -> 0
A17: CEC | B17: 1612 | C17: Land Rights (Formally known as Account 1906) | H17: =E17+F17+G17 -> 0 | M17: =J17+K17+L17 -> 0 | N17: =H17+M17 -> 0
A18: N/A | B18: 1805 | C18: Land | E18: =+'App.2-B_FA Cont MIFRS 2012'!H18 -> 227768.86 | H18: =E18+F18+G18 -> 227768.86 | M18: =J18+K18+L18 -> 0 | N18: =H18+M18 -> 227768.86
A19: 47 | B19: 1808 | C19: Buildings | D19: 0.02 | E19: =+'App.2-B_FA Cont MIFRS 2012'!H19 -> 2491318 | F19: 9000 | H19: =E19+F19+G19 -> 2500318 | J19: =+'App.2-B_FA Cont MIFRS 2012'!M19 -> -275176.49 | K19: -50119 | M19: =J19+K19+L19 -> -325295.49 | N19: =H19+M19 -> 2175022.51
A20: 13 | B20: 1810 | C20: Leasehold Improvements | E20: =+'App.2-B_FA Cont MIFRS 2012'!H20 -> 0 | H20: 0 | J20: =+'App.2-B_FA Cont MIFRS 2012'!M20 -> 0 | M20: 0 | N20: 0
A21: 47 | B21: 1815 | C21: Transformer Station Equipment >50 kV | E21: =+'App.2-B_FA Cont MIFRS 2012'!H21 -> 0 | H21: 0 | J21: =+'App.2-B_FA Cont MIFRS 2012'!M21 -> 0 | M21: 0 | N21: 0
A22: 47 | B22: 1820 | C22: Distribution Station Equipment <50 kV | D22: 0.0333 | E22: =+'App.2-B_FA Cont MIFRS 2012'!H22 -> 4732938.02 | F22: 520121 | H22: 5253059.02 | J22: =+'App.2-B_FA Cont MIFRS 2012'!M22 -> -1868731.41 | K22: -230732 | M22: -2099463.41 | N22: 3153595.61
A23: 47 | B23: 1825 | C23: Storage Battery Equipment | E23: =+'App.2-B_FA Cont MIFRS 2012'!H23 -> 0 | H23: 0 | J23: =+'App.2-B_FA Cont MIFRS 2012'!M23 -> 0 | M23: 0 | N23: 0
A24: 47 | B24: 1830 | C24: Poles, Towers & Fixtures | D24: 0.04 | E24: =+'App.2-B_FA Cont MIFRS 2012'!H24 -> 7840528.56 | F24: 781179 | H24: 8621707.56 | J24: =+'App.2-B_FA Cont MIFRS 2012'!M24 -> -2449861.45 | K24: -114430 | M24: -2564291.45 | N24: 6057416.11
A25: 47 | B25: 1835 | C25: Overhead Conductors & Devices | D25: 0.04 | E25: =+'App.2-B_FA Cont MIFRS 2012'!H25 -> 10454842.45 | F25: 748211 | H25: 11203053.45 | J25: =+'App.2-B_FA Cont MIFRS 2012'!M25 -> -3464611.33 | K25: -135965 | M25: -3600576.33 | N25: 7602477.12
A26: 47 | B26: 1840 | C26: Underground Conduit | D26: 0.04 | E26: =+'App.2-B_FA Cont MIFRS 2012'!H26 -> 3283787.92 | F26: 335057 | H26: 3618844.92 | J26: =+'App.2-B_FA Cont MIFRS 2012'!M26 -> -988576.04 | K26: -32396 | M26: -1020972.04 | N26: 2597872.88
A27: 47 | B27: 1845 | C27: Underground Conductors & Devices | D27: 0.04 | E27: =+'App.2-B_FA Cont MIFRS 2012'!H27 -> 9217104.79 | F27: 404073 | H27: 9621177.79 | J27: =+'App.2-B_FA Cont MIFRS 2012'!M27 -> -2778809.74 | K27: -133727 | M27: -2912536.74 | N27: 6708641.05
A28: 47 | B28: 1850 | C28: Line Transformers | D28: 0.04 | E28: =+'App.2-B_FA Cont MIFRS 2012'!H28 -> 8511790.75 | F28: 529371 | H28: 9041161.75 | J28: =+'App.2-B_FA Cont MIFRS 2012'!M28 -> -2907837.22 | K28: -229328 | M28: -3137165.22 | N28: 5903996.53
A29: 47 | B29: 1855 | C29: Services (Overhead & Underground) | D29: 0.04 | E29: =+'App.2-B_FA Cont MIFRS 2012'!H29 -> 4957585.2 | F29: 532665 | H29: 5490250.2 | J29: =+'App.2-B_FA Cont MIFRS 2012'!M29 -> -1391116.05 | K29: -85957 | M29: -1477073.05 | N29: 4013177.15
A30: 47 | B30: 1860 | C30: Meters | D30: 0.04 | E30: =+'App.2-B_FA Cont MIFRS 2012'!H30 -> 1579563.66 | H30: 1579563.66 | J30: =+'App.2-B_FA Cont MIFRS 2012'!M30 -> -467372.04 | K30: -50099 | M30: -517471.04 | N30: 1062092.62
A31: 8 | B31: 1860 | C31: Meters (Smart Meters) | D31: 0.0667 | E31: =+'App.2-B_FA Cont MIFRS 2012'!H31 -> 135371 | F31: 168851 | H31: 304222 | J31: =+'App.2-B_FA Cont MIFRS 2012'!M31 -> -10188.23 | K31: -14566 | M31: -24754.23 | N31: 279467.77
A32: N/A | B32: 1905 | C32: Land | E32: =+'App.2-B_FA Cont MIFRS 2012'!H32 -> 0 | H32: 0 | J32: =+'App.2-B_FA Cont MIFRS 2012'!M32 -> 0 | M32: 0 | N32: 0
A33: 47 | B33: 1908 | C33: Buildings & Fixtures | E33: =+'App.2-B_FA Cont MIFRS 2012'!H33 -> 0 | H33: 0 | J33: =+'App.2-B_FA Cont MIFRS 2012'!M33 -> 0 | M33: 0 | N33: 0
A34: 13 | B34: 1910 | C34: Leasehold Improvements | E34: =+'App.2-B_FA Cont MIFRS 2012'!H34 -> 0 | H34: 0 | J34: =+'App.2-B_FA Cont MIFRS 2012'!M34 -> 0 | M34: 0 | N34: 0
A35: 8 | B35: 1915 | C35: Office Furniture & Equipment (10 years) | D35: 0.1 | E35: =+'App.2-B_FA Cont MIFRS 2012'!H35 -> 267476.15 | F35: 2000 | H35: 269476.15 | J35: =+'App.2-B_FA Cont MIFRS 2012'!M35 -> -193923.6 | K35: -8245 | M35: -202168.6 | N35: 67307.55
A36: 8 | B36: 1915 | C36: Office Furniture & Equipment (5 years) | E36: =+'App.2-B_FA Cont MIFRS 2012'!H36 -> 0 | H36: 0 | J36: =+'App.2-B_FA Cont MIFRS 2012'!M36 -> 0 | M36: 0 | N36: 0
A37: 10 | B37: 1920 | C37: Computer Equipment - Hardware | D37: 0.2 | E37: =+'App.2-B_FA Cont MIFRS 2012'!H37 -> 275946.03 | H37: 275946.03 | J37: =+'App.2-B_FA Cont MIFRS 2012'!M37 -> -152871.07 | M37: -152871.07 | N37: 123074.96
A38: 45 | B38: 1920 | C38: Computer Equip.-Hardware(Post Mar. 22/04) | D38: 0.2 | E38: =+'App.2-B_FA Cont MIFRS 2012'!H38 -> 52211.63 | H38: 52211.63 | J38: =+'App.2-B_FA Cont MIFRS 2012'!M38 -> -146240.59 | M38: -146240.59 | N38: -94028.96
A39: 45.1 | B39: 1920 | C39: Computer Equip.-Hardware(Post Mar. 19/07) | D39: 0.2 | E39: =+'App.2-B_FA Cont MIFRS 2012'!H39 -> 175836.7 | F39: 28600 | H39: 204436.7 | J39: =+'App.2-B_FA Cont MIFRS 2012'!M39 -> -124771.88 | K39: =-2548-19789 -> -22337 | M39: -147108.88 | N39: 57327.82
A40: 12 | B40: 1925 | C40: Computer Software (Formally known as Account 1925) | D40: 0.3333 | E40: =+'App.2-B_FA Cont MIFRS 2012'!H40 -> 994456.07 | F40: 45000 | H40: 1039456.07 | J40: =+'App.2-B_FA Cont MIFRS 2012'!M40 -> -850420.16 | K40: -47960 | M40: -898380.16 | N40: 141075.91
A41: 10 | B41: 1930 | C41: Transportation Equipment | D41: 0.125 | E41: =+'App.2-B_FA Cont MIFRS 2012'!H41 -> 2284171.03 | F41: 400000 | G41: -50000 | H41: 2634171.03 | J41: =+'App.2-B_FA Cont MIFRS 2012'!M41 -> -1136516.2 | K41: -126308 | L41: 50000 | M41: -1212824.2 | N41: 1421346.83
A42: 8 | B42: 1935 | C42: Stores Equipment | D42: 0.1 | E42: =+'App.2-B_FA Cont MIFRS 2012'!H42 -> 85037.21 | H42: 85037.21 | J42: =+'App.2-B_FA Cont MIFRS 2012'!M42 -> -32052.99 | K42: -5887 | M42: -37939.99 | N42: 47097.22
A43: 8 | B43: 1940 | C43: Tools, Shop & Garage Equipment | D43: 0.1 | E43: =+'App.2-B_FA Cont MIFRS 2012'!H43 -> 368780.97 | F43: 72000 | H43: 440780.97 | J43: =+'App.2-B_FA Cont MIFRS 2012'!M43 -> -199219.91 | K43: -22040 | M43: -221259.91 | N43: 219521.06
A44: 8 | B44: 1945 | C44: Measurement & Testing Equipment | D44: 0.1 | E44: =+'App.2-B_FA Cont MIFRS 2012'!H44 -> 67543.58 | H44: 67543.58 | J44: =+'App.2-B_FA Cont MIFRS 2012'!M44 -> -38244.46 | K44: -3255 | M44: -41499.46 | N44: 26044.12
A45: 8 | B45: 1950 | C45: Power Operated Equipment | D45: 0.125 | E45: =+'App.2-B_FA Cont MIFRS 2012'!H45 -> 89271.96 | H45: 89271.96 | J45: =+'App.2-B_FA Cont MIFRS 2012'!M45 -> -42557.12 | K45: -5190 | M45: -47747.12 | N45: 41524.84
A46: 8 | B46: 1955 | C46: Communications Equipment | D46: 0.1 | E46: =+'App.2-B_FA Cont MIFRS 2012'!H46 -> 176173.24 | H46: 176173.24 | J46: =+'App.2-B_FA Cont MIFRS 2012'!M46 -> -114278.53 | K46: -8288 | M46: -122566.53 | N46: 53606.71
A47: 8 | B47: 1955 | C47: Communication Equipment (Smart Meters) | E47: =+'App.2-B_FA Cont MIFRS 2012'!H47 -> 0 | H47: 0 | J47: =+'App.2-B_FA Cont MIFRS 2012'!M47 -> 0 | M47: 0 | N47: 0
A48: 8 | B48: 1960 | C48: Miscellaneous Equipment | D48: 0.1 | E48: =+'App.2-B_FA Cont MIFRS 2012'!H48 -> 83493.47 | F48: 45000 | H48: 128493.47 | J48: =+'App.2-B_FA Cont MIFRS 2012'!M48 -> -33204.11 | K48: -7712 | M48: -40916.11 | N48: 87577.36
A49: 47 | B49: 1975 | C49: Load Management Controls Utility Premises | D49: 0.1 | E49: =+'App.2-B_FA Cont MIFRS 2012'!H49 -> 258630.5 | H49: 258630.5 | J49: =+'App.2-B_FA Cont MIFRS 2012'!M49 -> -258630.5 | M49: -258630.5 | N49: 0
A50: 47 | B50: 1980 | C50: System Supervisor Equipment | E50: =+'App.2-B_FA Cont MIFRS 2012'!H50 -> 0 | H50: 0 | J50: =+'App.2-B_FA Cont MIFRS 2012'!M50 -> 0 | M50: 0 | N50: 0
A51: 47 | B51: 1985 | C51: Miscellaneous Fixed Assets | D51: 0.1 | E51: =+'App.2-B_FA Cont MIFRS 2012'!H51 -> 1427 | H51: 1427 | J51: =+'App.2-B_FA Cont MIFRS 2012'!M51 -> -1426.68 | M51: -1426.68 | N51: 0.32
A52: 47 | B52: 1995 | C52: Contributions & Grants | D52: 0.04 | E52: =+'App.2-B_FA Cont MIFRS 2012'!H52 -> -8555289.35 | F52: -373740 | H52: -8929029.35 | J52: =+'App.2-B_FA Cont MIFRS 2012'!M52 -> 1860742.55 | K52: 147888 | M52: 2008630.55 | N52: -6920398.8
B53: etc. | H53: 0 | M53: 0 | N53: 0
C55: Total | E55: =SUM(E16:E54) -> 50057765.4 | F55: =SUM(F16:F54) -> 4247388 | G55: -50000 | H55: 54255153.4 | J55: =SUM(J16:J54) -> -18065895.25 | K55: =SUM(K16:K54) -> -1186653 | L55: 50000 | M55: -19202548.25 | N55: 35052605.15
C56: Smart Meter Additions (from 1555)
A57: 8 | B57: 1860 | C57: Meters (Smart Meters) | D57: 0.0667 | E57: =+'App.2-B_Fixed Asset Cont 2013'!E57 -> 3626141 | H57: =E57+F57+G57 -> 3626141 | J57: =+'App.2-B_Fixed Asset Cont 2013'!J57 -> -662079 | K57: =+'App.2-B_Fixed Asset Cont 2013'!K57 -> -241743 | M57: =J57+K57+L57 -> -903822 | N57: =H57+M57 -> 2722319
A58: 45.1 | B58: 1920 | C58: Computer Hardware (Smart Meters) | D58: 0.2 | E58: =+'App.2-B_Fixed Asset Cont 2013'!E58 -> 62873 | H58: 62873 | J58: =+'App.2-B_Fixed Asset Cont 2013'!J58 -> -35193 | K58: =+'App.2-B_Fixed Asset Cont 2013'!K58 -> -12575 | M58: -47768 | N58: 15105
A59: 12 | B59: 1925 | C59: Computer Software (Smart Meters) | D59: 0.3333 | E59: =+'App.2-B_Fixed Asset Cont 2013'!E59 -> 274217 | H59: 274217 | J59: =+'App.2-B_Fixed Asset Cont 2013'!J59 -> -99859 | K59: =+'App.2-B_Fixed Asset Cont 2013'!K59 -> -54843 | M59: -154702 | N59: 119515
C60: Revised Total | E60: =SUM(E55:E59) -> 54020996.4 | F60: =SUM(F55:F59) -> 4247388 | G60: =SUM(G55:G59) -> -50000 | H60: =SUM(H55:H59) -> 58218384.4 | J60: =SUM(J55:J59) -> -18863026.25 | K60: =SUM(K55:K59) -> -1495814 | L60: =SUM(L55:L59) -> 50000 | M60: =SUM(M55:M59) -> -20308840.25 | N60: =SUM(N55:N59) -> 37909544.15
J62: Less: Fully Allocated Depreciation
A63: 10 | C63: Transportation | J63: Transportation
A64: 8 | C64: Stores Equipment | J64: Stores Equipment
J65: Net Depreciation | L65: =L55-L63-L64 -> 50000
A67: Notes:
A69: 1 | B69: Tables in the format outlined above covering all fixed asset accounts should be submitted for the Test Year, Bridge Year and all relevant historical years. At a minimum , the applicant must provide data for the earlier of: 1) all historical years back to its last rebasing; or 2) at least three years of historical actuals, in addition to Bridge Year and Test Year forecasts.
A72: 2 | B72: The "CCA Class" for fixed assets should agree with the CCA Class used for tax purposes in Tax Returns. Fixed Assets sub-components may be used where the underlying asset components are classified under multiple CCA Classes for tax purposes. If an applicant uses any different classes from those shown in the table, an explanation should be provided. (also see note 3 below).
A75: 3 | B75: The table may need to be customized for a utility's asset categories or for any new asset accounts announced or authorized by the Board.
A77: 4 | B77: The depreciation column (D) is not required as the relevant information will be provided in the following 2-C series of appendices.

Sheet App.2-CA_CGAAP_DepExp_2011 (hidden)
K1: File Number: | L1: ='LDC Info'!$E$18 -> EB2012-0176
K2: Exhibit:
K3: Tab:
K4: Schedule:
K5: Page:
K7: Date:
A9: Appendix 2-CA
A10: Depreciation and Amortization Expense
A11: Assumes the applicant adopted IFRS for financial reporting purposes January 1, 2012
C12: Year | D12: 2011 | E12: CGAAP
A14: Account | B14: Description | C14: Opening Regulatory Gross PP&E as at Jan 1, 2011 | D14: Less Fully Depreciated | E14: Net for Depreciation | F14: Additions | G14: Total for Depreciation | H14: Years | I14: Depreciation Rate | J14: Depreciation Expense | K14: 2011 Depreciation Expense per Appendix 2-B Fixed Assets, Column K (l) | L14: Variance 2
C15: (a) | D15: (b) | E15: (c) | F15: (d) | G15: (e) = (c) + ½ x (d) 1 | H15: (f) | I15: (g) = 1 / (f) | J15: (h) = (e) / (f) | L15: (m) = (h) - (l)
A16: 1611 | B16: Computer Software (Formally known as Account 1925) | E16: =C16-D16 -> 0 | G16: =E16+0.5*F16 -> 0 | I16: =IF(H16=0,0,1/H16) -> 0 | J16: =IF(H16=0,0,G16/H16) -> 0 | L16: =IF(ISERROR(+J16-K16), 0, +J16-K16) -> 0
A17: 1612 | B17: Land Rights (Formally known as Account 1906) | E17: =C17-D17 -> 0 | G17: =E17+0.5*F17 -> 0 | I17: 0 | J17: 0 | L17: 0
A18: 1805 | B18: Land | E18: 0 | G18: 0 | I18: 0 | J18: 0 | L18: 0
A19: 1808 | B19: Buildings | E19: 0 | G19: 0 | I19: 0 | J19: 0 | L19: 0
A20: 1810 | B20: Leasehold Improvements | E20: 0 | G20: 0 | I20: 0 | J20: 0 | L20: 0
A21: 1815 | B21: Transformer Station Equipment >50 kV | E21: 0 | G21: 0 | I21: 0 | J21: 0 | L21: 0
A22: 1820 | B22: Distribution Station Equipment <50 kV | E22: 0 | G22: 0 | I22: 0 | J22: 0 | L22: 0
A23: 1825 | B23: Storage Battery Equipment | E23: 0 | G23: 0 | I23: 0 | J23: 0 | L23: 0
A24: 1830 | B24: Poles, Towers & Fixtures | E24: 0 | G24: 0 | I24: 0 | J24: 0 | L24: 0
A25: 1835 | B25: Overhead Conductors & Devices | E25: 0 | G25: 0 | I25: 0 | J25: 0 | L25: 0
A26: 1840 | B26: Underground Conduit | E26: 0 | G26: 0 | I26: 0 | J26: 0 | L26: 0
A27: 1845 | B27: Underground Conductors & Devices | E27: 0 | G27: 0 | I27: 0 | J27: 0 | L27: 0
A28: 1850 | B28: Line Transformers | E28: 0 | G28: 0 | I28: 0 | J28: 0 | L28: 0
A29: 1855 | B29: Services (Overhead & Underground) | E29: 0 | G29: 0 | I29: 0 | J29: 0 | L29: 0
A30: 1860 | B30: Meters | E30: 0 | G30: 0 | I30: 0 | J30: 0 | L30: 0
A31: 1860 | B31: Meters (Smart Meters) | E31: 0 | G31: 0 | I31: 0 | J31: 0 | L31: 0
A32: 1905 | B32: Land | E32: 0 | G32: 0 | I32: 0 | J32: 0 | L32: 0
A33: 1908 | B33: Buildings & Fixtures | E33: 0 | G33: 0 | I33: 0 | J33: 0 | L33: 0
A34: 1910 | B34: Leasehold Improvements | E34: 0 | G34: 0 | I34: 0 | J34: 0 | L34: 0
A35: 1915 | B35: Office Furniture & Equipment (10 years) | E35: 0 | G35: 0 | I35: 0 | J35: 0 | L35: 0
A36: 1915 | B36: Office Furniture & Equipment (5 years) | E36: 0 | G36: 0 | I36: 0 | J36: 0 | L36: 0
A37: 1920 | B37: Computer Equipment - Hardware | E37: 0 | G37: 0 | I37: 0 | J37: 0 | L37: 0
A38: 1920 | B38: Computer Equip.-Hardware(Post Mar. 22/04) | E38: 0 | G38: 0 | I38: 0 | J38: 0 | L38: 0
A39: 1920 | B39: Computer Equip.-Hardware(Post Mar. 19/07) | E39: 0 | G39: 0 | I39: 0 | J39: 0 | L39: 0
A40: 1930 | B40: Transportation Equipment | E40: 0 | G40: 0 | I40: 0 | J40: 0 | L40: 0
A41: 1935 | B41: Stores Equipment | E41: 0 | G41: 0 | I41: 0 | J41: 0 | L41: 0
A42: 1940 | B42: Tools, Shop & Garage Equipment | E42: 0 | G42: 0 | I42: 0 | J42: 0 | L42: 0
A43: 1945 | B43: Measurement & Testing Equipment | E43: 0 | G43: 0 | I43: 0 | J43: 0 | L43: 0
A44: 1950 | B44: Power Operated Equipment | E44: 0 | G44: 0 | I44: 0 | J44: 0 | L44: 0
A45: 1955 | B45: Communications Equipment | E45: 0 | G45: 0 | I45: 0 | J45: 0 | L45: 0
A46: 1955 | B46: Communication Equipment (Smart Meters) | E46: 0 | G46: 0 | I46: 0 | J46: 0 | L46: 0
A47: 1960 | B47: Miscellaneous Equipment | E47: 0 | G47: 0 | I47: 0 | J47: 0 | L47: 0
A48: 1975 | B48: Load Management Controls Utility Premises | E48: 0 | G48: 0 | I48: 0 | J48: 0 | L48: 0
A49: 1980 | B49: System Supervisor Equipment | E49: 0 | G49: 0 | I49: 0 | J49: 0 | L49: 0
A50: 1985 | B50: Miscellaneous Fixed Assets | E50: 0 | G50: 0 | I50: 0 | J50: 0 | L50: 0
A51: 1995 | B51: Contributions & Grants | E51: 0 | G51: 0 | I51: 0 | J51: 0 | L51: 0
A52: etc. | E52: 0 | G52: 0 | I52: 0 | J52: 0 | L52: 0
E53: 0 | G53: 0 | I53: 0 | J53: 0 | L53: 0
B54: Total | C54: =SUM(C16:C53) -> 0 | D54: =SUM(D16:D53) -> 0 | E54: =SUM(E16:E53) -> 0 | F54: =SUM(F16:F53) -> 0 | G54: =SUM(G16:G53) -> 0 | J54: =SUM(J16:J53) -> 0 | K54: =SUM(K16:K53) -> 0 | L54: =SUM(L16:L53) -> 0
A56: Notes:
A58: 1 | B58: Board policy of the "half-year" rule - the applicant must ensure that additions in the year attract a half-year depreciation expense in the first year. Deviations from this standard practice must be supported in the application.
A59: 2 | B59: The applicant must provide an explanation of material variances in evidence
A61: General | B61: Applicants must provide a breakdown of depreciation and amortization expense in the above format for all relevant accounts. Asset Retirement Obligations (AROs), depreciation and accretion expense should be disclosed separately consistent with the Notes of historical Audited Financial Statements.

Sheet App.2-CB_MIFRS_DepExp_2011 (hidden)
N1: File Number: | O1: ='LDC Info'!$E$18 -> EB2012-0176
N2: Exhibit:
N3: Tab:
N4: Schedule:
N5: Page:
N7: Date:
A9: Appendix 2-CB
A10: Depreciation and Amortization Expense
A11: Assumes the applicant adopted IFRS for financial reporting purposes January 1, 2012
C12: Year | D12: 2011 | E12: MIFRS
A14: Account | B14: Description | C14: Opening NBV as at Jan 1, 2011 5 | D14: Additions | E14: Average Remaining Life of Opening NBV 4 | F14: Years (new additions only) 3 | G14: Depreciation Rate on New Additions | H14: Depreciation Expense on Opening NBV | I14: Depreciation Expense on Additions 1 | J14: 2011 Depreciation Expense | K14: 2011 Depreciation Expense per Appendix 2-B Fixed Assets, Column K (l) | L14: Variance 2 | M14: Depreciation Expense on 2011 Full Year Additions | N14: Less Depreciation Expense on Assets Fully Depreciated during the year (o) | O14: 2011 Full Year Depreciation 6
C15: (a) | D15: (d) | E15: (i) | F15: (f) | G15: (g) = 1 / (f) | H15: (j) = (a) / (i) | I15: (h)=((d)*0.5)/(f) | J15: (k) = (j) + (h) | L15: (m) = (k) - (l) | M15: (n) = (d)/(f) | O15: (p) = (j) + (n) - (o)
A16: 1611 | B16: Computer Software (Formally known as Account 1925) | G16: =IF(F16=0,0,1/F16) -> 0 | H16: =IF(E16=0,0,+C16/E16) -> 0 | I16: =IF(F16=0,0,+(D16*0.5)/F16) -> 0 | J16: =IF(ISERROR(+H16+I16), 0, +H16+I16) -> 0 | L16: =IF(ISERROR(+J16-K16), 0, +J16-K16) -> 0 | M16: =IF(F16=0,0,+(D16)/F16) -> 0 | O16: =IF(ISERROR(+M16+H16-N16), 0, +M16+H16-N16) -> 0
A17: 1612 | B17: Land Rights (Formally known as Account 1906) | G17: 0 | H17: 0 | I17: 0 | J17: 0 | L17: 0 | M17: 0 | O17: =IF(ISERROR(+M17+H17-N17), 0, +M17+H17-N17) -> 0
A18: 1805 | B18: Land | G18: 0 | H18: 0 | I18: 0 | J18: 0 | L18: 0 | M18: 0 | O18: 0
A19: 1808 | B19: Buildings | G19: 0 | H19: 0 | I19: 0 | J19: 0 | L19: 0 | M19: 0 | O19: 0
A20: 1810 | B20: Leasehold Improvements | G20: 0 | H20: 0 | I20: 0 | J20: 0 | L20: 0 | M20: 0 | O20: 0
A21: 1815 | B21: Transformer Station Equipment >50 kV | G21: 0 | H21: 0 | I21: 0 | J21: 0 | L21: 0 | M21: 0 | O21: 0
A22: 1820 | B22: Distribution Station Equipment <50 kV | G22: 0 | H22: 0 | I22: 0 | J22: 0 | L22: 0 | M22: 0 | O22: 0
A23: 1825 | B23: Storage Battery Equipment | G23: 0 | H23: 0 | I23: 0 | J23: 0 | L23: 0 | M23: 0 | O23: 0
A24: 1830 | B24: Poles, Towers & Fixtures | G24: 0 | H24: 0 | I24: 0 | J24: 0 | L24: 0 | M24: 0 | O24: 0
A25: 1835 | B25: Overhead Conductors & Devices | G25: 0 | H25: 0 | I25: 0 | J25: 0 | L25: 0 | M25: 0 | O25: 0
A26: 1840 | B26: Underground Conduit | G26: 0 | H26: 0 | I26: 0 | J26: 0 | L26: 0 | M26: 0 | O26: 0
A27: 1845 | B27: Underground Conductors & Devices | G27: 0 | H27: 0 | I27: 0 | J27: 0 | L27: 0 | M27: 0 | O27: 0
A28: 1850 | B28: Line Transformers | G28: 0 | H28: 0 | I28: 0 | J28: 0 | L28: 0 | M28: 0 | O28: 0
A29: 1855 | B29: Services (Overhead & Underground) | G29: 0 | H29: 0 | I29: 0 | J29: 0 | L29: 0 | M29: 0 | O29: 0
A30: 1860 | B30: Meters | G30: 0 | H30: 0 | I30: 0 | J30: 0 | L30: 0 | M30: 0 | O30: 0
A31: 1860 | B31: Meters (Smart Meters) | G31: 0 | H31: 0 | I31: 0 | J31: 0 | L31: 0 | M31: 0 | O31: 0
A32: 1905 | B32: Land | G32: 0 | H32: 0 | I32: 0 | J32: 0 | L32: 0 | M32: 0 | O32: 0
A33: 1908 | B33: Buildings & Fixtures | G33: 0 | H33: 0 | I33: 0 | J33: 0 | L33: 0 | M33: 0 | O33: 0
A34: 1910 | B34: Leasehold Improvements | G34: 0 | H34: 0 | I34: 0 | J34: 0 | L34: 0 | M34: 0 | O34: 0
A35: 1915 | B35: Office Furniture & Equipment (10 years) | G35: 0 | H35: 0 | I35: 0 | J35: 0 | L35: 0 | M35: 0 | O35: 0
A36: 1915 | B36: Office Furniture & Equipment (5 years) | G36: 0 | H36: 0 | I36: 0 | J36: 0 | L36: 0 | M36: 0 | O36: 0
A37: 1920 | B37: Computer Equipment - Hardware | G37: 0 | H37: 0 | I37: 0 | J37: 0 | L37: 0 | M37: 0 | O37: 0
A38: 1920 | B38: Computer Equip.-Hardware(Post Mar. 22/04) | G38: 0 | H38: 0 | I38: 0 | J38: 0 | L38: 0 | M38: 0 | O38: 0
A39: 1920 | B39: Computer Equip.-Hardware(Post Mar. 19/07) | G39: 0 | H39: 0 | I39: 0 | J39: 0 | L39: 0 | M39: 0 | O39: 0
A40: 1930 | B40: Transportation Equipment | G40: 0 | H40: 0 | I40: 0 | J40: 0 | L40: 0 | M40: 0 | O40: 0
A41: 1935 | B41: Stores Equipment | G41: 0 | H41: 0 | I41: 0 | J41: 0 | L41: 0 | M41: 0 | O41: 0
A42: 1940 | B42: Tools, Shop & Garage Equipment | G42: 0 | H42: 0 | I42: 0 | J42: 0 | L42: 0 | M42: 0 | O42: 0
A43: 1945 | B43: Measurement & Testing Equipment | G43: 0 | H43: 0 | I43: 0 | J43: 0 | L43: 0 | M43: 0 | O43: 0
A44: 1950 | B44: Power Operated Equipment | G44: 0 | H44: 0 | I44: 0 | J44: 0 | L44: 0 | M44: 0 | O44: 0
A45: 1955 | B45: Communications Equipment | G45: 0 | H45: 0 | I45: 0 | J45: 0 | L45: 0 | M45: 0 | O45: 0
A46: 1955 | B46: Communication Equipment (Smart Meters) | G46: 0 | H46: 0 | I46: 0 | J46: 0 | L46: 0 | M46: 0 | O46: 0
A47: 1960 | B47: Miscellaneous Equipment | G47: 0 | H47: 0 | I47: 0 | J47: 0 | L47: 0 | M47: 0 | O47: 0
A48: 1975 | B48: Load Management Controls Utility Premises | G48: 0 | H48: 0 | I48: 0 | J48: 0 | L48: 0 | M48: 0 | O48: 0
A49: 1980 | B49: System Supervisor Equipment | G49: 0 | H49: 0 | I49: 0 | J49: 0 | L49: 0 | M49: 0 | O49: 0
A50: 1985 | B50: Miscellaneous Fixed Assets | G50: 0 | H50: 0 | I50: 0 | J50: 0 | L50: 0 | M50: 0 | O50: 0
A51: 1995 | B51: Contributions & Grants | G51: 0 | H51: 0 | I51: 0 | J51: 0 | L51: 0 | M51: 0 | O51: 0
A52: etc. | G52: 0 | H52: 0 | I52: 0 | J52: 0 | L52: 0 | M52: 0 | O52: 0
G53: 0 | H53: 0 | I53: 0 | J53: 0 | L53: 0 | M53: 0 | O53: 0
B54: Total | C54: =SUM(C16:C53) -> 0 | D54: =SUM(D16:D53) -> 0 | H54: =SUM(H16:H53) -> 0 | I54: 0 | J54: 0 | K54: 0 | L54: 0 | M54: 0 | N54: =SUM(N16:N53) -> 0 | O54: 0
A56: Notes:
A58: 1 | B58: Board policy of the "half-year" rule - the applicant must ensure that additions in the year attract a half-year depreciation expense in the first year. Deviations from this standard practice must be supported in the application.
A59: 2 | B59: The applicant must provide an explanation of material variances in evidence
A60: 3 | B60: The applicant should ensure that the years for new additions of assets are the asset useful lives determined by management in accordance with IFRS.
A61: 4 | B61: A recalculation should be performed to determine the average remaining life of opening balance of assets (i.e. excluding 2011 additions) under IFRS. For example, Asset A had a useful life of 20 years under CGAAP. On January 1, 2011, the date of transition, Asset A was 3 years depreciated. As a result, Asset A would have a remaining service life of 17 years (20 years less 3 years) under CGAAP as of January 1, 2011. Due to the transition to IFRS, management re-assessed the asset useful lives under IFRS principles and concluded that the revised useful life of Asset A is now 30 years. Therefore, the average remaining useful life of opening balance of Asset A is determined to be 27 years (30 years less 3 years) under IFRS as of January 1, 2011.
A62: 5 | B62: NBV must exclude assets still on the books but which have been fully amortized or depreciated.
A63: 6 | B63: This column refers to the calculated full year depreciation but excludes the depreciation expense on assets fully depreciated during the year. This column is used for the purpose of calculating depreciation expense in the following year on the next worksheet.
A65: General: | B65: Applicants must provide a breakdown of depreciation and amortization expense in the above format for all relevant accounts. Asset Retirement Obligations (AROs), depreciation and accretion expense should be disclosed separately consistent with the Notes of historical Audited Financial Statements.

Sheet App.2-CC_MIFRS_DepExp_2012 (hidden)
J1: File Number: | K1: ='LDC Info'!$E$18 -> EB2012-0176
J2: Exhibit:
J3: Tab:
J4: Schedule:
J5: Page:
J7: Date:
A9: Appendix 2-CC
A10: Depreciation and Amortization Expense
A11: Assumes the applicant adopted IFRS for financial reporting purposes January 1, 2012
C12: 2012 | D12: MIFRS
A14: Account | B14: Description | C14: Additions | D14: Years (new additions only) | E14: Depreciation Rate on New Additions | F14: 2012 Depreciation Expense 1 | G14: 2012 Depreciation Expense per Apppendix 2-B Fixed Assets, Column K (l) | H14: Variance 2 | I14: Depreciation Expense on 2012 Full Year Additions | J14: Less Depreciation Expense on Assets Fully Depreciated during the year (o) | K14: 2012 Full Year Depreciation 3
C15: (d) | D15: (f) | E15: (g) = 1 / (f) | F15: (h)=2011 Full Year Deprecation + ((d)*0.5)/(f) | H15: (m) = (h) - (l) | I15: (n)=((d))/(f) | K15: (o) = 2011 Full Year Depreciation + (n) - (o)
A16: 1611 | B16: Computer Software (Formally known as Account 1925) | E16: =IF(D16=0,0,1/D16) -> 0 | F16: =IF(D16=0,+'App.2-CB_MIFRS_DepExp_2011'!O16,+'App.2-CB_MIFRS_DepExp_2011'!O16+((C16*0.5)/D16)) -> 0 | H16: =IF(ISERROR(+F16-G16), 0, +F16-G16) -> 0 | I16: =IF(D16=0,0,+(C16)/D16) -> 0 | K16: =IF(ISERROR(+I16+'App.2-CB_MIFRS_DepExp_2011'!O16-J16), 0, +I16+'App.2-CB_MIFRS_DepExp_2011'!O16-J16) -> 0
A17: 1612 | B17: Land Rights (Formally known as Account 1906) | E17: 0 | F17: =IF(D17=0,+'App.2-CB_MIFRS_DepExp_2011'!O17,+'App.2-CB_MIFRS_DepExp_2011'!O17+((C17*0.5)/D17)) -> 0 | H17: 0 | I17: 0 | K17: =IF(ISERROR(+I17+'App.2-CB_MIFRS_DepExp_2011'!O17-J17), 0, +I17+'App.2-CB_MIFRS_DepExp_2011'!O17-J17) -> 0
A18: 1805 | B18: Land | E18: 0 | F18: =IF(D18=0,+'App.2-CB_MIFRS_DepExp_2011'!O18,+'App.2-CB_MIFRS_DepExp_2011'!O18+((C18*0.5)/D18)) -> 0 | H18: 0 | I18: 0 | K18: =IF(ISERROR(+I18+'App.2-CB_MIFRS_DepExp_2011'!O18-J18), 0, +I18+'App.2-CB_MIFRS_DepExp_2011'!O18-J18) -> 0
A19: 1808 | B19: Buildings | E19: 0 | F19: =IF(D19=0,+'App.2-CB_MIFRS_DepExp_2011'!O19,+'App.2-CB_MIFRS_DepExp_2011'!O19+((C19*0.5)/D19)) -> 0 | H19: 0 | I19: 0 | K19: =IF(ISERROR(+I19+'App.2-CB_MIFRS_DepExp_2011'!O19-J19), 0, +I19+'App.2-CB_MIFRS_DepExp_2011'!O19-J19) -> 0
A20: 1810 | B20: Leasehold Improvements | E20: 0 | F20: =IF(D20=0,+'App.2-CB_MIFRS_DepExp_2011'!O20,+'App.2-CB_MIFRS_DepExp_2011'!O20+((C20*0.5)/D20)) -> 0 | H20: 0 | I20: 0 | K20: =IF(ISERROR(+I20+'App.2-CB_MIFRS_DepExp_2011'!O20-J20), 0, +I20+'App.2-CB_MIFRS_DepExp_2011'!O20-J20) -> 0
A21: 1815 | B21: Transformer Station Equipment >50 kV | E21: 0 | F21: =IF(D21=0,+'App.2-CB_MIFRS_DepExp_2011'!O21,+'App.2-CB_MIFRS_DepExp_2011'!O21+((C21*0.5)/D21)) -> 0 | H21: 0 | I21: 0 | K21: =IF(ISERROR(+I21+'App.2-CB_MIFRS_DepExp_2011'!O21-J21), 0, +I21+'App.2-CB_MIFRS_DepExp_2011'!O21-J21) -> 0
A22: 1820 | B22: Distribution Station Equipment <50 kV | E22: 0 | F22: =IF(D22=0,+'App.2-CB_MIFRS_DepExp_2011'!O22,+'App.2-CB_MIFRS_DepExp_2011'!O22+((C22*0.5)/D22)) -> 0 | H22: 0 | I22: 0 | K22: =IF(ISERROR(+I22+'App.2-CB_MIFRS_DepExp_2011'!O22-J22), 0, +I22+'App.2-CB_MIFRS_DepExp_2011'!O22-J22) -> 0
A23: 1825 | B23: Storage Battery Equipment | E23: 0 | F23: =IF(D23=0,+'App.2-CB_MIFRS_DepExp_2011'!O23,+'App.2-CB_MIFRS_DepExp_2011'!O23+((C23*0.5)/D23)) -> 0 | H23: 0 | I23: 0 | K23: =IF(ISERROR(+I23+'App.2-CB_MIFRS_DepExp_2011'!O23-J23), 0, +I23+'App.2-CB_MIFRS_DepExp_2011'!O23-J23) -> 0
A24: 1830 | B24: Poles, Towers & Fixtures | E24: 0 | F24: =IF(D24=0,+'App.2-CB_MIFRS_DepExp_2011'!O24,+'App.2-CB_MIFRS_DepExp_2011'!O24+((C24*0.5)/D24)) -> 0 | H24: 0 | I24: 0 | K24: =IF(ISERROR(+I24+'App.2-CB_MIFRS_DepExp_2011'!O24-J24), 0, +I24+'App.2-CB_MIFRS_DepExp_2011'!O24-J24) -> 0
A25: 1835 | B25: Overhead Conductors & Devices | E25: 0 | F25: =IF(D25=0,+'App.2-CB_MIFRS_DepExp_2011'!O25,+'App.2-CB_MIFRS_DepExp_2011'!O25+((C25*0.5)/D25)) -> 0 | H25: 0 | I25: 0 | K25: =IF(ISERROR(+I25+'App.2-CB_MIFRS_DepExp_2011'!O25-J25), 0, +I25+'App.2-CB_MIFRS_DepExp_2011'!O25-J25) -> 0
A26: 1840 | B26: Underground Conduit | E26: 0 | F26: =IF(D26=0,+'App.2-CB_MIFRS_DepExp_2011'!O26,+'App.2-CB_MIFRS_DepExp_2011'!O26+((C26*0.5)/D26)) -> 0 | H26: 0 | I26: 0 | K26: =IF(ISERROR(+I26+'App.2-CB_MIFRS_DepExp_2011'!O26-J26), 0, +I26+'App.2-CB_MIFRS_DepExp_2011'!O26-J26) -> 0
A27: 1845 | B27: Underground Conductors & Devices | E27: 0 | F27: =IF(D27=0,+'App.2-CB_MIFRS_DepExp_2011'!O27,+'App.2-CB_MIFRS_DepExp_2011'!O27+((C27*0.5)/D27)) -> 0 | H27: 0 | I27: 0 | K27: =IF(ISERROR(+I27+'App.2-CB_MIFRS_DepExp_2011'!O27-J27), 0, +I27+'App.2-CB_MIFRS_DepExp_2011'!O27-J27) -> 0
A28: 1850 | B28: Line Transformers | E28: 0 | F28: =IF(D28=0,+'App.2-CB_MIFRS_DepExp_2011'!O28,+'App.2-CB_MIFRS_DepExp_2011'!O28+((C28*0.5)/D28)) -> 0 | H28: 0 | I28: 0 | K28: =IF(ISERROR(+I28+'App.2-CB_MIFRS_DepExp_2011'!O28-J28), 0, +I28+'App.2-CB_MIFRS_DepExp_2011'!O28-J28) -> 0
A29: 1855 | B29: Services (Overhead & Underground) | E29: 0 | F29: =IF(D29=0,+'App.2-CB_MIFRS_DepExp_2011'!O29,+'App.2-CB_MIFRS_DepExp_2011'!O29+((C29*0.5)/D29)) -> 0 | H29: 0 | I29: 0 | K29: =IF(ISERROR(+I29+'App.2-CB_MIFRS_DepExp_2011'!O29-J29), 0, +I29+'App.2-CB_MIFRS_DepExp_2011'!O29-J29) -> 0
A30: 1860 | B30: Meters | E30: 0 | F30: =IF(D30=0,+'App.2-CB_MIFRS_DepExp_2011'!O30,+'App.2-CB_MIFRS_DepExp_2011'!O30+((C30*0.5)/D30)) -> 0 | H30: 0 | I30: 0 | K30: =IF(ISERROR(+I30+'App.2-CB_MIFRS_DepExp_2011'!O30-J30), 0, +I30+'App.2-CB_MIFRS_DepExp_2011'!O30-J30) -> 0
A31: 1860 | B31: Meters (Smart Meters) | E31: 0 | F31: =IF(D31=0,+'App.2-CB_MIFRS_DepExp_2011'!O31,+'App.2-CB_MIFRS_DepExp_2011'!O31+((C31*0.5)/D31)) -> 0 | H31: 0 | I31: 0 | K31: =IF(ISERROR(+I31+'App.2-CB_MIFRS_DepExp_2011'!O31-J31), 0, +I31+'App.2-CB_MIFRS_DepExp_2011'!O31-J31) -> 0
A32: 1905 | B32: Land | E32: 0 | F32: =IF(D32=0,+'App.2-CB_MIFRS_DepExp_2011'!O32,+'App.2-CB_MIFRS_DepExp_2011'!O32+((C32*0.5)/D32)) -> 0 | H32: 0 | I32: 0 | K32: =IF(ISERROR(+I32+'App.2-CB_MIFRS_DepExp_2011'!O32-J32), 0, +I32+'App.2-CB_MIFRS_DepExp_2011'!O32-J32) -> 0
A33: 1908 | B33: Buildings & Fixtures | E33: 0 | F33: =IF(D33=0,+'App.2-CB_MIFRS_DepExp_2011'!O33,+'App.2-CB_MIFRS_DepExp_2011'!O33+((C33*0.5)/D33)) -> 0 | H33: 0 | I33: 0 | K33: =IF(ISERROR(+I33+'App.2-CB_MIFRS_DepExp_2011'!O33-J33), 0, +I33+'App.2-CB_MIFRS_DepExp_2011'!O33-J33) -> 0
A34: 1910 | B34: Leasehold Improvements | E34: 0 | F34: =IF(D34=0,+'App.2-CB_MIFRS_DepExp_2011'!O34,+'App.2-CB_MIFRS_DepExp_2011'!O34+((C34*0.5)/D34)) -> 0 | H34: 0 | I34: 0 | K34: =IF(ISERROR(+I34+'App.2-CB_MIFRS_DepExp_2011'!O34-J34), 0, +I34+'App.2-CB_MIFRS_DepExp_2011'!O34-J34) -> 0
A35: 1915 | B35: Office Furniture & Equipment (10 years) | E35: 0 | F35: =IF(D35=0,+'App.2-CB_MIFRS_DepExp_2011'!O35,+'App.2-CB_MIFRS_DepExp_2011'!O35+((C35*0.5)/D35)) -> 0 | H35: 0 | I35: 0 | K35: =IF(ISERROR(+I35+'App.2-CB_MIFRS_DepExp_2011'!O35-J35), 0, +I35+'App.2-CB_MIFRS_DepExp_2011'!O35-J35) -> 0
A36: 1915 | B36: Office Furniture & Equipment (5 years) | E36: 0 | F36: =IF(D36=0,+'App.2-CB_MIFRS_DepExp_2011'!O36,+'App.2-CB_MIFRS_DepExp_2011'!O36+((C36*0.5)/D36)) -> 0 | H36: 0 | I36: 0 | K36: =IF(ISERROR(+I36+'App.2-CB_MIFRS_DepExp_2011'!O36-J36), 0, +I36+'App.2-CB_MIFRS_DepExp_2011'!O36-J36) -> 0
A37: 1920 | B37: Computer Equipment - Hardware | E37: 0 | F37: =IF(D37=0,+'App.2-CB_MIFRS_DepExp_2011'!O37,+'App.2-CB_MIFRS_DepExp_2011'!O37+((C37*0.5)/D37)) -> 0 | H37: 0 | I37: 0 | K37: =IF(ISERROR(+I37+'App.2-CB_MIFRS_DepExp_2011'!O37-J37), 0, +I37+'App.2-CB_MIFRS_DepExp_2011'!O37-J37) -> 0
A38: 1920 | B38: Computer Equip.-Hardware(Post Mar. 22/04) | E38: 0 | F38: =IF(D38=0,+'App.2-CB_MIFRS_DepExp_2011'!O38,+'App.2-CB_MIFRS_DepExp_2011'!O38+((C38*0.5)/D38)) -> 0 | H38: 0 | I38: 0 | K38: =IF(ISERROR(+I38+'App.2-CB_MIFRS_DepExp_2011'!O38-J38), 0, +I38+'App.2-CB_MIFRS_DepExp_2011'!O38-J38) -> 0
A39: 1920 | B39: Computer Equip.-Hardware(Post Mar. 19/07) | E39: 0 | F39: =IF(D39=0,+'App.2-CB_MIFRS_DepExp_2011'!O39,+'App.2-CB_MIFRS_DepExp_2011'!O39+((C39*0.5)/D39)) -> 0 | H39: 0 | I39: 0 | K39: =IF(ISERROR(+I39+'App.2-CB_MIFRS_DepExp_2011'!O39-J39), 0, +I39+'App.2-CB_MIFRS_DepExp_2011'!O39-J39) -> 0
A40: 1930 | B40: Transportation Equipment | E40: 0 | F40: =IF(D40=0,+'App.2-CB_MIFRS_DepExp_2011'!O40,+'App.2-CB_MIFRS_DepExp_2011'!O40+((C40*0.5)/D40)) -> 0 | H40: 0 | I40: 0 | K40: =IF(ISERROR(+I40+'App.2-CB_MIFRS_DepExp_2011'!O40-J40), 0, +I40+'App.2-CB_MIFRS_DepExp_2011'!O40-J40) -> 0
A41: 1935 | B41: Stores Equipment | E41: 0 | F41: =IF(D41=0,+'App.2-CB_MIFRS_DepExp_2011'!O41,+'App.2-CB_MIFRS_DepExp_2011'!O41+((C41*0.5)/D41)) -> 0 | H41: 0 | I41: 0 | K41: =IF(ISERROR(+I41+'App.2-CB_MIFRS_DepExp_2011'!O41-J41), 0, +I41+'App.2-CB_MIFRS_DepExp_2011'!O41-J41) -> 0
A42: 1940 | B42: Tools, Shop & Garage Equipment | E42: 0 | F42: =IF(D42=0,+'App.2-CB_MIFRS_DepExp_2011'!O42,+'App.2-CB_MIFRS_DepExp_2011'!O42+((C42*0.5)/D42)) -> 0 | H42: 0 | I42: 0 | K42: =IF(ISERROR(+I42+'App.2-CB_MIFRS_DepExp_2011'!O42-J42), 0, +I42+'App.2-CB_MIFRS_DepExp_2011'!O42-J42) -> 0
A43: 1945 | B43: Measurement & Testing Equipment | E43: 0 | F43: =IF(D43=0,+'App.2-CB_MIFRS_DepExp_2011'!O43,+'App.2-CB_MIFRS_DepExp_2011'!O43+((C43*0.5)/D43)) -> 0 | H43: 0 | I43: 0 | K43: =IF(ISERROR(+I43+'App.2-CB_MIFRS_DepExp_2011'!O43-J43), 0, +I43+'App.2-CB_MIFRS_DepExp_2011'!O43-J43) -> 0
A44: 1950 | B44: Power Operated Equipment | E44: 0 | F44: =IF(D44=0,+'App.2-CB_MIFRS_DepExp_2011'!O44,+'App.2-CB_MIFRS_DepExp_2011'!O44+((C44*0.5)/D44)) -> 0 | H44: 0 | I44: 0 | K44: =IF(ISERROR(+I44+'App.2-CB_MIFRS_DepExp_2011'!O44-J44), 0, +I44+'App.2-CB_MIFRS_DepExp_2011'!O44-J44) -> 0
A45: 1955 | B45: Communications Equipment | E45: 0 | F45: =IF(D45=0,+'App.2-CB_MIFRS_DepExp_2011'!O45,+'App.2-CB_MIFRS_DepExp_2011'!O45+((C45*0.5)/D45)) -> 0 | H45: 0 | I45: 0 | K45: =IF(ISERROR(+I45+'App.2-CB_MIFRS_DepExp_2011'!O45-J45), 0, +I45+'App.2-CB_MIFRS_DepExp_2011'!O45-J45) -> 0
A46: 1955 | B46: Communication Equipment (Smart Meters) | E46: 0 | F46: =IF(D46=0,+'App.2-CB_MIFRS_DepExp_2011'!O46,+'App.2-CB_MIFRS_DepExp_2011'!O46+((C46*0.5)/D46)) -> 0 | H46: 0 | I46: 0 | K46: =IF(ISERROR(+I46+'App.2-CB_MIFRS_DepExp_2011'!O46-J46), 0, +I46+'App.2-CB_MIFRS_DepExp_2011'!O46-J46) -> 0
A47: 1960 | B47: Miscellaneous Equipment | E47: 0 | F47: =IF(D47=0,+'App.2-CB_MIFRS_DepExp_2011'!O47,+'App.2-CB_MIFRS_DepExp_2011'!O47+((C47*0.5)/D47)) -> 0 | H47: 0 | I47: 0 | K47: =IF(ISERROR(+I47+'App.2-CB_MIFRS_DepExp_2011'!O47-J47), 0, +I47+'App.2-CB_MIFRS_DepExp_2011'!O47-J47) -> 0
A48: 1975 | B48: Load Management Controls Utility Premises | E48: 0 | F48: =IF(D48=0,+'App.2-CB_MIFRS_DepExp_2011'!O48,+'App.2-CB_MIFRS_DepExp_2011'!O48+((C48*0.5)/D48)) -> 0 | H48: 0 | I48: 0 | K48: =IF(ISERROR(+I48+'App.2-CB_MIFRS_DepExp_2011'!O48-J48), 0, +I48+'App.2-CB_MIFRS_DepExp_2011'!O48-J48) -> 0
A49: 1980 | B49: System Supervisor Equipment | E49: 0 | F49: =IF(D49=0,+'App.2-CB_MIFRS_DepExp_2011'!O49,+'App.2-CB_MIFRS_DepExp_2011'!O49+((C49*0.5)/D49)) -> 0 | H49: 0 | I49: 0 | K49: =IF(ISERROR(+I49+'App.2-CB_MIFRS_DepExp_2011'!O49-J49), 0, +I49+'App.2-CB_MIFRS_DepExp_2011'!O49-J49) -> 0
A50: 1985 | B50: Miscellaneous Fixed Assets | E50: 0 | F50: =IF(D50=0,+'App.2-CB_MIFRS_DepExp_2011'!O50,+'App.2-CB_MIFRS_DepExp_2011'!O50+((C50*0.5)/D50)) -> 0 | H50: 0 | I50: 0 | K50: =IF(ISERROR(+I50+'App.2-CB_MIFRS_DepExp_2011'!O50-J50), 0, +I50+'App.2-CB_MIFRS_DepExp_2011'!O50-J50) -> 0
A51: 1995 | B51: Contributions & Grants | E51: 0 | F51: =IF(D51=0,+'App.2-CB_MIFRS_DepExp_2011'!O51,+'App.2-CB_MIFRS_DepExp_2011'!O51+((C51*0.5)/D51)) -> 0 | H51: 0 | I51: 0 | K51: =IF(ISERROR(+I51+'App.2-CB_MIFRS_DepExp_2011'!O51-J51), 0, +I51+'App.2-CB_MIFRS_DepExp_2011'!O51-J51) -> 0
A52: etc. | E52: 0 | F52: =IF(D52=0,+'App.2-CB_MIFRS_DepExp_2011'!O52,+'App.2-CB_MIFRS_DepExp_2011'!O52+((C52*0.5)/D52)) -> 0 | H52: 0 | I52: 0 | K52: =IF(ISERROR(+I52+'App.2-CB_MIFRS_DepExp_2011'!O52-J52), 0, +I52+'App.2-CB_MIFRS_DepExp_2011'!O52-J52) -> 0
E53: 0 | F53: =IF(D53=0,+'App.2-CB_MIFRS_DepExp_2011'!O53,+'App.2-CB_MIFRS_DepExp_2011'!O53+((C53*0.5)/D53)) -> 0 | H53: 0 | I53: 0 | K53: =IF(ISERROR(+I53+'App.2-CB_MIFRS_DepExp_2011'!O53-J53), 0, +I53+'App.2-CB_MIFRS_DepExp_2011'!O53-J53) -> 0
B54: Total | C54: =SUM(C16:C53) -> 0 | F54: =SUM(F16:F53) -> 0 | G54: 0 | H54: 0 | I54: 0 | J54: 0 | K54: 0
A56: Notes:
A57: 1 | B57: Board policy of the "half-year" rule - the applicant must ensure that additions in the year attract a half-year depreciation expense in the first year. Deviations from this standard practice must be supported in the application.
A58: 2 | B58: The applicant must provide an explanation of material variances in evidence
A59: 3 | B59: This column refers to the calculated full year depreciation but excludes the depreciation expense on assets fully depreciated during the year. This column is used for the purpose of calculating depreciation expense in the following year on the next worksheet.
A61: General: | B61: Applicants must provide a breakdown of depreciation and amortization expense in the above format for all relevant accounts. Asset Retirement Obligations (AROs), depreciation and accretion expense should be disclosed separately consistent with the Notes of historical Audited Financial Statements.

Sheet App.2-CD_MIFRS_DepExp_2013 (hidden)
G1: File Number: | H1: ='LDC Info'!$E$18 -> EB2012-0176
G2: Exhibit:
G3: Tab:
G4: Schedule:
G5: Page:
G7: Date:
A9: Appendix 2-CD
A10: Depreciation and Amortization Expense
A11: Assumes the applicant adopted IFRS for financial reporting purposes January 1, 2012
C12: 2013 | D12: MIFRS
A14: Account | B14: Description | C14: Additions | D14: Years (new additions only) | E14: Depreciation Rate on New Additions | F14: 2013 Depreciation Expense 1 | G14: 2013 Depreciation Expense per Appendix 2-B Fixed Assets, Column K (l) | H14: Variance 2
C15: (d) | D15: (f) | E15: (g) = 1 / (f) | F15: (h)=2012 Full Year Depreciation + ((d)*0.5)/(f) | H15: (m) = (h) - (l)
A16: 1611 | B16: Computer Software (Formally known as Account 1925) | E16: =IF(D16=0,0,1/D16) -> 0 | F16: =IF(D16=0,'App.2-CC_MIFRS_DepExp_2012'!K16,+'App.2-CC_MIFRS_DepExp_2012'!K16+((C16*0.5)/D16)) -> 0 | H16: =IF(ISERROR(+F16-G16), 0, +F16-G16) -> 0
A17: 1612 | B17: Land Rights (Formally known as Account 1906) | E17: 0 | F17: =IF(D17=0,'App.2-CC_MIFRS_DepExp_2012'!K17,+'App.2-CC_MIFRS_DepExp_2012'!K17+((C17*0.5)/D17)) -> 0 | H17: 0
A18: 1805 | B18: Land | E18: 0 | F18: =IF(D18=0,'App.2-CC_MIFRS_DepExp_2012'!K18,+'App.2-CC_MIFRS_DepExp_2012'!K18+((C18*0.5)/D18)) -> 0 | H18: 0
A19: 1808 | B19: Buildings | E19: 0 | F19: =IF(D19=0,'App.2-CC_MIFRS_DepExp_2012'!K19,+'App.2-CC_MIFRS_DepExp_2012'!K19+((C19*0.5)/D19)) -> 0 | H19: 0
A20: 1810 | B20: Leasehold Improvements | E20: 0 | F20: =IF(D20=0,'App.2-CC_MIFRS_DepExp_2012'!K20,+'App.2-CC_MIFRS_DepExp_2012'!K20+((C20*0.5)/D20)) -> 0 | H20: 0
A21: 1815 | B21: Transformer Station Equipment >50 kV | E21: 0 | F21: =IF(D21=0,'App.2-CC_MIFRS_DepExp_2012'!K21,+'App.2-CC_MIFRS_DepExp_2012'!K21+((C21*0.5)/D21)) -> 0 | H21: 0
A22: 1820 | B22: Distribution Station Equipment <50 kV | E22: 0 | F22: =IF(D22=0,'App.2-CC_MIFRS_DepExp_2012'!K22,+'App.2-CC_MIFRS_DepExp_2012'!K22+((C22*0.5)/D22)) -> 0 | H22: 0
A23: 1825 | B23: Storage Battery Equipment | E23: 0 | F23: =IF(D23=0,'App.2-CC_MIFRS_DepExp_2012'!K23,+'App.2-CC_MIFRS_DepExp_2012'!K23+((C23*0.5)/D23)) -> 0 | H23: 0
A24: 1830 | B24: Poles, Towers & Fixtures | E24: 0 | F24: =IF(D24=0,'App.2-CC_MIFRS_DepExp_2012'!K24,+'App.2-CC_MIFRS_DepExp_2012'!K24+((C24*0.5)/D24)) -> 0 | H24: 0
A25: 1835 | B25: Overhead Conductors & Devices | E25: 0 | F25: =IF(D25=0,'App.2-CC_MIFRS_DepExp_2012'!K25,+'App.2-CC_MIFRS_DepExp_2012'!K25+((C25*0.5)/D25)) -> 0 | H25: 0
A26: 1840 | B26: Underground Conduit | E26: 0 | F26: =IF(D26=0,'App.2-CC_MIFRS_DepExp_2012'!K26,+'App.2-CC_MIFRS_DepExp_2012'!K26+((C26*0.5)/D26)) -> 0 | H26: 0
A27: 1845 | B27: Underground Conductors & Devices | E27: 0 | F27: =IF(D27=0,'App.2-CC_MIFRS_DepExp_2012'!K27,+'App.2-CC_MIFRS_DepExp_2012'!K27+((C27*0.5)/D27)) -> 0 | H27: 0
A28: 1850 | B28: Line Transformers | E28: 0 | F28: =IF(D28=0,'App.2-CC_MIFRS_DepExp_2012'!K28,+'App.2-CC_MIFRS_DepExp_2012'!K28+((C28*0.5)/D28)) -> 0 | H28: 0
A29: 1855 | B29: Services (Overhead & Underground) | E29: 0 | F29: =IF(D29=0,'App.2-CC_MIFRS_DepExp_2012'!K29,+'App.2-CC_MIFRS_DepExp_2012'!K29+((C29*0.5)/D29)) -> 0 | H29: 0
A30: 1860 | B30: Meters | E30: 0 | F30: =IF(D30=0,'App.2-CC_MIFRS_DepExp_2012'!K30,+'App.2-CC_MIFRS_DepExp_2012'!K30+((C30*0.5)/D30)) -> 0 | H30: 0
A31: 1860 | B31: Meters (Smart Meters) | E31: 0 | F31: =IF(D31=0,'App.2-CC_MIFRS_DepExp_2012'!K31,+'App.2-CC_MIFRS_DepExp_2012'!K31+((C31*0.5)/D31)) -> 0 | H31: 0
A32: 1905 | B32: Land | E32: 0 | F32: =IF(D32=0,'App.2-CC_MIFRS_DepExp_2012'!K32,+'App.2-CC_MIFRS_DepExp_2012'!K32+((C32*0.5)/D32)) -> 0 | H32: 0
A33: 1908 | B33: Buildings & Fixtures | E33: 0 | F33: =IF(D33=0,'App.2-CC_MIFRS_DepExp_2012'!K33,+'App.2-CC_MIFRS_DepExp_2012'!K33+((C33*0.5)/D33)) -> 0 | H33: 0
A34: 1910 | B34: Leasehold Improvements | E34: 0 | F34: =IF(D34=0,'App.2-CC_MIFRS_DepExp_2012'!K34,+'App.2-CC_MIFRS_DepExp_2012'!K34+((C34*0.5)/D34)) -> 0 | H34: 0
A35: 1915 | B35: Office Furniture & Equipment (10 years) | E35: 0 | F35: =IF(D35=0,'App.2-CC_MIFRS_DepExp_2012'!K35,+'App.2-CC_MIFRS_DepExp_2012'!K35+((C35*0.5)/D35)) -> 0 | H35: 0
A36: 1915 | B36: Office Furniture & Equipment (5 years) | E36: 0 | F36: =IF(D36=0,'App.2-CC_MIFRS_DepExp_2012'!K36,+'App.2-CC_MIFRS_DepExp_2012'!K36+((C36*0.5)/D36)) -> 0 | H36: 0
A37: 1920 | B37: Computer Equipment - Hardware | E37: 0 | F37: =IF(D37=0,'App.2-CC_MIFRS_DepExp_2012'!K37,+'App.2-CC_MIFRS_DepExp_2012'!K37+((C37*0.5)/D37)) -> 0 | H37: 0
A38: 1920 | B38: Computer Equip.-Hardware(Post Mar. 22/04) | E38: 0 | F38: =IF(D38=0,'App.2-CC_MIFRS_DepExp_2012'!K38,+'App.2-CC_MIFRS_DepExp_2012'!K38+((C38*0.5)/D38)) -> 0 | H38: 0
A39: 1920 | B39: Computer Equip.-Hardware(Post Mar. 19/07) | E39: 0 | F39: =IF(D39=0,'App.2-CC_MIFRS_DepExp_2012'!K39,+'App.2-CC_MIFRS_DepExp_2012'!K39+((C39*0.5)/D39)) -> 0 | H39: 0
A40: 1930 | B40: Transportation Equipment | E40: 0 | F40: =IF(D40=0,'App.2-CC_MIFRS_DepExp_2012'!K40,+'App.2-CC_MIFRS_DepExp_2012'!K40+((C40*0.5)/D40)) -> 0 | H40: 0
A41: 1935 | B41: Stores Equipment | E41: 0 | F41: =IF(D41=0,'App.2-CC_MIFRS_DepExp_2012'!K41,+'App.2-CC_MIFRS_DepExp_2012'!K41+((C41*0.5)/D41)) -> 0 | H41: 0
A42: 1940 | B42: Tools, Shop & Garage Equipment | E42: 0 | F42: =IF(D42=0,'App.2-CC_MIFRS_DepExp_2012'!K42,+'App.2-CC_MIFRS_DepExp_2012'!K42+((C42*0.5)/D42)) -> 0 | H42: 0
A43: 1945 | B43: Measurement & Testing Equipment | E43: 0 | F43: =IF(D43=0,'App.2-CC_MIFRS_DepExp_2012'!K43,+'App.2-CC_MIFRS_DepExp_2012'!K43+((C43*0.5)/D43)) -> 0 | H43: 0
A44: 1950 | B44: Power Operated Equipment | E44: 0 | F44: =IF(D44=0,'App.2-CC_MIFRS_DepExp_2012'!K44,+'App.2-CC_MIFRS_DepExp_2012'!K44+((C44*0.5)/D44)) -> 0 | H44: 0
A45: 1955 | B45: Communications Equipment | E45: 0 | F45: =IF(D45=0,'App.2-CC_MIFRS_DepExp_2012'!K45,+'App.2-CC_MIFRS_DepExp_2012'!K45+((C45*0.5)/D45)) -> 0 | H45: 0
A46: 1955 | B46: Communication Equipment (Smart Meters) | E46: 0 | F46: =IF(D46=0,'App.2-CC_MIFRS_DepExp_2012'!K46,+'App.2-CC_MIFRS_DepExp_2012'!K46+((C46*0.5)/D46)) -> 0 | H46: 0
A47: 1960 | B47: Miscellaneous Equipment | E47: 0 | F47: =IF(D47=0,'App.2-CC_MIFRS_DepExp_2012'!K47,+'App.2-CC_MIFRS_DepExp_2012'!K47+((C47*0.5)/D47)) -> 0 | H47: 0
A48: 1975 | B48: Load Management Controls Utility Premises | E48: 0 | F48: =IF(D48=0,'App.2-CC_MIFRS_DepExp_2012'!K48,+'App.2-CC_MIFRS_DepExp_2012'!K48+((C48*0.5)/D48)) -> 0 | H48: 0
A49: 1980 | B49: System Supervisor Equipment | E49: 0 | F49: =IF(D49=0,'App.2-CC_MIFRS_DepExp_2012'!K49,+'App.2-CC_MIFRS_DepExp_2012'!K49+((C49*0.5)/D49)) -> 0 | H49: 0
A50: 1985 | B50: Miscellaneous Fixed Assets | E50: 0 | F50: =IF(D50=0,'App.2-CC_MIFRS_DepExp_2012'!K50,+'App.2-CC_MIFRS_DepExp_2012'!K50+((C50*0.5)/D50)) -> 0 | H50: 0
A51: 1995 | B51: Contributions & Grants | E51: 0 | F51: =IF(D51=0,'App.2-CC_MIFRS_DepExp_2012'!K51,+'App.2-CC_MIFRS_DepExp_2012'!K51+((C51*0.5)/D51)) -> 0 | H51: 0
A52: etc. | E52: 0 | F52: =IF(D52=0,'App.2-CC_MIFRS_DepExp_2012'!K52,+'App.2-CC_MIFRS_DepExp_2012'!K52+((C52*0.5)/D52)) -> 0 | H52: 0
E53: 0 | F53: =IF(D53=0,'App.2-CC_MIFRS_DepExp_2012'!K53,+'App.2-CC_MIFRS_DepExp_2012'!K53+((C53*0.5)/D53)) -> 0 | H53: 0
B54: Total | C54: =SUM(C16:C53) -> 0 | F54: =SUM(F16:F53) -> 0 | G54: =SUM(G16:G53) -> 0 | H54: =SUM(H16:H53) -> 0
B55: Depreciation expense adjustment resulting from amortization of Account 1575 | F55: 0
B56: Total Depreciation expense to be included in the test year revenue requirement | F56: =+F54+F55 -> 0
A57: Notes:
A58: 1 | B58: Board policy of the "half-year" rule - the applicant must ensure that additions in the year attract a half-year depreciation expense in the first year. Deviations from this standard practice must be supported in the application.
A59: 2 | B59: The applicant must provide an explanation of material variances in evidence
A61: General: | B61: Applicants must provide a breakdown of depreciation and amortization expense in the above format for all relevant accounts. Asset Retirement Obligations (AROs), depreciation and accretion expense should be disclosed separately consistent with the Notes of historical Audited Financial Statements.

Sheet App.2-CE_CGAAP_DepExp_2011
K1: File Number: | L1: ='LDC Info'!$E$18 -> EB2012-0176
K2: Exhibit:
K3: Tab:
K4: Schedule:
K5: Page:
K7: Date:
A9: Appendix 2-CE
A10: Depreciation and Amortization Expense
A11: Assumes the applicant adopted IFRS for financial reporting purposes January 1, 2013
C12: Year | D12: 2011 | E12: CGAAP
A14: Account | B14: Description | C14: Opening Regulatory Gross PP&E as at Jan 1, 2011 | D14: Less Fully Depreciated | E14: Net for Depreciation | F14: Additions | G14: Total for Depreciation | H14: Years | I14: Depreciation Rate | J14: 2011 Depreciation Expense | K14: 2011 Depreciation Expense per Appendix 2-B Fixed Assets, Column K (l) | L14: Variance 2
C15: (a) | D15: (b) | E15: (c) | F15: (d) | G15: (e) = (c) + ½ x (d) 1 | H15: (f) | I15: (g) = 1 / (f) | J15: (h) = (e) / (f) | L15: (m) = (h) - (l)
A16: 1611 | B16: Computer Software (Formally known as Account 1925) | C16: =+'App.2-B_Fixed Asset Cont 2011'!E16 -> 0 | E16: =C16-D16 -> 0 | F16: =+'App.2-B_Fixed Asset Cont 2011'!F16 -> 0 | G16: =E16+0.5*F16 -> 0 | I16: =IF(H16=0,"",1/H16) ->  | J16: =IF(H16=0,0,G16/H16) -> 0 | K16: =+'App.2-B_Fixed Asset Cont 2011'!K16 -> 0 | L16: =IF(ISERROR(+J16+K16), "", +J16+K16) -> 0
A17: 1612 | B17: Land Rights (Formally known as Account 1906) | C17: =+'App.2-B_Fixed Asset Cont 2011'!E17 -> 0 | E17: =C17-D17 -> 0 | F17: =+'App.2-B_Fixed Asset Cont 2011'!F17 -> 0 | G17: =E17+0.5*F17 -> 0 | J17: 0 | K17: =+'App.2-B_Fixed Asset Cont 2011'!K17 -> 0 | L17: =IF(ISERROR(+J17+K17), "", +J17+K17) -> 0
A18: 1805 | B18: Land | C18: =+'App.2-B_Fixed Asset Cont 2011'!E18 -> 227768.86 | E18: 227768.86 | F18: =+'App.2-B_Fixed Asset Cont 2011'!F18 -> 0 | G18: 227768.86 | J18: 0 | K18: =+'App.2-B_Fixed Asset Cont 2011'!K18 -> 0 | L18: =IF(ISERROR(+J18+K18), "", +J18+K18) -> 0
A19: 1808 | B19: Buildings | C19: =+'App.2-B_Fixed Asset Cont 2011'!E19 -> 2486318 | E19: 2486318 | F19: =+'App.2-B_Fixed Asset Cont 2011'!F19 -> 0 | G19: 2486318 | H19: 50 | I19: 0.02 | J19: 49726.36 | K19: =+'App.2-B_Fixed Asset Cont 2011'!K19 -> -49886.67 | L19: =IF(ISERROR(+J19+K19), "", +J19+K19) -> -160.31
A20: 1810 | B20: Leasehold Improvements | C20: =+'App.2-B_Fixed Asset Cont 2011'!E20 -> 0 | E20: 0 | F20: =+'App.2-B_Fixed Asset Cont 2011'!F20 -> 0 | G20: 0 | J20: 0 | K20: =+'App.2-B_Fixed Asset Cont 2011'!K20 -> 0 | L20: =IF(ISERROR(+J20+K20), "", +J20+K20) -> 0
A21: 1815 | B21: Transformer Station Equipment >50 kV | C21: =+'App.2-B_Fixed Asset Cont 2011'!E21 -> 0 | E21: 0 | F21: =+'App.2-B_Fixed Asset Cont 2011'!F21 -> 0 | G21: 0 | J21: 0 | K21: =+'App.2-B_Fixed Asset Cont 2011'!K21 -> 0 | L21: 0
A22: 1820 | B22: Distribution Station Equipment <50 kV | C22: =+'App.2-B_Fixed Asset Cont 2011'!E22 -> 3818489.54 | E22: 3818489.54 | F22: =+'App.2-B_Fixed Asset Cont 2011'!F22 -> 450639.48 | G22: 4043809.28 | H22: 30 | I22: 0.03333333333 | J22: 134793.6427 | K22: =+'App.2-B_Fixed Asset Cont 2011'!K22 -> -136439.37 | L22: -1645.727333
A23: 1825 | B23: Storage Battery Equipment | C23: =+'App.2-B_Fixed Asset Cont 2011'!E23 -> 0 | E23: 0 | F23: =+'App.2-B_Fixed Asset Cont 2011'!F23 -> 0 | G23: 0 | J23: 0 | K23: =+'App.2-B_Fixed Asset Cont 2011'!K23 -> 0 | L23: 0
A24: 1830 | B24: Poles, Towers & Fixtures | C24: =+'App.2-B_Fixed Asset Cont 2011'!E24 -> 6563767.39 | E24: 6563767.39 | F24: =+'App.2-B_Fixed Asset Cont 2011'!F24 -> 542315.17 | G24: 6834924.975 | H24: 23 | I24: 0.04347826087 | J24: 297170.6511 | K24: =+'App.2-B_Fixed Asset Cont 2011'!K24 -> -294873 | L24: 2297.651087
A25: 1835 | B25: Overhead Conductors & Devices | C25: =+'App.2-B_Fixed Asset Cont 2011'!E25 -> 9073534.28 | E25: 9073534.28 | F25: =+'App.2-B_Fixed Asset Cont 2011'!F25 -> 673323.17 | G25: 9410195.865 | H25: 23 | I25: 0.04347826087 | J25: 409138.9507 | K25: =+'App.2-B_Fixed Asset Cont 2011'!K25 -> -411444.53 | L25: -2305.579348
A26: 1840 | B26: Underground Conduit | C26: =+'App.2-B_Fixed Asset Cont 2011'!E26 -> 2706285.59 | E26: 2706285.59 | F26: =+'App.2-B_Fixed Asset Cont 2011'!F26 -> 338350.33 | G26: 2875460.755 | H26: 23 | I26: 0.04347826087 | J26: 125020.0328 | K26: =+'App.2-B_Fixed Asset Cont 2011'!K26 -> -124188.43 | L26: 831.6028261
A27: 1845 | B27: Underground Conductors & Devices | C27: =+'App.2-B_Fixed Asset Cont 2011'!E27 -> 8297546.35 | E27: 8297546.35 | F27: =+'App.2-B_Fixed Asset Cont 2011'!F27 -> 551064.44 | G27: 8573078.57 | H27: 23 | I27: 0.04347826087 | J27: 372742.5465 | K27: =+'App.2-B_Fixed Asset Cont 2011'!K27 -> -372006.35 | L27: 736.1965217
A28: 1850 | B28: Line Transformers | C28: =+'App.2-B_Fixed Asset Cont 2011'!E28 -> 7500290.76 | E28: 7500290.76 | F28: =+'App.2-B_Fixed Asset Cont 2011'!F28 -> 507269.99 | G28: 7753925.755 | H28: 23 | I28: 0.04347826087 | J28: 337127.2067 | K28: =+'App.2-B_Fixed Asset Cont 2011'!K28 -> -338711.37 | L28: -1584.163261
A29: 1855 | B29: Services (Overhead & Underground) | C29: =+'App.2-B_Fixed Asset Cont 2011'!E29 -> 3957038.32 | E29: 3957038.32 | F29: =+'App.2-B_Fixed Asset Cont 2011'!F29 -> 473443.88 | G29: 4193760.26 | H29: 23.5 | I29: 0.04255319149 | J29: 178457.8834 | K29: =+'App.2-B_Fixed Asset Cont 2011'!K29 -> -178825.3 | L29: -367.4165957
A30: 1860 | B30: Meters | C30: =+'App.2-B_Fixed Asset Cont 2011'!E30 -> 1820049.54 | D30: 305370 | E30: 1514679.54 | F30: =+'App.2-B_Fixed Asset Cont 2011'!F30 -> 64884 | G30: 1547121.54 | H30: 24.5 | I30: 0.04081632653 | J30: 63147.81796 | K30: =+'App.2-B_Fixed Asset Cont 2011'!K30 -> -61785 | L30: 1362.817959
A31: 1860 | B31: Meters (Smart Meters) | C31: =+'App.2-B_Fixed Asset Cont 2011'!E31 -> 0 | E31: 0 | F31: =+'App.2-B_Fixed Asset Cont 2011'!F31 -> 105634 | G31: 52817 | H31: 25 | I31: 0.04 | J31: 2112.68 | K31: =+'App.2-B_Fixed Asset Cont 2011'!K31 -> -2150.23 | L31: -37.55
A32: 1905 | B32: Land | C32: =+'App.2-B_Fixed Asset Cont 2011'!E32 -> 0 | E32: 0 | F32: =+'App.2-B_Fixed Asset Cont 2011'!F32 -> 0 | G32: 0 | J32: 0 | K32: =+'App.2-B_Fixed Asset Cont 2011'!K32 -> 0 | L32: 0
A33: 1908 | B33: Buildings & Fixtures | C33: =+'App.2-B_Fixed Asset Cont 2011'!E33 -> 0 | E33: 0 | F33: =+'App.2-B_Fixed Asset Cont 2011'!F33 -> 0 | G33: 0 | J33: 0 | K33: =+'App.2-B_Fixed Asset Cont 2011'!K33 -> 0 | L33: 0
A34: 1910 | B34: Leasehold Improvements | C34: =+'App.2-B_Fixed Asset Cont 2011'!E34 -> 0 | E34: 0 | F34: =+'App.2-B_Fixed Asset Cont 2011'!F34 -> 0 | G34: 0 | J34: 0 | K34: =+'App.2-B_Fixed Asset Cont 2011'!K34 -> 0 | L34: 0
A35: 1915 | B35: Office Furniture & Equipment (10 years) | C35: =+'App.2-B_Fixed Asset Cont 2011'!E35 -> 251887.35 | D35: 111863 | E35: 140024.35 | F35: =+'App.2-B_Fixed Asset Cont 2011'!F35 -> 10588.8 | G35: 145318.75 | H35: 10 | I35: 0.1 | J35: 14531.875 | K35: =+'App.2-B_Fixed Asset Cont 2011'!K35 -> -14530.6 | L35: 1.275
A36: 1915 | B36: Office Furniture & Equipment (5 years) | C36: =+'App.2-B_Fixed Asset Cont 2011'!E36 -> 0 | E36: 0 | F36: =+'App.2-B_Fixed Asset Cont 2011'!F36 -> 0 | G36: 0 | J36: 0 | K36: =+'App.2-B_Fixed Asset Cont 2011'!K36 -> 0 | L36: 0
A37: 1920 | B37: Computer Equipment - Hardware | C37: =+'App.2-B_Fixed Asset Cont 2011'!E37 -> 275946.03 | D37: 275946 | E37: 0.02999999997 | F37: =+'App.2-B_Fixed Asset Cont 2011'!F37 -> 0 | G37: 0.02999999997 | H37: 5 | I37: 0.2 | J37: 0.005999999994 | K37: =+'App.2-B_Fixed Asset Cont 2011'!K37 -> 0 | L37: 0.005999999994
A38: 1920 | B38: Computer Equip.-Hardware(Post Mar. 22/04) | C38: =+'App.2-B_Fixed Asset Cont 2011'!E38 -> 52211.63 | D38: 52212 | E38: -0.37 | F38: =+'App.2-B_Fixed Asset Cont 2011'!F38 -> 0 | G38: -0.37 | H38: 5 | I38: 0.2 | J38: -0.074 | K38: =+'App.2-B_Fixed Asset Cont 2011'!K38 -> 0 | L38: -0.074
A39: 1920 | B39: Computer Equip.-Hardware(Post Mar. 19/07) | C39: =+'App.2-B_Fixed Asset Cont 2011'!E39 -> 108451.22 | E39: 108451.22 | F39: =+'App.2-B_Fixed Asset Cont 2011'!F39 -> 45385.48 | G39: 131143.96 | H39: 5 | I39: 0.2 | J39: 26228.792 | K39: =+'App.2-B_Fixed Asset Cont 2011'!K39 -> -26228.24 | L39: 0.552
A40: 1925 | B40: Computer Software (Formally known as Account 1925) | C40: =+'App.2-B_Fixed Asset Cont 2011'!E40 -> 854691.24 | D40: =677090+24891 -> 701981 | E40: 152710.24 | F40: =+'App.2-B_Fixed Asset Cont 2011'!F40 -> 89764.83 | G40: 197592.655 | H40: 3 | I40: 0.3333333333 | J40: 65864.21833 | K40: =+'App.2-B_Fixed Asset Cont 2011'!K40 -> -65863.26 | L40: 0.9583333333
A41: 1930 | B41: Transportation Equipment | C41: =+'App.2-B_Fixed Asset Cont 2011'!E41 -> 1838671.03 | D41: =369181+138750 -> 507931 | E41: 1330740.03 | F41: =+'App.2-B_Fixed Asset Cont 2011'!F41 -> 284250 | G41: 1472865.03 | H41: 8 | I41: 0.125 | J41: 184108.1288 | K41: =+'App.2-B_Fixed Asset Cont 2011'!K41 -> -184108.13 | L41: -0.001250000001
A42: 1935 | B42: Stores Equipment | C42: =+'App.2-B_Fixed Asset Cont 2011'!E42 -> 90937.21 | D42: =2078+5900 -> 7978 | E42: 82959.21 | F42: =+'App.2-B_Fixed Asset Cont 2011'!F42 -> 0 | G42: 82959.21 | H42: 10 | I42: 0.1 | J42: 8295.921 | K42: =+'App.2-B_Fixed Asset Cont 2011'!K42 -> -8295.89 | L42: 0.031
A43: 1940 | B43: Tools, Shop & Garage Equipment | C43: =+'App.2-B_Fixed Asset Cont 2011'!E43 -> 278276.02 | D43: 102262 | E43: 176014.02 | F43: =+'App.2-B_Fixed Asset Cont 2011'!F43 -> 18504.95 | G43: 185266.495 | H43: 10 | I43: 0.1 | J43: 18526.6495 | K43: =+'App.2-B_Fixed Asset Cont 2011'!K43 -> -18526.1 | L43: 0.5495
A44: 1945 | B44: Measurement & Testing Equipment | C44: =+'App.2-B_Fixed Asset Cont 2011'!E44 -> 63138.5 | E44: 63138.5 | F44: =+'App.2-B_Fixed Asset Cont 2011'!F44 -> 4405.08 | G44: 65341.04 | H44: 10 | I44: 0.1 | J44: 6534.104 | K44: =+'App.2-B_Fixed Asset Cont 2011'!K44 -> -6533.03 | L44: 1.074
A45: 1950 | B45: Power Operated Equipment | C45: =+'App.2-B_Fixed Asset Cont 2011'!E45 -> 100271.96 | D45: =9299+11000 -> 20299 | E45: 79972.96 | F45: =+'App.2-B_Fixed Asset Cont 2011'!F45 -> 0 | G45: 79972.96 | H45: 10 | I45: 0.1 | J45: 7997.296 | K45: =+'App.2-B_Fixed Asset Cont 2011'!K45 -> -7997.33 | L45: -0.034
A46: 1955 | B46: Communications Equipment | C46: =+'App.2-B_Fixed Asset Cont 2011'!E46 -> 176173.24 | D46: 77145 | E46: 99028.24 | F46: =+'App.2-B_Fixed Asset Cont 2011'!F46 -> 0 | G46: 99028.24 | H46: 5 | I46: 0.2 | J46: 19805.648 | K46: =+'App.2-B_Fixed Asset Cont 2011'!K46 -> -20382.11 | L46: -576.462
A47: 1955 | B47: Communication Equipment (Smart Meters) | C47: =+'App.2-B_Fixed Asset Cont 2011'!E47 -> 0 | E47: 0 | F47: =+'App.2-B_Fixed Asset Cont 2011'!F47 -> 0 | G47: 0 | J47: 0 | K47: =+'App.2-B_Fixed Asset Cont 2011'!K47 -> 0 | L47: 0
A48: 1960 | B48: Miscellaneous Equipment | C48: =+'App.2-B_Fixed Asset Cont 2011'!E48 -> 43493.47 | D48: 6562 | E48: 36931.47 | F48: =+'App.2-B_Fixed Asset Cont 2011'!F48 -> 0 | G48: 36931.47 | H48: 10 | I48: 0.1 | J48: 3693.147 | K48: =+'App.2-B_Fixed Asset Cont 2011'!K48 -> -3693.18 | L48: -0.033
A49: 1975 | B49: Load Management Controls Utility Premises | C49: =+'App.2-B_Fixed Asset Cont 2011'!E49 -> 258630.5 | D49: 258631 | E49: -0.5 | F49: =+'App.2-B_Fixed Asset Cont 2011'!F49 -> 0 | G49: -0.5 | H49: 10 | I49: 0.1 | J49: -0.05 | K49: =+'App.2-B_Fixed Asset Cont 2011'!K49 -> 0 | L49: -0.05
A50: 1980 | B50: System Supervisor Equipment | C50: =+'App.2-B_Fixed Asset Cont 2011'!E50 -> 0 | E50: 0 | F50: =+'App.2-B_Fixed Asset Cont 2011'!F50 -> 0 | G50: 0 | J50: 0 | K50: =+'App.2-B_Fixed Asset Cont 2011'!K50 -> 0 | L50: 0
A51: 1985 | B51: Miscellaneous Fixed Assets | C51: =+'App.2-B_Fixed Asset Cont 2011'!E51 -> 1427 | D51: 1427 | E51: 0 | F51: =+'App.2-B_Fixed Asset Cont 2011'!F51 -> 0 | G51: 0 | H51: 10 | I51: 0.1 | J51: 0 | K51: =+'App.2-B_Fixed Asset Cont 2011'!K51 -> 0 | L51: 0
A52: 1995 | B52: Contributions & Grants | C52: =+'App.2-B_Fixed Asset Cont 2011'!E52 -> -7555736.97 | D52: -632720 | E52: -6923016.97 | F52: =+'App.2-B_Fixed Asset Cont 2011'!F52 -> -632720.38 | G52: -7239377.16 | H52: 23 | I52: 0.04347826087 | J52: -314755.5287 | K52: =+'App.2-B_Fixed Asset Cont 2011'!K52 -> 315631.19 | L52: 875.6613043
A53: etc. | E53: 0 | G53: 0 | J53: 0 | L53: =IF(ISERROR(+J53-K53), "", +J53-K53) -> 0
E54: 0 | G54: 0 | J54: 0 | L54: 0
B55: Total | C55: =SUM(C16:C54) -> 43289558.06 | D55: =SUM(D16:D54) -> 1796887 | E55: =SUM(E16:E54) -> 41492671.06 | F55: =SUM(F16:F54) -> 3527103.22 | G55: =SUM(G16:G54) -> 43256222.67 | J55: =SUM(J16:J54) -> 2010267.905 | K55: =SUM(K16:K54) -> -2010836.93 | L55: =SUM(L16:L54) -> -569.0252561
A57: Notes:
A58: 1 | B58: Board policy of the "half-year" rule - the applicant must ensure that additions in the year attract a half-year depreciation expense in the first year. Deviations from this standard practice must be supported in the application.
A59: 2 | B59: The applicant must provide an explanation of material variances in evidence
A60: General: | B60: Applicants must provide a breakdown of depreciation and amortization expense in the above format for all relevant accounts. Asset Retirement Obligations (AROs), depreciation and accretion expense should be disclosed separately consistent with the Notes of historical Audited Financial Statements.

Sheet App.2-CF_CGAAP_DepExp_2012
K1: File Number: | L1: ='LDC Info'!$E$18 -> EB2012-0176
K2: Exhibit:
K3: Tab:
K4: Schedule:
K5: Page:
K7: Date:
A9: Appendix 2-CF
A10: Depreciation and Amortization Expense
A11: Assumes the applicant adopted IFRS for financial reporting purposes January 1, 2013
C12: Year | D12: 2012 | E12: CGAAP
A14: Account | B14: Description | C14: Opening Regulatory Gross PP&E as at Jan 1, 2012 | D14: Less Fully Depreciated | E14: Net for Depreciation | F14: Additions | G14: Total for Depreciation | H14: Years | I14: Depreciation Rate | J14: 2012 Depreciation Expense | K14: 2012 Depreciation Expense per Appendix 2-B Fixed Assets, Column K (l) | L14: Variance 2
C15: (a) | D15: (b) | E15: (c) | F15: (d) | G15: (e) = (c) + ½ x (d) 1 | H15: (f) | I15: (g) = 1 / (f) | J15: (h) = (e) / (f) | L15: (m) = (h) - (l)
A16: 1611 | B16: Computer Software (Formally known as Account 1925) | C16: =+'App.2-B_Fixed Asset Cont 2012'!E16 -> 0 | E16: =C16-D16 -> 0 | F16: =+'App.2-B_Fixed Asset Cont 2012'!F16 -> 0 | G16: =E16+0.5*F16 -> 0 | H16: =+'App.2-CE_CGAAP_DepExp_2011'!H16 -> 0 | I16: =IF(H16=0,0,1/H16) -> 0 | J16: =IF(H16=0,0,G16/H16) -> 0 | K16: =+'App.2-B_Fixed Asset Cont 2012'!K16 -> 0 | L16: =IF(ISERROR(+J16+K16), 0, +J16+K16) -> 0
A17: 1612 | B17: Land Rights (Formally known as Account 1906) | C17: =+'App.2-B_Fixed Asset Cont 2012'!E17 -> 0 | E17: =C17-D17 -> 0 | F17: =+'App.2-B_Fixed Asset Cont 2012'!F17 -> 0 | G17: =E17+0.5*F17 -> 0 | H17: =+'App.2-CE_CGAAP_DepExp_2011'!H17 -> 0 | I17: 0 | J17: 0 | K17: =+'App.2-B_Fixed Asset Cont 2012'!K17 -> 0 | L17: =IF(ISERROR(+J17+K17), 0, +J17+K17) -> 0
A18: 1805 | B18: Land | C18: =+'App.2-B_Fixed Asset Cont 2012'!E18 -> 227768.86 | E18: 227768.86 | F18: =+'App.2-B_Fixed Asset Cont 2012'!F18 -> 0 | G18: 227768.86 | H18: =+'App.2-CE_CGAAP_DepExp_2011'!H18 -> 0 | I18: 0 | J18: 0 | K18: =+'App.2-B_Fixed Asset Cont 2012'!K18 -> 0 | L18: 0
A19: 1808 | B19: Buildings | C19: =+'App.2-B_Fixed Asset Cont 2012'!E19 -> 2486318 | E19: 2486318 | F19: =+'App.2-B_Fixed Asset Cont 2012'!F19 -> 5000 | G19: 2488818 | H19: =+'App.2-CE_CGAAP_DepExp_2011'!H19 -> 50 | I19: 0.02 | J19: 49776.36 | K19: =+'App.2-B_Fixed Asset Cont 2012'!K19 -> -49937 | L19: -160.64
A20: 1810 | B20: Leasehold Improvements | C20: =+'App.2-B_Fixed Asset Cont 2012'!E20 -> 0 | E20: 0 | F20: =+'App.2-B_Fixed Asset Cont 2012'!F20 -> 0 | G20: 0 | H20: =+'App.2-CE_CGAAP_DepExp_2011'!H20 -> 0 | I20: 0 | J20: 0 | K20: =+'App.2-B_Fixed Asset Cont 2012'!K20 -> 0 | L20: 0
A21: 1815 | B21: Transformer Station Equipment >50 kV | C21: =+'App.2-B_Fixed Asset Cont 2012'!E21 -> 0 | E21: 0 | F21: =+'App.2-B_Fixed Asset Cont 2012'!F21 -> 0 | G21: 0 | H21: =+'App.2-CE_CGAAP_DepExp_2011'!H21 -> 0 | I21: 0 | J21: 0 | K21: =+'App.2-B_Fixed Asset Cont 2012'!K21 -> 0 | L21: 0
A22: 1820 | B22: Distribution Station Equipment <50 kV | C22: =+'App.2-B_Fixed Asset Cont 2012'!E22 -> 4269129.02 | E22: 4269129.02 | F22: =+'App.2-B_Fixed Asset Cont 2012'!F22-89310 -> 417529 | G22: 4477893.52 | H22: =+'App.2-CE_CGAAP_DepExp_2011'!H22 -> 30 | I22: 0.03333333333 | J22: 149263.1173 | K22: =+'App.2-B_Fixed Asset Cont 2012'!K22 -> -147775 | L22: 1488.117333
A23: 1825 | B23: Storage Battery Equipment | C23: =+'App.2-B_Fixed Asset Cont 2012'!E23 -> 0 | E23: 0 | F23: =+'App.2-B_Fixed Asset Cont 2012'!F23 -> 0 | G23: 0 | H23: =+'App.2-CE_CGAAP_DepExp_2011'!H23 -> 0 | I23: 0 | J23: 0 | K23: =+'App.2-B_Fixed Asset Cont 2012'!K23 -> 0 | L23: 0
A24: 1830 | B24: Poles, Towers & Fixtures | C24: =+'App.2-B_Fixed Asset Cont 2012'!E24 -> 7106082.56 | E24: 7106082.56 | F24: =+'App.2-B_Fixed Asset Cont 2012'!F24 -> 888906 | G24: 7550535.56 | H24: =+'App.2-CE_CGAAP_DepExp_2011'!H24 -> 23 | I24: 0.04347826087 | J24: 328284.1548 | K24: =+'App.2-B_Fixed Asset Cont 2012'!K24 -> -327658 | L24: 626.1547826
A25: 1835 | B25: Overhead Conductors & Devices | C25: =+'App.2-B_Fixed Asset Cont 2012'!E25 -> 9746857.45 | E25: 9746857.45 | F25: =+'App.2-B_Fixed Asset Cont 2012'!F25 -> 838997 | G25: 10166355.95 | H25: =+'App.2-CE_CGAAP_DepExp_2011'!H25 -> 23 | I25: 0.04347826087 | J25: 442015.4761 | K25: =+'App.2-B_Fixed Asset Cont 2012'!K25 -> -441852 | L25: 163.476087
A26: 1840 | B26: Underground Conduit | C26: =+'App.2-B_Fixed Asset Cont 2012'!E26 -> 3044635.92 | E26: 3044635.92 | F26: =+'App.2-B_Fixed Asset Cont 2012'!F26 -> 290681 | G26: 3189976.42 | H26: =+'App.2-CE_CGAAP_DepExp_2011'!H26 -> 23 | I26: 0.04347826087 | J26: 138694.627 | K26: =+'App.2-B_Fixed Asset Cont 2012'!K26 -> -136788 | L26: 1906.626957
A27: 1845 | B27: Underground Conductors & Devices | C27: =+'App.2-B_Fixed Asset Cont 2012'!E27 -> 8848610.79 | E27: 8848610.79 | F27: =+'App.2-B_Fixed Asset Cont 2012'!F27 -> 454468 | G27: 9075844.79 | H27: =+'App.2-CE_CGAAP_DepExp_2011'!H27 -> 23 | I27: 0.04347826087 | J27: 394601.9474 | K27: =+'App.2-B_Fixed Asset Cont 2012'!K27 -> -392366 | L27: 2235.947391
A28: 1850 | B28: Line Transformers | C28: =+'App.2-B_Fixed Asset Cont 2012'!E28 -> 8007560.75 | E28: 8007560.75 | F28: =+'App.2-B_Fixed Asset Cont 2012'!F28 -> 592656 | G28: 8303888.75 | H28: =+'App.2-CE_CGAAP_DepExp_2011'!H28 -> 23 | I28: 0.04347826087 | J28: 361038.6413 | K28: =+'App.2-B_Fixed Asset Cont 2012'!K28 -> -360782 | L28: 256.6413043
A29: 1855 | B29: Services (Overhead & Underground) | C29: =+'App.2-B_Fixed Asset Cont 2012'!E29 -> 4430482.2 | E29: 4430482.2 | F29: =+'App.2-B_Fixed Asset Cont 2012'!F29 -> 637257 | G29: 4749110.7 | H29: 23.5 | I29: 0.04255319149 | J29: 202089.817 | K29: =+'App.2-B_Fixed Asset Cont 2012'!K29 -> -201040 | L29: 1049.817021
A30: 1860 | B30: Meters | C30: =+'App.2-B_Fixed Asset Cont 2012'!E30 -> 1579563.66 | E30: 1579563.66 | F30: =+'App.2-B_Fixed Asset Cont 2012'!F30+89310 -> 89310 | G30: 1624218.66 | H30: =+'App.2-CE_CGAAP_DepExp_2011'!H30 -> 24.5 | I30: 0.04081632653 | J30: 66294.63918 | K30: =+'App.2-B_Fixed Asset Cont 2012'!K30 -> -67812 | L30: -1517.360816
A31: 1860 | B31: Meters (Smart Meters) | C31: =+'App.2-B_Fixed Asset Cont 2012'!E31 -> 105634 | E31: 105634 | F31: =+'App.2-B_Fixed Asset Cont 2012'!F31 -> 38652 | G31: 124960 | H31: 15 | I31: 0.06666666667 | J31: 8330.666667 | K31: =+'App.2-B_Fixed Asset Cont 2012'!K31 -> -8418 | L31: -87.33333333
A32: 1905 | B32: Land | C32: =+'App.2-B_Fixed Asset Cont 2012'!E32 -> 0 | E32: 0 | F32: =+'App.2-B_Fixed Asset Cont 2012'!F32 -> 0 | G32: 0 | H32: =+'App.2-CE_CGAAP_DepExp_2011'!H32 -> 0 | I32: 0 | J32: 0 | K32: =+'App.2-B_Fixed Asset Cont 2012'!K32 -> 0 | L32: 0
A33: 1908 | B33: Buildings & Fixtures | C33: =+'App.2-B_Fixed Asset Cont 2012'!E33 -> 0 | E33: 0 | F33: =+'App.2-B_Fixed Asset Cont 2012'!F33 -> 0 | G33: 0 | H33: =+'App.2-CE_CGAAP_DepExp_2011'!H33 -> 0 | I33: 0 | J33: 0 | K33: =+'App.2-B_Fixed Asset Cont 2012'!K33 -> 0 | L33: 0
A34: 1910 | B34: Leasehold Improvements | C34: =+'App.2-B_Fixed Asset Cont 2012'!E34 -> 0 | E34: 0 | F34: =+'App.2-B_Fixed Asset Cont 2012'!F34 -> 0 | G34: 0 | H34: =+'App.2-CE_CGAAP_DepExp_2011'!H34 -> 0 | I34: 0 | J34: 0 | K34: =+'App.2-B_Fixed Asset Cont 2012'!K34 -> 0 | L34: 0
A35: 1915 | B35: Office Furniture & Equipment (10 years) | C35: =+'App.2-B_Fixed Asset Cont 2012'!E35 -> 262476.15 | D35: 114122 | E35: 148354.15 | F35: =+'App.2-B_Fixed Asset Cont 2012'!F35 -> 5000 | G35: 150854.15 | H35: =+'App.2-CE_CGAAP_DepExp_2011'!H35 -> 10 | I35: 0.1 | J35: 15085.415 | K35: =+'App.2-B_Fixed Asset Cont 2012'!K35 -> -15084 | L35: 1.415
A36: 1915 | B36: Office Furniture & Equipment (5 years) | C36: =+'App.2-B_Fixed Asset Cont 2012'!E36 -> 0 | E36: 0 | F36: =+'App.2-B_Fixed Asset Cont 2012'!F36 -> 0 | G36: 0 | H36: =+'App.2-CE_CGAAP_DepExp_2011'!H36 -> 0 | I36: 0 | J36: 0 | K36: =+'App.2-B_Fixed Asset Cont 2012'!K36 -> 0 | L36: 0
A37: 1920 | B37: Computer Equipment - Hardware | C37: =+'App.2-B_Fixed Asset Cont 2012'!E37 -> 275946.03 | D37: 275946 | E37: 0.02999999997 | F37: =+'App.2-B_Fixed Asset Cont 2012'!F37 -> 0 | G37: 0.02999999997 | H37: =+'App.2-CE_CGAAP_DepExp_2011'!H37 -> 5 | I37: 0.2 | J37: 0.005999999994 | K37: =+'App.2-B_Fixed Asset Cont 2012'!K37 -> 0 | L37: 0.005999999994
A38: 1920 | B38: Computer Equip.-Hardware(Post Mar. 22/04) | C38: =+'App.2-B_Fixed Asset Cont 2012'!E38 -> 52211.63 | D38: 52212 | E38: -0.37 | F38: =+'App.2-B_Fixed Asset Cont 2012'!F38 -> 0 | G38: -0.37 | H38: =+'App.2-CE_CGAAP_DepExp_2011'!H38 -> 5 | I38: 0.2 | J38: -0.074 | K38: =+'App.2-B_Fixed Asset Cont 2012'!K38 -> 0 | L38: -0.074
A39: 1920 | B39: Computer Equip.-Hardware(Post Mar. 19/07) | C39: =+'App.2-B_Fixed Asset Cont 2012'!E39 -> 153836.7 | D39: 29316 | E39: 124520.7 | F39: =+'App.2-B_Fixed Asset Cont 2012'!F39 -> 22000 | G39: 135520.7 | H39: =+'App.2-CE_CGAAP_DepExp_2011'!H39 -> 5 | I39: 0.2 | J39: 27104.14 | K39: =+'App.2-B_Fixed Asset Cont 2012'!K39 -> -27104 | L39: 0.14
A40: 1925 | B40: Computer Software (Formally known as Account 1925) | C40: =+'App.2-B_Fixed Asset Cont 2012'!E40 -> 944456.07 | D40: =726871+11744+20000 -> 758615 | E40: 185841.07 | F40: =+'App.2-B_Fixed Asset Cont 2012'!F40 -> 50000 | G40: 210841.07 | H40: =+'App.2-CE_CGAAP_DepExp_2011'!H40 -> 3 | I40: 0.3333333333 | J40: 70280.35667 | K40: =+'App.2-B_Fixed Asset Cont 2012'!K40 -> -70279 | L40: 1.356666667
A41: 1930 | B41: Transportation Equipment | C41: =+'App.2-B_Fixed Asset Cont 2012'!E41 -> 1984171.03 | D41: =369181+1072 -> 370253 | E41: 1613918.03 | F41: =+'App.2-B_Fixed Asset Cont 2012'!F41 -> 450000 | G41: 1838918.03 | H41: =+'App.2-CE_CGAAP_DepExp_2011'!H41 -> 8 | I41: 0.125 | J41: 229864.7538 | K41: =+'App.2-B_Fixed Asset Cont 2012'!K41 -> -229861 | L41: 3.75375
A42: 1935 | B42: Stores Equipment | C42: =+'App.2-B_Fixed Asset Cont 2012'!E42 -> 85037.21 | D42: 2078 | E42: 82959.21 | F42: =+'App.2-B_Fixed Asset Cont 2012'!F42 -> 0 | G42: 82959.21 | H42: =+'App.2-CE_CGAAP_DepExp_2011'!H42 -> 10 | I42: 0.1 | J42: 8295.921 | K42: =+'App.2-B_Fixed Asset Cont 2012'!K42 -> -8296 | L42: -0.079
A43: 1940 | B43: Tools, Shop & Garage Equipment | C43: =+'App.2-B_Fixed Asset Cont 2012'!E43 -> 296780.97 | D43: 109125 | E43: 187655.97 | F43: =+'App.2-B_Fixed Asset Cont 2012'!F43 -> 72000 | G43: 223655.97 | H43: =+'App.2-CE_CGAAP_DepExp_2011'!H43 -> 10 | I43: 0.1 | J43: 22365.597 | K43: =+'App.2-B_Fixed Asset Cont 2012'!K43 -> -22364 | L43: 1.597
A44: 1945 | B44: Measurement & Testing Equipment | C44: =+'App.2-B_Fixed Asset Cont 2012'!E44 -> 67543.58 | D44: 1095 | E44: 66448.58 | F44: =+'App.2-B_Fixed Asset Cont 2012'!F44 -> 0 | G44: 66448.58 | H44: =+'App.2-CE_CGAAP_DepExp_2011'!H44 -> 10 | I44: 0.1 | J44: 6644.858 | K44: =+'App.2-B_Fixed Asset Cont 2012'!K44 -> -6645 | L44: -0.142
A45: 1950 | B45: Power Operated Equipment | C45: =+'App.2-B_Fixed Asset Cont 2012'!E45 -> 89271.96 | D45: 9299 | E45: 79972.96 | F45: =+'App.2-B_Fixed Asset Cont 2012'!F45 -> 0 | G45: 79972.96 | H45: =+'App.2-CE_CGAAP_DepExp_2011'!H45 -> 10 | I45: 0.1 | J45: 7997.296 | K45: =+'App.2-B_Fixed Asset Cont 2012'!K45 -> -7997 | L45: 0.296
A46: 1955 | B46: Communications Equipment | C46: =+'App.2-B_Fixed Asset Cont 2012'!E46 -> 176173.24 | D46: 74263 | E46: 101910.24 | F46: =+'App.2-B_Fixed Asset Cont 2012'!F46 -> 0 | G46: 101910.24 | H46: =+'App.2-CE_CGAAP_DepExp_2011'!H46 -> 5 | I46: 0.2 | J46: 20382.048 | K46: =+'App.2-B_Fixed Asset Cont 2012'!K46 -> -20382 | L46: 0.048
A47: 1955 | B47: Communication Equipment (Smart Meters) | C47: =+'App.2-B_Fixed Asset Cont 2012'!E47 -> 0 | E47: 0 | F47: =+'App.2-B_Fixed Asset Cont 2012'!F47 -> 0 | G47: 0 | H47: =+'App.2-CE_CGAAP_DepExp_2011'!H47 -> 0 | I47: 0 | J47: 0 | K47: =+'App.2-B_Fixed Asset Cont 2012'!K47 -> 0 | L47: 0
A48: 1960 | B48: Miscellaneous Equipment | C48: =+'App.2-B_Fixed Asset Cont 2012'!E48 -> 43493.47 | D48: =21142-1072 -> 20070 | E48: 23423.47 | F48: =+'App.2-B_Fixed Asset Cont 2012'!F48 -> 40000 | G48: 43423.47 | H48: =+'App.2-CE_CGAAP_DepExp_2011'!H48 -> 10 | I48: 0.1 | J48: 4342.347 | K48: =+'App.2-B_Fixed Asset Cont 2012'!K48 -> -4342 | L48: 0.347
A49: 1975 | B49: Load Management Controls Utility Premises | C49: =+'App.2-B_Fixed Asset Cont 2012'!E49 -> 258630.5 | D49: 258631 | E49: -0.5 | F49: =+'App.2-B_Fixed Asset Cont 2012'!F49 -> 0 | G49: -0.5 | H49: =+'App.2-CE_CGAAP_DepExp_2011'!H49 -> 10 | I49: 0.1 | J49: -0.05 | K49: =+'App.2-B_Fixed Asset Cont 2012'!K49 -> 0 | L49: -0.05
A50: 1980 | B50: System Supervisor Equipment | C50: =+'App.2-B_Fixed Asset Cont 2012'!E50 -> 0 | E50: 0 | F50: =+'App.2-B_Fixed Asset Cont 2012'!F50 -> 0 | G50: 0 | H50: =+'App.2-CE_CGAAP_DepExp_2011'!H50 -> 0 | I50: 0 | J50: 0 | K50: =+'App.2-B_Fixed Asset Cont 2012'!K50 -> 0 | L50: 0
A51: 1985 | B51: Miscellaneous Fixed Assets | C51: =+'App.2-B_Fixed Asset Cont 2012'!E51 -> 1427 | D51: 1427 | E51: 0 | F51: =+'App.2-B_Fixed Asset Cont 2012'!F51 -> 0 | G51: 0 | H51: =+'App.2-CE_CGAAP_DepExp_2011'!H51 -> 10 | I51: 0.1 | J51: 0 | K51: =+'App.2-B_Fixed Asset Cont 2012'!K51 -> 0 | L51: 0
A52: 1995 | B52: Contributions & Grants | C52: =+'App.2-B_Fixed Asset Cont 2012'!E52 -> -8188457.35 | D52: -632720 | E52: -7555737.35 | F52: =+'App.2-B_Fixed Asset Cont 2012'!F52 -> -433861 | G52: -7772667.85 | H52: =+'App.2-CE_CGAAP_DepExp_2011'!H52 -> 23 | I52: 0.04347826087 | J52: -337942.0804 | K52: =+'App.2-B_Fixed Asset Cont 2012'!K52 -> 336986 | L52: -956.0804348
A53: etc. | E53: 0 | G53: 0 | I53: 0 | J53: 0 | L53: =IF(ISERROR(+J53-K53), 0, +J53-K53) -> 0
E54: 0 | G54: 0 | I54: 0 | J54: 0 | L54: 0
B55: Total | C55: =SUM(C16:C54) -> 46355641.4 | D55: =SUM(D16:D54) -> 1443732 | E55: =SUM(E16:E54) -> 44911909.4 | F55: =SUM(F16:F54) -> 4458595 | G55: =SUM(G16:G54) -> 47141206.9 | J55: =SUM(J16:J54) -> 2214809.981 | K55: =SUM(K16:K54) -> -2209796 | L55: =SUM(L16:L54) -> 5013.980709
A57: Notes:
A58: 1 | B58: Board policy of the "half-year" rule - the applicant must ensure that additions in the year attract a half-year depreciation expense in the first year. Deviations from this standard practice must be supported in the application.
A59: 2 | B59: The applicant must provide an explanation of material variances in evidence
A61: General: | B61: Applicants must provide a breakdown of depreciation and amortization expense in the above format for all relevant accounts. Asset Retirement Obligations (AROs), depreciation and accretion expense should be disclosed separately consistent with the Notes of historical Audited Financial Statements.

Sheet App.2-CJ_CGAAP_DepExp_2013
K1: File Number: | L1: ='LDC Info'!$E$18 -> EB2012-0176
K2: Exhibit:
K3: Tab:
K4: Schedule:
K5: Page:
K7: Date:
A9: Appendix 2-CJ
A10: Depreciation and Amortization Expense
A11: Assumes the applicant adopted IFRS for financial reporting purposes January 1, 2013
C12: Year | D12: 2013 | E12: CGAAP
A14: Account | B14: Description | C14: Opening Regulatory Gross PP&E as at Jan 1, 2013 | D14: Less Fully Depreciated | E14: Net for Depreciation | F14: Additions | G14: Total for Depreciation | H14: Years | I14: Depreciation Rate | J14: 2013 Depreciation Expense | K14: 2013 Depreciation Expense per Appendix 2-B Fixed Assets, Column K (l) | L14: Variance 2
C15: (a) | D15: (b) | E15: (c) | F15: (d) | G15: (e) = (c) + ½ x (d) 1 | H15: (f) | I15: (g) = 1 / (f) | J15: (h) = (e) / (f) | L15: (m) = (h) - (l)
A16: 1611 | B16: Computer Software (Formally known as Account 1925) | C16: =+'App.2-B_Fixed Asset Cont 2013'!E16 -> 0 | E16: =C16-D16 -> 0 | F16: =+'App.2-B_Fixed Asset Cont 2013'!F16 -> 0 | G16: =E16+0.5*F16 -> 0 | H16: =+'App.2-CE_CGAAP_DepExp_2011'!H16 -> 0 | I16: =IF(H16=0,0,1/H16) -> 0 | J16: =IF(H16=0,0,G16/H16) -> 0 | K16: =+'App.2-B_Fixed Asset Cont 2013'!K16 -> 0 | L16: =IF(ISERROR(+J16+K16), 0, +J16+K16) -> 0
A17: 1612 | B17: Land Rights (Formally known as Account 1906) | C17: =+'App.2-B_Fixed Asset Cont 2013'!E17 -> 0 | E17: =C17-D17 -> 0 | F17: =+'App.2-B_Fixed Asset Cont 2013'!F17 -> 0 | G17: =E17+0.5*F17 -> 0 | H17: =+'App.2-CE_CGAAP_DepExp_2011'!H17 -> 0 | I17: 0 | J17: 0 | K17: =+'App.2-B_Fixed Asset Cont 2013'!K17 -> 0 | L17: =IF(ISERROR(+J17+K17), 0, +J17+K17) -> 0
A18: 1805 | B18: Land | C18: =+'App.2-B_Fixed Asset Cont 2013'!E18 -> 227768.86 | E18: 227768.86 | F18: =+'App.2-B_Fixed Asset Cont 2013'!F18 -> 0 | G18: 227768.86 | H18: =+'App.2-CE_CGAAP_DepExp_2011'!H18 -> 0 | I18: 0 | J18: 0 | K18: =+'App.2-B_Fixed Asset Cont 2013'!K18 -> 0 | L18: 0
A19: 1808 | B19: Buildings | C19: =+'App.2-B_Fixed Asset Cont 2013'!E19 -> 2491318 | E19: 2491318 | F19: =+'App.2-B_Fixed Asset Cont 2013'!F19 -> 9000 | G19: 2495818 | H19: =+'App.2-CE_CGAAP_DepExp_2011'!H19 -> 50 | I19: 0.02 | J19: 49916.36 | K19: =+'App.2-B_Fixed Asset Cont 2013'!K19 -> -50077 | L19: -160.64
A20: 1810 | B20: Leasehold Improvements | C20: =+'App.2-B_Fixed Asset Cont 2013'!E20 -> 0 | E20: 0 | F20: =+'App.2-B_Fixed Asset Cont 2013'!F20 -> 0 | G20: 0 | H20: =+'App.2-CE_CGAAP_DepExp_2011'!H20 -> 0 | I20: 0 | J20: 0 | K20: =+'App.2-B_Fixed Asset Cont 2013'!K20 -> 0 | L20: 0
A21: 1815 | B21: Transformer Station Equipment >50 kV | C21: =+'App.2-B_Fixed Asset Cont 2013'!E21 -> 0 | E21: 0 | F21: =+'App.2-B_Fixed Asset Cont 2013'!F21 -> 0 | G21: 0 | H21: =+'App.2-CE_CGAAP_DepExp_2011'!H21 -> 0 | I21: 0 | J21: 0 | K21: =+'App.2-B_Fixed Asset Cont 2013'!K21 -> 0 | L21: 0
A22: 1820 | B22: Distribution Station Equipment <50 kV | C22: =+'App.2-B_Fixed Asset Cont 2013'!E22 -> 4775968.02 | E22: 4775968.02 | F22: =+'App.2-B_Fixed Asset Cont 2013'!F22 -> 594855 | G22: 5073395.52 | H22: =+'App.2-CE_CGAAP_DepExp_2011'!H22 -> 30 | I22: 0.03333333333 | J22: 169113.184 | K22: =+'App.2-B_Fixed Asset Cont 2013'!K22 -> -166136 | L22: 2977.184
A23: 1825 | B23: Storage Battery Equipment | C23: =+'App.2-B_Fixed Asset Cont 2013'!E23 -> 0 | E23: 0 | F23: =+'App.2-B_Fixed Asset Cont 2013'!F23 -> 0 | G23: 0 | H23: =+'App.2-CE_CGAAP_DepExp_2011'!H23 -> 0 | I23: 0 | J23: 0 | K23: =+'App.2-B_Fixed Asset Cont 2013'!K23 -> 0 | L23: 0
A24: 1830 | B24: Poles, Towers & Fixtures | C24: =+'App.2-B_Fixed Asset Cont 2013'!E24 -> 7994988.56 | E24: 7994988.56 | F24: =+'App.2-B_Fixed Asset Cont 2013'!F24 -> 958576 | G24: 8474276.56 | H24: 23.25 | I24: 0.04301075269 | J24: 364485.0133 | K24: =+'App.2-B_Fixed Asset Cont 2013'!K24 -> -364607 | L24: -121.9866667
A25: 1835 | B25: Overhead Conductors & Devices | C25: =+'App.2-B_Fixed Asset Cont 2013'!E25 -> 10585854.45 | E25: 10585854.45 | F25: =+'App.2-B_Fixed Asset Cont 2013'!F25 -> 893675 | G25: 11032691.95 | H25: 23.25 | I25: 0.04301075269 | J25: 474524.3849 | K25: =+'App.2-B_Fixed Asset Cont 2013'!K25 -> -476505 | L25: -1980.615054
A26: 1840 | B26: Underground Conduit | C26: =+'App.2-B_Fixed Asset Cont 2013'!E26 -> 3335316.92 | E26: 3335316.92 | F26: =+'App.2-B_Fixed Asset Cont 2013'!F26 -> 409989 | G26: 3540311.42 | H26: 23.25 | I26: 0.04301075269 | J26: 152271.4589 | K26: =+'App.2-B_Fixed Asset Cont 2013'!K26 -> -150801 | L26: 1470.458925
A27: 1845 | B27: Underground Conductors & Devices | C27: =+'App.2-B_Fixed Asset Cont 2013'!E27 -> 9303078.79 | E27: 9303078.79 | F27: =+'App.2-B_Fixed Asset Cont 2013'!F27 -> 505661 | G27: 9555909.29 | H27: 23.25 | I27: 0.04301075269 | J27: 411006.8512 | K27: =+'App.2-B_Fixed Asset Cont 2013'!K27 -> -411569 | L27: -562.1488172
A28: 1850 | B28: Line Transformers | C28: =+'App.2-B_Fixed Asset Cont 2013'!E28 -> 8600216.75 | E28: 8600216.75 | F28: =+'App.2-B_Fixed Asset Cont 2013'!F28 -> 627227 | G28: 8913830.25 | H28: 23.25 | I28: 0.04301075269 | J28: 383390.5484 | K28: =+'App.2-B_Fixed Asset Cont 2013'!K28 -> -385180 | L28: -1789.451613
A29: 1855 | B29: Services (Overhead & Underground) | C29: =+'App.2-B_Fixed Asset Cont 2013'!E29 -> 5067739.2 | E29: 5067739.2 | F29: =+'App.2-B_Fixed Asset Cont 2013'!F29 -> 658066 | G29: 5396772.2 | H29: 24 | I29: 0.04166666667 | J29: 224865.5083 | K29: =+'App.2-B_Fixed Asset Cont 2013'!K29 -> -226946 | L29: -2080.491667
A30: 1860 | B30: Meters | C30: =+'App.2-B_Fixed Asset Cont 2013'!E30 -> 1579563.66 | E30: 1579563.66 | F30: =+'App.2-B_Fixed Asset Cont 2013'!F30 -> 0 | G30: 1579563.66 | H30: =+'[4]App.2-CE_CGAAP_DepExp_2011'!H30 -> 24.5 | I30: 0.04081632653 | J30: 64471.98612 | K30: =+'App.2-B_Fixed Asset Cont 2013'!K30 -> -67812 | L30: -3340.013878
A31: 1860 | B31: Meters (Smart Meters) | C31: =+'App.2-B_Fixed Asset Cont 2013'!E31 -> 144286 | E31: 144286 | F31: =+'App.2-B_Fixed Asset Cont 2013'!F31 -> 316432 | G31: 302502 | H31: 15 | I31: 0.06666666667 | J31: 20166.8 | K31: =+'App.2-B_Fixed Asset Cont 2013'!K31 -> -20245 | L31: -78.2
A32: 1905 | B32: Land | C32: =+'App.2-B_Fixed Asset Cont 2013'!E32 -> 0 | E32: 0 | F32: =+'App.2-B_Fixed Asset Cont 2013'!F32 -> 0 | G32: 0 | H32: =+'App.2-CE_CGAAP_DepExp_2011'!H32 -> 0 | I32: 0 | J32: 0 | K32: =+'App.2-B_Fixed Asset Cont 2013'!K32 -> 0 | L32: 0
A33: 1908 | B33: Buildings & Fixtures | C33: =+'App.2-B_Fixed Asset Cont 2013'!E33 -> 0 | E33: 0 | F33: =+'App.2-B_Fixed Asset Cont 2013'!F33 -> 0 | G33: 0 | H33: =+'App.2-CE_CGAAP_DepExp_2011'!H33 -> 0 | I33: 0 | J33: 0 | K33: =+'App.2-B_Fixed Asset Cont 2013'!K33 -> 0 | L33: 0
A34: 1910 | B34: Leasehold Improvements | C34: =+'App.2-B_Fixed Asset Cont 2013'!E34 -> 0 | E34: 0 | F34: =+'App.2-B_Fixed Asset Cont 2013'!F34 -> 0 | G34: 0 | H34: =+'App.2-CE_CGAAP_DepExp_2011'!H34 -> 0 | I34: 0 | J34: 0 | K34: =+'App.2-B_Fixed Asset Cont 2013'!K34 -> 0 | L34: 0
A35: 1915 | B35: Office Furniture & Equipment (10 years) | C35: =+'App.2-B_Fixed Asset Cont 2013'!E35 -> 267476.15 | D35: 124075 | E35: 143401.15 | F35: =+'App.2-B_Fixed Asset Cont 2013'!F35 -> 2000 | G35: 144401.15 | H35: =+'App.2-CE_CGAAP_DepExp_2011'!H35 -> 10 | I35: 0.1 | J35: 14440.115 | K35: =+'App.2-B_Fixed Asset Cont 2013'!K35 -> -14437 | L35: 3.115
A36: 1915 | B36: Office Furniture & Equipment (5 years) | C36: =+'App.2-B_Fixed Asset Cont 2013'!E36 -> 0 | E36: 0 | F36: =+'App.2-B_Fixed Asset Cont 2013'!F36 -> 0 | G36: 0 | H36: =+'App.2-CE_CGAAP_DepExp_2011'!H36 -> 0 | I36: 0 | J36: 0 | K36: =+'App.2-B_Fixed Asset Cont 2013'!K36 -> 0 | L36: 0
A37: 1920 | B37: Computer Equipment - Hardware | C37: =+'App.2-B_Fixed Asset Cont 2013'!E37 -> 275946.03 | D37: 275946 | E37: 0.02999999997 | F37: =+'App.2-B_Fixed Asset Cont 2013'!F37 -> 0 | G37: 0.02999999997 | H37: =+'App.2-CE_CGAAP_DepExp_2011'!H37 -> 5 | I37: 0.2 | J37: 0.005999999994 | K37: =+'App.2-B_Fixed Asset Cont 2013'!K37 -> 0 | L37: 0.005999999994
A38: 1920 | B38: Computer Equip.-Hardware(Post Mar. 22/04) | C38: =+'App.2-B_Fixed Asset Cont 2013'!E38 -> 52211.63 | D38: 52212 | E38: -0.37 | F38: =+'App.2-B_Fixed Asset Cont 2013'!F38 -> 0 | G38: -0.37 | H38: =+'App.2-CE_CGAAP_DepExp_2011'!H38 -> 5 | I38: 0.2 | J38: -0.074 | K38: =+'App.2-B_Fixed Asset Cont 2013'!K38 -> 0 | L38: -0.074
A39: 1920 | B39: Computer Equip.-Hardware(Post Mar. 19/07) | C39: =+'App.2-B_Fixed Asset Cont 2013'!E39 -> 175836.7 | D39: 49324 | E39: 126512.7 | F39: =+'App.2-B_Fixed Asset Cont 2013'!F39 -> 28600 | G39: 140812.7 | H39: =+'App.2-CE_CGAAP_DepExp_2011'!H39 -> 5 | I39: 0.2 | J39: 28162.54 | K39: =+'App.2-B_Fixed Asset Cont 2013'!K39 -> -28162 | L39: 0.54
A40: 1925 | B40: Computer Software (Formally known as Account 1925) | C40: =+'App.2-B_Fixed Asset Cont 2013'!E40 -> 994456.07 | D40: =802525+10000 -> 812525 | E40: 181931.07 | F40: =+'App.2-B_Fixed Asset Cont 2013'!F40 -> 45000 | G40: 204431.07 | H40: =+'App.2-CE_CGAAP_DepExp_2011'!H40 -> 3 | I40: 0.3333333333 | J40: 68143.69 | K40: =+'App.2-B_Fixed Asset Cont 2013'!K40 -> -68144 | L40: -0.31
A41: 1930 | B41: Transportation Equipment | C41: =+'App.2-B_Fixed Asset Cont 2013'!E41 -> 2284171.03 | D41: =491171-40000 -> 451171 | E41: 1833000.03 | F41: =+'App.2-B_Fixed Asset Cont 2013'!F41 -> 400000 | G41: 2033000.03 | H41: 8 | I41: 0.125 | J41: 254125.0038 | K41: =+'App.2-B_Fixed Asset Cont 2013'!K41 -> -254125 | L41: 0.003750000033
A42: 1935 | B42: Stores Equipment | C42: =+'App.2-B_Fixed Asset Cont 2013'!E42 -> 85037.21 | D42: 2078 | E42: 82959.21 | F42: =+'App.2-B_Fixed Asset Cont 2013'!F42 -> 0 | G42: 82959.21 | H42: =+'App.2-CE_CGAAP_DepExp_2011'!H42 -> 10 | I42: 0.1 | J42: 8295.921 | K42: =+'App.2-B_Fixed Asset Cont 2013'!K42 -> -8296 | L42: -0.079
A43: 1940 | B43: Tools, Shop & Garage Equipment | C43: =+'App.2-B_Fixed Asset Cont 2013'!E43 -> 368780.97 | D43: 125031 | E43: 243749.97 | F43: =+'App.2-B_Fixed Asset Cont 2013'!F43 -> 72000 | G43: 279749.97 | H43: =+'App.2-CE_CGAAP_DepExp_2011'!H43 -> 10 | I43: 0.1 | J43: 27974.997 | K43: =+'App.2-B_Fixed Asset Cont 2013'!K43 -> -27972 | L43: 2.997
A44: 1945 | B44: Measurement & Testing Equipment | C44: =+'App.2-B_Fixed Asset Cont 2013'!E44 -> 67543.58 | D44: 1095 | E44: 66448.58 | F44: =+'App.2-B_Fixed Asset Cont 2013'!F44 -> 0 | G44: 66448.58 | H44: =+'App.2-CE_CGAAP_DepExp_2011'!H44 -> 10 | I44: 0.1 | J44: 6644.858 | K44: =+'App.2-B_Fixed Asset Cont 2013'!K44 -> -6645 | L44: -0.142
A45: 1950 | B45: Power Operated Equipment | C45: =+'App.2-B_Fixed Asset Cont 2013'!E45 -> 89271.96 | D45: 9299 | E45: 79972.96 | F45: =+'App.2-B_Fixed Asset Cont 2013'!F45 -> 0 | G45: 79972.96 | H45: =+'App.2-CE_CGAAP_DepExp_2011'!H45 -> 10 | I45: 0.1 | J45: 7997.296 | K45: =+'App.2-B_Fixed Asset Cont 2013'!K45 -> -7997 | L45: 0.296
A46: 1955 | B46: Communications Equipment | C46: =+'App.2-B_Fixed Asset Cont 2013'!E46 -> 176173.24 | D46: =74263+(1441) -> 75704 | E46: 100469.24 | F46: =+'App.2-B_Fixed Asset Cont 2013'!F46 -> 0 | G46: 100469.24 | H46: =+'App.2-CE_CGAAP_DepExp_2011'!H46 -> 5 | I46: 0.2 | J46: 20093.848 | K46: =+'App.2-B_Fixed Asset Cont 2013'!K46 -> -20092 | L46: 1.848
A47: 1955 | B47: Communication Equipment (Smart Meters) | C47: =+'App.2-B_Fixed Asset Cont 2013'!E47 -> 0 | E47: 0 | F47: =+'App.2-B_Fixed Asset Cont 2013'!F47 -> 0 | G47: 0 | H47: =+'App.2-CE_CGAAP_DepExp_2011'!H47 -> 0 | I47: 0 | J47: 0 | K47: =+'App.2-B_Fixed Asset Cont 2013'!K47 -> 0 | L47: 0
A48: 1960 | B48: Miscellaneous Equipment | C48: =+'App.2-B_Fixed Asset Cont 2013'!E48 -> 83493.47 | D48: =21142-1072+40000 -> 60070 | E48: 23423.47 | F48: =+'App.2-B_Fixed Asset Cont 2013'!F48 -> 45000 | G48: 45923.47 | H48: =+'App.2-CE_CGAAP_DepExp_2011'!H48 -> 10 | I48: 0.1 | J48: 4592.347 | K48: =+'App.2-B_Fixed Asset Cont 2013'!K48 -> -4592 | L48: 0.347
A49: 1975 | B49: Load Management Controls Utility Premises | C49: =+'App.2-B_Fixed Asset Cont 2013'!E49 -> 258630.5 | D49: 258631 | E49: -0.5 | F49: =+'App.2-B_Fixed Asset Cont 2013'!F49 -> 0 | G49: -0.5 | H49: =+'App.2-CE_CGAAP_DepExp_2011'!H49 -> 10 | I49: 0.1 | J49: -0.05 | K49: =+'App.2-B_Fixed Asset Cont 2013'!K49 -> 0 | L49: -0.05
A50: 1980 | B50: System Supervisor Equipment | C50: =+'App.2-B_Fixed Asset Cont 2013'!E50 -> 0 | E50: 0 | F50: =+'App.2-B_Fixed Asset Cont 2013'!F50 -> 0 | G50: 0 | H50: =+'App.2-CE_CGAAP_DepExp_2011'!H50 -> 0 | I50: 0 | J50: 0 | K50: =+'App.2-B_Fixed Asset Cont 2013'!K50 -> 0 | L50: 0
A51: 1985 | B51: Miscellaneous Fixed Assets | C51: =+'App.2-B_Fixed Asset Cont 2013'!E51 -> 1427 | D51: 1427 | E51: 0 | F51: =+'App.2-B_Fixed Asset Cont 2013'!F51 -> 0 | G51: 0 | H51: =+'App.2-CE_CGAAP_DepExp_2011'!H51 -> 10 | I51: 0.1 | J51: 0 | K51: =+'App.2-B_Fixed Asset Cont 2013'!K51 -> 0 | L51: 0
A52: 1995 | B52: Contributions & Grants | C52: =+'App.2-B_Fixed Asset Cont 2013'!E52 -> -8622318.35 | D52: -688000 | E52: -7934318.35 | F52: =+'App.2-B_Fixed Asset Cont 2013'!F52 -> -417663 | G52: -8143149.85 | H52: =+'App.2-CE_CGAAP_DepExp_2011'!H52 -> 23 | I52: 0.04347826087 | J52: -354049.9935 | K52: =+'App.2-B_Fixed Asset Cont 2013'!K52 -> 354039 | L52: -10.99347826
A53: etc. | E53: 0 | G53: 0 | I53: 0 | J53: 0 | L53: =IF(ISERROR(+J53-K53), 0, +J53-K53) -> 0
E54: 0 | G54: 0 | I54: 0 | J54: 0 | L54: 0
B55: Total | C55: =SUM(C16:C54) -> 50664236.4 | D55: =SUM(D16:D54) -> 1610588 | E55: =SUM(E16:E54) -> 49053648.4 | F55: =SUM(F16:F54) -> 5148418 | G55: =SUM(G16:G54) -> 51627857.4 | J55: =SUM(J16:J54) -> 2400632.6 | K55: =SUM(K16:K54) -> -2406301 | L55: =SUM(L16:L54) -> -5668.400498
B56: Smart Meter Additions
B57: Meters (Smart Meters) | E57: =C57-D57 -> 0 | F57: =+'App.2-B_Fixed Asset Cont 2013'!H57 -> 3626141 | G57: =E57+F57 -> 3626141 | H57: 15 | I57: =IF(H57=0,0,1/H57) -> 0.06666666667 | J57: =IF(H57=0,0,G57/H57) -> 241742.7333 | K57: =+'App.2-B_Fixed Asset Cont 2013'!K57 -> -241743 | L57: =IF(ISERROR(+J57+K57), 0, +J57+K57) -> -0.2666666667
B58: Computer Hardware (Smart Meters) | E58: 0 | F58: =+'App.2-B_Fixed Asset Cont 2013'!H58 -> 62873 | G58: =E58+F58 -> 62873 | H58: 5 | I58: 0.2 | J58: 12574.6 | K58: =+'App.2-B_Fixed Asset Cont 2013'!K58 -> -12575 | L58: =IF(ISERROR(+J58+K58), 0, +J58+K58) -> -0.4
B59: Computer Software (Smart Meters) | E59: 0 | F59: =+'App.2-B_Fixed Asset Cont 2013'!H59 -> 274217 | G59: =E59+F59 -> 274217 | H59: 3 | I59: 0.3333333333 | J59: 91405.66667 | K59: =+'App.2-B_Fixed Asset Cont 2013'!K59 -> -54843 | L59: 36562.66667 | M59: different depreciation rates between SM model and CGAAP
B60: Revised Total | C60: =SUM(C55:C59) -> 50664236.4 | D60: =SUM(D55:D59) -> 1610588 | E60: =SUM(E55:E59) -> 49053648.4 | F60: =SUM(F55:F59) -> 9111649 | G60: =SUM(G55:G59) -> 55591088.4 | J60: =SUM(J55:J59) -> 2746355.6 | K60: =SUM(K55:K59) -> -2715462 | L60: =SUM(L55:L59) -> 30893.5995
A61: Notes:
A62: 1 | B62: Board policy of the "half-year" rule - the applicant must ensure that additions in the year attract a half-year depreciation expense in the first year. Deviations from this standard practice must be supported in the application.
A63: 2 | B63: The applicant must provide an explanation of material variances in evidence
A65: General: | B65: Applicants must provide a breakdown of depreciation and amortization expense in the above format for all relevant accounts. Asset Retirement Obligations (AROs), depreciation and accretion expense should be disclosed separately consistent with the Notes of historical Audited Financial Statements.

Sheet App.2-CG_MIFRS_DepExp_2012
N1: File Number: | O1: ='LDC Info'!$E$18 -> EB2012-0176
N2: Exhibit:
N3: Tab:
N4: Schedule:
N5: Page:
N7: Date:
A9: Appendix 2-CG
A10: Depreciation and Amortization Expense
A11: Assumes the applicant adopted IFRS for financial reporting purposes January 1, 2013
C12: Year | D12: 2012 | E12: MIFRS
A14: Account | B14: Description | C14: Opening NBV as at Jan 1, 2012 5 | D14: Additions | E14: Average Remaining Life of Opening NBV 4 | F14: Years (new additions only) 3 | G14: Depreciation Rate on New Additions | H14: Depreciation Expense on Opening NBV | I14: Depreciation Expense on Additions 1 | J14: 2012 Depreciation Expense | K14: 2012 Depreciation Expense per Appendix 2-B Fixed Assets, Column K (l) | L14: Variance 2 | M14: Depreciation Expense on 2012 Full Year Additions | N14: Less Depreciation Expense on Assets Fully Depreciated during the year (o) | O14: 2012 Full Year Depreciation 6
C15: (a) | D15: (d) | E15: (i) | F15: (f) | G15: (g) = 1 / (f) | H15: (j) = (a) / (i) | I15: (h)=((d)*0.5)/(f) | J15: (k) = (j) + (h) | L15: (m) = (k) - (l) | M15: (n)=((d))/(f) | O15: (p) = (j) + (n) - (o)
A16: 1611 | B16: Computer Software (Formally known as Account 1925) | G16: =IF(F16=0,0,1/F16) -> 0 | H16: =IF(E16=0,0,+C16/E16) -> 0 | I16: =IF(F16=0,0,+(D16*0.5)/F16) -> 0 | J16: =IF(ISERROR(+H16+I16), 0, +H16+I16) -> 0 | L16: =IF(ISERROR(+J16-K16), 0, +J16-K16) -> 0 | M16: =IF(F16=0,0,+(D16)/F16) -> 0 | O16: =IF(ISERROR(+M16+H16-N16), 0, +M16+H16-N16) -> 0
A17: 1612 | B17: Land Rights (Formally known as Account 1906) | G17: 0 | H17: 0 | I17: 0 | J17: 0 | L17: 0 | M17: 0 | O17: =IF(ISERROR(+M17+H17-N17), 0, +M17+H17-N17) -> 0
A18: 1805 | B18: Land | C18: 227769 | G18: 0 | H18: 0 | I18: 0 | J18: 0 | L18: 0 | M18: 0 | O18: 0
A19: 1808 | B19: Buildings | C19: =2261121 -> 2261121 | D19: =+'App.2-B_Fixed Asset Cont 2012'!F19 -> 5000 | E19: =+C19/49929 -> 45.28672715 | F19: 50 | G19: 0.02 | H19: 49929 | I19: 50 | J19: 49979 | K19: =-'App.2-B_FA Cont MIFRS 2012'!K19 -> 49979 | L19: 0 | M19: 100 | O19: 50029
A20: 1810 | B20: Leasehold Improvements | D20: =+'App.2-B_Fixed Asset Cont 2012'!F20 -> 0 | G20: 0 | H20: 0 | I20: 0 | J20: 0 | K20: =-'App.2-B_FA Cont MIFRS 2012'!K20 -> 0 | L20: 0 | M20: 0 | O20: 0
A21: 1815 | B21: Transformer Station Equipment >50 kV | D21: =+'App.2-B_Fixed Asset Cont 2012'!F21 -> 0 | G21: 0 | H21: 0 | I21: 0 | J21: 0 | K21: =-'App.2-B_FA Cont MIFRS 2012'!K21 -> 0 | L21: 0 | M21: 0 | O21: 0
A22: 1820 | B22: Distribution Station Equipment <50 kV | C22: =2621205-120659 -> 2500546 | D22: 463809 | E22: =+C22/287923 -> 8.68477336 | F22: 45 | G22: 0.02222222222 | H22: 287923 | I22: 5153.433333 | J22: 293076.4333 | K22: =-'App.2-B_FA Cont MIFRS 2012'!K22 -> 293076 | L22: 0.4333333333 | M22: 10306.86667 | N22: 73277 | O22: 224952.8667
A23: 1825 | B23: Storage Battery Equipment | G23: 0 | H23: 0 | I23: 0 | J23: 0 | K23: =-'App.2-B_FA Cont MIFRS 2012'!K23 -> 0 | L23: 0 | M23: 0 | O23: 0
A24: 1830 | B24: Poles, Towers & Fixtures | C24: 4758021 | D24: 734446 | E24: =+C24/95680 -> 49.72848035 | F24: 60 | G24: 0.01666666667 | H24: 95680 | I24: 6120.383333 | J24: 101800.3833 | K24: =-'App.2-B_FA Cont MIFRS 2012'!K24 -> 101800 | L24: 0.3833333333 | M24: 12240.76667 | O24: 107920.7667
A25: 1835 | B25: Overhead Conductors & Devices | C25: 6407009 | D25: 707985 | E25: =+C25/119317 -> 53.69736919 | F25: 65 | G25: 0.01538461538 | H25: 119317 | I25: 5446.038462 | J25: 124763.0385 | K25: =-'App.2-B_FA Cont MIFRS 2012'!K25 -> 124763 | L25: 0.03846153847 | M25: 10892.07692 | O25: 130209.0769
A26: 1840 | B26: Underground Conduit | C26: 2085078 | D26: 239152 | E26: =+C26/27611 -> 75.51620731 | F26: 85 | G26: 0.01176470588 | H26: 27611 | I26: 1406.776471 | J26: 29017.77647 | K26: =-'App.2-B_FA Cont MIFRS 2012'!K26 -> 29018 | L26: -0.2235294118 | M26: 2813.552941 | O26: 30424.55294
A27: 1845 | B27: Underground Conductors & Devices | C27: 6197090 | D27: 368494 | E27: =+C27/124218 -> 49.88882449 | F27: 60 | G27: 0.01666666667 | H27: 124218 | I27: 3070.783333 | J27: 127288.7833 | K27: =-'App.2-B_FA Cont MIFRS 2012'!K27 -> 127289 | L27: -0.2166666667 | M27: 6141.566667 | O27: 130359.5667
A28: 1850 | B28: Line Transformers | C28: 5316092 | D28: 504230 | E28: =+C28/210065 -> 25.30689072 | F28: 40 | G28: 0.025 | H28: 210065 | I28: 6302.875 | J28: 216367.875 | K28: =-'App.2-B_FA Cont MIFRS 2012'!K28 -> 216368 | L28: -0.125 | M28: 12605.75 | O28: 222670.75
A29: 1855 | B29: Services (Overhead & Underground) | C29: 3115662 | D29: 527103 | E29: =+C29/71504 -> 43.57325464 | F29: 55 | G29: 0.01818181818 | H29: 71504 | I29: 4791.845455 | J29: 76295.84545 | K29: =-'App.2-B_FA Cont MIFRS 2012'!K29 -> 76296 | L29: -0.1545454545 | M29: 9583.690909 | O29: 81087.69091
A30: 1860 | B30: Meters | C30: 1225937 | E30: =+C30/50089 -> 24.47517419 | F30: 30 | G30: 0.03333333333 | H30: 50089 | I30: 0 | J30: 50089 | K30: =-'App.2-B_FA Cont MIFRS 2012'!K30 -> 50089 | L30: 0 | M30: 0 | O30: 50089
A31: 1860 | B31: Meters (Smart Meters) | C31: 103522 | D31: 29737 | E31: =+C31/7047 -> 14.69022279 | F31: 15 | G31: 0.06666666667 | H31: 7047 | I31: 991.2333333 | J31: 8038.233333 | K31: =-'App.2-B_FA Cont MIFRS 2012'!K31 -> 8038 | L31: 0.2333333333 | M31: 1982.466667 | O31: 9029.466667
A32: 1905 | B32: Land | D32: =+'App.2-B_Fixed Asset Cont 2012'!F32 -> 0 | G32: 0 | H32: 0 | I32: 0 | J32: 0 | K32: =-'App.2-B_FA Cont MIFRS 2012'!K32 -> 0 | L32: 0 | M32: 0 | O32: 0
A33: 1908 | B33: Buildings & Fixtures | D33: =+'App.2-B_Fixed Asset Cont 2012'!F33 -> 0 | G33: 0 | H33: 0 | I33: 0 | J33: 0 | K33: =-'App.2-B_FA Cont MIFRS 2012'!K33 -> 0 | L33: 0 | M33: 0 | O33: 0
A34: 1910 | B34: Leasehold Improvements | D34: =+'App.2-B_Fixed Asset Cont 2012'!F34 -> 0 | G34: 0 | H34: 0 | I34: 0 | J34: 0 | K34: =-'App.2-B_FA Cont MIFRS 2012'!K34 -> 0 | L34: 0 | M34: 0 | O34: 0
A35: 1915 | B35: Office Furniture & Equipment (10 years) | C35: 76448 | D35: =+'App.2-B_Fixed Asset Cont 2012'!F35 -> 5000 | E35: =+C35/7645 -> 9.999738391 | F35: 10 | G35: 0.1 | H35: 7645 | I35: 250 | J35: 7895 | K35: =-'App.2-B_FA Cont MIFRS 2012'!K35 -> 7895 | L35: 0 | M35: 500 | O35: 8145
A36: 1915 | B36: Office Furniture & Equipment (5 years) | D36: =+'App.2-B_Fixed Asset Cont 2012'!F36 -> 0 | G36: 0 | H36: 0 | I36: 0 | J36: 0 | K36: =-'App.2-B_FA Cont MIFRS 2012'!K36 -> 0 | L36: 0 | M36: 0 | O36: 0
A37: 1920 | B37: Computer Equipment - Hardware | D37: =+'App.2-B_Fixed Asset Cont 2012'!F37 -> 0 | G37: 0 | H37: 0 | I37: 0 | J37: 0 | K37: =-'App.2-B_FA Cont MIFRS 2012'!K37 -> 0 | L37: 0 | M37: 0 | O37: 0
A38: 1920 | B38: Computer Equip.-Hardware(Post Mar. 22/04) | D38: =+'App.2-B_Fixed Asset Cont 2012'!F38 -> 0 | G38: 0 | H38: 0 | I38: 0 | J38: 0 | K38: =-'App.2-B_FA Cont MIFRS 2012'!K38 -> 0 | L38: 0 | M38: 0 | O38: 0
A39: 1920 | B39: Computer Equip.-Hardware(Post Mar. 19/07) | C39: 75389 | D39: =+'App.2-B_Fixed Asset Cont 2012'!F39 -> 22000 | E39: =+C39/15078 -> 4.999933678 | F39: 5 | G39: 0.2 | H39: 15078 | I39: 2200 | J39: 17278 | K39: =-'App.2-B_FA Cont MIFRS 2012'!K39 -> 17278 | L39: 0 | M39: 4400 | O39: 19478
A40: 1925 | B40: Computer Software (Formally known as Account 1925) | C40: 130884 | D40: =+'App.2-B_Fixed Asset Cont 2012'!F40 -> 50000 | E40: =+C40/31848 -> 4.109645818 | F40: 5 | G40: =IF(F40=0,0,1/F40) -> 0.2 | H40: =IF(E40=0,0,+C40/E40) -> 31848 | I40: =IF(F40=0,0,+(D40*0.5)/F40) -> 5000 | J40: =IF(ISERROR(+H40+I40), 0, +H40+I40) -> 36848 | K40: =-'App.2-B_FA Cont MIFRS 2012'!K40 -> 36848 | L40: =IF(ISERROR(+J40-K40), 0, +J40-K40) -> 0 | M40: =IF(F40=0,0,+(D40)/F40) -> 10000 | N40: -1612 | O40: 43460
A41: 1930 | B41: Transportation Equipment | C41: 794677 | D41: =+'App.2-B_Fixed Asset Cont 2012'!F41 -> 450000 | E41: =+C41/79893 -> 9.9467663 | F41: 12.5 | G41: 0.08 | H41: 79893 | I41: 18000 | J41: 97893 | K41: =-'App.2-B_FA Cont MIFRS 2012'!K41 -> 97893 | L41: 0 | M41: 36000 | N41: 2918 | O41: 112975
A42: 1935 | B42: Stores Equipment | C42: 58871 | D42: =+'App.2-B_Fixed Asset Cont 2012'!F42 -> 0 | E42: =+C42/5887 -> 10.00016987 | F42: 10 | G42: 0.1 | H42: 5887 | I42: 0 | J42: 5887 | K42: =-'App.2-B_FA Cont MIFRS 2012'!K42 -> 5887 | L42: 0 | M42: 0 | O42: 5887
A43: 1940 | B43: Tools, Shop & Garage Equipment | C43: 112401 | D43: =+'App.2-B_Fixed Asset Cont 2012'!F43 -> 72000 | E43: 10 | F43: 10 | G43: 0.1 | H43: 11240.1 | I43: 3600 | J43: 14840.1 | K43: =-'App.2-B_FA Cont MIFRS 2012'!K43 -> 14840 | L43: 0.1 | M43: 7200 | O43: 18440.1
A44: 1945 | B44: Measurement & Testing Equipment | C44: 32554 | D44: =+'App.2-B_Fixed Asset Cont 2012'!F44 -> 0 | E44: 10 | F44: 10 | G44: 0.1 | H44: 3255.4 | I44: 0 | J44: 3255.4 | K44: =-'App.2-B_FA Cont MIFRS 2012'!K44 -> 3255 | L44: 0.4 | M44: 0 | O44: 3255.4
A45: 1950 | B45: Power Operated Equipment | C45: 51905 | D45: =+'App.2-B_Fixed Asset Cont 2012'!F45 -> 0 | E45: 10 | F45: 10 | G45: 0.1 | H45: 5190.5 | I45: 0 | J45: 5190.5 | K45: =-'App.2-B_FA Cont MIFRS 2012'!K45 -> 5190 | L45: 0.5 | M45: 0 | O45: 5190.5
A46: 1955 | B46: Communications Equipment | C46: 70183 | D46: =+'App.2-B_Fixed Asset Cont 2012'!F46 -> 0 | E46: =+C46/8288 -> 8.468026062 | F46: 10 | G46: 0.1 | H46: 8288 | I46: 0 | J46: 8288 | K46: =-'App.2-B_FA Cont MIFRS 2012'!K46 -> 8288 | L46: 0 | M46: 0 | O46: 8288
A47: 1955 | B47: Communication Equipment (Smart Meters) | D47: =+'App.2-B_Fixed Asset Cont 2012'!F47 -> 0 | G47: 0 | H47: 0 | I47: 0 | J47: 0 | K47: =-'App.2-B_FA Cont MIFRS 2012'!K47 -> 0 | L47: 0 | M47: 0 | O47: 0
A48: 1960 | B48: Miscellaneous Equipment | C48: 14623 | D48: =+'App.2-B_Fixed Asset Cont 2012'!F48 -> 40000 | E48: 10 | F48: 10 | G48: 0.1 | H48: 1462.3 | I48: 2000 | J48: 3462.3 | K48: =-'App.2-B_FA Cont MIFRS 2012'!K48 -> 3462 | L48: 0.3 | M48: 4000 | O48: 5462.3
A49: 1975 | B49: Load Management Controls Utility Premises | D49: =+'App.2-B_Fixed Asset Cont 2012'!F49 -> 0 | G49: 0 | H49: 0 | I49: 0 | J49: 0 | K49: =-'App.2-B_FA Cont MIFRS 2012'!K49 -> 0 | L49: 0 | M49: 0 | O49: 0
A50: 1980 | B50: System Supervisor Equipment | D50: =+'App.2-B_Fixed Asset Cont 2012'!F50 -> 0 | G50: 0 | H50: 0 | I50: 0 | J50: 0 | K50: =-'App.2-B_FA Cont MIFRS 2012'!K50 -> 0 | L50: 0 | M50: 0 | O50: 0
A51: 1985 | B51: Miscellaneous Fixed Assets | D51: =+'App.2-B_Fixed Asset Cont 2012'!F51 -> 0 | G51: 0 | H51: 0 | I51: 0 | J51: 0 | K51: =-'App.2-B_FA Cont MIFRS 2012'!K51 -> 0 | L51: 0 | M51: 0 | O51: 0
A52: 1995 | B52: Contributions & Grants | C52: -6468651 | D52: =+'App.2-B_Fixed Asset Cont 2012'!F52 -> -433861 | E52: =6468651/136703 -> 47.31901275 | F52: 51.25 | G52: 0.01951219512 | H52: -136703 | I52: -4232.790244 | J52: -140935.7902 | K52: =-'App.2-B_FA Cont MIFRS 2012'!K52 -> -140936 | L52: 0.2097560976 | M52: -8465.580488 | O52: -145168.5805
A53: etc. | G53: 0 | H53: 0 | I53: 0 | J53: 0 | L53: 0 | M53: 0 | O53: 0
G54: 0 | H54: 0 | I54: 0 | J54: 0 | L54: 0 | M54: 0 | O54: 0
B55: Total | C55: =SUM(C16:C54) -> 29147131 | D55: =SUM(D16:D54) -> 3785095 | H55: =SUM(H16:H54) -> 1076467.3 | I55: 60150.57848 | J55: 1136617.878 | K55: 1136616 | L55: 1.878476103 | M55: 120301.157 | N55: =SUM(N16:N54) -> 74583 | O55: 1122185.457
A57: Notes:
A59: 1 | B59: Board policy of the "half-year" rule - the applicant must ensure that additions in the year attract a half-year depreciation expense in the first year. Deviations from this standard practice must be supported in the application.
A60: 2 | B60: The applicant must provide an explanation of material variances in evidence
A61: 3 | B61: The applicant should ensure that the years for new additions of assets are the asset useful lives determined by management in accordance with IFRS.
A62: 4 | B62: A recalculation should be performed to determine the average remaining life of opening balance of assets (i.e. excluding 2012 additions) under IFRS. For example, Asset A had a useful life of 20 years under CGAAP. On January 1, 2012, the date of transition, Asset A was 3 years depreciated. As a result, Asset A would have a remaining service life of 17 years (20 years less 3 years) under CGAAP as of January 1, 2012. Due to the transition to IFRS, management re-assessed the asset useful lives under IFRS principles and concluded that the revised useful life of Asset A is now 30 years. Therefore, the average remaining useful life of opening balance of Asset A is determined to be 27 years (30 years less 3 years) under IFRS as of January 1, 2012.
A63: 5 | B63: NBV must exclude assets still on the books but which have been fully amortized or depreciated.
A64: 6 | B64: This column refers to the calculated full year depreciation but excludes the depreciation expense on assets fully depreciated during the year. This column is used for the purpose of calculating depreciation expense in the following year on the next worksheet.
A66: General: | B66: Applicants must provide a breakdown of depreciation and amortization expense in the above format for all relevant accounts. Asset Retirement Obligations (AROs), depreciation and accretion expense should be disclosed separately consistent with the Notes of historical Audited Financial Statements.

Sheet App.2-CH_MIFRS_DepExp_2013
I1: File Number: | J1: ='LDC Info'!$E$18 -> EB2012-0176
I2: Exhibit:
I3: Tab:
I4: Schedule:
I5: Page:
I7: Date:
A9: Appendix 2-CH
A10: Depreciation and Amortization Expense
A11: Assumes the applicant adopted IFRS for financial reporting purposes January 1, 2013
C12: Year | D12: 2013 | E12: MIFRS
A14: Account | B14: Description | C14: Additions | D14: Years (new additions only) | E14: Depreciation Rate on New Additions | F14: 2013 Depreciation Expense 1 | G14: 2013 Depreciation Expense per Appendix 2-B Fixed Assets, Column K (l) | H14: Variance 2
C15: (d) | D15: (f) | E15: (g) = 1 / (f) | F15: (h)=2012 Full Year Depreciation + ((d)*0.5)/(f) | H15: (m) = (h) - (l)
A16: 1611 | B16: Computer Software (Formally known as Account 1925) | E16: =IF(D16=0,0,1/D16) -> 0 | F16: =IF(D16=0,'App.2-CG_MIFRS_DepExp_2012'!O16,+'App.2-CG_MIFRS_DepExp_2012'!O16+((C16*0.5)/D16)) -> 0 | H16: =IF(ISERROR(+F16-G16), 0, +F16-G16) -> 0
A17: 1612 | B17: Land Rights (Formally known as Account 1906) | E17: 0 | F17: =IF(D17=0,'App.2-CG_MIFRS_DepExp_2012'!O17,+'App.2-CG_MIFRS_DepExp_2012'!O17+((C17*0.5)/D17)) -> 0 | H17: 0
A18: 1805 | B18: Land | E18: 0 | F18: =IF(D18=0,'App.2-CG_MIFRS_DepExp_2012'!O18,+'App.2-CG_MIFRS_DepExp_2012'!O18+((C18*0.5)/D18)) -> 0 | H18: 0
A19: 1808 | B19: Buildings | C19: =+'App.2-B_FA Cont MIFRS 2013'!F19 -> 9000 | D19: =+'App.2-CG_MIFRS_DepExp_2012'!F19 -> 50 | E19: 0.02 | F19: =IF(D19=0,'App.2-CG_MIFRS_DepExp_2012'!O19,+'App.2-CG_MIFRS_DepExp_2012'!O19+((C19*0.5)/D19)) -> 50119 | G19: =-'App.2-B_FA Cont MIFRS 2013'!K19 -> 50119 | H19: 0
A20: 1810 | B20: Leasehold Improvements | C20: =+'App.2-B_FA Cont MIFRS 2013'!F20 -> 0 | D20: =+'App.2-CG_MIFRS_DepExp_2012'!F20 -> 0 | E20: 0 | F20: =IF(D20=0,'App.2-CG_MIFRS_DepExp_2012'!O20,+'App.2-CG_MIFRS_DepExp_2012'!O20+((C20*0.5)/D20)) -> 0 | G20: =-'App.2-B_FA Cont MIFRS 2013'!K20 -> 0 | H20: 0
A21: 1815 | B21: Transformer Station Equipment >50 kV | C21: =+'App.2-B_FA Cont MIFRS 2013'!F21 -> 0 | D21: =+'App.2-CG_MIFRS_DepExp_2012'!F21 -> 0 | E21: 0 | F21: =IF(D21=0,'App.2-CG_MIFRS_DepExp_2012'!O21,+'App.2-CG_MIFRS_DepExp_2012'!O21+((C21*0.5)/D21)) -> 0 | G21: =-'App.2-B_FA Cont MIFRS 2013'!K21 -> 0 | H21: 0
A22: 1820 | B22: Distribution Station Equipment <50 kV | C22: =+'App.2-B_FA Cont MIFRS 2013'!F22 -> 520121 | D22: =+'App.2-CG_MIFRS_DepExp_2012'!F22 -> 45 | E22: 0.02222222222 | F22: =IF(D22=0,'App.2-CG_MIFRS_DepExp_2012'!O22,+'App.2-CG_MIFRS_DepExp_2012'!O22+((C22*0.5)/D22)) -> 230731.9889 | G22: =-'App.2-B_FA Cont MIFRS 2013'!K22 -> 230732 | H22: -0.01111111115
A23: 1825 | B23: Storage Battery Equipment | C23: =+'App.2-B_FA Cont MIFRS 2013'!F23 -> 0 | D23: =+'App.2-CG_MIFRS_DepExp_2012'!F23 -> 0 | E23: 0 | F23: =IF(D23=0,'App.2-CG_MIFRS_DepExp_2012'!O23,+'App.2-CG_MIFRS_DepExp_2012'!O23+((C23*0.5)/D23)) -> 0 | G23: =-'App.2-B_FA Cont MIFRS 2013'!K23 -> 0 | H23: 0
A24: 1830 | B24: Poles, Towers & Fixtures | C24: =+'App.2-B_FA Cont MIFRS 2013'!F24 -> 781179 | D24: =+'App.2-CG_MIFRS_DepExp_2012'!F24 -> 60 | E24: 0.01666666667 | F24: =IF(D24=0,'App.2-CG_MIFRS_DepExp_2012'!O24,+'App.2-CG_MIFRS_DepExp_2012'!O24+((C24*0.5)/D24)) -> 114430.5917 | G24: =-'App.2-B_FA Cont MIFRS 2013'!K24 -> 114430 | H24: 0.5916666667
A25: 1835 | B25: Overhead Conductors & Devices | C25: =+'App.2-B_FA Cont MIFRS 2013'!F25 -> 748211 | D25: =+'App.2-CG_MIFRS_DepExp_2012'!F25 -> 65 | E25: 0.01538461538 | F25: =IF(D25=0,'App.2-CG_MIFRS_DepExp_2012'!O25,+'App.2-CG_MIFRS_DepExp_2012'!O25+((C25*0.5)/D25)) -> 135964.5462 | G25: =-'App.2-B_FA Cont MIFRS 2013'!K25 -> 135965 | H25: -0.4538461539
A26: 1840 | B26: Underground Conduit | C26: =+'App.2-B_FA Cont MIFRS 2013'!F26 -> 335057 | D26: =+'App.2-CG_MIFRS_DepExp_2012'!F26 -> 85 | E26: 0.01176470588 | F26: =IF(D26=0,'App.2-CG_MIFRS_DepExp_2012'!O26,+'App.2-CG_MIFRS_DepExp_2012'!O26+((C26*0.5)/D26)) -> 32395.47647 | G26: =-'App.2-B_FA Cont MIFRS 2013'!K26 -> 32396 | H26: -0.5235294118
A27: 1845 | B27: Underground Conductors & Devices | C27: =+'App.2-B_FA Cont MIFRS 2013'!F27 -> 404073 | D27: =+'App.2-CG_MIFRS_DepExp_2012'!F27 -> 60 | E27: 0.01666666667 | F27: =IF(D27=0,'App.2-CG_MIFRS_DepExp_2012'!O27,+'App.2-CG_MIFRS_DepExp_2012'!O27+((C27*0.5)/D27)) -> 133726.8417 | G27: =-'App.2-B_FA Cont MIFRS 2013'!K27 -> 133727 | H27: -0.1583333333
A28: 1850 | B28: Line Transformers | C28: =+'App.2-B_FA Cont MIFRS 2013'!F28 -> 529371 | D28: =+'App.2-CG_MIFRS_DepExp_2012'!F28 -> 40 | E28: 0.025 | F28: =IF(D28=0,'App.2-CG_MIFRS_DepExp_2012'!O28,+'App.2-CG_MIFRS_DepExp_2012'!O28+((C28*0.5)/D28)) -> 229287.8875 | G28: =-'App.2-B_FA Cont MIFRS 2013'!K28 -> 229328 | H28: -40.1125
A29: 1855 | B29: Services (Overhead & Underground) | C29: =+'App.2-B_FA Cont MIFRS 2013'!F29 -> 532665 | D29: =+'App.2-CG_MIFRS_DepExp_2012'!F29 -> 55 | E29: 0.01818181818 | F29: =IF(D29=0,'App.2-CG_MIFRS_DepExp_2012'!O29,+'App.2-CG_MIFRS_DepExp_2012'!O29+((C29*0.5)/D29)) -> 85930.1 | G29: =-'App.2-B_FA Cont MIFRS 2013'!K29 -> 85957 | H29: -26.9
A30: 1860 | B30: Meters | C30: =+'App.2-B_FA Cont MIFRS 2013'!F30 -> 0 | D30: =+'App.2-CG_MIFRS_DepExp_2012'!F30 -> 30 | E30: 0.03333333333 | F30: =IF(D30=0,'App.2-CG_MIFRS_DepExp_2012'!O30,+'App.2-CG_MIFRS_DepExp_2012'!O30+((C30*0.5)/D30)) -> 50089 | G30: =-'App.2-B_FA Cont MIFRS 2013'!K30 -> 50099 | H30: -10
A31: 1860 | B31: Meters (Smart Meters) | C31: =+'App.2-B_FA Cont MIFRS 2013'!F31 -> 168851 | D31: =+'App.2-CG_MIFRS_DepExp_2012'!F31 -> 15 | E31: 0.06666666667 | F31: =IF(D31=0,'App.2-CG_MIFRS_DepExp_2012'!O31,+'App.2-CG_MIFRS_DepExp_2012'!O31+((C31*0.5)/D31)) -> 14657.83333 | G31: =-'App.2-B_FA Cont MIFRS 2013'!K31 -> 14566 | H31: 91.83333333
A32: 1905 | B32: Land | C32: =+'App.2-B_FA Cont MIFRS 2013'!F32 -> 0 | D32: =+'App.2-CG_MIFRS_DepExp_2012'!F32 -> 0 | E32: 0 | F32: =IF(D32=0,'App.2-CG_MIFRS_DepExp_2012'!O32,+'App.2-CG_MIFRS_DepExp_2012'!O32+((C32*0.5)/D32)) -> 0 | G32: =-'App.2-B_FA Cont MIFRS 2013'!K32 -> 0 | H32: 0
A33: 1908 | B33: Buildings & Fixtures | C33: =+'App.2-B_FA Cont MIFRS 2013'!F33 -> 0 | D33: =+'App.2-CG_MIFRS_DepExp_2012'!F33 -> 0 | E33: 0 | F33: =IF(D33=0,'App.2-CG_MIFRS_DepExp_2012'!O33,+'App.2-CG_MIFRS_DepExp_2012'!O33+((C33*0.5)/D33)) -> 0 | G33: =-'App.2-B_FA Cont MIFRS 2013'!K33 -> 0 | H33: 0
A34: 1910 | B34: Leasehold Improvements | C34: =+'App.2-B_FA Cont MIFRS 2013'!F34 -> 0 | D34: =+'App.2-CG_MIFRS_DepExp_2012'!F34 -> 0 | E34: 0 | F34: =IF(D34=0,'App.2-CG_MIFRS_DepExp_2012'!O34,+'App.2-CG_MIFRS_DepExp_2012'!O34+((C34*0.5)/D34)) -> 0 | G34: =-'App.2-B_FA Cont MIFRS 2013'!K34 -> 0 | H34: 0
A35: 1915 | B35: Office Furniture & Equipment (10 years) | C35: =+'App.2-B_FA Cont MIFRS 2013'!F35 -> 2000 | D35: =+'App.2-CG_MIFRS_DepExp_2012'!F35 -> 10 | E35: 0.1 | F35: =IF(D35=0,'App.2-CG_MIFRS_DepExp_2012'!O35,+'App.2-CG_MIFRS_DepExp_2012'!O35+((C35*0.5)/D35)) -> 8245 | G35: =-'App.2-B_FA Cont MIFRS 2013'!K35 -> 8245 | H35: 0
A36: 1915 | B36: Office Furniture & Equipment (5 years) | C36: =+'App.2-B_FA Cont MIFRS 2013'!F36 -> 0 | D36: =+'App.2-CG_MIFRS_DepExp_2012'!F36 -> 0 | E36: 0 | F36: =IF(D36=0,'App.2-CG_MIFRS_DepExp_2012'!O36,+'App.2-CG_MIFRS_DepExp_2012'!O36+((C36*0.5)/D36)) -> 0 | G36: =-'App.2-B_FA Cont MIFRS 2013'!K36 -> 0 | H36: 0
A37: 1920 | B37: Computer Equipment - Hardware | C37: =+'App.2-B_FA Cont MIFRS 2013'!F37 -> 0 | D37: =+'App.2-CG_MIFRS_DepExp_2012'!F37 -> 0 | E37: 0 | F37: =IF(D37=0,'App.2-CG_MIFRS_DepExp_2012'!O37,+'App.2-CG_MIFRS_DepExp_2012'!O37+((C37*0.5)/D37)) -> 0 | G37: =-'App.2-B_FA Cont MIFRS 2013'!K37 -> 0 | H37: 0
A38: 1920 | B38: Computer Equip.-Hardware(Post Mar. 22/04) | C38: =+'App.2-B_FA Cont MIFRS 2013'!F38 -> 0 | D38: =+'App.2-CG_MIFRS_DepExp_2012'!F38 -> 0 | E38: 0 | F38: =IF(D38=0,'App.2-CG_MIFRS_DepExp_2012'!O38,+'App.2-CG_MIFRS_DepExp_2012'!O38+((C38*0.5)/D38)) -> 0 | G38: =-'App.2-B_FA Cont MIFRS 2013'!K38 -> 0 | H38: 0
A39: 1920 | B39: Computer Equip.-Hardware(Post Mar. 19/07) | C39: =+'App.2-B_FA Cont MIFRS 2013'!F39 -> 28600 | D39: =+'App.2-CG_MIFRS_DepExp_2012'!F39 -> 5 | E39: 0.2 | F39: =IF(D39=0,'App.2-CG_MIFRS_DepExp_2012'!O39,+'App.2-CG_MIFRS_DepExp_2012'!O39+((C39*0.5)/D39)) -> 22338 | G39: =-'App.2-B_FA Cont MIFRS 2013'!K39 -> 22337 | H39: 1
A40: 1925 | B40: Computer Software (Formally known as Account 1925) | C40: =+'App.2-B_FA Cont MIFRS 2013'!F40 -> 45000 | D40: 5 | E40: =IF(D40=0,0,1/D40) -> 0.2 | F40: =IF(D40=0,'App.2-CG_MIFRS_DepExp_2012'!O40,+'App.2-CG_MIFRS_DepExp_2012'!O40+((C40*0.5)/D40)) -> 47960 | G40: =-'App.2-B_FA Cont MIFRS 2013'!K40 -> 47960 | H40: =IF(ISERROR(+F40-G40), 0, +F40-G40) -> 0
A41: 1930 | B41: Transportation Equipment | C41: =+'App.2-B_FA Cont MIFRS 2013'!F41 -> 400000 | D41: 15 | E41: 0.06666666667 | F41: =IF(D41=0,'App.2-CG_MIFRS_DepExp_2012'!O41,+'App.2-CG_MIFRS_DepExp_2012'!O41+((C41*0.5)/D41)) -> 126308.3333 | G41: =-'App.2-B_FA Cont MIFRS 2013'!K41 -> 126308 | H41: 0.3333333333
A42: 1935 | B42: Stores Equipment | C42: =+'App.2-B_FA Cont MIFRS 2013'!F42 -> 0 | D42: =+'App.2-CG_MIFRS_DepExp_2012'!F42 -> 10 | E42: 0.1 | F42: =IF(D42=0,'App.2-CG_MIFRS_DepExp_2012'!O42,+'App.2-CG_MIFRS_DepExp_2012'!O42+((C42*0.5)/D42)) -> 5887 | G42: =-'App.2-B_FA Cont MIFRS 2013'!K42 -> 5887 | H42: 0
A43: 1940 | B43: Tools, Shop & Garage Equipment | C43: =+'App.2-B_FA Cont MIFRS 2013'!F43 -> 72000 | D43: =+'App.2-CG_MIFRS_DepExp_2012'!F43 -> 10 | E43: 0.1 | F43: =IF(D43=0,'App.2-CG_MIFRS_DepExp_2012'!O43,+'App.2-CG_MIFRS_DepExp_2012'!O43+((C43*0.5)/D43)) -> 22040.1 | G43: =-'App.2-B_FA Cont MIFRS 2013'!K43 -> 22040 | H43: 0.1
A44: 1945 | B44: Measurement & Testing Equipment | C44: =+'App.2-B_FA Cont MIFRS 2013'!F44 -> 0 | D44: =+'App.2-CG_MIFRS_DepExp_2012'!F44 -> 10 | E44: 0.1 | F44: =IF(D44=0,'App.2-CG_MIFRS_DepExp_2012'!O44,+'App.2-CG_MIFRS_DepExp_2012'!O44+((C44*0.5)/D44)) -> 3255.4 | G44: =-'App.2-B_FA Cont MIFRS 2013'!K44 -> 3255 | H44: 0.4
A45: 1950 | B45: Power Operated Equipment | C45: =+'App.2-B_FA Cont MIFRS 2013'!F45 -> 0 | D45: =+'App.2-CG_MIFRS_DepExp_2012'!F45 -> 10 | E45: 0.1 | F45: =IF(D45=0,'App.2-CG_MIFRS_DepExp_2012'!O45,+'App.2-CG_MIFRS_DepExp_2012'!O45+((C45*0.5)/D45)) -> 5190.5 | G45: =-'App.2-B_FA Cont MIFRS 2013'!K45 -> 5190 | H45: 0.5
A46: 1955 | B46: Communications Equipment | C46: =+'App.2-B_FA Cont MIFRS 2013'!F46 -> 0 | D46: =+'App.2-CG_MIFRS_DepExp_2012'!F46 -> 10 | E46: 0.1 | F46: =IF(D46=0,'App.2-CG_MIFRS_DepExp_2012'!O46,+'App.2-CG_MIFRS_DepExp_2012'!O46+((C46*0.5)/D46)) -> 8288 | G46: =-'App.2-B_FA Cont MIFRS 2013'!K46 -> 8288 | H46: 0
A47: 1955 | B47: Communication Equipment (Smart Meters) | C47: =+'App.2-B_FA Cont MIFRS 2013'!F47 -> 0 | D47: =+'App.2-CG_MIFRS_DepExp_2012'!F47 -> 0 | E47: 0 | F47: =IF(D47=0,'App.2-CG_MIFRS_DepExp_2012'!O47,+'App.2-CG_MIFRS_DepExp_2012'!O47+((C47*0.5)/D47)) -> 0 | G47: =-'App.2-B_FA Cont MIFRS 2013'!K47 -> 0 | H47: 0
A48: 1960 | B48: Miscellaneous Equipment | C48: =+'App.2-B_FA Cont MIFRS 2013'!F48 -> 45000 | D48: =+'App.2-CG_MIFRS_DepExp_2012'!F48 -> 10 | E48: 0.1 | F48: =IF(D48=0,'App.2-CG_MIFRS_DepExp_2012'!O48,+'App.2-CG_MIFRS_DepExp_2012'!O48+((C48*0.5)/D48)) -> 7712.3 | G48: =-'App.2-B_FA Cont MIFRS 2013'!K48 -> 7712 | H48: 0.3
A49: 1975 | B49: Load Management Controls Utility Premises | C49: =+'App.2-B_FA Cont MIFRS 2013'!F49 -> 0 | D49: =+'App.2-CG_MIFRS_DepExp_2012'!F49 -> 0 | E49: 0 | F49: =IF(D49=0,'App.2-CG_MIFRS_DepExp_2012'!O49,+'App.2-CG_MIFRS_DepExp_2012'!O49+((C49*0.5)/D49)) -> 0 | G49: =-'App.2-B_FA Cont MIFRS 2013'!K49 -> 0 | H49: 0
A50: 1980 | B50: System Supervisor Equipment | C50: =+'App.2-B_FA Cont MIFRS 2013'!F50 -> 0 | D50: =+'App.2-CG_MIFRS_DepExp_2012'!F50 -> 0 | E50: 0 | F50: =IF(D50=0,'App.2-CG_MIFRS_DepExp_2012'!O50,+'App.2-CG_MIFRS_DepExp_2012'!O50+((C50*0.5)/D50)) -> 0 | G50: =-'App.2-B_FA Cont MIFRS 2013'!K50 -> 0 | H50: 0
A51: 1985 | B51: Miscellaneous Fixed Assets | C51: =+'App.2-B_FA Cont MIFRS 2013'!F51 -> 0 | D51: =+'App.2-CG_MIFRS_DepExp_2012'!F51 -> 0 | E51: 0 | F51: =IF(D51=0,'App.2-CG_MIFRS_DepExp_2012'!O51,+'App.2-CG_MIFRS_DepExp_2012'!O51+((C51*0.5)/D51)) -> 0 | G51: =-'App.2-B_FA Cont MIFRS 2013'!K51 -> 0 | H51: 0
A52: 1995 | B52: Contributions & Grants | C52: =+'App.2-B_FA Cont MIFRS 2013'!F52 -> -373740 | D52: =+'App.2-CG_MIFRS_DepExp_2012'!F52 -> 51.25 | E52: 0.01951219512 | F52: =IF(D52=0,'App.2-CG_MIFRS_DepExp_2012'!O52,+'App.2-CG_MIFRS_DepExp_2012'!O52+((C52*0.5)/D52)) -> -148814.8244 | G52: =-'App.2-B_FA Cont MIFRS 2013'!K52 -> -147888 | H52: -926.8243902
A53: etc. | E53: 0 | F53: =IF(D53=0,'App.2-CG_MIFRS_DepExp_2012'!O53,+'App.2-CG_MIFRS_DepExp_2012'!O53+((C53*0.5)/D53)) -> 0 | H53: 0
E54: 0 | F54: =IF(D54=0,'App.2-CG_MIFRS_DepExp_2012'!O54,+'App.2-CG_MIFRS_DepExp_2012'!O54+((C54*0.5)/D54)) -> 0 | H54: 0
B55: Total | C55: =SUM(C16:C54) -> 4247388 | F55: =SUM(F16:F54) -> 1185743.075 | G55: =SUM(G16:G54) -> 1186653 | H55: =SUM(H16:H54) -> -909.9253769
B56: Smart Meter Additions
B57: Meters (Smart Meters) | D57: =+D31 -> 15 | E57: =IF(D57=0,0,1/D57) -> 0.06666666667 | F57: 241743 | G57: =-'App.2-B_FA Cont MIFRS 2013'!K57 -> 241743 | H57: =IF(ISERROR(+F57-G57), 0, +F57-G57) -> 0
B58: Computer Hardware (Smart Meters) | D58: =+D39 -> 5 | E58: 0.2 | F58: 12575 | G58: =-'App.2-B_FA Cont MIFRS 2013'!K58 -> 12575 | H58: 0
B59: Computer Software (Smart Meters) | D59: =+D40 -> 5 | E59: 0.2 | F59: 54843 | G59: =-'App.2-B_FA Cont MIFRS 2013'!K59 -> 54843 | H59: 0
B60: Depreciation expense adjustment resulting from amortization of Account 1575 | F60: =+'App.2-EB_PP&E Deferral Account'!F39 -> 116677.25
B61: Total Depreciation expense to be included in the test year revenue requirement | F61: =SUM(F55:F60) -> 1611581.325
A63: Notes:
A64: 1 | B64: Board policy of the "half-year" rule - the applicant must ensure that additions in the year attract a half-year depreciation expense in the first year. Deviations from this standard practice must be supported in the application.
A65: 2 | B65: The applicant must provide an explanation of material variances in evidence
A68: General: | B68: Applicants must provide a breakdown of depreciation and amortization expense in the above format for all relevant accounts. Asset Retirement Obligations (AROs), depreciation and accretion expense should be disclosed separately consistent with the Notes of historical Audited Financial Statements.

Sheet App.2-CI_AltAccStd_DepExp (hidden)
K1: File Number: | L1: ='LDC Info'!$E$18 -> EB2012-0176
K2: Exhibit:
K3: Tab:
K4: Schedule:
K5: Page:
K7: Date:
A9: Appendix 2-CI
A10: Depreciation and Amortization Expense
A11: Assumes the applicant adopted an alternate accounting standard other than IFRS for financial reporting purposes. For applicants adopting an Alternate Accounting Standard for financial reporting purposes January 1, 2012, applicants must complete 4 versions of the table below (2011 CGAAP, 2011 Alternate Accounting Standard, 2012 Alternate Accounting Standard and 2013 Alternate Accounting Standard). For applicants adopting an Alternate Accounting Standard for financial reporting purposes January 1, 2013, applicants must complete 4 versions of the table below (2011 CGAAP, 2012 CGAAP, 2012 Alternate Accounting Standard and 2013 Alternate Accounting Standard).
B12: Year | E12: Accounting Standard
A14: Account | B14: Description | C14: Opening Regulatory Gross PP&E | D14: Less Fully Depreciated | E14: Net for Depreciation | F14: Additions | G14: Total for Depreciation | H14: Years | I14: Depreciation Rate | J14: Depreciation Expense | K14: Depreciation Expense per Appendix 2-B Fixed Assets, Column K (l) | L14: Variance 2
C15: (a) | D15: (b) | E15: (c) | F15: (d) | G15: (e) = (c) + ½ x (d) 1 | H15: (f) | I15: (g) = 1 / (f) | J15: (h) = (e) / (f) | L15: (m) = (h) - (l)
A16: 1611 | B16: Computer Software (Formally known as Account 1925) | E16: =C16-D16 -> 0 | G16: =E16+0.5*F16 -> 0 | I16: =IF(H16=0,0,1/H16) -> 0 | J16: =IF(H16=0,0,G16/H16) -> 0 | L16: =IF(ISERROR(+J16-K16), 0, +J16-K16) -> 0
A17: 1612 | B17: Land Rights (Formally known as Account 1906) | E17: =C17-D17 -> 0 | G17: =E17+0.5*F17 -> 0 | I17: 0 | J17: 0 | L17: 0
A18: 1805 | B18: Land | E18: 0 | G18: 0 | I18: 0 | J18: 0 | L18: 0
A19: 1808 | B19: Buildings | E19: 0 | G19: 0 | I19: 0 | J19: 0 | L19: 0
A20: 1810 | B20: Leasehold Improvements | E20: 0 | G20: 0 | I20: 0 | J20: 0 | L20: 0
A21: 1815 | B21: Transformer Station Equipment >50 kV | E21: 0 | G21: 0 | I21: 0 | J21: 0 | L21: 0
A22: 1820 | B22: Distribution Station Equipment <50 kV | E22: 0 | G22: 0 | I22: 0 | J22: 0 | L22: 0
A23: 1825 | B23: Storage Battery Equipment | E23: 0 | G23: 0 | I23: 0 | J23: 0 | L23: 0
A24: 1830 | B24: Poles, Towers & Fixtures | E24: 0 | G24: 0 | I24: 0 | J24: 0 | L24: 0
A25: 1835 | B25: Overhead Conductors & Devices | E25: 0 | G25: 0 | I25: 0 | J25: 0 | L25: 0
A26: 1840 | B26: Underground Conduit | E26: 0 | G26: 0 | I26: 0 | J26: 0 | L26: 0
A27: 1845 | B27: Underground Conductors & Devices | E27: 0 | G27: 0 | I27: 0 | J27: 0 | L27: 0
A28: 1850 | B28: Line Transformers | E28: 0 | G28: 0 | I28: 0 | J28: 0 | L28: 0
A29: 1855 | B29: Services (Overhead & Underground) | E29: 0 | G29: 0 | I29: 0 | J29: 0 | L29: 0
A30: 1860 | B30: Meters | E30: 0 | G30: 0 | I30: 0 | J30: 0 | L30: 0
A31: 1860 | B31: Meters (Smart Meters) | E31: 0 | G31: 0 | I31: 0 | J31: 0 | L31: 0
A32: 1905 | B32: Land | E32: 0 | G32: 0 | I32: 0 | J32: 0 | L32: 0
A33: 1908 | B33: Buildings & Fixtures | E33: 0 | G33: 0 | I33: 0 | J33: 0 | L33: 0
A34: 1910 | B34: Leasehold Improvements | E34: 0 | G34: 0 | I34: 0 | J34: 0 | L34: 0
A35: 1915 | B35: Office Furniture & Equipment (10 years) | E35: 0 | G35: 0 | I35: 0 | J35: 0 | L35: 0
A36: 1915 | B36: Office Furniture & Equipment (5 years) | E36: 0 | G36: 0 | I36: 0 | J36: 0 | L36: 0
A37: 1920 | B37: Computer Equipment - Hardware | E37: 0 | G37: 0 | I37: 0 | J37: 0 | L37: 0
A38: 1920 | B38: Computer Equip.-Hardware(Post Mar. 22/04) | E38: 0 | G38: 0 | I38: 0 | J38: 0 | L38: 0
A39: 1920 | B39: Computer Equip.-Hardware(Post Mar. 19/07) | E39: 0 | G39: 0 | I39: 0 | J39: 0 | L39: 0
A40: 1930 | B40: Transportation Equipment | E40: 0 | G40: 0 | I40: 0 | J40: 0 | L40: 0
A41: 1935 | B41: Stores Equipment | E41: 0 | G41: 0 | I41: 0 | J41: 0 | L41: 0
A42: 1940 | B42: Tools, Shop & Garage Equipment | E42: 0 | G42: 0 | I42: 0 | J42: 0 | L42: 0
A43: 1945 | B43: Measurement & Testing Equipment | E43: 0 | G43: 0 | I43: 0 | J43: 0 | L43: 0
A44: 1950 | B44: Power Operated Equipment | E44: 0 | G44: 0 | I44: 0 | J44: 0 | L44: 0
A45: 1955 | B45: Communications Equipment | E45: 0 | G45: 0 | I45: 0 | J45: 0 | L45: 0
A46: 1955 | B46: Communication Equipment (Smart Meters) | E46: 0 | G46: 0 | I46: 0 | J46: 0 | L46: 0
A47: 1960 | B47: Miscellaneous Equipment | E47: 0 | G47: 0 | I47: 0 | J47: 0 | L47: 0
A48: 1975 | B48: Load Management Controls Utility Premises | E48: 0 | G48: 0 | I48: 0 | J48: 0 | L48: 0
A49: 1980 | B49: System Supervisor Equipment | E49: 0 | G49: 0 | I49: 0 | J49: 0 | L49: 0
A50: 1985 | B50: Miscellaneous Fixed Assets | E50: 0 | G50: 0 | I50: 0 | J50: 0 | L50: 0
A51: 1995 | B51: Contributions & Grants | E51: 0 | G51: 0 | I51: 0 | J51: 0 | L51: 0
A52: etc. | E52: 0 | G52: 0 | I52: 0 | J52: 0 | L52: 0
E53: 0 | G53: 0 | I53: 0 | J53: 0 | L53: 0
B54: Total | C54: =SUM(C16:C53) -> 0 | D54: =SUM(D16:D53) -> 0 | E54: =SUM(E16:E53) -> 0 | F54: 0 | G54: 0 | J54: =SUM(J16:J53) -> 0 | K54: =SUM(K16:K53) -> 0 | L54: =SUM(L16:L53) -> 0
A56: Notes:
A58: 1 | B58: Board policy of the "half-year" rule - the applicant must ensure that additions in the year attract a half-year depreciation expense in the first year. Deviations from this standard practice must be supported in the application.
A59: 2 | B59: The applicant must provide an explanation of material variances in evidence
A62: General: | B62: Applicants must provide a breakdown of depreciation and amortization expense in the above format for all relevant accounts. Asset Retirement Obligations (AROs), depreciation and accretion expense should be disclosed separately consistent with the Notes of historical Audited Financial Statements.

Sheet App.2-D_Overhead
L1: File Number: | M1: ='LDC Info'!$E$18 -> EB2012-0176
L2: Exhibit:
L3: Tab:
L4: Schedule:
L5: Page:
L7: Date:
A9: Appendix 2-D
A10: Overhead Expense
A12: The following table should be completed based on the information requested below. An explanation should be provided for any blank entries. The entries should include overhead costs that are currently capitalized on self-constructed assets under MIFRS or an alternate accounting standard.
E13: (A) 1 | F13: (B) | G13: (C) | H13: (D) | I13: (E) 1 | J13: (F) | K13: (G)
A14: Nature of the Overhead Costs | E14: Dollar | F14: Dollar | G14: Dollar | H14: Dollar Impact - | I14: Dollar Impact - | J14: Directly | K14: Reasons why the overhead costs are allowed to be
E15: Impact on PP&E | F15: Impact on PP&E | G15: Impact on PP&E | H15: PP&E Variance | I15: PP&E Variance | J15: Attributable? | K15: capitalized under MIFRS or an alternate accounting
E16: Historic Year | F16: Bridge Year | G16: Test Year | H16: Test versus Bridge | I16: Test versus Historic | J16: (Y/N) | K16: standard given limitations on capitalized overhead
A17: employee benefits | F17: 61307 | G17: 67526 | H17: =+G17-F17 -> 6219 | I17: =+G17-E17 -> 67526 | J17: Y | K17: lineman labour hours - directly trackable to capital jobs
A18: costs of site preparation | H18: 0 | I18: 0 | K18: no overhead costs to be realized
A19: initial delivery and handling costs | F19: 29612 | G19: 30257 | H19: 645 | I19: 30257 | J19: N | K19: costs specifically tracked via time study that are directly attributable to capital jobs
A20: costs of testing whether the asset is functioning properly | H20: 0 | I20: 0 | K20: no overhead costs to be realized
A21: professional fees | H21: 0 | I21: 0 | K21: costs are directly charged to jobs. Therefore not overhead
H22: 0 | I22: 0
A23: costs of opening a new facility | H23: 0 | I23: 0 | K23: WPI does not have any new facilities
A24: costs of introducing a new product or service (including costs of advertising and promotional activities) | H24: 0 | I24: 0 | K24: WPI does not have any new costs or services
A25: costs of conducting business in a new location or with a new class of customer (including costs of staff training) | H25: 0 | I25: 0 | K25: WPI does not have any new locations or new customer classes
A26: administration and other general overhead costs | F26: 476956 | G26: 486329 | H26: 9373 | I26: 486329 | J26: N | K26: costs specifically tracked via time study that are directly attributable to capital jobs
H27: 0 | I27: 0
A28: costs for operation of trucks | F28: =386000*0.650477016478751 -> 251084.1284 | G28: 234300 | H28: -16784.12836 | I28: 234300 | J28: Y | K28: truck costs - directly trackable by labour hour
H29: 0 | I29: 0
A30: Total | E30: =SUM(E17:E29) -> 0 | F30: =SUM(F17:F29) -> 818959.1284 | G30: =SUM(G17:G29) -> 818412 | H30: =SUM(H17:H29) -> -547.1283608 | I30: =SUM(I17:I29) -> 818412
A33: The following table should be completed based on the information requested below. An explanation should be provided for any blank entries. The entries should include overhead costs that were capitalized on self-constructed assets under CGAAP but are no longer capitalized under MIFRS or an alternate accounting standard and are included in OM&A.
E34: (A) 1 | F34: (B) | G34: (C) | H34: (D) | I34: (E) 1 | J34: (F) | K34: (G)
A35: Nature of the Overhead Costs | E35: Dollar | F35: Dollar | G35: Dollar | H35: Dollar Impact - | I35: Dollar Impact - | J35: Directly | K35: Reasons why the overhead costs are not allowed to be
E36: Impact on OM&A | F36: Impact on OM&A | G36: Impact on OM&A | H36: OM&A Variance | I36: OM&A Variance | J36: Attributable? | K36: capitalized under MIFRS or an alternate accounting
E37: Historic Year | F37: Bridge Year | G37: Test Year | H37: Test versus Bridge | I37: Test versus Historic | J37: (Y/N) | K37: standard given limitations on capitalized overhead
A38: employee benefits | H38: =+G38-F38 -> 0 | I38: =+G38-E38 -> 0 | K38: these costs are permitted under MIFRS
A39: costs of site preparation | H39: =+G39-F39 -> 0 | I39: =+G39-E39 -> 0 | K39: no overhead costs to be realized
A40: initial delivery and handling costs | F40: 36772 | G40: 34683 | H40: =+G40-F40 -> -2089 | I40: =+G40-E40 -> 34683 | J40: N
A41: costs of testing whether the asset is functioning properly | H41: =+G41-F41 -> 0 | I41: =+G41-E41 -> 0 | K41: no overhead costs to be realized
A42: professional fees | H42: =+G42-F42 -> 0 | I42: =+G42-E42 -> 0 | K42: costs are directly charged to jobs. Therefore not overhead
A44: costs of opening a new facility | H44: =+G44-F44 -> 0 | I44: =+G44-E44 -> 0 | K44: WPI does not have any new facilities
A45: costs of introducing a new product or service (including costs of advertising and promotional activities) | H45: 0 | I45: 0 | K45: WPI does not have any new costs or services
A46: costs of conducting business in a new location or with a new class of customer (including costs of staff training) | H46: 0 | I46: 0 | K46: WPI does not have any new locations or new customer classes
A47: administration and other general overhead costs | F47: 150516 | G47: 136688 | H47: -13828 | I47: 136688 | J47: N | K47: these costs are not directly attributable and therefore specifically disallowed under MIFRS
H48: 0 | I48: 0
A49: Engineering Charges | F49: 474220 | G49: 419992 | H49: -54228 | I49: 419992 | J49: N | K49: these costs are not directly attributable and therefore specifically disallowed under MIFRS
A50: costs for operation of trucks | F50: -81900 | G50: -91800 | H50: -9900 | I50: -91800 | J50: Y | K50: this is a negative because under CGAAP, we did not include depreciation for truck depreciation and insurance but under MIFRS we do. Truck costs are directly trackable by labour hour.
A51: Total | E51: =SUM(E38:E50) -> 0 | F51: =SUM(F38:F50) -> 579608 | G51: =SUM(G38:G50) -> 499563 | H51: =SUM(H38:H50) -> -80045 | I51: =SUM(I38:I50) -> 499563
A53: Notes:
A54: 1 | B54: If the applicant chooses to adopt IFRS or an alternate accounting standard for financial reporting purposes in 2013, the applicant does not need to complete Columns A, E. If the applicant adopts IFRS or an alternate accounting standard for financial reporting purposes in 2012, the applicant must complete all columns.

Sheet App.2-EA_PP&E Deferral Account (hidden)
H1: File Number: | I1: ='LDC Info'!$E$18 -> EB2012-0176
H2: Exhibit:
H3: Tab:
H4: Schedule:
H5: Page:
H7: Date:
A9: Appendix 2-EA
A10: IFRS-CGAAP Transitional PP&E Amounts
A11: 2012 Adopters of IFRS for Financial Reporting Purposes
A13: For applicants that adopt IFRS on January 1, 2012 for financial reporting purposes
A15: Note: this sheet should be filled out if the applicant adopts IFRS for its financial reporting purpose as of January 1, 2012.
B17: 2009 Rebasing Year | C17: 2010 | D17: 2011 | E17: 2012 | F17: 2013 Rebasing Year | G17: 2014 | H17: 2015 | I17: 2016
A18: Reporting Basis | B18: CGAAP | C18: IRM | D18: IRM | E18: IRM | F18: MIFRS | G18: IRM | H18: IRM | I18: IRM
A19: Forecast vs. Actual Used in Rebasing Year | B19: Forecast | C19: Actual | D19: Actual | E19: Forecast | F19: Forecast
D20: $ | E20: $
A21: PP&E Values under CGAAP
A22: Opening net PP&E - Note 1
A23: Additions
A24: Depreciation (amounts should be negative)
A25: Closing net PP&E (1) | D25: =D22+D23+D24 -> 0 | E25: =E22+E23+E24 -> 0
A27: PP&E Values under MIFRS (Starts from 2011, the transition year)
A28: Opening net PP&E - Note 1
A29: Additions
A30: Depreciation (amounts should be negative)
A31: Closing net PP&E (2) | D31: =SUM(D28:D30) -> 0 | E31: =SUM(E28:E30) -> 0
A33: Difference in Closing net PP&E, CGAAP vs. MIFRS (Shown as adjustment to rate base on rebasing) | D33: =D25-D31 -> 0 | E33: =E25-E31 -> 0
A35: Account 1575 - IFRS-CGAAP Transitional PP&E Amounts
A36: Opening balance | D36: 0 | E36: =D40 -> 0 | F36: =E40 -> 0 | G36: =F40 -> 0 | H36: =G40 -> 0 | I36: =H40 -> 0
A37: Amounts added in the year | D37: =D33 -> 0 | E37: =E33-D33 -> 0
A38: Sub-total | D38: =D36+D37 -> 0 | E38: 0 | F38: 0 | G38: 0 | H38: 0 | I38: 0
A39: Amount of amortization, included in depreciation expense - Note 2 | F39: =IF(ISERROR(-E33/I44), 0, -E33/I44) -> 0 | G39: =+F39 -> 0 | H39: =+F39 -> 0 | I39: =+F39 -> 0
A40: Closing balance in deferral account | D40: =D38+D39 -> 0 | E40: 0 | F40: =IF(ISERROR(F38+F39), 0, F38+F39) -> 0 | G40: 0 | H40: 0 | I40: 0
A42: Effect on Revenue Requirement
A43: Amortization of deferred balance as above - Note 2 | F43: =IF(ISERROR(E33/I44), 0, E33/I44) -> 0 | H43: WACC
A44: Return on Rate Base Associated with deferred PP&E balance at WACC - Note 3 | F44: =E33*I43 -> 0 | H44: Disposition Period - Note 4 | I44: 4 | J44: Years
A45: Amount included in Revenue Requirement on rebasing | F45: =F43+F44 -> 0
A47: Notes:
A48: 1 For an applicant that adopts IFRS on January 1, 2012, the PP&E values as of January 1, 2011 under both CGAAP and MIFRS should be the same.
A49: 2 Amortization of the deferred balance in Account 1575 will start from the rebasing year.
A50: Assume the utility requests for a certain disposition period, the amortization that should be included in the depreciation expense is calculated as:
A51: the opening balance of Account 1575 / the approved disposition period
A52: 3 Return on rate base associated with deferred balance is calculated as:
A53: the deferred account opening balance as of 2013 rebasing year x WACC
A54: * Please note that the calculation should be adjusted once WACC is updated and finalized in the rate application.
A55: 4 Consistent with the 4 year normal rate cycle, the model is using a 4 year amortization period as a default selection to "clear" the PP&E deferral account through a one-time adjustment to ratebase to capture and remove the impact of the accounting policy changes as caused by the transition from CGAAP to MIFRS.

Sheet App.2-EB_PP&E Deferral Account
H1: File Number: | I1: ='LDC Info'!$E$18 -> EB2012-0176
H2: Exhibit:
H3: Tab:
H4: Schedule:
H5: Page:
H7: Date:
A9: Appendix 2-EB
A10: IFRS-CGAAP Transitional PP&E Amounts
A11: 2013 Adopters of IFRS for Financial Reporting Purposes
A13: For applicants that adopt IFRS on January 1, 2013 for financial reporting purposes
A15: Note: this sheet should be filled out if the applicant adopts IFRS for its financial reporting purpose as of January 1, 2013.
B17: 2009 Rebasing Year | C17: 2010 | D17: 2011 | E17: 2012 | F17: 2013 Rebasing Year | G17: 2014 | H17: 2015 | I17: 2016
A18: Reporting Basis | B18: CGAAP | C18: IRM | D18: IRM | E18: IRM | F18: MIFRS | G18: IRM | H18: IRM | I18: IRM
A19: Forecast vs. Actual Used in Rebasing Year | B19: Forecast | C19: Actual | D19: Actual | E19: Forecast | F19: Forecast
D20: $ | E20: $ | F20: $ | G20: $ | H20: $ | I20: $
A21: PP&E Values under CGAAP
A22: Opening net PP&E - Note 1 | C22: =+B25 -> 27424582 | D22: =+C25 -> 28311060.25 | E22: =+D25 -> 29827326.54 | F22: =+E25 -> 32076125.54
A23: Additions | C23: =+'App.2-B_Fixed Asset Cont 2010'!F55 -> 2741802.22 | D23: =+'App.2-B_Fixed Asset Cont 2011'!F55 -> 3527103.22 | E23: =+'App.2-B_Fixed Asset Cont 2012'!F55 -> 4458595 | F23: =+'App.2-B_Fixed Asset Cont 2013'!F60 -> 5148418
A24: Depreciation (amounts should be negative) | C24: =+'App.2-B_Fixed Asset Cont 2010'!K55 -> -1855323.97 | D24: =+'App.2-B_Fixed Asset Cont 2011'!K55 -> -2010836.93 | E24: =+'App.2-B_Fixed Asset Cont 2012'!K55 -> -2209796 | F24: =+'App.2-B_Fixed Asset Cont 2013'!K60 -> -2715462
A25: Closing net PP&E (1) | B25: 27424582 | C25: =SUM(C22:C24) -> 28311060.25 | D25: =SUM(D22:D24) -> 29827326.54 | E25: =SUM(E22:E24) -> 32076125.54 | F25: =SUM(F22:F24) -> 34509081.54
A27: PP&E Values under MIFRS (Starts from 2012, the transition year)
A28: Opening net PP&E - Note 1 | C28: =+C22 -> 27424582 | D28: =+D22 -> 28311060.25 | E28: =+D31 -> 29827326.54 | F28: =+E31 -> 32542834.54
A29: Additions | C29: =+C23 -> 2741802.22 | D29: 3527103.22 | E29: =+'App.2-B_FA Cont MIFRS 2012'!F55 -> 3852124 | F29: =+'App.2-B_FA Cont MIFRS 2013'!F60 -> 4247388
A30: Depreciation (amounts should be negative) | C30: -1855323.97 | D30: -2010836.93 | E30: =+'App.2-B_FA Cont MIFRS 2012'!K55 -> -1136616 | F30: =+'App.2-B_FA Cont MIFRS 2013'!K60 -> -1495814
A31: Closing net PP&E (2) | B31: =+B25 -> 27424582 | C31: 28311060.25 | D31: 29827326.54 | E31: =SUM(E28:E30) -> 32542834.54 | F31: =SUM(F28:F30) -> 35294408.54
A33: Difference in Closing net PP&E, CGAAP vs. MIFRS (Shown as adjustment to rate base on rebasing) | E33: =E25-E31 -> -466709
A35: Account 1575 - IFRS-CGAAP Transitional PP&E Amounts
A36: Opening balance | E36: =D40 -> 0 | F36: =E40 -> -466709 | G36: =F40 -> -350031.75 | H36: =G40 -> -233354.5 | I36: =H40 -> -116677.25
A37: Amounts added in the year | E37: =E33-D33 -> -466709
A38: Sub-total | E38: =E36+E37 -> -466709 | F38: =F36+F37 -> -466709 | G38: =G36+G37 -> -350031.75 | H38: =H36+H37 -> -233354.5 | I38: =I36+I37 -> -116677.25
A39: Amount of amortization, included in depreciation expense - Note 2 | F39: =IF(ISERROR(-E33/I44), 0, -E33/I44) -> 116677.25 | G39: =+F39 -> 116677.25 | H39: =+F39 -> 116677.25 | I39: =+F39 -> 116677.25
A40: Closing balance in deferral account | E40: =E38+E39 -> -466709 | F40: =IF(ISERROR(F38+F39), 0, F38+F39) -> -350031.75 | G40: =G38+G39 -> -233354.5 | H40: =H38+H39 -> -116677.25 | I40: =I38+I39 -> 0
A42: Effect on Revenue Requirement
A43: Amortization of deferred balance as above - Note 2 | F43: =IF(ISERROR(E33/I44), 0, E33/I44) -> -116677.25 | H43: WACC | I43: 0.0697
A44: Return on Rate Base Associated with deferred PP&E balance at WACC - Note 3 | F44: =E33*I43 -> -32529.6173 | H44: Disposition Period - Note 4 | I44: 4 | J44: Years
A45: Amount included in Revenue Requirement on rebasing | F45: =F43+F44 -> -149206.8673
A47: Notes:
A48: 1 For an applicant that adopts IFRS on January 1, 2013, the PP&E values as of January 1, 2012 under both CGAAP and MIFRS should be the same.
A49: 2 Amortization of the deferred balance in Account 1575 will start from the rebasing year.
A50: Assume the utility requests for a certain disposition period, the amortization that should be included in the depreciation expense is calculated as:
A51: the opening balance of Account 1575 / the approved disposition period
A52: 3 Return on rate base associated with deferred balance is calculated as:
A53: the deferred account opening balance as of 2013 rebasing year x WACC
A54: * Please note that the calculation should be adjusted once WACC is updated and finalized in the rate application.
A55: 4 Consistent with the 4 year normal rate cycle, the model is using a 4 year amortization period as a default selection to "clear" the PP&E deferral account through a one-time adjustment to ratebase to capture and remove the impact of the accounting policy changes as caused by the transition from CGAAP to MIFRS.

Sheet App.2-F_Other_Oper_Rev
H1: File Number: | I1: ='LDC Info'!$E$18 -> EB2012-0176
H2: Exhibit:
H3: Tab:
H4: Schedule:
H5: Page:
H7: Date:
A12: Appendix 2-F
A13: Other Operating Revenue
A15: USoA # | B15: USoA Description | C15: =G16-3 & " Actual" -> 2009 Actual | D15: =G16-2 & " Actual" -> 2010 Actual | E15: =G16-1 & " Actual"& CHAR(178) -> 2011 Actual² | F15: =G16-1 & " Actual"& CHAR(178) -> 2011 Actual² | G15: ="Bridge Year" & CHAR(179) -> Bridge Year³ | H15: ="Bridge Year" & CHAR(179) -> Bridge Year³ | I15: Test Year
G16: ='LDC Info'!E26 -> 2012 | H16: ='LDC Info'!E26 -> 2012 | I16: ='LDC Info'!E28 -> 2013
B17: Reporting Basis | C17: CGAAP | D17: CGAAP | E17: CGAAP | F17: CGAAP | G17: CGAAP | H17: MIFRS | I17: MIFRS
A18: 4235 | B18: Specific Service Charges | C18: =C96 -> 161105 | D18: =D96 -> 150551 | E18: 126903 | F18: 0 | G18: 130321 | H18: 130321 | I18: 130636
A19: 4225 | B19: Late Payment Charges | C19: =C106 -> 80833.58 | D19: 83638.87 | E19: 95563.005 | F19: 0 | G19: 89685 | H19: 89685 | I19: =I106 -> 89685
A20: 4082 | B20: Retail Services Revenues | C20: =C84 -> 33183.2 | D20: =D84 -> 30429.1 | E20: 25671.8 | F20: 0 | G20: 20960 | H20: 20960 | I20: 19900
A21: 4080 | B21: Distribution Services Revenue | C21: 56468 | D21: 58073 | E21: 60111 | G21: 62625 | H21: 62625 | I21: 65756.25
A22: 4084 | B22: Service Transaction Requests (STR) Revenues | C22: =C68 -> 126246 | D22: =D68 -> 118361.5 | E22: 103948 | G22: 115200 | H22: 115200 | I22: 115125
A25: 4210 | B25: Specific Charge for Access to Power Poles | C25: 122947.35 | D25: 109649.1 | E25: 109626.75 | G25: 105000.3 | H25: 105000 | I25: 105000.3
B27: Other Income and Exp. | C27: =C118 -> 226448 | D27: =D118 -> 149161 | E27: 266026 | F27: 0 | G27: 79138 | H27: 79138 | I27: 71938
A28: 4405 | B28: Interest & Dividend Inc. | C28: 288156 | D28: 83143 | E28: 150880 | G28: 55000 | H28: 55000 | I28: 55000
A29: etc.
A34: Specific Service Charges | C34: =C18 -> 161105 | D34: 150551 | E34: 126903 | F34: =F18 -> 0 | G34: 130321 | H34: =H18 -> 130321 | I34: =I18 -> 130636
A35: Late Payment Charges | C35: 80833.58 | D35: 83638.87 | E35: 95563.005 | F35: =F19 -> 0 | G35: 89685 | H35: =H19 -> 89685 | I35: =I19 -> 89685
A36: Other Operating Revenues | C36: =C20+C21+C22+C25 -> 338844.55 | D36: =D20+D21+D22+D25 -> 316512.7 | E36: 299357.55 | F36: 0 | G36: 303785.3 | H36: 303785 | I36: 305781.55
A37: Other Income or Deductions | C37: =C27+C28 -> 514604 | D37: 232304 | E37: 416906 | F37: 0 | G37: 134138 | H37: 134138 | I37: =I27+I28 -> 126938
A38: Total | C38: =SUM(C34:C37) -> 1095387.13 | D38: 783006.57 | E38: 938729.555 | F38: 0 | G38: 657929.3 | H38: 657929 | I38: 653040.55
A40: Description | C40: Account(s)
A41: Specific Service Charges: | C41: 4235
A42: Late Payment Charges: | C42: 4225
A43: Other Distribution Revenues: | C43: 4080, 4082, 4084, 4090, 4205, 4210, 4215, 4220, 4240, 4245
A44: Other Income and Expenses: | C44: 4305, 4310, 4315, 4320, 4325, 4330, 4335, 4340, 4345, 4350, 4355, 4360, 4365, 4370, 4375, 4380, 4385, 4390, 4395, 4398, 4405, 4415
A47: Note: Add all applicable accounts listed above to the table and include all relevant information.
A48: The above table assumes adoption of MIFRS as of January 1, 2013. If the adoption year differs, please adjust the table accordingly.
A51: Account Breakdown Details
A53: For each "Other Operating Revenue" and "Other Income or Deductions" Account, a detailed breakdown of the account components is required. See the example below for Account 4405, Interest and Dividend Income.
A56: Account 4084 - Service Transaction Requests (STR) Revenues
C57: =C15 -> 2009 Actual | D57: =D15 -> 2010 Actual | E57: =E15 -> 2011 Actual² | F57: =F15 -> 2011 Actual² | G57: Bridge Year | H57: Bridge Year | I57: Test Year
C58: =IF(ISBLANK(C17), "", C17) -> CGAAP | D58: CGAAP | E58: CGAAP | G58: CGAAP | H58: MIFRS | I58: MIFRS
A59: Arrears Certificate | C59: 825 | D59: 450 | E59: 345 | G59: 225 | H59: 225 | I59: 150
A60: Statement of Account | C60: 1110 | D60: 480 | E60: 375 | G60: 225 | H60: 225 | I60: 225
A61: Income Tax Letter | C61: 30 | D61: 30 | E61: 60
A62: Notification Change | C62: 123465 | D62: 116235 | E62: 102300 | G62: 114000 | H62: 114000 | I62: 114000
A63: Service Transaction Request - request fee (per request) | C63: 329 | D63: 429.5 | E63: 309 | G63: 250 | H63: 250 | I63: 250
A64: Service Transaction Request - processing fee (per processed request) | C64: 487 | D64: 737 | E64: 559 | G64: 500 | H64: 500 | I64: 500
A68: Total | C68: =SUM(C59:C67) -> 126246 | D68: 118361.5 | E68: 103948 | F68: 0 | G68: 115200 | H68: 115200 | I68: 115125
A73: Appendix 2-F
A74: Other Operating Revenue
A76: Account 4082 - Retail Service Revenues
C77: =C15 -> 2009 Actual | D77: =D15 -> 2010 Actual | E77: 2011 Actual² | F77: 2011 Actual² | G77: Bridge Year³ | H77: Bridge Year³ | I77: Test Year
A78: Reporting Basis | C78: =IF(ISBLANK(C17), "", C17) -> CGAAP | D78: =IF(ISBLANK(D17), "", D17) -> CGAAP | E78: CGAAP | F78: CGAAP | G78: CGAAP | H78: MIFRS | I78: MIFRS
A79: Retailer Service Agreement -- standard charge | C79: 300 | D79: 100 | E79: 300 | G79: 100 | H79: 100 | I79: 100
A80: Retailer Service Agreement -- monthly fixed charge (per retailer) | C80: 2740 | D80: 3240 | E80: 3820 | G80: 3260 | H80: 3260 | I80: 3200
A81: Retailer Service Agreement -- monthly variable charge (per customer) | C81: 18947.5 | D81: 17224.5 | E81: 13490.5 | G81: 11000 | H81: 11000 | I81: 10000
A82: Distributor-Consolidated Billing -- monthly charge (per customer) | C82: 11195.7 | D82: 9864.6 | E82: 8061.3 | G82: 6600 | H82: 6600 | I82: 6600
A84: Total | C84: =SUM(C79:C83) -> 33183.2 | D84: 30429.1 | E84: 25671.8 | F84: 0 | G84: 20960 | H84: 20960 | I84: 19900
A86: Account 4235 | B86: Misc Service Revenues
C87: =C15 -> 2009 Actual | D87: =D15 -> 2010 Actual | E87: 2011 Actual² | F87: 2011 Actual² | G87: Bridge Year³ | H87: Bridge Year³ | I87: Test Year
A88: Reporting Basis | C88: =IF(ISBLANK(C17), "", C17) -> CGAAP | D88: =IF(ISBLANK(D17), "", D17) -> CGAAP | E88: CGAAP | F88: CGAAP | G88: CGAAP | H88: MIFRS | I88: MIFRS
A89: Credit reference/credit check (plus credit agency costs) | C89: 1500 | D89: 1065 | E89: 945 | G89: 750 | H89: 750 | I89: 750
A90: Returned Cheque charge (plus bank charges) | C90: 2625 | D90: 2055 | E90: 2160 | G90: 1500 | H90: 1500 | I90: 1500
A91: Account set up charge / change of occupancy charge | C91: 100770 | D91: 102660 | E91: 98160 | G91: 100500 | H91: 100500 | I91: 100500
A92: Special Meter reads | C92: 180 | D92: 120 | E92: 60
A93: Disconnect/Reconnect at meter – during regular hours | C93: 56030 | D93: 44525 | E93: 24765 | G93: 26000 | H93: 26000 | I93: 26000
A94: Disconnect/Reconnect at pole – during regular hours | G94: 185 | H94: 185 | I94: 185
A95: Misc Revenue - microFIT service charge | D95: 126 | E95: 813 | G95: 1386 | H95: 1386 | I95: 1701
A96: Total | C96: =SUM(C89:C95) -> 161105 | D96: 150551 | E96: 126903 | F96: 0 | G96: 130321 | H96: 130321 | I96: 130636
A98: Account 4225 - Late Payment Charges
C99: =C15 -> 2009 Actual | D99: =D15 -> 2010 Actual | E99: 2011 Actual² | F99: 2011 Actual² | G99: Bridge Year³ | H99: Bridge Year³ | I99: Test Year
A100: Reporting Basis | C100: =IF(ISBLANK(C17), "", C17) -> CGAAP | D100: =IF(ISBLANK(D17), "", D17) -> CGAAP | E100: CGAAP | F100: CGAAP | G100: CGAAP | H100: MIFRS | I100: MIFRS
A101: Late Payment - per month | C101: 80833.58 | D101: 83638.87 | E101: 95563.005 | G101: 86685 | H101: 86685 | I101: 86685
A102: Collection of account charge – no disconnection | G102: 3000 | H102: 3000 | I102: 3000
A106: Total | C106: =SUM(C101:C105) -> 80833.58 | D106: 83638.87 | E106: 95563.005 | F106: 0 | G106: 89685 | H106: 89685 | I106: 89685
A109: Other Income and Expenses
C110: =C15 -> 2009 Actual | D110: =D15 -> 2010 Actual | E110: 2011 Actual² | F110: 2011 Actual² | G110: Bridge Year³ | H110: Bridge Year³ | I110: Test Year
A111: Reporting Basis | C111: =IF(ISBLANK(C17), "", C17) -> CGAAP | D111: =IF(ISBLANK(D17), "", D17) -> CGAAP | E111: CGAAP | F111: CGAAP | G111: CGAAP | H111: MIFRS | I111: MIFRS
A112: 4325 - Revenues from Merchandise | C112: 270835 | D112: 122480 | E112: 218034 | G112: 212138 | H112: 212138 | I112: 210938
A113: 4330 - Costs and Expenses of Merchandising | C113: -44419 | D113: -21431 | E113: -11061 | G113: -167000 | H113: -167000 | I113: -167000
A114: 4355/4360 - Gains/Losses on Capital Items | C114: -6110 | D114: 15671 | E114: 15000 | G114: 14000 | H114: 14000 | I114: 8000
A115: 4375 - Revenues from non-utility operations | C115: 21774 | D115: 279576 | E115: 203499 | G115: 200000 | H115: 200000 | I115: 200000
A116: 4380 - Expenses of non-utility operations | C116: -19974 | D116: -250819 | E116: -182206 | G116: -200000 | H116: -200000 | I116: -200000
A117: 4390 - Miscellaneous non-operating income | C117: 4342 | D117: 3684 | E117: 22760 | G117: 20000 | H117: 20000 | I117: 20000
A118: Total | C118: =SUM(C112:C117) -> 226448 | D118: 149161 | E118: 266026 | F118: 0 | G118: 79138 | H118: 79138 | I118: 71938
A120: Notes:
A121: 1 | B121: List and specify any other interest revenue
A122: 2 | B122: If the applicant is adopting IFRS or an alternate accounting standard as of January 1, 2012 for financial reporting purposes, 2011 must be presented on both a CGAAP and MIFRS (or alternate accounting standard) basis.
A123: 3 | B123: If the applicant is adopting IFRS or an alternate accounting standard as of January 1, 2013 for financial reporting purposes, 2012 must be presented on both a CGAAP and MIFRS (or alternate accounting standard) basis.

Sheet App.2-G_Detailed_OM&A_Expenses
H1: File Number: | J1: ='LDC Info'!$E$18 -> EB2012-0176
H2: Exhibit:
H3: Tab:
H4: Schedule:
H5: Page:
H7: Date:
A9: Appendix 2-G
A10: Detailed, Account by Account, OM&A Expense Table
A11: (excluding Depreciation and Amortization)
A14: Account | B14: Description | C14: ="Last Rebasing Year (" & 'LDC Info'!E30 & " Actuals)" -> Last Rebasing Year (2009 Actuals) | D14: ='LDC Info'!E26-2 & " Actual" -> 2010 Actual | E14: ='LDC Info'!E26-1 & " Actual" & CHAR(178) & " CGAAP" -> 2011 Actual² CGAAP | F14: ='LDC Info'!E26-1 & " Actual"& CHAR(178) -> 2011 Actual² | G14: ="Bridge Year " & 'LDC Info'!E26& CHAR(179) & " CGAAP" -> Bridge Year 2012³ CGAAP | H14: ="Bridge Year " & 'LDC Info'!E26& CHAR(179) & " IFRS" -> Bridge Year 2012³ IFRS | I14: ="Test Year " & 'LDC Info'!E28 & " CGAAP" -> Test Year 2013 CGAAP | J14: ="Test Year " & "2013 IFRS" -> Test Year 2013 IFRS
A15: Reporting Basis
A16: Operations
A17: 5005 | B17: Operation Supervision and Engineering
A18: 5010 | B18: Load Dispatching | C18: 47 | E18: -77
A19: 5012 | B19: Station Buildings and Fixtures Expense
A20: 5014 | B20: Transformer Station Equipment - Operation Labour
A21: 5015 | B21: Transformer Station Equipment - Operation Supplies and Expenses
A22: 5016 | B22: Distribution Station Equipment - Operation Labour | E22: 520
A23: 5017 | B23: Distribution Station Equipment - Operation Supplies and Expenses
A24: 5020 | B24: Overhead Distribution Lines and Feeders - Operation Labour | E24: -1945
A25: 5025 | B25: Overhead Distribution Lines and Feeders - Operation Supplies and Expenses
A26: 5030 | B26: Overhead Sub-transmission Feeders - Operation
A27: 5035 | B27: Overhead Distribution Transformers - Operation | C27: 185 | D27: 672
A28: 5040 | B28: Underground Distribution Lines and Feeders - Operation Labour | C28: 182539 | D28: 165988 | E28: 193401 | G28: 193000 | H28: 204000 | I28: 216000 | J28: 231000
A29: 5045 | B29: Underground Distribution Lines and Feeders - Operation Supplies and Expenses
A30: 5050 | B30: Underground Sub-transmission Feeders - Operation
A31: 5055 | B31: Underground Distribution Transformers - Operation
A32: 5060 | B32: Street Lighting and Signal System Expense
A33: 5065 | B33: Meter Expense | C33: 53790 | D33: 46228 | E33: 71983 | G33: 81000 | H33: 150000 | I33: 113000 | J33: 194000
A34: 5070 | B34: Customer Premises - Operation Labour
A35: 5075 | B35: Customer Premises - Operation Materials and Expenses
A36: 5085 | B36: Miscellaneous Distribution Expenses | C36: 2108 | D36: 275 | E36: 1454 | G36: 15000 | H36: 15000 | I36: 5000 | J36: 15000
A37: 5090 | B37: Underground Distribution Lines and Feeders - Rental Paid
A38: 5095 | B38: Overhead Distribution Lines and Feeders - Rental Paid
A39: 5096 | B39: Other Rent
A40: Total - Operations | C40: =SUM(C17:C39) -> 238669 | D40: =SUM(D17:D39) -> 213163 | E40: =SUM(E17:E39) -> 265336 | F40: =SUM(F17:F39) -> 0 | G40: 289000 | H40: 369000 | I40: =SUM(I17:I39) -> 334000 | J40: =SUM(J17:J39) -> 440000
A41: Account | B41: Description | C41: =C14 -> Last Rebasing Year (2009 Actuals) | D41: 2010 Actual | E41: 2011 Actual² CGAAP | F41: 2011 Actual² | G41: Bridge Year 2012³ CGAAP | H41: Bridge Year 2012³ IFRS | I41: Test Year 2013 CGAAP | J41: =J14 -> Test Year 2013 IFRS
A42: Maintenance
A43: 5105 | B43: Maintenance Supervision and Engineering | C43: 13845 | D43: 18611 | E43: 16906 | G43: 18000 | H43: 18000 | I43: 18000 | J43: 18000
A44: 5110 | B44: Maintenance of Buildings and Fixtures - Distribution Stations | C44: 6436 | D44: 3895 | E44: 5573
A45: 5112 | B45: Maintenance of Transformer Station Equipment
A46: 5114 | B46: Maintenance of Distribution Station Equipment | C46: 279502 | D46: 122608 | E46: 270915 | G46: 241000 | H46: 304000 | I46: 222000 | J46: 254000
A47: 5120 | B47: Maintenance of Poles, Towers and Fixtures | C47: 83421 | D47: 97137 | E47: 75811 | G47: 110000 | H47: 149000 | I47: 146000 | J47: 220000
A48: 5125 | B48: Maintenance of Overhead Conductors and Devices | C48: 293181 | D48: 183688 | E48: 197254 | G48: 124000 | H48: 214000 | I48: 141000 | J48: 251000
A49: 5130 | B49: Maintenance of Overhead Services | C49: 101546 | D49: 117956 | E49: 81891 | G49: 111000 | H49: 202000 | I49: 134000 | J49: 244000
A50: 5135 | B50: Overhead Distribution Lines and Feeders - Right of Way | C50: 310591 | D50: 278753 | E50: 132971 | G50: 431000 | H50: 545000 | I50: 447000 | J50: 580000
A51: 5145 | B51: Maintenance of Underground Conduit | C51: 47790 | D51: 48051 | E51: 39006 | G51: 42000 | H51: 68000 | I51: 71000 | J51: 115000
A52: 5150 | B52: Maintenance of Underground Conductors and Devices
A53: 5155 | B53: Maintenance of Underground Services | C53: 145595 | D53: 189232 | E53: 230736 | G53: 183000 | H53: 320000 | I53: 195000 | J53: 341000
A54: 5160 | B54: Maintenance of Line Transformers | C54: 107605 | D54: 112303 | E54: 102204 | G54: 107000 | H54: 180000 | I54: 124000 | J54: 215000
A55: 5165 | B55: Maintenance of Street Lighting and Signal Systems
A56: 5170 | B56: Sentinel Lights - Labour | C56: 185 | D56: 817 | E56: 3208
A57: 5172 | B57: Sentinel Lights - Materials and Expenses | D57: 7910
A58: 5175 | B58: Maintenance of Meters | C58: 62772 | D58: 54668 | E58: 59217 | G58: 60000 | H58: 60000 | I58: 60000 | J58: 60000
A59: 5178 | B59: Customer Installations Expenses - Leased Property
A60: 5195 | B60: Maintenance of Other Installations on Customer Premises | D60: 796 | E60: 1394
A61: Total - Maintenance | C61: =SUM(C43:C60) -> 1452469 | D61: =SUM(D43:D60) -> 1236425 | E61: =SUM(E43:E60) -> 1217086 | F61: =SUM(F43:F60) -> 0 | G61: 1427000 | H61: 2060000 | I61: =SUM(I43:I60) -> 1558000 | J61: =SUM(J43:J60) -> 2298000
A62: Account | B62: Description | C62: =C41 -> Last Rebasing Year (2009 Actuals) | D62: =D41 -> 2010 Actual | E62: =E41 -> 2011 Actual² CGAAP | F62: =F41 -> 2011 Actual² | G62: Bridge Year 2012³ CGAAP | H62: Bridge Year 2012³ IFRS | I62: =I41 -> Test Year 2013 CGAAP | J62: =J41 -> Test Year 2013 IFRS
A63: Billing and Collecting
A64: 5305 | B64: Supervision | C64: 13845 | D64: 18611 | E64: 16906 | G64: 18000 | H64: 18000 | I64: 18000 | J64: 18000
A65: 5310 | B65: Meter Reading Expense | C65: 272932 | D65: 275348 | E65: 272000 | G65: 272000 | H65: 272000 | I65: 276000 | J65: 276000
A66: 5315 | B66: Customer Billing | C66: 367012 | D66: 416168 | E66: 367868 | G66: 352000 | H66: 352000 | I66: 356000 | J66: 356000
A67: 5320 | B67: Collecting | C67: 365185 | D67: 387666 | E67: 398059 | G67: 392000 | H67: 392000 | I67: 435000 | J67: 435000
A68: 5325 | B68: Collecting - Cash Over and Short
A69: 5330 | B69: Collection Charges | G69: 34000 | H69: 34000 | I69: 37000 | J69: 37000
A70: 5335 | B70: Bad Debt Expense | C70: 347206 | D70: 67602 | E70: 70517 | G70: 62000 | H70: 62000 | I70: 69000 | J70: 69000
A71: 5340 | B71: Miscellaneous Customer Accounts Expenses
A72: Total - Billing and Collecting | C72: =SUM(C64:C71) -> 1366180 | D72: =SUM(D64:D71) -> 1165395 | E72: =SUM(E64:E71) -> 1125350 | F72: =SUM(F64:F71) -> 0 | G72: 1130000 | H72: 1130000 | I72: =SUM(I64:I71) -> 1191000 | J72: =SUM(J64:J71) -> 1191000
A73: Account | B73: Description | C73: =C62 -> Last Rebasing Year (2009 Actuals) | D73: =D62 -> 2010 Actual | E73: =E62 -> 2011 Actual² CGAAP | F73: =F62 -> 2011 Actual² | G73: Bridge Year 2012³ CGAAP | H73: Bridge Year 2012³ IFRS | I73: =I62 -> Test Year 2013 CGAAP | J73: =J62 -> Test Year 2013 IFRS
A74: Community Relations
A75: 5405 | B75: Supervision
A76: 5410 | B76: Community Relations - Sundry | G76: 25000 | H76: 25000 | I76: 25000 | J76: 25000
A77: 5415 | B77: Energy Conservation | D77: 350
A78: 5420 | B78: Community Safety Program | C78: 10936 | D78: 3286 | E78: 12288 | G78: 14000 | H78: 14000 | I78: 14000 | J78: 14000
A79: 5425 | B79: Miscellaneous Customer Service and Informational Expenses | C79: 3760 | G79: 6000 | H79: 6000 | I79: 7000 | J79: 7000
A80: 5505 | B80: Supervision
A81: 5510 | B81: Demonstrating and Selling Expense
A82: 5515 | B82: Advertising Expenses
A83: 5520 | B83: Miscellaneous Sales Expense
A84: Total - Community Relations | C84: =SUM(C75:C83) -> 14696 | D84: =SUM(D75:D83) -> 3636 | E84: =SUM(E75:E83) -> 12288 | F84: =SUM(F75:F83) -> 0 | G84: 45000 | H84: 45000 | I84: =SUM(I75:I83) -> 46000 | J84: =SUM(J75:J83) -> 46000
A85: Account | B85: Description | C85: =C73 -> Last Rebasing Year (2009 Actuals) | D85: =D73 -> 2010 Actual | E85: =E73 -> 2011 Actual² CGAAP | F85: =F73 -> 2011 Actual² | G85: Bridge Year 2012³ CGAAP | H85: Bridge Year 2012³ IFRS | I85: =I73 -> Test Year 2013 CGAAP | J85: =J73 -> Test Year 2013 IFRS
A86: Administrative and General Expenses
A87: 5605 | B87: Executive Salaries and Expenses | C87: 343007 | D87: 355289 | E87: 421135 | G87: 542000 | H87: 542000 | I87: 525000 | J87: 525000
A88: 5610 | B88: Management Salaries and Expenses | C88: 296653 | D88: 345079 | E88: 423368 | G88: 408000 | H88: 439000 | I88: 373000 | J88: 444000
A89: 5615 | B89: General Administrative Salaries and Expenses | C89: 130243 | D89: 150725 | E89: 159152 | G89: 120000 | H89: 303000 | I89: 136000 | J89: 310000
A90: 5620 | B90: Office Supplies and Expenses | C90: 280974 | D90: 286317 | E90: 315157 | G90: 478000 | H90: 499000 | I90: 507000 | J90: 507000
A91: 5625 | B91: Administrative Expense Transferred - Credit
A92: 5630 | B92: Outside Services Employed | C92: 159276 | D92: 194979 | E92: 155412 | G92: 248000 | H92: 201000 | I92: 161000 | J92: 161000
A93: 5635 | B93: Property Insurance | C93: 106444 | D93: 101469 | E93: 116789 | G93: 122000 | H93: 80000 | I93: 105000 | J93: 87000
A94: 5640 | B94: Injuries and Damages | C94: 135 | E94: 160000 | G94: 1000 | H94: 1000 | I94: 1000 | J94: 1000
A95: 5645 | B95: OMERS Pensions and Benefits
A96: 5646 | B96: Employee Pensions and OPEB
A97: 5647 | B97: Employee Sick Leave
A98: 5650 | B98: Franchise Requirements
A99: 5655 | B99: Regulatory Expenses | C99: 85751 | D99: 98974 | E99: 116652 | G99: 107000 | H99: 107000 | I99: 120000 | J99: 120000
A100: 5660 | B100: General Advertising Expenses | C100: 3040 | D100: 13568 | E100: 5771
A101: 5665 | B101: Miscellaneous General Expenses | C101: 27690 | D101: 37222 | E101: 33812 | G101: 37000 | H101: 37000 | I101: 37000 | J101: 37000
A102: 5670 | B102: Rent
A103: 5672 | B103: Lease Payment Charge
A104: 5675 | B104: Maintenance of General Plant | C104: 72243 | D104: 92082 | E104: 69211 | G104: 85000 | H104: 113000 | I104: 85000 | J104: 113000
A105: 5680 | B105: Electrical Safety Authority Fees
A106: 5681 | B106: Special Purpose Charge Expense
A107: 5685 | B107: Independent Electricity System Operator Fees and Penalties
A108: 5695 | B108: OM&A Contra Account
A109: 6205 | B109: Donations
A110: 6205 | B110: Donations, Sub-account LEAP Funding | E110: 10500 | G110: 10500 | H110: 10500 | I110: 12500 | J110: 12500
A111: Total - Administrative and General Expenses | C111: =SUM(C87:C110) -> 1505456 | D111: =SUM(D87:D110) -> 1675704 | E111: 1986959 | F111: 0 | G111: 2158500 | H111: 2332500 | I111: 2062500 | J111: =SUM(J87:J110) -> 2317500
A112: Total OM&A | C112: =C40+C61+C72+C84+C111 -> 4577470 | D112: =D40+D61+D72+D84+D111 -> 4294323 | E112: =E40+E61+E72+E84+E111 -> 4607019 | F112: =F40+F61+F72+F84+F111 -> 0 | G112: 5049500 | H112: 5936500 | I112: =I40+I61+I72+I84+I111 -> 5191500 | J112: =J40+J61+J72+J84+J111 -> 6292500
A113: Adjustments for non-recoverable items
A114: 5681 | B114: Special Purpose Charge Expense
A115: 6205 | B115: Donations1 | C115: 12290 | D115: 30504 | E115: =20263-E110 -> 9763
A119: Total Recoverable OM&A | C119: =C112-SUM(C114:C118) -> 4565180 | D119: =D112-SUM(D114:D118) -> 4263819 | E119: 4597256 | F119: =F112-SUM(F114:F118) -> 0 | G119: 5049500 | H119: 5936500 | I119: 5191500 | J119: =J112-SUM(J114:J118) -> 6292500
A121: 1 Account 6205 - Donations is generally non-recoverable. However, the sub-account LEAP funding of account 6205 is generally recoverable.
A123: Note:
A124: 1 | B124: If it has been more than three years since the applicant last filed a cost of service application, additional years of historical actuals should be incorporated into the table, as necessary, to go back to the last cost of service application. If the applicant last filed a cost of service application less than three years ago, a minimum of three years of actual information is required.
A125: 2 | B125: If the applicant is adopting IFRS or an alternate accounting standard as of January 1, 2012 for financial reporting purposes, 2011 must be presented on both a CGAAP and MIFRS (or alternate accounting standard) basis.
A126: 3 | B126: If the applicant is adopting IFRS or an alternate accounting standard as of January 1, 2013 for financial reporting purposes, 2012 must be presented on both a CGAAP and MIFRS (or alternate accounting standard) basis.

Sheet App.2-H_OM&A_Detailed_Analysis
H1: File Number: | I1: ='LDC Info'!$E$18 -> EB2012-0176
H2: Exhibit:
H3: Tab:
H4: Schedule:
H5: Page:
H7: Date:
A9: Appendix 2-H
A10: OM&A Detailed Variance Analysis
A11: (excluding Depreciation and Amortization)
A14: Account | B14: Description | C14: ="Last Board-approved Rebasing Year ("&'LDC Info'!E30&" Year)" -> Last Board-approved Rebasing Year (2009 Year) | D14: Most Current Actuals Year 2011 | E14: ="Test Year " & 'LDC Info'!E28 -> Test Year 2013 | F14: Test Year Versus Last Rebasing | H14: Test Year Versus Most Current Actuals
F15: Variance ($) | G15: Percentage Change (%) | H15: Variance ($) | I15: Percentage Change (%)
A16: Reporting Basis | C16: CGAAP | D16: CGAAP | E16: CGAAP
A17: Operations
A18: 5005 | B18: Operation Supervision and Engineering | D18: ='App.2-G_Detailed_OM&A_Expenses'!E17 -> 0 | E18: ='App.2-G_Detailed_OM&A_Expenses'!I17 -> 0 | F18: =E18-C18 -> 0 | G18: =IF(C18=0,"",(E18/C18)-1) ->  | H18: =E18-D18 -> 0 | I18: =IF(D18=0,"",(E18/D18)-1) -> 
A19: 5010 | B19: Load Dispatching | D19: ='App.2-G_Detailed_OM&A_Expenses'!E18 -> -77 | E19: ='App.2-G_Detailed_OM&A_Expenses'!I18 -> 0 | F19: =E19-C19 -> 0 | G19: =IF(C19=0,"",(E19/C19)-1) ->  | H19: =E19-D19 -> 77 | I19: =IF(D19=0,"",(E19/D19)-1) -> -1
A20: 5012 | B20: Station Buildings and Fixtures Expense | D20: ='App.2-G_Detailed_OM&A_Expenses'!E19 -> 0 | E20: ='App.2-G_Detailed_OM&A_Expenses'!I19 -> 0 | F20: 0 | H20: 0
A21: 5014 | B21: Transformer Station Equipment - Operation Labour | D21: ='App.2-G_Detailed_OM&A_Expenses'!E20 -> 0 | E21: ='App.2-G_Detailed_OM&A_Expenses'!I20 -> 0 | F21: 0 | H21: 0
A22: 5015 | B22: Transformer Station Equipment - Operation Supplies and Expenses | D22: ='App.2-G_Detailed_OM&A_Expenses'!E21 -> 0 | E22: ='App.2-G_Detailed_OM&A_Expenses'!I21 -> 0 | F22: 0 | H22: 0
A23: 5016 | B23: Distribution Station Equipment - Operation Labour | D23: ='App.2-G_Detailed_OM&A_Expenses'!E22 -> 520 | E23: ='App.2-G_Detailed_OM&A_Expenses'!I22 -> 0 | F23: 0 | H23: -520 | I23: -1
A24: 5017 | B24: Distribution Station Equipment - Operation Supplies and Expenses | D24: ='App.2-G_Detailed_OM&A_Expenses'!E23 -> 0 | E24: ='App.2-G_Detailed_OM&A_Expenses'!I23 -> 0 | F24: 0 | H24: 0
A25: 5020 | B25: Overhead Distribution Lines and Feeders - Operation Labour | D25: ='App.2-G_Detailed_OM&A_Expenses'!E24 -> -1945 | E25: ='App.2-G_Detailed_OM&A_Expenses'!I24 -> 0 | F25: 0 | H25: 1945 | I25: -1
A26: 5025 | B26: Overhead Distribution Lines and Feeders - Operation Supplies and Expenses | D26: ='App.2-G_Detailed_OM&A_Expenses'!E25 -> 0 | E26: ='App.2-G_Detailed_OM&A_Expenses'!I25 -> 0 | F26: 0 | H26: 0
A27: 5030 | B27: Overhead Sub-transmission Feeders - Operation | D27: ='App.2-G_Detailed_OM&A_Expenses'!E26 -> 0 | E27: ='App.2-G_Detailed_OM&A_Expenses'!I26 -> 0 | F27: 0 | H27: 0
A28: 5035 | B28: Overhead Distribution Transformers - Operation | D28: ='App.2-G_Detailed_OM&A_Expenses'!E27 -> 0 | E28: ='App.2-G_Detailed_OM&A_Expenses'!I27 -> 0 | F28: 0 | H28: 0
A29: 5040 | B29: Underground Distribution Lines and Feeders - Operation Labour | C29: 469400 | D29: ='App.2-G_Detailed_OM&A_Expenses'!E28 -> 193401 | E29: ='App.2-G_Detailed_OM&A_Expenses'!I28 -> 216000 | F29: -253400 | G29: -0.5398380912 | H29: 22599 | I29: 0.1168504816
A30: 5045 | B30: Underground Distribution Lines and Feeders - Operation Supplies and Expenses | C30: 10000 | D30: ='App.2-G_Detailed_OM&A_Expenses'!E29 -> 0 | E30: ='App.2-G_Detailed_OM&A_Expenses'!I29 -> 0 | F30: -10000 | G30: -1 | H30: 0
A31: 5050 | B31: Underground Sub-transmission Feeders - Operation | D31: ='App.2-G_Detailed_OM&A_Expenses'!E30 -> 0 | E31: ='App.2-G_Detailed_OM&A_Expenses'!I30 -> 0 | F31: 0 | H31: 0
A32: 5055 | B32: Underground Distribution Transformers - Operation | D32: ='App.2-G_Detailed_OM&A_Expenses'!E31 -> 0 | E32: ='App.2-G_Detailed_OM&A_Expenses'!I31 -> 0 | F32: 0 | H32: 0
A33: 5060 | B33: Street Lighting and Signal System Expense | D33: ='App.2-G_Detailed_OM&A_Expenses'!E32 -> 0 | E33: ='App.2-G_Detailed_OM&A_Expenses'!I32 -> 0 | F33: 0 | H33: 0
A34: 5065 | B34: Meter Expense | D34: ='App.2-G_Detailed_OM&A_Expenses'!E33 -> 71983 | E34: ='App.2-G_Detailed_OM&A_Expenses'!I33 -> 113000 | F34: 113000 | H34: 41017 | I34: 0.5698150952
A35: 5070 | B35: Customer Premises - Operation Labour | D35: ='App.2-G_Detailed_OM&A_Expenses'!E34 -> 0 | E35: ='App.2-G_Detailed_OM&A_Expenses'!I34 -> 0 | F35: 0 | H35: 0
A36: 5075 | B36: Customer Premises - Operation Materials and Expenses | C36: 1000 | D36: ='App.2-G_Detailed_OM&A_Expenses'!E35 -> 0 | E36: ='App.2-G_Detailed_OM&A_Expenses'!I35 -> 0 | F36: -1000 | G36: -1 | H36: 0
A37: 5085 | B37: Miscellaneous Distribution Expenses | D37: ='App.2-G_Detailed_OM&A_Expenses'!E36 -> 1454 | E37: ='App.2-G_Detailed_OM&A_Expenses'!I36 -> 5000 | F37: 5000 | H37: 3546 | I37: 2.438789546
A38: 5090 | B38: Underground Distribution Lines and Feeders - Rental Paid | D38: ='App.2-G_Detailed_OM&A_Expenses'!E37 -> 0 | E38: ='App.2-G_Detailed_OM&A_Expenses'!I37 -> 0 | F38: 0 | H38: 0
A39: 5095 | B39: Overhead Distribution Lines and Feeders - Rental Paid | D39: ='App.2-G_Detailed_OM&A_Expenses'!E38 -> 0 | E39: ='App.2-G_Detailed_OM&A_Expenses'!I38 -> 0 | F39: 0 | H39: 0
A40: 5096 | B40: Other Rent | D40: ='App.2-G_Detailed_OM&A_Expenses'!E39 -> 0 | E40: ='App.2-G_Detailed_OM&A_Expenses'!I39 -> 0 | F40: 0 | H40: 0
A41: Total - Operations | C41: =SUM(C18:C40) -> 480400 | D41: =SUM(D18:D40) -> 265336 | E41: =SUM(E18:E40) -> 334000 | F41: -146400 | G41: -0.304746045 | H41: 68664 | I41: 0.2587813188
A42: Account | B42: Description
A43: Maintenance
A44: 5105 | B44: Maintenance Supervision and Engineering | C44: 16775 | D44: ='App.2-G_Detailed_OM&A_Expenses'!E43 -> 16906 | E44: ='App.2-G_Detailed_OM&A_Expenses'!I43 -> 18000 | F44: =E44-C44 -> 1225 | G44: =IF(C44=0,"",(E44/C44)-1) -> 0.07302533532 | H44: =E44-D44 -> 1094 | I44: =IF(D44=0,"",(E44/D44)-1) -> 0.06471075358
A45: 5110 | B45: Maintenance of Buildings and Fixtures - Distribution Stations | C45: 25900 | D45: ='App.2-G_Detailed_OM&A_Expenses'!E44 -> 5573 | E45: ='App.2-G_Detailed_OM&A_Expenses'!I44 -> 0 | F45: -25900 | G45: -1 | H45: -5573 | I45: -1
A46: 5112 | B46: Maintenance of Transformer Station Equipment | D46: ='App.2-G_Detailed_OM&A_Expenses'!E45 -> 0 | E46: ='App.2-G_Detailed_OM&A_Expenses'!I45 -> 0 | F46: 0 | H46: 0
A47: 5114 | B47: Maintenance of Distribution Station Equipment | C47: 246800 | D47: ='App.2-G_Detailed_OM&A_Expenses'!E46 -> 270915 | E47: ='App.2-G_Detailed_OM&A_Expenses'!I46 -> 222000 | F47: -24800 | G47: -0.1004862237 | H47: -48915 | I47: -0.1805547866
A48: 5120 | B48: Maintenance of Poles, Towers and Fixtures | C48: 77400 | D48: ='App.2-G_Detailed_OM&A_Expenses'!E47 -> 75811 | E48: ='App.2-G_Detailed_OM&A_Expenses'!I47 -> 146000 | F48: 68600 | G48: 0.8863049096 | H48: 70189 | I48: 0.9258418963
A49: 5125 | B49: Maintenance of Overhead Conductors and Devices | C49: 131200 | D49: ='App.2-G_Detailed_OM&A_Expenses'!E48 -> 197254 | E49: ='App.2-G_Detailed_OM&A_Expenses'!I48 -> 141000 | F49: 9800 | G49: 0.07469512195 | H49: -56254 | I49: -0.2851855983
A50: 5130 | B50: Maintenance of Overhead Services | C50: 106600 | D50: ='App.2-G_Detailed_OM&A_Expenses'!E49 -> 81891 | E50: ='App.2-G_Detailed_OM&A_Expenses'!I49 -> 134000 | F50: 27400 | G50: 0.2570356473 | H50: 52109 | I50: 0.6363214517
A51: 5135 | B51: Overhead Distribution Lines and Feeders - Right of Way | C51: 240900 | D51: ='App.2-G_Detailed_OM&A_Expenses'!E50 -> 132971 | E51: ='App.2-G_Detailed_OM&A_Expenses'!I50 -> 447000 | F51: 206100 | G51: 0.8555417186 | H51: 314029 | I51: 2.361635244
A52: 5145 | B52: Maintenance of Underground Conduit | C52: 0 | D52: ='App.2-G_Detailed_OM&A_Expenses'!E51 -> 39006 | E52: ='App.2-G_Detailed_OM&A_Expenses'!I51 -> 71000 | F52: 71000 | H52: 31994 | I52: 0.8202327847
A53: 5150 | B53: Maintenance of Underground Conductors and Devices | D53: ='App.2-G_Detailed_OM&A_Expenses'!E52 -> 0 | E53: ='App.2-G_Detailed_OM&A_Expenses'!I52 -> 0 | F53: 0 | H53: 0
A54: 5155 | B54: Maintenance of Underground Services | C54: 112000 | D54: ='App.2-G_Detailed_OM&A_Expenses'!E53 -> 230736 | E54: ='App.2-G_Detailed_OM&A_Expenses'!I53 -> 195000 | F54: 83000 | G54: 0.7410714286 | H54: -35736 | I54: -0.1548783025
A55: 5160 | B55: Maintenance of Line Transformers | C55: 108000 | D55: ='App.2-G_Detailed_OM&A_Expenses'!E54 -> 102204 | E55: ='App.2-G_Detailed_OM&A_Expenses'!I54 -> 124000 | F55: 16000 | G55: 0.1481481481 | H55: 21796 | I55: 0.213259755
A56: 5165 | B56: Maintenance of Street Lighting and Signal Systems | D56: ='App.2-G_Detailed_OM&A_Expenses'!E55 -> 0 | E56: ='App.2-G_Detailed_OM&A_Expenses'!I55 -> 0 | F56: 0 | H56: 0
A57: 5170 | B57: Sentinel Lights - Labour | D57: ='App.2-G_Detailed_OM&A_Expenses'!E56 -> 3208 | E57: ='App.2-G_Detailed_OM&A_Expenses'!I56 -> 0 | F57: 0 | H57: -3208 | I57: -1
A58: 5172 | B58: Sentinel Lights - Materials and Expenses | D58: ='App.2-G_Detailed_OM&A_Expenses'!E57 -> 0 | E58: ='App.2-G_Detailed_OM&A_Expenses'!I57 -> 0 | F58: 0 | H58: 0
A59: 5175 | B59: Maintenance of Meters | C59: 95000 | D59: ='App.2-G_Detailed_OM&A_Expenses'!E58 -> 59217 | E59: ='App.2-G_Detailed_OM&A_Expenses'!I58 -> 60000 | F59: -35000 | G59: -0.3684210526 | H59: 783 | I59: 0.01322255433
A60: 5178 | B60: Customer Installations Expenses - Leased Property | D60: ='App.2-G_Detailed_OM&A_Expenses'!E59 -> 0 | E60: ='App.2-G_Detailed_OM&A_Expenses'!I59 -> 0 | F60: 0 | H60: 0
A61: 5195 | B61: Maintenance of Other Installations on Customer Premises | D61: ='App.2-G_Detailed_OM&A_Expenses'!E60 -> 1394 | E61: ='App.2-G_Detailed_OM&A_Expenses'!I60 -> 0 | F61: 0 | H61: -1394 | I61: -1
A62: Total - Maintenance | C62: =SUM(C44:C61) -> 1160575 | D62: =SUM(D44:D61) -> 1217086 | E62: =SUM(E44:E61) -> 1558000 | F62: 397425 | G62: 0.3424380156 | H62: 340914 | I62: 0.2801067468
A63: Account | B63: Description
A64: Billing and Collecting
A65: 5305 | B65: Supervision | C65: 16775 | D65: ='App.2-G_Detailed_OM&A_Expenses'!E64 -> 16906 | E65: ='App.2-G_Detailed_OM&A_Expenses'!I64 -> 18000 | F65: =E65-C65 -> 1225 | G65: =IF(C65=0,"",(E65/C65)-1) -> 0.07302533532 | H65: =E65-D65 -> 1094 | I65: =IF(D65=0,"",(E65/D65)-1) -> 0.06471075358
A66: 5310 | B66: Meter Reading Expense | C66: 272000 | D66: ='App.2-G_Detailed_OM&A_Expenses'!E65 -> 272000 | E66: ='App.2-G_Detailed_OM&A_Expenses'!I65 -> 276000 | F66: 4000 | G66: 0.01470588235 | H66: 4000 | I66: 0.01470588235
A67: 5315 | B67: Customer Billing | C67: 387725 | D67: ='App.2-G_Detailed_OM&A_Expenses'!E66 -> 367868 | E67: ='App.2-G_Detailed_OM&A_Expenses'!I66 -> 356000 | F67: -31725 | G67: -0.08182345735 | H67: -11868 | I67: -0.03226157209
A68: 5320 | B68: Collecting | C68: 416400 | D68: ='App.2-G_Detailed_OM&A_Expenses'!E67 -> 398059 | E68: ='App.2-G_Detailed_OM&A_Expenses'!I67 -> 435000 | F68: 18600 | G68: 0.0446685879 | H68: 36941 | I68: 0.09280282571
A69: 5325 | B69: Collecting - Cash Over and Short | D69: ='App.2-G_Detailed_OM&A_Expenses'!E68 -> 0 | E69: ='App.2-G_Detailed_OM&A_Expenses'!I68 -> 0 | F69: 0 | H69: 0
A70: 5330 | B70: Collection Charges | D70: ='App.2-G_Detailed_OM&A_Expenses'!E69 -> 0 | E70: ='App.2-G_Detailed_OM&A_Expenses'!I69 -> 37000 | F70: 37000 | H70: 37000
A71: 5335 | B71: Bad Debt Expense | C71: 150000 | D71: ='App.2-G_Detailed_OM&A_Expenses'!E70 -> 70517 | E71: ='App.2-G_Detailed_OM&A_Expenses'!I70 -> 69000 | F71: -81000 | G71: -0.54 | H71: -1517 | I71: -0.02151254307
A72: 5340 | B72: Miscellaneous Customer Accounts Expenses | D72: ='App.2-G_Detailed_OM&A_Expenses'!E71 -> 0 | E72: ='App.2-G_Detailed_OM&A_Expenses'!I71 -> 0 | F72: 0 | H72: 0
A73: Total - Billing and Collecting | C73: =SUM(C65:C72) -> 1242900 | D73: =SUM(D65:D72) -> 1125350 | E73: =SUM(E65:E72) -> 1191000 | F73: -51900 | G73: -0.04175718079 | H73: 65650 | I73: 0.05833740614
A74: Account | B74: Description
A75: Community Relations
A76: 5405 | B76: Supervision | D76: ='App.2-G_Detailed_OM&A_Expenses'!E75 -> 0 | E76: ='App.2-G_Detailed_OM&A_Expenses'!I75 -> 0 | F76: =E76-C76 -> 0 | G76: =IF(C76=0,"",(E76/C76)-1) ->  | H76: =E76-D76 -> 0 | I76: =IF(D76=0,"",(E76/D76)-1) -> 
A77: 5410 | B77: Community Relations - Sundry | C77: 20500 | D77: ='App.2-G_Detailed_OM&A_Expenses'!E76 -> 0 | E77: ='App.2-G_Detailed_OM&A_Expenses'!I76 -> 25000 | F77: 4500 | G77: 0.2195121951 | H77: 25000
A78: 5415 | B78: Energy Conservation | C78: 0 | D78: ='App.2-G_Detailed_OM&A_Expenses'!E77 -> 0 | E78: ='App.2-G_Detailed_OM&A_Expenses'!I77 -> 0 | F78: 0 | H78: 0
A79: 5420 | B79: Community Safety Program | C79: 15000 | D79: ='App.2-G_Detailed_OM&A_Expenses'!E78 -> 12288 | E79: ='App.2-G_Detailed_OM&A_Expenses'!I78 -> 14000 | F79: -1000 | G79: -0.06666666667 | H79: 1712 | I79: 0.1393229167
A80: 5425 | B80: Miscellaneous Customer Service and Informational Expenses | D80: ='App.2-G_Detailed_OM&A_Expenses'!E79 -> 0 | E80: ='App.2-G_Detailed_OM&A_Expenses'!I79 -> 7000 | F80: 7000 | H80: 7000
A81: 5505 | B81: Supervision | D81: ='App.2-G_Detailed_OM&A_Expenses'!E80 -> 0 | E81: ='App.2-G_Detailed_OM&A_Expenses'!I80 -> 0 | F81: 0 | H81: 0
A82: 5510 | B82: Demonstrating and Selling Expense | D82: ='App.2-G_Detailed_OM&A_Expenses'!E81 -> 0 | E82: ='App.2-G_Detailed_OM&A_Expenses'!I81 -> 0 | F82: 0 | H82: 0
A83: 5515 | B83: Advertising Expenses | D83: ='App.2-G_Detailed_OM&A_Expenses'!E82 -> 0 | E83: ='App.2-G_Detailed_OM&A_Expenses'!I82 -> 0 | F83: 0 | H83: 0
A84: 5520 | B84: Miscellaneous Sales Expense | D84: ='App.2-G_Detailed_OM&A_Expenses'!E83 -> 0 | E84: ='App.2-G_Detailed_OM&A_Expenses'!I83 -> 0 | F84: 0 | H84: 0
A85: Total - Community Relations | C85: =SUM(C76:C84) -> 35500 | D85: =SUM(D76:D84) -> 12288 | E85: =SUM(E76:E84) -> 46000 | F85: 10500 | G85: 0.2957746479 | H85: 33712 | I85: 2.743489583
A86: Account | B86: Description
A87: Administrative and General Expenses
A88: 5605 | B88: Executive Salaries and Expenses | C88: 130000 | D88: ='App.2-G_Detailed_OM&A_Expenses'!E87 -> 421135 | E88: ='App.2-G_Detailed_OM&A_Expenses'!I87 -> 525000 | F88: =E88-C88 -> 395000 | G88: =IF(C88=0,"",(E88/C88)-1) -> 3.038461538 | H88: =E88-D88 -> 103865 | I88: =IF(D88=0,"",(E88/D88)-1) -> 0.2466311278
A89: 5610 | B89: Management Salaries and Expenses | C89: 689400 | D89: ='App.2-G_Detailed_OM&A_Expenses'!E88 -> 423368 | E89: ='App.2-G_Detailed_OM&A_Expenses'!I88 -> 373000 | F89: -316400 | G89: -0.4589498114 | H89: -50368 | I89: -0.1189697852
A90: 5615 | B90: General Administrative Salaries and Expenses | C90: 143300 | D90: ='App.2-G_Detailed_OM&A_Expenses'!E89 -> 159152 | E90: ='App.2-G_Detailed_OM&A_Expenses'!I89 -> 136000 | F90: -7300 | G90: -0.05094207955 | H90: -23152 | I90: -0.1454709963
A91: 5620 | B91: Office Supplies and Expenses | C91: 368650 | D91: ='App.2-G_Detailed_OM&A_Expenses'!E90 -> 315157 | E91: ='App.2-G_Detailed_OM&A_Expenses'!I90 -> 507000 | F91: 138350 | G91: 0.3752882138 | H91: 191843 | I91: 0.608722002
A92: 5625 | B92: Administrative Expense Transferred - Credit | D92: ='App.2-G_Detailed_OM&A_Expenses'!E91 -> 0 | E92: ='App.2-G_Detailed_OM&A_Expenses'!I91 -> 0 | F92: 0 | H92: 0
A93: 5630 | B93: Outside Services Employed | C93: 178500 | D93: ='App.2-G_Detailed_OM&A_Expenses'!E92 -> 155412 | E93: ='App.2-G_Detailed_OM&A_Expenses'!I92 -> 161000 | F93: -17500 | G93: -0.09803921569 | H93: 5588 | I93: 0.03595603943
A94: 5635 | B94: Property Insurance | C94: 101125 | D94: ='App.2-G_Detailed_OM&A_Expenses'!E93 -> 116789 | E94: ='App.2-G_Detailed_OM&A_Expenses'!I93 -> 105000 | F94: 3875 | G94: 0.03831891224 | H94: -11789 | I94: -0.1009427258
A95: 5640 | B95: Injuries and Damages | C95: 2500 | D95: ='App.2-G_Detailed_OM&A_Expenses'!E94 -> 160000 | E95: ='App.2-G_Detailed_OM&A_Expenses'!I94 -> 1000 | F95: -1500 | G95: -0.6 | H95: -159000 | I95: -0.99375
A96: 5645 | B96: OMERS Pensions and Benefits | D96: ='App.2-G_Detailed_OM&A_Expenses'!E95 -> 0 | E96: ='App.2-G_Detailed_OM&A_Expenses'!I95 -> 0 | F96: 0 | H96: 0
A97: 5646 | B97: Employee Pensions and OPEB | D97: ='App.2-G_Detailed_OM&A_Expenses'!E96 -> 0 | E97: ='App.2-G_Detailed_OM&A_Expenses'!I96 -> 0 | F97: =E97-C97 -> 0 | G97: =IF(C97=0,"",(E97/C97)-1) ->  | H97: =E97-D97 -> 0 | I97: =IF(D97=0,"",(E97/D97)-1) -> 
A98: 5647 | B98: Employee Sick Leave | D98: ='App.2-G_Detailed_OM&A_Expenses'!E97 -> 0 | E98: ='App.2-G_Detailed_OM&A_Expenses'!I97 -> 0 | F98: 0 | H98: 0
A99: 5650 | B99: Franchise Requirements | D99: ='App.2-G_Detailed_OM&A_Expenses'!E98 -> 0 | E99: ='App.2-G_Detailed_OM&A_Expenses'!I98 -> 0 | F99: 0 | H99: 0
A100: 5655 | B100: Regulatory Expenses | C100: 120000 | D100: ='App.2-G_Detailed_OM&A_Expenses'!E99 -> 116652 | E100: ='App.2-G_Detailed_OM&A_Expenses'!I99 -> 120000 | F100: 0 | G100: 0 | H100: 3348 | I100: 0.02870075095
A101: 5660 | B101: General Advertising Expenses | C101: 3000 | D101: ='App.2-G_Detailed_OM&A_Expenses'!E100 -> 5771 | E101: ='App.2-G_Detailed_OM&A_Expenses'!I100 -> 0 | F101: -3000 | G101: -1 | H101: -5771 | I101: -1
A102: 5665 | B102: Miscellaneous General Expenses | C102: 33550 | D102: ='App.2-G_Detailed_OM&A_Expenses'!E101 -> 33812 | E102: ='App.2-G_Detailed_OM&A_Expenses'!I101 -> 37000 | F102: 3450 | G102: 0.1028315946 | H102: 3188 | I102: 0.09428605229
A103: 5670 | B103: Rent | D103: ='App.2-G_Detailed_OM&A_Expenses'!E102 -> 0 | E103: ='App.2-G_Detailed_OM&A_Expenses'!I102 -> 0 | F103: =E103-C103 -> 0 | G103: =IF(C103=0,"",(E103/C103)-1) ->  | H103: =E103-D103 -> 0
A104: 5672 | B104: Lease Payment Charge | D104: ='App.2-G_Detailed_OM&A_Expenses'!E103 -> 0 | E104: ='App.2-G_Detailed_OM&A_Expenses'!I103 -> 0 | F104: 0 | H104: 0
A105: 5675 | B105: Maintenance of General Plant | C105: 48325 | D105: ='App.2-G_Detailed_OM&A_Expenses'!E104 -> 69211 | E105: ='App.2-G_Detailed_OM&A_Expenses'!I104 -> 85000 | F105: 36675 | G105: 0.7589239524 | H105: 15789 | I105: 0.2281284767
A106: 5680 | B106: Electrical Safety Authority Fees | D106: ='App.2-G_Detailed_OM&A_Expenses'!E105 -> 0 | E106: ='App.2-G_Detailed_OM&A_Expenses'!I105 -> 0 | F106: 0 | H106: 0
A107: 5681 | B107: Special Purpose Charge Expense | D107: ='App.2-G_Detailed_OM&A_Expenses'!E106 -> 0 | E107: ='App.2-G_Detailed_OM&A_Expenses'!I106 -> 0 | F107: 0 | H107: 0
A108: 5685 | B108: Independent Electricity System Operator Fees and Penalties | D108: ='App.2-G_Detailed_OM&A_Expenses'!E107 -> 0 | E108: ='App.2-G_Detailed_OM&A_Expenses'!I107 -> 0 | F108: 0 | H108: 0
A109: 5695 | B109: OM&A Contra Account | D109: ='App.2-G_Detailed_OM&A_Expenses'!E108 -> 0 | E109: ='App.2-G_Detailed_OM&A_Expenses'!I108 -> 0 | F109: 0 | H109: 0
A110: 6205 | B110: Donations | D110: ='App.2-G_Detailed_OM&A_Expenses'!E109 -> 0 | E110: ='App.2-G_Detailed_OM&A_Expenses'!I109 -> 0 | F110: =E110-C110 -> 0 | G110: =IF(C110=0,"",(E110/C110)-1) ->  | H110: =E110-D110 -> 0 | I110: =IF(D110=0,"",(E110/D110)-1) -> 
A111: 6205 | B111: Donations, Sub-account LEAP Funding | D111: ='App.2-G_Detailed_OM&A_Expenses'!E110 -> 10500 | E111: ='App.2-G_Detailed_OM&A_Expenses'!I110 -> 12500 | F111: 12500 | H111: 2000 | I111: 0.1904761905
A112: Total - Administrative and General Expenses | C112: =SUM(C88:C111) -> 1818350 | D112: =SUM(D88:D111) -> 1986959 | E112: =SUM(E88:E111) -> 2062500 | F112: 244150 | G112: 0.13427008 | H112: 75541 | I112: 0.03801839897
A113: Total OM&A | C113: =C112+C85+C73+C62+C41 -> 4737725 | D113: =D112+D85+D73+D62+D41 -> 4607019 | E113: =E112+E85+E73+E62+E41 -> 5191500 | F113: 453775 | G113: 0.09577909229 | H113: 584481 | I113: 0.1268675037
A114: Adjustments for non-recoverable items
A115: 5681 | B115: Special Purpose Charge Expense | F115: =E115-C115 -> 0 | G115: =IF(C115=0,"",(E115/C115)-1) ->  | H115: =E115-D115 -> 0 | I115: =IF(D115=0,"",(E115/D115)-1) -> 
A116: 6205 | B116: Donations1 | F116: =E116-C116 -> 0 | G116: =IF(C116=0,"",(E116/C116)-1) ->  | H116: =E116-D116 -> 0 | I116: =IF(D116=0,"",(E116/D116)-1) -> 
F117: =E117-C117 -> 0 | G117: =IF(C117=0,"",(E117/C117)-1) ->  | H117: =E117-D117 -> 0 | I117: =IF(D117=0,"",(E117/D117)-1) -> 
F118: =E118-C118 -> 0 | G118: =IF(C118=0,"",(E118/C118)-1) ->  | H118: =E118-D118 -> 0 | I118: =IF(D118=0,"",(E118/D118)-1) -> 
F119: =E119-C119 -> 0 | G119: =IF(C119=0,"",(E119/C119)-1) ->  | H119: =E119-D119 -> 0 | I119: =IF(D119=0,"",(E119/D119)-1) -> 
A120: Total Recoverable OM&A | C120: =C113-SUM(C115:C119) -> 4737725 | D120: =D113-SUM(D115:D119) -> 4607019 | E120: 5191500 | F120: 453775 | G120: =IF(C120=0,"",(E120/C120)-1) -> 0.09577909229 | H120: 584481 | I120: =IF(D120=0,"",(E120/D120)-1) -> 0.1268675037
A122: 1 Account 6205 - Donations is generally non-recoverable. However, the sub-account LEAP funding of account 6205 is generally recoverable.
A125: Note:
A127: 1 | B127: If the applicant is adopting IFRS or an alternate accounting standard as of January 1, 2013 for financial reporting purposes, Column D "Most Current Actual Year" must be provided on CGAAP.
A128: 2 | B128: If the applicant is adopting IFRS or an alternate accounting standard as of January 1, 2012 for financial reporting purposes, Column D "Most Current Actual Year" must be provided on that standard.

Sheet App.2-I_OM&A_Summary_Analys
K1: File Number: | L1: ='LDC Info'!$E$18 -> EB2012-0176
K2: Exhibit:
K3: Tab:
K4: Schedule:
K5: Page:
K7: Date:
A9: Appendix 2-I
A10: Summary of Recoverable OM&A Expenses
B13: ="Last Rebasing Year (" & 'LDC Info'!E30 & " BA)" -> Last Rebasing Year (2009 BA) | C13: ="Last Rebasing Year (" & 'LDC Info'!E30 & " Actuals)" -> Last Rebasing Year (2009 Actuals) | D13: ='LDC Info'!E26 -2 & " Actuals" -> 2010 Actuals | E13: ='LDC Info'!E26 -1 & " Actuals" -> 2011 Actuals | F13: ='LDC Info'!E26 & " Bridge Year" -> 2012 Bridge Year | G13: ='LDC Info'!E28 & " Test Year" -> 2013 Test Year
A14: Reporting Basis | B14: CGAAP | C14: CGAAP | D14: CGAAP | E14: CGAAP | F14: CGAAP | G14: CGAAP
A15: Operations | B15: ='App.2-H_OM&A_Detailed_Analysis'!C41 -> 480400 | C15: ='App.2-G_Detailed_OM&A_Expenses'!C40 -> 238669 | D15: ='App.2-G_Detailed_OM&A_Expenses'!D40 -> 213163 | E15: ='App.2-G_Detailed_OM&A_Expenses'!E40 -> 265336 | F15: ='App.2-G_Detailed_OM&A_Expenses'!G40 -> 289000 | G15: ='App.2-G_Detailed_OM&A_Expenses'!I40 -> 334000
A16: Maintenance | B16: ='App.2-H_OM&A_Detailed_Analysis'!C62 -> 1160575 | C16: ='App.2-G_Detailed_OM&A_Expenses'!C61 -> 1452469 | D16: ='App.2-G_Detailed_OM&A_Expenses'!D61 -> 1236425 | E16: ='App.2-G_Detailed_OM&A_Expenses'!E61 -> 1217086 | F16: ='App.2-G_Detailed_OM&A_Expenses'!G61 -> 1427000 | G16: ='App.2-G_Detailed_OM&A_Expenses'!I61 -> 1558000
A17: SubTotal | B17: =SUM(B15:B16) -> 1640975 | C17: =SUM(C15:C16) -> 1691138 | D17: 1449588 | E17: 1482422 | F17: 1716000 | G17: 1892000
A18: %Change (year over year) | D18: =IF(ISERROR((D17-C17)/C17), "", (D17-C17)/C17) -> -0.1428328144 | E18: =IF(ISERROR((E17-D17)/D17), "", (E17-D17)/D17) -> 0.02265057382 | F18: 0.1575651198 | G18: 0.1025641026
A19: %Change (Test Year vs Last Rebasing Year - Actual) | G19: =IF(ISERROR((G17-C17)/C17), "", (G17-C17)/C17) -> 0.1187732757
A20: Billing and Collecting | B20: ='App.2-H_OM&A_Detailed_Analysis'!C73 -> 1242900 | C20: ='App.2-G_Detailed_OM&A_Expenses'!C72 -> 1366180 | D20: ='App.2-G_Detailed_OM&A_Expenses'!D72 -> 1165395 | E20: ='App.2-G_Detailed_OM&A_Expenses'!E72 -> 1125350 | F20: ='App.2-G_Detailed_OM&A_Expenses'!G72 -> 1130000 | G20: ='App.2-G_Detailed_OM&A_Expenses'!I72 -> 1191000
A21: Community Relations | B21: ='App.2-H_OM&A_Detailed_Analysis'!C85 -> 35500 | C21: ='App.2-G_Detailed_OM&A_Expenses'!C84 -> 14696 | D21: ='App.2-G_Detailed_OM&A_Expenses'!D84 -> 3636 | E21: ='App.2-G_Detailed_OM&A_Expenses'!E84 -> 12288 | F21: ='App.2-G_Detailed_OM&A_Expenses'!G84 -> 45000 | G21: ='App.2-G_Detailed_OM&A_Expenses'!I84 -> 46000
A22: Administrative and General | B22: ='App.2-H_OM&A_Detailed_Analysis'!C112 -> 1818350 | C22: ='App.2-G_Detailed_OM&A_Expenses'!C111 -> 1505456 | D22: ='App.2-G_Detailed_OM&A_Expenses'!D111 -> 1675704 | E22: ='App.2-G_Detailed_OM&A_Expenses'!E111 -> 1986959 | F22: ='App.2-G_Detailed_OM&A_Expenses'!G111 -> 2158500 | G22: ='App.2-G_Detailed_OM&A_Expenses'!I111 -> 2062500
A23: SubTotal | B23: =SUM(B20:B22) -> 3096750 | C23: =SUM(C20:C22) -> 2886332 | D23: 2844735 | E23: 3124597 | F23: 3333500 | G23: 3299500
A24: %Change (year over year) | D24: =IF(ISERROR((D23-C23)/C23), "", (D23-C23)/C23) -> -0.01441171702 | E24: =IF(ISERROR((E23-D23)/D23), "", (E23-D23)/D23) -> 0.09837893512 | F24: =IF(ISERROR((F23-E23)/E23), "", (F23-E23)/E23) -> 0.06685758195 | G24: =IF(ISERROR((G23-F23)/F23), "", (G23-F23)/F23) -> -0.01019949003
A25: %Change (Test Year vs Last Rebasing Year - Actual) | G25: =IF(ISERROR((G23-C23)/C23), "", (G23-C23)/C23) -> 0.1431463879
A26: Total | B26: =SUM(B23,B17) -> 4737725 | C26: =SUM(C23,C17) -> 4577470 | D26: 4294323 | E26: 4607019 | F26: 5049500 | G26: 5191500
A27: %Change (year over year) | D27: =IF(ISERROR((D26-C26)/C26), "", (D26-C26)/C26) -> -0.06185665881 | E27: =IF(ISERROR((E26-D26)/D26), "", (E26-D26)/D26) -> 0.07281613423 | F27: =IF(ISERROR((F26-E26)/E26), "", (F26-E26)/E26) -> 0.09604496964 | G27: =IF(ISERROR((G26-F26)/F26), "", (G26-F26)/F26) -> 0.0281215962
B30: =B13 -> Last Rebasing Year (2009 BA) | C30: =C13 -> Last Rebasing Year (2009 Actuals) | D30: 2010 Actuals | E30: 2011 Actuals | F30: 2012 Bridge Year | G30: 2013 Test Year
A31: Operations | B31: =B15 -> 480400 | C31: =C15 -> 238669 | D31: 213163 | E31: 265336 | F31: 289000 | G31: 334000
A32: Maintenance | B32: =B16 -> 1160575 | C32: =C16 -> 1452469 | D32: 1236425 | E32: 1217086 | F32: 1427000 | G32: 1558000
A33: Billing and Collecting | B33: =B20 -> 1242900 | C33: =C20 -> 1366180 | D33: 1165395 | E33: 1125350 | F33: 1130000 | G33: 1191000
A34: Community Relations | B34: =B21 -> 35500 | C34: =C21 -> 14696 | D34: 3636 | E34: 12288 | F34: 45000 | G34: 46000
A35: Administrative and General | B35: =B22 -> 1818350 | C35: =C22 -> 1505456 | D35: 1675704 | E35: 1986959 | F35: 2158500 | G35: 2062500
A36: Total | B36: =SUM(B31:B35) -> 4737725 | C36: =SUM(C31:C35) -> 4577470 | D36: 4294323 | E36: 4607019 | F36: 5049500 | G36: 5191500
A37: %Change (year over year) | D37: =IF(ISERROR((D36-C36)/C36), "", (D36-C36)/C36) -> -0.06185665881 | E37: =IF(ISERROR((E36-D36)/D36), "", (E36-D36)/D36) -> 0.07281613423 | F37: =IF(ISERROR((F36-E36)/E36), "", (F36-E36)/E36) -> 0.09604496964 | G37: =IF(ISERROR((G36-F36)/F36), "", (G36-F36)/F36) -> 0.0281215962
B45: =B13 -> Last Rebasing Year (2009 BA) | C45: =C13 -> Last Rebasing Year (2009 Actuals) | D45: ="Variance " & 'LDC Info'!E30 & " BA – " & 'LDC Info'!E30 & " Actuals" -> Variance 2009 BA – 2009 Actuals | E45: =D13 -> 2010 Actuals | F45: ="Variance " & 'LDC Info'!E26 -2 & " Actuals vs. " & 'LDC Info'!E30 & " Actuals" -> Variance 2010 Actuals vs. 2009 Actuals | G45: =E13 -> 2011 Actuals | H45: ="Variance " & 'LDC Info'!E26 -1 & " Actuals vs. " & 'LDC Info'!E26-2 & " Actuals" -> Variance 2011 Actuals vs. 2010 Actuals | I45: =F13 -> 2012 Bridge Year | J45: ="Variance " & 'LDC Info'!E26 & " Bridge vs. " & 'LDC Info'!E26 -1 & " Actuals" -> Variance 2012 Bridge vs. 2011 Actuals | K45: =G13 -> 2013 Test Year | L45: ="Variance " & 'LDC Info'!E28 & " Test vs. " & 'LDC Info'!E26 & " Bridge" -> Variance 2013 Test vs. 2012 Bridge
A46: Operations | B46: =B15 -> 480400 | C46: 238669 | D46: =B46-C46 -> 241731 | E46: =D15 -> 213163 | F46: =E46-C46 -> -25506 | G46: =E15 -> 265336 | H46: =G46-E46 -> 52173 | I46: =F15 -> 289000 | J46: =I46-G46 -> 23664 | K46: =G15 -> 334000 | L46: =K46-I46 -> 45000
A47: Maintenance | B47: 1160575 | C47: 1452469 | D47: =B47-C47 -> -291894 | E47: =D16 -> 1236425 | F47: =E47-C47 -> -216044 | G47: =E16 -> 1217086 | H47: =G47-E47 -> -19339 | I47: =F16 -> 1427000 | J47: 209914 | K47: =G16 -> 1558000 | L47: 131000
A48: Billing and Collecting | B48: =B20 -> 1242900 | C48: 1366180 | D48: -123280 | E48: =D20 -> 1165395 | F48: -200785 | G48: =E20 -> 1125350 | H48: -40045 | I48: =F20 -> 1130000 | J48: 4650 | K48: =G20 -> 1191000 | L48: 61000
A49: Community Relations | B49: 35500 | C49: 14696 | D49: 20804 | E49: =D21 -> 3636 | F49: -11060 | G49: =E21 -> 12288 | H49: 8652 | I49: =F21 -> 45000 | J49: 32712 | K49: =G21 -> 46000 | L49: 1000
A50: Administrative and General | B50: 1818350 | C50: 1505456 | D50: 312894 | E50: 1675704 | F50: 170248 | G50: 1986959 | H50: 311255 | I50: 2158500 | J50: 171541 | K50: 2062500 | L50: -96000
A51: Total OM&A Expenses | B51: =SUM(B46:B50) -> 4737725 | C51: =SUM(C46:C50) -> 4577470 | D51: 160255 | E51: 4294323 | F51: -283147 | G51: 4607019 | H51: 312696 | I51: 5049500 | J51: 442481 | K51: 5191500 | L51: 142000
A52: Variance from previous year | E52: =E51-C51 -> -283147 | G52: =G51-E51 -> 312696 | I52: =I51-G51 -> 442481 | K52: =K51-I51 -> 142000
A53: Percent change (year over year) | E53: =IF(ISERROR(E52/C51), "", E52/C51) -> -0.06185665881 | G53: =IF(ISERROR(G52/E51), "", G52/E51) -> 0.07281613423 | I53: =IF(ISERROR(I52/G51), "", I52/G51) -> 0.09604496964 | K53: =IF(ISERROR(K52/I51), "", K52/I51) -> 0.0281215962
A54: Percent Change: Test year vs. Most Current Actual | G54: =IF(ISERROR((K51-G51)/G51), "", (K51-G51)/G51) -> 0.1268675037
A55: Simple average of % variance for all years | G55: =IF(ISERROR((K51-C51)/C51), "", (K51-C51)/C51) -> 0.1341417857 | L55: =IF(ISERROR(AVERAGE(E53,G53,I53,K53)), "", AVERAGE(E53,G53,I53,K53)) -> 0.03378151032
A56: Compound Annual Growth Rate for all years | G56: =IF(ISERROR((K52-C52)/C52), "", (K52-C52)/C52) ->  | L56: =IF((K51-C51)=0, "", (K51/C51)^(1/4)-1) -> 0.03196944313
A57: ="Compound Growth Rate (" & E13 & " vs. " & 'LDC Info'!E30 & " Actuals)" -> Compound Growth Rate (2011 Actuals vs. 2009 Actuals) | G57: =IF(ISERROR((G51/C51)^(1/(2010-2008)) - 1), "", (G51-C51)/C51) -> 0.006455312651
A59: Note:
A61: 1 "BA" = Board-Approved
A62: 2 If it has been more than three years since the applicant last filed a cost of service application, additional years of historical actuals should be incorporated into the table, as necessary, to go back to the last cost of service application. If the applicant last filed a cost of service application less than three years ago, a minimum of three years of actual information is required.
A64: 3 Recoverable OM&A that is included on these tables should be identical to the recoverable OM&A that is shown for the corresponding periods on Appendix 2-H.

Sheet App.2-J_OM&A_Cost _Drivers
F1: File Number: | G1: ='LDC Info'!$E$18 -> EB2012-0176
F2: Exhibit:
F3: Tab:
F4: Schedule:
F5: Page:
F7: Date:
A10: Appendix 2-J
A11: OM&A Cost Driver Table
A13: OM&A | B13: ="Last Rebasing Year (" & 'LDC Info'!E30 & " Actuals)" -> Last Rebasing Year (2009 Actuals) | C13: 2009 Actuals | D13: ='LDC Info'!E26 -2 & " Actuals" -> 2010 Actuals | E13: ='LDC Info'!E26 -1 & " Actuals" -> 2011 Actuals | F13: ='LDC Info'!E26 & " Bridge Year" -> 2012 Bridge Year | G13: ='LDC Info'!E28 & " Test Year" -> 2013 Test Year
A14: Reporting Basis | B14: CGAAP | D14: CGAAP | E14: CGAAP | F14: CGAAP | G14: CGAAP
A15: Opening Balance | B15: 4737725 | C15: 4577473 | D15: =IF(ISERROR(FIND("2008", $B$13)), B28, C28) -> 4577473 | E15: =+D28 -> 4294320 | F15: =+E28 -> 4607019 | G15: =+F28 -> 5049500
A16: UG Distribution Lines and Feeders | B16: -286861
A17: Mtnce of Distribution Stations | D17: -159435 | E17: 150505
A18: Mtnce of OH Conductors and Devices | B18: 161981 | D18: -109493 | F18: -72254
A19: OH Lines and Feeders (ROW) | B19: 69691 | E19: -145782 | F19: 298029
A20: Mtnce of OH & UG Services | D20: 60047
A21: Collecting | B21: -51215
A22: Bad Debt Expense | B22: 197206 | D22: -279604
A23: Salaries and Expenses included in OM&A | B23: -192797 | D23: 81190 | E23: 152562 | F23: 66850
A24: Office Supplies and Expenses | B24: -87676 | F24: 162843
A25: Outside Service - Employed | F25: 92588 | G25: -87000
A26: Injuries and Damages | E26: 160000
A27: Other | B27: =+B28-SUM(B15:B26) -> 29419 | C27: 0 | D27: 124142 | E27: -4586 | F27: -105575 | G27: 229000
A28: Closing Balance | B28: 4577473 | C28: 4577473 | D28: 4294320 | E28: 4607019 | F28: 5049500 | G28: 5191500
A30: Notes:
A32: 1 | B32: For each year, a detailed explanation for each cost driver and associated amount is
B33: required.
A34: 2 | B34: The closing balance for each year becomes the opening balance for the next year.
A35: 3 | B35: If it has been more than three years since the applicant last filed a cost of service application, additional years of historical actuals should be incorporated into the table, as necessary, to go back to the last cost of service application. If the applicant last filed a cost of service application less than three years ago, a minimum of three years of actual information is required.
A39: 4 | B39: Opening Balance for "Last Rebasing Year" (cell B15) should be equal to the Board-Approved amount.

Sheet App.2-K_Employee Costs
F1: File Number: | G1: ='LDC Info'!$E$18 -> EB2012-0176
F2: Exhibit:
F3: Tab:
F4: Schedule:
F5: Page:
F7: Date:
A9: Appendix 2-K
A10: Employee Costs
B12: ="Last Rebasing Year (" & 'LDC Info'!E30 & " Board-Approved)" -> Last Rebasing Year (2009 Board-Approved) | C12: ="Last Rebasing Year (" & 'LDC Info'!E30 & " Actuals)" -> Last Rebasing Year (2009 Actuals) | D12: ='LDC Info'!E26 -2 & " Actuals" -> 2010 Actuals | E12: ='LDC Info'!E26 -1 & " Actuals" -> 2011 Actuals | F12: ='LDC Info'!E26 & " Bridge Year" -> 2012 Bridge Year | G12: ='LDC Info'!E28 & " Test Year" -> 2013 Test Year
A13: Reporting Basis | B13: CGAAP | C13: CGAAP | D13: CGAAP | E13: CGAAP | F13: MIFRS | G13: MIFRS
A14: Number of Employees (FTEs including Part-Time)1
A15: Executive | B15: 10
A16: Management | B16: 8 | C16: 6.5 | D16: 8 | E16: 9 | F16: 10 | G16: 10
A17: Non-Union
A18: Union | B18: 30 | C18: 30.5 | D18: 29 | E18: 25 | F18: 25 | G18: 26
A19: Total | B19: =SUM(B15:B18) -> 48 | C19: 37 | D19: 37 | E19: 34 | F19: 35 | G19: 36
A20: Number of Part-Time Employees
A21: Executive
A22: Management
A23: Non-Union
A24: Union
A25: Total | B25: =SUM(B21:B24) -> 0 | C25: 0 | D25: 0 | E25: 0 | F25: 0 | G25: 0
A26: Total Salary and Wages
A27: Executive
A28: Management | C28: 709268 | D28: 774942 | E28: 947806 | F28: 1001627 | G28: 1035133
A29: Non-Union
A30: Union | C30: 1893975 | D30: 1677232 | E30: 1496630 | F30: 1460874 | G30: 1573067
A31: Total | B31: =SUM(B27:B30) -> 0 | C31: 2603243 | D31: 2452174 | E31: 2444436 | F31: 2462501 | G31: 2608200
A32: Current Benefits
A33: Executive
A34: Management | C34: 133805 | D34: 156760 | E34: 192918 | F34: 245864 | G34: 244009
A35: Non-Union
A36: Union | C36: 390120 | D36: 388003 | E36: 346338 | F36: 378525 | G36: 411707
A37: Total | B37: =SUM(B33:B36) -> 0 | C37: 523925 | D37: 544763 | E37: 539256 | F37: 624389 | G37: 655716
A38: Accrued Pension and Post-Retirement Benefits
A39: Executive
A40: Management | C40: -773 | D40: 791 | E40: -773 | F40: -342 | G40: -383
A41: Non-Union | C41: -7473 | D41: 7651 | E41: -7984 | F41: -3532 | G41: -3947
A42: Union | C42: -3865 | D42: 3957 | E42: -2833 | F42: -1253 | G42: -1403
A43: Total | B43: =SUM(B39:B42) -> 0 | C43: -12111 | D43: 12399 | E43: -11590 | F43: -5127 | G43: -5733
A44: Total Benefits (Current + Accrued)
A45: Executive | B45: =B33+B39 -> 0 | C45: 0 | D45: 0 | E45: 0 | F45: 0 | G45: 0
A46: Management | B46: 0 | C46: 133032 | D46: 157551 | E46: 192145 | F46: 245522 | G46: 243626
A47: Non-Union | B47: 0 | C47: -7473 | D47: 7651 | E47: -7984 | F47: -3532 | G47: -3947
A48: Union | B48: 0 | C48: 386255 | D48: 391960 | E48: 343505 | F48: 377272 | G48: 410304
A49: Total | B49: 0 | C49: 511814 | D49: 557162 | E49: 527666 | F49: 619262 | G49: 649983
A50: Total Compensation (Salary, Wages, & Benefits)
A51: Executive | B51: =B27+B45 -> 0 | C51: 0 | D51: 0 | E51: 0 | F51: 0 | G51: 0
A52: Management | B52: 0 | C52: 842300 | D52: 932493 | E52: 1139951 | F52: 1247149 | G52: 1278759
A53: Non-Union | B53: 0 | C53: -7473 | D53: 7651 | E53: -7984 | F53: -3532 | G53: -3947
A54: Union | B54: 0 | C54: 2280230 | D54: 2069192 | E54: 1840135 | F54: 1838146 | G54: 1983371
A55: Total | B55: 0 | C55: 3115057 | D55: 3009336 | E55: 2972102 | F55: 3081763 | G55: 3258183
A56: Compensation - Average Yearly Base Wages
A57: Executive | B57: 26246
A58: Management | B58: 82788 | C58: 82222 | D58: 82395 | E58: 87572 | F58: 100163 | G58: =+G28/G16 -> 103513.3
A59: Non-Union
A60: Union | B60: 53321 | C60: 52421 | D60: 52812 | E60: 54803 | F60: 58435 | G60: =+G30/G18 -> 60502.57692
A61: Total
A62: Compensation - Average Yearly Overtime
A63: Executive
A64: Management | B64: 5474 | C64: 8208 | D64: 1854 | E64: 7036 | F64: 2400 | G64: 2400
A65: Non-Union
A66: Union | B66: 8240 | C66: 8705 | D66: 3659 | E66: 4197 | F66: 3000 | G66: 3000
A67: Total | F67: .
A68: Compensation - Average Yearly Incentive Pay
A69: Executive | B69: 4501
A70: Management | B70: 4925 | C70: 7372 | D70: 10233 | E70: 6800 | F70: 8000 | G70: 8000
A71: Non-Union
A72: Union
A73: Total
A74: Compensation - Average Yearly Benefits
A75: Executive | B75: 2503
A76: Management | B76: 12903 | C76: 20585 | D76: 19595 | E76: 21435 | F76: 24586 | G76: 24401
A77: Non-Union
A78: Union | B78: 9015 | C78: 12791 | D78: 13379 | E78: 13854 | F78: 15141 | G78: 15835
A79: Total
A81: Total Compensation | B81: =SUM(B51:B54) -> 0 | C81: 3115057 | D81: 3009336 | E81: 2972102 | F81: 3081763 | G81: 3258183
A82: Total Compensation Capitalized (CGAAP) | C82: 1199688 | D82: 933294 | E82: 1087684 | F82: 1290843
A83: Total Compensation Charged to OM&A (CGAAP) | B83: =B81-B82 -> 0 | C83: =C81-C82 -> 1915369 | D83: =D81-D82 -> 2076042 | E83: =E81-E82 -> 1884418 | F83: =F81-F82 -> 1790920
A85: Total Compensation Capitalized (MIFRS) | F85: 784502 | G85: 813279
A86: Total Compensation Charged to OM&A (MIFRS) | E86: =E81-E85 -> 2972102 | F86: =F81-F85 -> 2297261 | G86: =G81-G85 -> 2444904
A89: 1 If an applicant wishes to use headcount, it must also file the same schedule on an FTE basis.
A91: Note:
A92: 1 Please report compensation on a CGAAP and MIFRS basis for your transition year.

Sheet App.2-L_OM&A_per_Cust_FTEE
G1: File Number: | H1: ='LDC Info'!$E$18 -> EB2012-0176
G2: Exhibit:
G3: Tab:
G4: Schedule:
G5: Page:
G7: Date:
A9: Appendix 2-L
A10: Recoverable OM&A Cost per Customer and per FTEE
C12: ="Last Rebasing Year (" & 'LDC Info'!E30 & " Board-Approved)" -> Last Rebasing Year (2009 Board-Approved) | D12: ="Last Rebasing Year (" & 'LDC Info'!E30 & " Actuals)" -> Last Rebasing Year (2009 Actuals) | E12: ='LDC Info'!E26 -2 & " Actuals" -> 2010 Actuals | F12: ='LDC Info'!E26 -1 & " Actuals" -> 2011 Actuals | G12: ='LDC Info'!E26 & " Bridge Year" -> 2012 Bridge Year | H12: ='LDC Info'!E28 & " Test Year" -> 2013 Test Year
A13: Reporting Basis | C13: CGAAP | D13: CGAAP | E13: CGAAP | F13: CGAAP | G13: CGAAP | H13: CGAAP
A14: Number of Customers | C14: 21572 | D14: 21720 | E14: 21999 | F14: 22293 | G14: 22589 | H14: 22876
A15: Total Recoverable OM&A from Appendix 2-I | C15: ='App.2-I_OM&A_Summary_Analys'!B36 -> 4737725 | D15: ='App.2-I_OM&A_Summary_Analys'!C36 -> 4577470 | E15: ='App.2-I_OM&A_Summary_Analys'!D36 -> 4294323 | F15: ='App.2-I_OM&A_Summary_Analys'!E36 -> 4607019 | G15: ='App.2-I_OM&A_Summary_Analys'!F36 -> 5049500 | H15: ='App.2-I_OM&A_Summary_Analys'!G36 -> 5191500
A16: OM&A cost per customer | C16: =IF(C14=0,"",C15/C14) -> 219.6238179 | D16: 210.7490792 | E16: 195.205373 | F16: 206.6576504 | G16: 223.5380052 | H16: 226.9408988
A17: Number of FTEEs | C17: 48 | D17: 37 | E17: 37 | F17: 34 | G17: 35 | H17: 36
A18: Customers/FTEEs | C18: =IF(C17=0,"",C14/C17) -> 449.4166667 | D18: 587.027027 | E18: 594.5675676 | F18: 655.6764706 | G18: 645.4 | H18: 635.4444444
A19: OM&A Cost per FTEE | C19: =IF(C17=0,"",C15/C17) -> 98702.60417 | D19: 123715.4054 | E19: 116062.7838 | F19: 135500.5588 | G19: 144271.4286 | H19: 144208.3333
A21: Notes:
A23: 1 | B23: If it has been more than three years since the applicant last filed a cost of service application, additional years of historical actuals should be incorporated into the table, as necessary, to go back to the last cost of service application. If the applicant last filed a cost of service application less than three years ago, a minimum of three years of actual information is required.
A27: 2 | B27: The method of calculating the number of customers must be identified.
A28: 3 | B28: The method of calculating the number of FTEEs must be identified. See also Appendix 2-K
A29: 4 | B29: The number of customers and the number of FTEEs should correspond to mid-year or average of January 1 and December 31 figures.

Sheet App.2-M_Regulatory_Costs
J1: File Number: | K1: ='LDC Info'!$E$18 -> EB2012-0176
J2: Exhibit:
J3: Tab:
J4: Schedule:
J5: Page:
J7: Date:
A9: Appendix 2-M
A10: Regulatory Cost Schedule
A13: Regulatory Cost Category | C13: USoA Account | D13: USoA Account Balance | E13: Ongoing or One-time Cost? 2 | F13: ="Last Rebasing Year (" & 'LDC Info'!E30 & " Board Approved)" -> Last Rebasing Year (2009 Board Approved) | G13: Most Current Actuals Year 2011 | H13: ='LDC Info'!E26 & " Bridge Year" -> 2012 Bridge Year | I13: Annual % Change | J13: ='LDC Info'!E28 & " Test Year" -> 2013 Test Year | K13: Annual % Change
A14: (A) | C14: (B) | D14: (C ) | E14: (D) | F14: (E) | G14: (F) | H14: (G) | I14: (H) = [(G)-(F)]/(F) | J14: (I) | K14: (J) = [(I)-(G)]/(G)
A15: 1 | B15: OEB Annual Assessment | C15: 5655 | E15: On-Going | F15: 55170 | G15: 56092 | H15: 58878 | I15: =IF(G15=0,"",(H15-G15)/G15) -> 0.04966840191 | J15: 60000 | K15: =IF(H15=0,"",(J15-H15)/H15) -> 0.01905635382
A16: 2 | B16: OEB Section 30 Costs (Applicant-originated) | E16: On-Going | F16: 73 | G16: 109 | H16: 581 | I16: =IF(G16=0,"",(H16-G16)/G16) -> 4.330275229 | K16: =IF(H16=0,"",(J16-H16)/H16) -> -1
A17: 3 | B17: OEB Section 30 Costs (OEB-initiated) | E17: On-Going | F17: 1064 | G17: 800 | H17: 800 | I17: 0 | J17: 800 | K17: 0
A18: 4 | B18: Expert Witness costs for regulatory matters | E18: On-Going
A19: 5 | B19: Legal costs for regulatory matters | E19: On-Time | F19: 3055 | G19: 4583 | H19: 4583 | I19: 0 | J19: 10000 | K19: 1.181976871
A20: 6 | B20: Consultants' costs for regulatory matters | E20: On-Time | F20: 19045 | G20: 49768 | H20: 30168 | I20: -0.3938273589 | J20: 32500 | K20: 0.07730045081
A21: 7 | B21: Operating expenses associated with staff resources allocated to regulatory matters
A22: 8 | B22: Operating expenses associated with other resources allocated to regulatory matters 1
A23: 9 | B23: Other regulatory agency fees or assessments
A24: 10 | B24: Any other costs for regulatory matters (please define) | E24: On-Going | F24: 1304 | G24: 31 | H24: 3856 | I24: 123.3870968 | J24: 3000 | K24: -0.2219917012
B25: Intervenor costs | E25: On-Going | F25: 6041 | G25: 5269 | H25: 8134 | I25: 0.5437464414 | J25: 6200 | K25: -0.2377673961
A26: 11 | B26: Intervenor costs | E26: On-Time | J26: 7500
A27: 12 | B27: Sub-total - Ongoing Costs 3 | D27: =SUMIF($E15:$E26,$E11,D15:D26) -> 0 | F27: =+F15+F16+F17+F18+F24+F25 -> 63652 | G27: =+G15+G16+G17+G18+G24+G25 -> 62301 | H27: 72249 | I27: 0.1596764097 | J27: =+J15+J16+J17+J18+J24+J25 -> 70000 | K27: -0.03112845853
A28: 13 | B28: Sub-total - One-time Costs 4 | D28: =SUMIF($E15:$E26,$E12,D15:D26) -> 0 | F28: =+F19+F20+F26 -> 22100 | G28: =+G19+G20+G26 -> 54351 | H28: 34751 | I28: -0.3606189399 | J28: =+J19+J20+J26 -> 50000 | K28: 0.4388075163
A29: 14 | B29: Total | D29: =D27+D28 -> 0 | F29: =F27+F28 -> 85752 | G29: =G27+G28 -> 116652 | H29: =H27+H28 -> 107000 | I29: -0.0827418304 | J29: =J27+J28 -> 120000 | K29: 0.1214953271
A32: 1 | B32: Please identify the resources involved.
A33: 2 | B33: Where a category's costs include both one-time and ongoing costs, the applicant should prove a separate breakdown between one-time and ongoing costs.
A34: 3 | B34: Sum of all ongoing costs identified in rows 1 to 11 inclusive.
A35: 4 | B35: Sum of all one-time costs identified in rows 1 to 11 inclusive.
A38: Please fill out the following table for all one-time costs related to this cost of service application
C40: Historical Year(s) | D40: =H13 -> 2012 Bridge Year | E40: =J13 -> 2013 Test Year
A41: 4 | B41: Expert Witness costs for regulatory matters | D41: =H18 -> 0 | E41: =J18 -> 0
A42: 5 | B42: Legal costs for Regulatory Matters | E42: =+J19 -> 10000
A43: 6 | B43: Consultants' costs for regulatory matters | D43: 0 | E43: =J20 -> 32500
A44: 7 | B44: Operating expenses associated with staff resources allocated to regulatory matters | D44: =H21 -> 0 | E44: =J21 -> 0
A45: 8 | B45: Operating expenses associated with other resources allocated to regulatory matters 1 | D45: =H22 -> 0 | E45: =J22 -> 0
A46: 11 | B46: Intervenor costs | D46: =H26 -> 0 | E46: =J26 -> 7500

Sheet App.2-N_Corp_Cost_Allocation
F1: File Number: | G1: ='LDC Info'!$E$18 -> EB2012-0176
F2: Exhibit:
F3: Tab:
F4: Schedule:
F5: Page:
F7: Date:
A9: Appendix 2-N
A10: Shared Services and Corporate Cost Allocation
B12: Year:
A14: Shared Services
A16: Name of Company | C16: Service Offered | D16: Pricing Methdology | E16: Price for the Service | F16: Cost for the Service
A17: From | B17: To
E18: $ | F18: $
A28: Corporate Cost Allocation
A30: Name of Company | C30: Service Offered | D30: Pricing Methdology | E30: % of Corporate Costs Allocated | F30: Amount Allocated
A31: From | B31: To
E32: % | F32: $
A33: eg: parent company | B33: eg: regulated entity
A42: Note:
A43: 1 | B43: This appendix must be completed in relation to each service provided or received for the Historical (actuals), Bridge and Test years.

Sheet App.2-OA Capital StructureA2009
K1: File Number: | O1: ='LDC Info'!$E$18 -> EB2012-0176
K2: Exhibit:
K3: Tab:
K4: Schedule:
K5: Page:
K7: Date:
C10: Appendix 2-OA
C11: 2009 Board Approved Capital Structure and Cost of Capital
A13: This table must be completed for the required years of all historical years, the bridge year and the test year.
A15: Line No.
C16: Particulars | E16: Capitalization Ratio | K16: Cost Rate | O16: Return
C19: Application
E20: (%) | I20: ($) | K20: (%) | O20: ($)
C21: Debt
A22: 1 | C22: Long-term Debt | E22: 0.527 | I22: 17901221 | K22: 0.0582 | O22: =K22*I22 -> 1041851.062
A23: 2 | C23: Short-term Debt | E23: 0.04 | G23: (1) | I23: 1358726 | K23: 0.0131 | O23: =K23*I23 -> 17799.3106
A24: 3 | C24: Total Debt | E24: =SUM(E22:E23) -> 0.567 | I24: =SUM(I22:I23) -> 19259947 | K24: =IF(E24=0,0,SUMPRODUCT(E22:E23,K22:K23)/E24) -> 0.05501834215 | O24: =SUM(O22:O23) -> 1059650.373
C26: Equity
A27: 4 | C27: Common Equity | E27: 0.433 | I27: 14708214 | K27: 0.0801 | O27: =K27*I27 -> 1178127.941
A28: 5 | C28: Preferred Shares | I28: =$I$31*E28 -> 0 | O28: =K28*I28 -> 0
A29: 6 | C29: Total Equity | E29: =SUM(E27:E28) -> 0.433 | I29: =SUM(I27:I28) -> 14708214 | K29: =IF(E29=0,0,SUMPRODUCT(E27:E28,K27:K28)/E29) -> 0.0801 | O29: =SUM(O27:O28) -> 1178127.941
A31: 7 | C31: Total | E31: 1 | I31: =I27+I23+I22 -> 33968161 | K31: =(K24*E24)+(K29*E29) -> 0.0658787 | O31: =O24+O29 -> 2237778.314
A34: Notes
A35: (1) | C35: 4.0% unless an applicant has proposed or been approved for a different amount.

Sheet App.2-OA Capital Structure 2009
K1: File Number: | O1: ='LDC Info'!$E$18 -> EB2012-0176
K2: Exhibit:
K3: Tab:
K4: Schedule:
K5: Page:
K7: Date:
C10: Appendix 2-OA
C11: 2009 Capital Structure and Cost of Capital
A13: This table must be completed for the required years of all historical years, the bridge year and the test year.
A15: Line No.
C16: Particulars | E16: Capitalization Ratio | K16: Cost Rate | O16: Return
C19: Application
E20: (%) | I20: ($) | K20: (%) | O20: ($)
C21: Debt
A22: 1 | C22: Long-term Debt | E22: 0.527 | I22: 17107363 | K22: 0.0582 | O22: =K22*I22 -> 995648.5266
A23: 2 | C23: Short-term Debt | E23: 0.04 | G23: (1) | I23: 1298472 | K23: 0.0131 | O23: =K23*I23 -> 17009.9832
A24: 3 | C24: Total Debt | E24: =SUM(E22:E23) -> 0.567 | I24: =SUM(I22:I23) -> 18405835 | K24: =IF(E24=0,0,SUMPRODUCT(E22:E23,K22:K23)/E24) -> 0.05501834215 | O24: =SUM(O22:O23) -> 1012658.51
C26: Equity
A27: 4 | C27: Common Equity | E27: 0.433 | I27: 14055955 | K27: 0.0801 | O27: =K27*I27 -> 1125881.995
A28: 5 | C28: Preferred Shares | I28: =$I$31*E28 -> 0 | O28: =K28*I28 -> 0
A29: 6 | C29: Total Equity | E29: =SUM(E27:E28) -> 0.433 | I29: =SUM(I27:I28) -> 14055955 | K29: =IF(E29=0,0,SUMPRODUCT(E27:E28,K27:K28)/E29) -> 0.0801 | O29: =SUM(O27:O28) -> 1125881.995
A31: 7 | C31: Total | E31: 1 | I31: =I27+I23+I22 -> 32461790 | K31: =(K24*E24)+(K29*E29) -> 0.0658787 | O31: =O24+O29 -> 2138540.505
A34: Notes
A35: (1) | C35: 4.0% unless an applicant has proposed or been approved for a different amount.

Sheet App.2-OA Capital Structure 2010
K1: File Number: | O1: ='LDC Info'!$E$18 -> EB2012-0176
K2: Exhibit:
K3: Tab:
K4: Schedule:
K5: Page:
K7: Date:
C10: Appendix 2-OA
C11: 2010 Capital Structure and Cost of Capital
A13: This table must be completed for the required years of all historical years, the bridge year and the test year.
A15: Line No.
C16: Particulars | E16: Capitalization Ratio | K16: Cost Rate | O16: Return
C19: Application
E20: (%) | I20: ($) | K20: (%) | O20: ($)
C21: Debt
A22: 1 | C22: Long-term Debt | E22: 0.56 | I22: 18888581 | K22: 0.0582 | O22: =K22*I22 -> 1099315.414
A23: 2 | C23: Short-term Debt | E23: 0.04 | G23: (1) | I23: 1349184 | K23: 0.0131 | O23: =K23*I23 -> 17674.3104
A24: 3 | C24: Total Debt | E24: =SUM(E22:E23) -> 0.6 | I24: =SUM(I22:I23) -> 20237765 | K24: =IF(E24=0,0,SUMPRODUCT(E22:E23,K22:K23)/E24) -> 0.05519333333 | O24: =SUM(O22:O23) -> 1116989.725
C26: Equity
